Workbook

Sheet Uputstvo
A1: Potrebno je ući u Tools>Macro>Security i podesiti Security Level na MEDIUM ili LOW. (excel 2003) ili office button > excel options > trust center > trust center settings > macro settings > enable all macros > ok > ok (excel 2007). U oba slučaja čekirati Trust access to the Visual Basic (VBA) project object model Zatim izaći iz programa pa ponovo pokrenuti datoteku
A3: U kartici "Podaci" popunjavaju se podaci o korisniku budžetskih sredstava i njih je neophodno uneti zbog štampe obrazaca. Jedinstveni broj KBS i matični broj se popunjavaju sa vodećim nulama.
A5: U karticama UnObr1, UnObr2, UnObr3, UnObr4, UnObr5 :
A7: Popunjavaju se samo bela polja, dok se u zasenčenim podaci sami izračunavaju.
A9: Nisu dozvoljeni zarezi i tačke, podaci se upisuju samo kao celi brojevi.
A11: Pritiskom na zeleno dugme "Štampa" dobija se forma za štampu za taj obrazac.
A13: U kartici "Kontrole" nalaze se logičke kontrole u upoređenja ispravnosti jedinstvenog broja KBS i matičnog broja prema spisku Uprave za trezor. Ukoliko su polja crvene boje, znači da ta logička kontrola nije dobra ili su neispravni ili neupareni jedinstveni broj KBS i matični broj (treba da budu zelene boje).
A15: Na kraju rada, sveska se spašava kao "Zavrsni_XXXXX_N, gde je XXXXX oznaka JBBK, a N oznaka statusne promene. Ukoliko nije bilo statusne promene oznaka N je "0", a ukoliko je bilo statusne promene oznaka N za period pre statusne promene je "1", a posle statusne promene"2".
A16: Postupak spašavanja: File>Save As... Zavrsni_00458_0.xls (primer za JBKB 458 i bez statusne promene)
A100: x

Sheet Podaci
B2: Јединствени број КБС: | M2: 08590
B4: НАЗИВ КОРИСНИКА БУЏЕТСКИХ СРЕДСТАВА:
B5: ПРЕДШКОЛСКА УСТАНОВА "БАМБИ"
B7: СЕДИШТЕ: | H7: КУЛА | R7: МАТИЧНИ БРОЈ: | Z7: 08004935
B9: ПИБ: | E9: 100261597 | R9: БРОЈ ПОДРАЧУНА: | AA9: 840-49661-40
B11: НАЗИВ НАДЛЕЖНОГ ДИРЕКТНОГ КОРИСНИКА БУЏЕТСКИХ СРЕДСТАВА:
B12: ОПШТИНА КУЛА
B13: (Попуњава само индиректни корисник буџетских средстава)
B16: Период за који се ради финансијски извештај:
B17: од: | D17: 01.01.2017. | M17: (дд.мм.гггг.)
B18: до: | D18: 31.12.2017. | M18: (дд.мм.гггг.)
B21: Датум: | E21: 23.02.2018. | N21: (дд.мм.гггг.)

Sheet UnObr1
A1: Ознака ОП | B1: Број конта | C1: Опис | D1: Износ из претходне године | E1: Износ текуће године | I1: Штампа
D2: (почетно стање) | E2: Бруто | F2: Исправка вредности | G2: Нето
G3: (5 – 6)
A4: 1 | B4: 2 | C4: 3 | D4: 4 | E4: 5 | F4: 6 | G4: 7
C5: АКТИВА
A6: 1001 | B6: 000000 | C6: НEФИНАНСИЈСКА ИМОВИНА (1002 + 1020) | D6: =D7+D25 -> 80930 | E6: =E7+E25 -> 131995 | F6: =F7+F25 -> 53120 | G6: =E6-F6 -> 78875
A7: 1002 | B7: 010000 | C7: НЕФИНАНСИЈСКА ИМОВИНА У СТАЛНИМ СРЕДСТВИМА (1003 + 1007 + 1009 + 1011 + 1015 + 1018) | D7: =D8+D12+D14+D16+D20+D23 -> 80930 | E7: =E8+E12+E14+E16+E20+E23 -> 131995 | F7: =F8+F12+F14+F16+F20+F23 -> 53120 | G7: =E7-F7 -> 78875
A8: 1003 | B8: 011000 | C8: НЕКРЕТНИНЕ И ОПРЕМА (од 1004 до 1006) | D8: =SUM(D9:D11) -> 80930 | E8: =SUM(E9:E11) -> 131995 | F8: =SUM(F9:F11) -> 53120 | G8: 78875
A9: 1004 | B9: 011100 | C9: Зграде и грађевински објекти | D9: 72129 | E9: 102749 | F9: 32157 | G9: =E9-F9 -> 70592
A10: 1005 | B10: 011200 | C10: Опрема | D10: 8801 | E10: 29246 | F10: 20963 | G10: =E10-F10 -> 8283
A11: 1006 | B11: 011300 | C11: Остале некретнине и опрема | G11: =E11-F11 -> 0
A12: 1007 | B12: 012000 | C12: КУЛТИВИСАНА ИМОВИНА (1008) | D12: =D13 -> 0 | E12: =E13 -> 0 | F12: =F13 -> 0 | G12: 0
A13: 1008 | B13: 012100 | C13: Култивисана имовина | G13: 0
A14: 1009 | B14: 013000 | C14: ДРАГОЦЕНОСТИ (1010) | D14: =D15 -> 0 | E14: =E15 -> 0 | F14: =F15 -> 0 | G14: 0
A15: 1010 | B15: 013100 | C15: Драгоцености | G15: 0
A16: 1011 | B16: 014000 | C16: ПРИРОДНА ИМОВИНА (од 1012 до 1014) | D16: =SUM(D17:D19) -> 0 | E16: =SUM(E17:E19) -> 0 | F16: =SUM(F17:F19) -> 0 | G16: 0
A17: 1012 | B17: 014100 | C17: Земљиште | G17: 0
A18: 1013 | B18: 014200 | C18: Подземна блага | G18: 0
A19: 1014 | B19: 014300 | C19: Шуме и воде | G19: 0
A20: 1015 | B20: 015000 | C20: НЕФИНАНСИЈСКА ИМОВИНА У ПРИПРЕМИ И АВАНСИ (1016 + 1017) | D20: =D21+D22 -> 0 | E20: =E21+E22 -> 0 | F20: =F21+F22 -> 0 | G20: 0
A21: 1016 | B21: 015100 | C21: Нефинансијска имовина у припреми | G21: 0
A22: 1017 | B22: 015200 | C22: Аванси за нефинансијску имовину | G22: 0
A23: 1018 | B23: 016000 | C23: НЕМАТЕРИЈАЛНА ИМОВИНА (1019) | D23: =D24 -> 0 | E23: =E24 -> 0 | F23: =F24 -> 0 | G23: 0
A24: 1019 | B24: 016100 | C24: Нематеријална имовина | G24: 0
A25: 1020 | B25: 020000 | C25: НЕФИНАНСИЈСКА ИМОВИНА У ЗАЛИХАМА (1021 + 1025) | D25: =D26+D30 -> 0 | E25: =E26+E30 -> 0 | F25: =F26+F30 -> 0 | G25: 0
A26: 1021 | B26: 021000 | C26: ЗАЛИХЕ (од 1022 до 1024) | D26: =SUM(D27:D29) -> 0 | E26: =SUM(E27:E29) -> 0 | F26: =SUM(F27:F29) -> 0 | G26: 0
A27: 1022 | B27: 021100 | C27: Робне резерве | G27: 0
A28: 1023 | B28: 021200 | C28: Залихе производње | G28: 0
A29: 1024 | B29: 021300 | C29: Роба за даљу продају | G29: 0
A30: 1025 | B30: 022000 | C30: ЗАЛИХЕ СИТНОГ ИНВЕНТАРА И ПОТРОШНОГ МАТЕРИЈАЛА (1026 + 1027) | D30: =D31+D32 -> 0 | E30: =E31+E32 -> 0 | F30: =F31+F32 -> 0 | G30: 0
A31: 1026 | B31: 022100 | C31: Залихе ситног инвентара | G31: 0
A32: 1027 | B32: 022200 | C32: Залихе потрошног материјала | G32: 0
A33: 1028 | B33: 100000 | C33: ФИНАНСИЈСКА ИМОВИНА (1029 + 1049 + 1067) | D33: =D34+D54+D72 -> 3409 | E33: =E34+E54+E72 -> 6804 | F33: =F34+F54+F72 -> 0 | G33: 6804
A34: 1029 | B34: 110000 | C34: ДУГОРОЧНА ФИНАНСИЈСКА ИМОВИНА (1030 + 1040) | D34: =D35+D45 -> 0 | E34: =E35+E45 -> 0 | F34: =F35+F45 -> 0 | G34: 0
A35: 1030 | B35: 111000 | C35: ДУГОРОЧНА ДОМАЋА ФИНАНСИЈСКА ИМОВИНА (од 1031 до 1039) | D35: =SUM(D36:D44) -> 0 | E35: =SUM(E36:E44) -> 0 | F35: =SUM(F36:F44) -> 0 | G35: 0
A36: 1031 | B36: 111100 | C36: Дугорочне домаће хартије од вредности, изузев акција | G36: 0
A37: 1032 | B37: 111200 | C37: Кредити осталим нивоима власти | G37: 0
A38: 1033 | B38: 111300 | C38: Кредити домаћим јавним финансијским институцијама | G38: 0
A39: 1034 | B39: 111400 | C39: Кредити домаћим пословним банкама | G39: 0
A40: 1035 | B40: 111500 | C40: Кредити домаћим јавним нефинансијским институцијама | G40: 0
A41: 1036 | B41: 111600 | C41: Кредити физичким лицима и домаћинствима у земљи | G41: 0
A42: 1037 | B42: 111700 | C42: Кредити домаћим невладиним организацијама | G42: 0
A43: 1038 | B43: 111800 | C43: Кредити домаћим нефинансијским приватним предузећима | G43: 0
A44: 1039 | B44: 111900 | C44: Домаће акције и остали капитал | G44: 0
A45: 1040 | B45: 112000 | C45: ДУГОРОЧНA СТРАНА ФИНАНСИЈСКА ИМОВИНА (од 1041 до 1048) | D45: =SUM(D46:D53) -> 0 | E45: =SUM(E46:E53) -> 0 | F45: =SUM(F46:F53) -> 0 | G45: 0
A46: 1041 | B46: 112100 | C46: Дугорочне стране хартије од вредности, изузев акција | G46: 0
A47: 1042 | B47: 112200 | C47: Кредити страним владама | G47: 0
A48: 1043 | B48: 112300 | C48: Кредити међународним организацијама | G48: 0
A49: 1044 | B49: 112400 | C49: Кредити страним пословним банкама | G49: 0
A50: 1045 | B50: 112500 | C50: Кредити страним нефинансијским институцијама | G50: 0
A51: 1046 | B51: 112600 | C51: Кредити страним невладиним организацијама | G51: 0
A52: 1047 | B52: 112700 | C52: Стране акције и остали капитал | G52: 0
A53: 1048 | B53: 112800 | C53: Страни финансијски деривати | G53: 0
A54: 1049 | B54: 120000 | C54: НОВЧАНА СРЕДСТВА, ПЛЕМЕНИТИ МЕТАЛИ, ХАРТИЈЕ ОД ВРЕДНОСТИ, ПОТРАЖИВАЊА И КРАТКОРОЧНИ ПЛАСМАНИ (1050 + 1060 + 1062) | D54: =D55+D65+D67 -> 711 | E54: =E55+E65+E67 -> 807 | F54: =F55+F65+F67 -> 0 | G54: 807
A55: 1050 | B55: 121000 | C55: НОВЧАНА СРЕДСТВА, ПЛЕМЕНИТИ МЕТАЛИ, ХАРТИЈЕ ОД ВРЕДНОСТИ (од 1051 до 1059) | D55: =SUM(D56:D64) -> 1 | E55: =SUM(E56:E64) -> 6 | F55: =SUM(F56:F64) -> 0 | G55: 6
A56: 1051 | B56: 121100 | C56: Жиро и текући рачуни | D56: 1 | E56: 6 | G56: 6
A57: 1052 | B57: 121200 | C57: Издвојена новчана средства и акредитиви | G57: 0
A58: 1053 | B58: 121300 | C58: Благајна | G58: 0
A59: 1054 | B59: 121400 | C59: Девизни рачун | G59: 0
A60: 1055 | B60: 121500 | C60: Девизни акредитиви | G60: 0
A61: 1056 | B61: 121600 | C61: Девизна благајна | G61: 0
A62: 1057 | B62: 121700 | C62: Остала новчана средства | G62: 0
A63: 1058 | B63: 121800 | C63: Племенити метали | G63: 0
A64: 1059 | B64: 121900 | C64: Хартије од вредности | G64: 0
A65: 1060 | B65: 122000 | C65: КРАТКОРОЧНА ПОТРАЖИВАЊА (1061) | D65: =D66 -> 710 | E65: =E66 -> 801 | F65: =F66 -> 0 | G65: 801
A66: 1061 | B66: 122100 | C66: Потраживања по основу продаје и друга потраживања | D66: 710 | E66: 801 | G66: 801
A67: 1062 | B67: 123000 | C67: КРАТКОРОЧНИ ПЛАСМАНИ (од 1063 до 1066) | D67: =SUM(D68:D71) -> 0 | E67: =SUM(E68:E71) -> 0 | F67: =SUM(F68:F71) -> 0 | G67: 0
A68: 1063 | B68: 123100 | C68: Краткорочни кредити | G68: 0
A69: 1064 | B69: 123200 | C69: Дати аванси, депозити и кауције | G69: 0
A70: 1065 | B70: 123300 | C70: Хартије од вредности намењене продаји | G70: 0
A71: 1066 | B71: 123900 | C71: Остали краткорочни пласмани | G71: =E71-F71 -> 0
A72: 1067 | B72: 130000 | C72: АКТИВНА ВРЕМЕНСКА РАЗГРАНИЧЕЊА (1068) | D72: =D73 -> 2698 | E72: =E73 -> 5997 | F72: =F73 -> 0 | G72: 5997
A73: 1068 | B73: 131000 | C73: АКТИВНА ВРЕМЕНСКА РАЗГРАНИЧЕЊА (од 1069 до 1071) | D73: =SUM(D74:D76) -> 2698 | E73: =SUM(E74:E76) -> 5997 | F73: =SUM(F74:F76) -> 0 | G73: 5997
A74: 1069 | B74: 131100 | C74: Разграничени расходи до једне године | G74: 0
A75: 1070 | B75: 131200 | C75: Обрачунати неплаћени расходи и издаци | D75: 2698 | E75: 5997 | G75: 5997
A76: 1071 | B76: 131300 | C76: Остала активна временска разграничења | G76: 0
A77: 1072 | C77: УКУПНА АКТИВА (1001 + 1028) | D77: =D6+D33 -> 84339 | E77: =E6+E33 -> 138799 | F77: =F6+F33 -> 53120 | G77: 85679
A78: 1073 | B78: 351000 | C78: ВАНБИЛАНСНА АКТИВА | E78: 1964 | G78: 1964
A79: Ознака ОП | B79: Број конта | C79: Опис | F79: Износ
F80: Претходна година | G80: Текућа година
A81: 1 | B81: 2 | C81: 3 | F81: 4 | G81: 5
C82: ПАСИВА
A83: 1074 | B83: 200000 | C83: ОБАВЕЗЕ (1075 + 1099 + 1118 + 1173 + 1198 + 1212) | F83: =F84+F108+F127+F182+F207+F221 -> 3408 | G83: =G84+G108+G127+G182+G207+G221 -> 6798
A84: 1075 | B84: 210000 | C84: ДУГОРОЧНЕ ОБАВЕЗЕ (1076 + 1086 + 1093 + 1095 + 1097) | F84: =F85+F95+F102+F104+F106 -> 0 | G84: =G85+G95+G102+G104+G106 -> 0
A85: 1076 | B85: 211000 | C85: ДОМАЋЕ ДУГОРОЧНЕ ОБАВЕЗЕ (од 1077 до 1085) | F85: =SUM(F86:F94) -> 0 | G85: =SUM(G86:G94) -> 0
A86: 1077 | B86: 211100 | C86: Обавезе по основу емитованих хартија од вредности, изузев акција
A87: 1078 | B87: 211200 | C87: Обавезе по основу дугорочних кредита од осталих нивоа власти
A88: 1079 | B88: 211300 | C88: Обавезе по основу дугорочних кредита од домаћих јавних финансијских институција
A89: 1080 | B89: 211400 | C89: Обавезе по основу дугорочних кредита од домаћих пословних банака
A90: 1081 | B90: 211500 | C90: Обавезе по основу дугорочних кредита од осталих домаћих кредитора
A91: 1082 | B91: 211600 | C91: Обавезе по основу дугорочних кредита од домаћинстава у земљи
A92: 1083 | B92: 211700 | C92: Дугорочне обавезе по основу домаћих финансијских деривата
A93: 1084 | B93: 211800 | C93: Дугорочне обавезе по основу домаћих меница
A94: 1085 | B94: 211900 | C94: Дугорочне обавезе за финансијске лизинге
A95: 1086 | B95: 212000 | C95: СТРАНЕ ДУГОРОЧНЕ ОБАВЕЗЕ (од 1087 до 1092) | F95: =SUM(F96:F101) -> 0 | G95: =SUM(G96:G101) -> 0
A96: 1087 | B96: 212100 | C96: Дугорочне стране обавезе по основу емитованих хартија од вредности, изузев акција
A97: 1088 | B97: 212200 | C97: Обавезе по основу дугорочних кредита од страних влада
A98: 1089 | B98: 212300 | C98: Обавезе по основу дугорочних кредита од мултилатералних институција
A99: 1090 | B99: 212400 | C99: Обавезе по основу дугорочних кредита од страних пословних банака
A100: 1091 | B100: 212500 | C100: Обавезе по основу дугорочних кредита од осталих страних кредитора
A101: 1092 | B101: 212600 | C101: Дугорочне обавезе по основу страних финансијских деривата
A102: 1093 | B102: 213000 | C102: ДУГОРОЧНЕ ОБАВЕЗЕ ПО ОСНОВУ ГАРАНЦИЈА (1094) | F102: =F103 -> 0 | G102: =G103 -> 0
A103: 1094 | B103: 213100 | C103: Дугорочне обавезе по основу гаранција
A104: 1095 | B104: 214000 | C104: ОБАВЕЗЕ ПО ОСНОВУ ОТПЛАТЕ ГЛАВНИЦЕ ЗА ФИНАНСИЈСКИ ЛИЗИНГ (1096) | F104: =F105 -> 0 | G104: =G105 -> 0
A105: 1096 | B105: 214100 | C105: Обавезе по основу отплате главнице зa финансијски лизинг
A106: 1097 | B106: 215000 | C106: ОБАВЕЗЕ ПО ОСНОВУ ОТПЛАТА ГАРАНЦИЈА ПО КОМЕРЦИЈАЛНИМ ТРАНСАКЦИЈАМА (1098) | F106: =F107 -> 0 | G106: =G107 -> 0
A107: 1098 | B107: 215100 | C107: Обавезе по основу отплата гаранција по комерцијалним трансакцијама
A108: 1099 | B108: 220000 | C108: КРАТКОРОЧНЕ ОБАВЕЗЕ (1100 + 1109 + 1116) | F108: =F109+F118+F125 -> 0 | G108: =G109+G118+G125 -> 0
A109: 1100 | B109: 221000 | C109: КРАТКОРОЧНЕ ДОМАЋЕ ОБАВЕЗЕ (од 1101 до 1108) | F109: =SUM(F110:F117) -> 0 | G109: =SUM(G110:G117) -> 0
A110: 1101 | B110: 221100 | C110: Краткорочне домаће обавезе по основу емитованих хартија од вредности, изузев акција
A111: 1102 | B111: 221200 | C111: Обавезе по основу краткорочних кредита од осталих нивоа власти
A112: 1103 | B112: 221300 | C112: Обавезе по основу краткорочних кредита од домаћих јавних финансијских институција
A113: 1104 | B113: 221400 | C113: Обавезе по основу краткорочних кредита од домаћих пословних банака
A114: 1105 | B114: 221500 | C114: Обавезе по основу краткорочних кредита од осталих домаћих кредитора
A115: 1106 | B115: 221600 | C115: Обавезе по основу краткорочних кредита од домаћинстава у земљи
A116: 1107 | B116: 221700 | C116: Краткорочне обавезе по основу домаћих финансијских деривата
A117: 1108 | B117: 221800 | C117: Краткорочне обавезе по основу домаћих меница
A118: 1109 | B118: 222000 | C118: КРАТКОРОЧНЕ СТРАНЕ ОБАВЕЗЕ (од 1110 до 1115) | F118: =SUM(F119:F124) -> 0 | G118: =SUM(G119:G124) -> 0
A119: 1110 | B119: 222100 | C119: Краткорочне стране обавезе по основу емитованих хартија од вредности, изузев акција
A120: 1111 | B120: 222200 | C120: Обавезе по основу краткорочних кредита од страних влада
A121: 1112 | B121: 222300 | C121: Обавезе по основу краткорочних кредита од мултилатералних институција
A122: 1113 | B122: 222400 | C122: Обавезе по основу краткорочних кредита од страних пословних банака
A123: 1114 | B123: 222500 | C123: Обавезе по основу краткорочних кредита од осталих страних кредитора
A124: 1115 | B124: 222600 | C124: Краткорочне обавезе по основу страних финансијских деривата
A125: 1116 | B125: 223000 | C125: КРАТКОРОЧНЕ ОБАВЕЗЕ ПО ОСНОВУ ГАРАНЦИЈА (1117) | F125: =F126 -> 0 | G125: =G126 -> 0
A126: 1117 | B126: 223100 | C126: Краткорочне обавезе по основу гаранција
A127: 1118 | B127: 230000 | C127: ОБАВЕЗЕ ПО ОСНОВУ РАСХОДА ЗА ЗАПОСЛЕНЕ (1119 + 1125 + 1131 + 1137 + 1141+ 1147 + 1153 + 1161 + 1167) | F127: =F128+F134+F140+F146+F150+F156+F162+F170+F176 -> 1371 | G127: =G128+G134+G140+G146+G150+G156+G162+G170+G176 -> 3918
A128: 1119 | B128: 231000 | C128: ОБАВЕЗЕ ЗА ПЛАТЕ И ДОДАТКЕ (од 1120 до 1124) | F128: =SUM(F129:F133) -> 0 | G128: =SUM(G129:G133) -> 2324
A129: 1120 | B129: 231100 | C129: Обавезе за нето плате и додатке | G129: 1629
A130: 1121 | B130: 231200 | C130: Обавезе по основу пореза на плате и додатке | G130: 233
A131: 1122 | B131: 231300 | C131: Обавезе по основу доприноса за пензијско и инвалидско осигурање на плате и додатке | G131: 325
A132: 1123 | B132: 231400 | C132: Обавезе по основу доприноса за здравствено осигурање на плате и додатке | G132: 120
A133: 1124 | B133: 231500 | C133: Обавезе по основу доприноса за незапосленост на плате и додатке | G133: 17
A134: 1125 | B134: 232000 | C134: ОБАВЕЗЕ ПО ОСНОВУ НАКНАДА ЗАПОСЛЕНИМА (од 1126 до 1130) | F134: =SUM(F135:F139) -> 1371 | G134: =SUM(G135:G139) -> 1178
A135: 1126 | B135: 232100 | C135: Обавезе по основу нето накнада запосленима | F135: 840 | G135: 767
A136: 1127 | B136: 232200 | C136: Обавезе по основу пореза на плате за накнаде запосленима | F136: 91 | G136: 76
A137: 1128 | B137: 232300 | C137: Обавезе по основу доприноса за пензијско и инвалидско осигурање за накнаде запосленима | F137: 316 | G137: 231
A138: 1129 | B138: 232400 | C138: Обавезе по основу доприноса за здравствено осигурање за накнаде запосленима | F138: 108 | G138: 91
A139: 1130 | B139: 232500 | C139: Обавезе по основу доприноса за незапосленост за накнаде запосленима | F139: 16 | G139: 13
A140: 1131 | B140: 233000 | C140: ОБАВЕЗЕ ЗА НАГРАДЕ И ОСТАЛЕ ПОСЕБНЕ РАСХОДЕ (од 1132 до 1136) | F140: =SUM(F141:F145) -> 0 | G140: =SUM(G141:G145) -> 0
A141: 1132 | B141: 233100 | C141: Обавезе по основу нето исплата награда и осталих посебних расхода
A142: 1133 | B142: 233200 | C142: Обавезе по основу пореза на награде и остале посебне расходе
A143: 1134 | B143: 233300 | C143: Обавезе по основу доприноса за пензијско и инвалидско осигурање за награде и остале посебне расходе
A144: 1135 | B144: 233400 | C144: Обавезе по основу доприноса за здравствено осигурање за награде и остале посебне расходе
A145: 1136 | B145: 233500 | C145: Обавезе по основу доприноса за случај незапослености за награде и остале посебне расходе
A146: 1137 | B146: 234000 | C146: ОБАВЕЗЕ ПО ОСНОВУ СОЦИЈАЛНИХ ДОПРИНОСА НА ТЕРЕТ ПОСЛОДАВЦА (од 1138 до 1140) | F146: =SUM(F147:F149) -> 0 | G146: =SUM(G147:G149) -> 416
A147: 1138 | B147: 234100 | C147: Обавезе по основу доприноса за пензијско и инвалидско осигурање на терет послодавца | G147: 279
A148: 1139 | B148: 234200 | C148: Обавезе по основу доприноса за здравствено осигурање на терет послодавца | G148: 120
A149: 1140 | B149: 234300 | C149: Обавезе по основу доприноса за случај незапослености на терет послодавца | G149: 17
A150: 1141 | B150: 235000 | C150: ОБАВЕЗЕ ПО ОСНОВУ НАКНАДА У НАТУРИ (од 1142 до 1146) | F150: =SUM(F151:F155) -> 0 | G150: =SUM(G151:G155) -> 0
A151: 1142 | B151: 235100 | C151: Обавезе по основу нето накнада у натури
A152: 1143 | B152: 235200 | C152: Обавезе по основу пореза на накнаде у натури
A153: 1144 | B153: 235300 | C153: Обавезе по основу доприноса за пензијско и инвалидско осигурање за накнаде у натури
A154: 1145 | B154: 235400 | C154: Обавезе по основу доприноса за здравствено осигурање за накнаде у натури
A155: 1146 | B155: 235500 | C155: Обавезе по основу доприноса за случај незапослености за накнаде у натури
A156: 1147 | B156: 236000 | C156: ОБАВЕЗЕ ПО ОСНОВУ СОЦИЈАЛНЕ ПОМОЋИ ЗАПОСЛЕНИМА (од 1148 до 1152) | F156: =SUM(F157:F161) -> 0 | G156: =SUM(G157:G161) -> 0
A157: 1148 | B157: 236100 | C157: Обавезе по основу нето исплата социјалне помоћи запосленима
A158: 1149 | B158: 236200 | C158: Обавезе по основу пореза на социјалну помоћ запосленима
A159: 1150 | B159: 236300 | C159: Обавезе по основу доприноса за пензијско и инвалидско осигурање за социјалну помоћ запосленима
A160: 1151 | B160: 236400 | C160: Обавезе по основу доприноса за здравствено осигурање за социјалну помоћ запосленима
A161: 1152 | B161: 236500 | C161: Обавезе по основу доприноса за случај незапослености за социјалну помоћ запосленима
A162: 1153 | B162: 237000 | C162: СЛУЖБЕНА ПУТОВАЊА И УСЛУГЕ ПО УГОВОРУ (од 1154 до 1160) | F162: =SUM(F163:F169) -> 0 | G162: =SUM(G163:G169) -> 0
A163: 1154 | B163: 237100 | C163: Обавезе по основу нето исплата за службена путовања
A164: 1155 | B164: 237200 | C164: Обавезе по основу пореза на исплате за службена путовања
A165: 1156 | B165: 237300 | C165: Обавезе по основу нето исплата за услуге по уговору
A166: 1157 | B166: 237400 | C166: Обавезе по основу пореза на исплате за услуге по уговору
A167: 1158 | B167: 237500 | C167: Обавезе по основу доприноса за пензијско и инвалидско осигурање за услуге по уговору
A168: 1159 | B168: 237600 | C168: Обавезе по основу доприноса за здравствено осигурање за услуге по уговору
A169: 1160 | B169: 237700 | C169: Обавезе по основу доприноса за случај незапослености за услуге по уговору
A170: 1161 | B170: 238000 | C170: ОБАВЕЗЕ ПО ОСНОВУ ПОСЛАНИЧКИХ ДОДАТАКА (од 1162 до 1166) | F170: =SUM(F171:F175) -> 0 | G170: =SUM(G171:G175) -> 0
A171: 1162 | B171: 238100 | C171: Обавезе за нето исплаћени посланички додатак
A172: 1163 | B172: 238200 | C172: Обавезе по основу пореза на исплаћени посланички додатак
A173: 1164 | B173: 238300 | C173: Обавезе по основу доприноса за пензијско и инвалидско осигурање за посланички додатак
A174: 1165 | B174: 238400 | C174: Обавезе по основу доприноса за здравствено осигурање за посланички додатак
A175: 1166 | B175: 238500 | C175: Обавезе по основу доприноса за случај незапослености за посланички додатак
A176: 1167 | B176: 239000 | C176: ОБАВЕЗЕ ПО ОСНОВУ СУДИЈСКИХ ДОДАТАКА (од 1168 до 1172) | F176: =SUM(F177:F181) -> 0 | G176: =SUM(G177:G181) -> 0
A177: 1168 | B177: 239100 | C177: Обавезе за нето исплаћени судијски додатак
A178: 1169 | B178: 239200 | C178: Обавезе по основу пореза на исплаћени судијски додатак
A179: 1170 | B179: 239300 | C179: Обавезе по основу доприноса за пензијско и инвалидско осигурање за судијски додатак
A180: 1171 | B180: 239400 | C180: Обавезе по основу доприноса за здравствено осигурање за судијски додатак
A181: 1172 | B181: 239500 | C181: Обавезе по основу доприноса за случај незапослености за судијски додатак
A182: 1173 | B182: 240000 | C182: ОБАВЕЗЕ ПО ОСНОВУ ОСТАЛИХ РАСХОДА, ИЗУЗЕВ РАСХОДА ЗА ЗАПОСЛЕНЕ (1174 + 1179+ 1184 + 1189 + 1192) | F182: =F183+F188+F193+F198+F201 -> 0 | G182: =G183+G188+G193+G198+G201 -> 0
A183: 1174 | B183: 241000 | C183: ОБАВЕЗЕ ПО ОСНОВУ ОТПЛАТЕ КАМАТА И ПРАТЕЋИХ ТРОШКОВА ЗАДУЖИВАЊА (од 1175 до 1178) | F183: =SUM(F184:F187) -> 0 | G183: =SUM(G184:G187) -> 0
A184: 1175 | B184: 241100 | C184: Обавезе по основу отплате домаћих камата
A185: 1176 | B185: 241200 | C185: Обавезе по основу отплате страних камата
A186: 1177 | B186: 241300 | C186: Обавезе по основу отплате камата по гаранцијама
A187: 1178 | B187: 241400 | C187: Обавезе по основу пратећих трошкова задуживања
A188: 1179 | B188: 242000 | C188: ОБАВЕЗЕ ПО ОСНОВУ СУБВЕНЦИЈА (од 1180 до 1183) | F188: =SUM(F189:F192) -> 0 | G188: =SUM(G189:G192) -> 0
A189: 1180 | B189: 242100 | C189: Обавезе по основу субвенција нефинансијским предузећима
A190: 1181 | B190: 242200 | C190: Обавезе по основу субвенција приватним финансијским предузећима
A191: 1182 | B191: 242300 | C191: Обавезе по основу субвенција јавним финансијским установама
A192: 1183 | B192: 242400 | C192: Обавезе по основу субвенција приватним предузећима
A193: 1184 | B193: 243000 | C193: ОБАВЕЗЕ ПО ОСНОВУ ДОНАЦИЈА, ДОТАЦИЈА И ТРАНСФЕРА (од 1185 до 1188) | F193: =SUM(F194:F197) -> 0 | G193: =SUM(G194:G197) -> 0
A194: 1185 | B194: 243100 | C194: Обавезе по основу донација страним владама
A195: 1186 | B195: 243200 | C195: Обавезе по основу дотација међународним организацијама
A196: 1187 | B196: 243300 | C196: Обавезе по основу трансфера осталим нивоима власти
A197: 1188 | B197: 243400 | C197: Обавезе по основу дотација организацијама обавезног социјалног осигурања
A198: 1189 | B198: 244000 | C198: ОБАВЕЗЕ ЗА СОЦИЈАЛНО ОСИГУРАЊЕ (1190 + 1191) | F198: =F199+F200 -> 0 | G198: =G199+G200 -> 0
A199: 1190 | B199: 244100 | C199: Обавезе по основу права из социјалног осигурања код организација обавезног социјалног осигурања
A200: 1191 | B200: 244200 | C200: Обавезе по основу социјалне помоћи из буџета
... 50 more rows

Sheet StObr1
AL1: Образац 1
A2: ПОПУЊАВА УПРАВА ЗА ТРЕЗОР - ФИЛИЈАЛА
A3: 7 | B3: 5 | C3: 1 | F3: =IF(LEN(Podaci!M2) > 4, MID(RIGHT(Podaci!$M$2,5),1,1),0) -> 0 | G3: =IF(LEN(Podaci!M2) > 3, MID(RIGHT(Podaci!$M$2,4),1,1),0) -> 8 | H3: =IF(LEN(Podaci!M2) > 2, MID(RIGHT(Podaci!$M$2,3),1,1),0) -> 5 | I3: =MID(RIGHT(Podaci!$M$2,2),1,1) -> 9 | J3: =MID(RIGHT(Podaci!$M$2,1),1,1) -> 0 | L3: =IF(LEN(Podaci!Z7) > 7, MID(RIGHT(Podaci!$Z$7,8),1,1),0) -> 0 | M3: =IF(LEN(Podaci!Z7) > 6, MID(RIGHT(Podaci!$Z$7,7),1,1),0) -> 8 | N3: =MID(RIGHT(Podaci!$Z$7,6),1,1) -> 0 | O3: =MID(RIGHT(Podaci!$Z$7,5),1,1) -> 0 | P3: =MID(RIGHT(Podaci!$Z$7,4),1,1) -> 4 | Q3: =MID(RIGHT(Podaci!$Z$7,3),1,1) -> 9 | R3: =MID(RIGHT(Podaci!$Z$7,2),1,1) -> 3 | S3: =MID(RIGHT(Podaci!$Z$7,1),1,1) -> 5
A4: 1 | B4: 2 | C4: 3 | E4: 4 | F4: 5 | G4: 6 | H4: 7 | I4: 8 | J4: 9 | L4: 10 | M4: 11 | N4: 12 | O4: 13 | P4: 14 | Q4: 15 | R4: 16 | S4: 17 | U4: 18 | V4: 19 | W4: 20 | X4: 21 | Y4: 22 | AA4: 23 | AB4: 24 | AC4: 25 | AD4: 26 | AE4: 27 | AG4: 28 | AI4: 29 | AJ4: 30 | AK4: 31 | AL4: 32 | AM4: 33 | AN4: 34 | AO4: 35 | AP4: 36 | AQ4: 37 | AR4: 38
A5: Врста посла | E5: Јединствени број КБС | U5: Седиште УТ | AA5: Надлежни директни КБС
B8: НАЗИВ КОРИСНИКА БУЏЕТСКИХ СРЕДСТАВА
B9: =Podaci!B5 -> ПРЕДШКОЛСКА УСТАНОВА "БАМБИ"
B11: СЕДИШТЕ | H11: =Podaci!H7 -> КУЛА | R11: МАТИЧНИ БРОЈ | Z11: =Podaci!Z7 -> 08004935
B13: ПИБ | E13: =Podaci!E9 -> 100261597 | R13: БРОЈ ПОДРАЧУНА | Z13: =Podaci!AA9 -> 840-49661-40
B15: НАЗИВ НАДЛЕЖНОГ ДИРЕКТНОГ КОРИСНИКА БУЏЕТСКИХ СРЕДСТАВА
B17: =Podaci!B12 -> ОПШТИНА КУЛА
B18: (Попуњава само индиректни корисник буџетских средстава)
P21: БИЛАНС СТАЊА
K22: у периоду од | P22: =Podaci!D17 -> 01.01.2017. | U22: године | X22: до | Z22: =Podaci!D18 -> 31.12.2017. | AE22: године
AJ24: (У хиљадама динара)
A25: Ознака ОП | D25: Број конта | H25: Опис | Y25: Износ из претходне године (почетно стање) | AD25: Износ текуће године
AD28: Бруто | AI28: Исправка вредности | AN28: Нето (5 - 6)
A29: 1 | D29: 2 | H29: 3 | Y29: 4 | AD29: 5 | AI29: 6 | AN29: 7
H30: АКТИВА
A31: 1001 | D31: 000000 | H31: НEФИНАНСИЈСКА ИМОВИНА (1002 + 1020) | Y31: =UnObr1!D6 -> 80930 | AD31: =UnObr1!E6 -> 131995 | AI31: =UnObr1!F6 -> 53120 | AN31: =UnObr1!G6 -> 78875
A32: 1002 | D32: 010000 | H32: НЕФИНАНСИЈСКА ИМОВИНА У СТАЛНИМ СРЕДСТВИМА (1003 + 1007 + 1009 + 1011 + 1015 + 1018) | Y32: =UnObr1!D7 -> 80930 | AD32: =UnObr1!E7 -> 131995 | AI32: =UnObr1!F7 -> 53120 | AN32: =UnObr1!G7 -> 78875
A33: 1003 | D33: 011000 | H33: НЕКРЕТНИНЕ И ОПРЕМА (од 1004 до 1006) | Y33: =UnObr1!D8 -> 80930 | AD33: =UnObr1!E8 -> 131995 | AI33: =UnObr1!F8 -> 53120 | AN33: =UnObr1!G8 -> 78875
A34: 1004 | D34: 011100 | H34: Зграде и грађевински објекти | Y34: =UnObr1!D9 -> 72129 | AD34: =UnObr1!E9 -> 102749 | AI34: =UnObr1!F9 -> 32157 | AN34: =UnObr1!G9 -> 70592
A35: 1005 | D35: 011200 | H35: Опрема | Y35: =UnObr1!D10 -> 8801 | AD35: =UnObr1!E10 -> 29246 | AI35: =UnObr1!F10 -> 20963 | AN35: =UnObr1!G10 -> 8283
A36: 1006 | D36: 011300 | H36: Остале некретнине и опрема | Y36: =UnObr1!D11 -> 0 | AD36: =UnObr1!E11 -> 0 | AI36: =UnObr1!F11 -> 0 | AN36: =UnObr1!G11 -> 0
A37: 1007 | D37: 012000 | H37: КУЛТИВИСАНА ИМОВИНА (1008) | Y37: =UnObr1!D12 -> 0 | AD37: =UnObr1!E12 -> 0 | AI37: =UnObr1!F12 -> 0 | AN37: =UnObr1!G12 -> 0
A38: 1008 | D38: 012100 | H38: Култивисана имовина | Y38: =UnObr1!D13 -> 0 | AD38: =UnObr1!E13 -> 0 | AI38: =UnObr1!F13 -> 0 | AN38: =UnObr1!G13 -> 0
A39: 1009 | D39: 013000 | H39: ДРАГОЦЕНОСТИ (1010) | Y39: =UnObr1!D14 -> 0 | AD39: =UnObr1!E14 -> 0 | AI39: =UnObr1!F14 -> 0 | AN39: =UnObr1!G14 -> 0
A40: 1010 | D40: 013100 | H40: Драгоцености | Y40: =UnObr1!D15 -> 0 | AD40: =UnObr1!E15 -> 0 | AI40: =UnObr1!F15 -> 0 | AN40: =UnObr1!G15 -> 0
A41: 1011 | D41: 014000 | H41: ПРИРОДНА ИМОВИНА (од 1012 до 1014) | Y41: =UnObr1!D16 -> 0 | AD41: =UnObr1!E16 -> 0 | AI41: =UnObr1!F16 -> 0 | AN41: =UnObr1!G16 -> 0
A42: 1012 | D42: 014100 | H42: Земљиште | Y42: =UnObr1!D17 -> 0 | AD42: =UnObr1!E17 -> 0 | AI42: =UnObr1!F17 -> 0 | AN42: =UnObr1!G17 -> 0
A43: 1013 | D43: 014200 | H43: Подземна блага | Y43: =UnObr1!D18 -> 0 | AD43: =UnObr1!E18 -> 0 | AI43: =UnObr1!F18 -> 0 | AN43: =UnObr1!G18 -> 0
A44: 1014 | D44: 014300 | H44: Шуме и воде | Y44: =UnObr1!D19 -> 0 | AD44: =UnObr1!E19 -> 0 | AI44: =UnObr1!F19 -> 0 | AN44: =UnObr1!G19 -> 0
A45: 1015 | D45: 015000 | H45: НЕФИНАНСИЈСКА ИМОВИНА У ПРИПРЕМИ И АВАНСИ (1016 + 1017) | Y45: =UnObr1!D20 -> 0 | AD45: =UnObr1!E20 -> 0 | AI45: =UnObr1!F20 -> 0 | AN45: =UnObr1!G20 -> 0
A46: 1016 | D46: 015100 | H46: Нефинансијска имовина у припреми | Y46: =UnObr1!D21 -> 0 | AD46: =UnObr1!E21 -> 0 | AI46: =UnObr1!F21 -> 0 | AN46: =UnObr1!G21 -> 0
A47: Ознака ОП | D47: Број конта | H47: Опис | Y47: Износ из претходне године (почетно стање) | AD47: Износ текуће године
AD50: Бруто | AI50: Исправка вредности | AN50: Нето (5 - 6)
A51: 1 | D51: 2 | H51: 3 | Y51: 4 | AD51: 5 | AI51: 6 | AN51: 7
A52: 1017 | D52: 015200 | E52: 21000 | F52: 21000 | G52: 21000 | H52: Аванси за нефинансијску имовину | I52: ЗАЛИХЕ (од 1018 до 1020) | J52: ЗАЛИХЕ (од 1018 до 1020) | K52: ЗАЛИХЕ (од 1018 до 1020) | L52: ЗАЛИХЕ (од 1018 до 1020) | M52: ЗАЛИХЕ (од 1018 до 1020) | N52: ЗАЛИХЕ (од 1018 до 1020) | O52: ЗАЛИХЕ (од 1018 до 1020) | P52: ЗАЛИХЕ (од 1018 до 1020) | Q52: ЗАЛИХЕ (од 1018 до 1020) | R52: ЗАЛИХЕ (од 1018 до 1020) | S52: ЗАЛИХЕ (од 1018 до 1020) | T52: ЗАЛИХЕ (од 1018 до 1020) | U52: ЗАЛИХЕ (од 1018 до 1020) | V52: ЗАЛИХЕ (од 1018 до 1020) | W52: ЗАЛИХЕ (од 1018 до 1020) | X52: ЗАЛИХЕ (од 1018 до 1020) | Y52: =UnObr1!D22 -> 0 | AD52: =UnObr1!E22 -> 0 | AI52: =UnObr1!F22 -> 0 | AN52: =UnObr1!G22 -> 0
A53: 1018 | D53: 016000 | E53: 21000 | F53: 21000 | G53: 21000 | H53: НЕМАТЕРИЈАЛНА ИМОВИНА (1019) | I53: ЗАЛИХЕ (од 1018 до 1020) | J53: ЗАЛИХЕ (од 1018 до 1020) | K53: ЗАЛИХЕ (од 1018 до 1020) | L53: ЗАЛИХЕ (од 1018 до 1020) | M53: ЗАЛИХЕ (од 1018 до 1020) | N53: ЗАЛИХЕ (од 1018 до 1020) | O53: ЗАЛИХЕ (од 1018 до 1020) | P53: ЗАЛИХЕ (од 1018 до 1020) | Q53: ЗАЛИХЕ (од 1018 до 1020) | R53: ЗАЛИХЕ (од 1018 до 1020) | S53: ЗАЛИХЕ (од 1018 до 1020) | T53: ЗАЛИХЕ (од 1018 до 1020) | U53: ЗАЛИХЕ (од 1018 до 1020) | V53: ЗАЛИХЕ (од 1018 до 1020) | W53: ЗАЛИХЕ (од 1018 до 1020) | X53: ЗАЛИХЕ (од 1018 до 1020) | Y53: =UnObr1!D23 -> 0 | AD53: =UnObr1!E23 -> 0 | AI53: =UnObr1!F23 -> 0 | AN53: =UnObr1!G23 -> 0
A54: 1019 | D54: 016100 | E54: 21000 | F54: 21000 | G54: 21000 | H54: Нематеријална имовина | I54: ЗАЛИХЕ (од 1018 до 1020) | J54: ЗАЛИХЕ (од 1018 до 1020) | K54: ЗАЛИХЕ (од 1018 до 1020) | L54: ЗАЛИХЕ (од 1018 до 1020) | M54: ЗАЛИХЕ (од 1018 до 1020) | N54: ЗАЛИХЕ (од 1018 до 1020) | O54: ЗАЛИХЕ (од 1018 до 1020) | P54: ЗАЛИХЕ (од 1018 до 1020) | Q54: ЗАЛИХЕ (од 1018 до 1020) | R54: ЗАЛИХЕ (од 1018 до 1020) | S54: ЗАЛИХЕ (од 1018 до 1020) | T54: ЗАЛИХЕ (од 1018 до 1020) | U54: ЗАЛИХЕ (од 1018 до 1020) | V54: ЗАЛИХЕ (од 1018 до 1020) | W54: ЗАЛИХЕ (од 1018 до 1020) | X54: ЗАЛИХЕ (од 1018 до 1020) | Y54: =UnObr1!D24 -> 0 | AD54: =UnObr1!E24 -> 0 | AI54: =UnObr1!F24 -> 0 | AN54: =UnObr1!G24 -> 0
A55: 1020 | D55: 020000 | E55: 21000 | F55: 21000 | G55: 21000 | H55: НЕФИНАНСИЈСКА ИМОВИНА У ЗАЛИХАМА (1021 + 1025) | I55: ЗАЛИХЕ (од 1018 до 1020) | J55: ЗАЛИХЕ (од 1018 до 1020) | K55: ЗАЛИХЕ (од 1018 до 1020) | L55: ЗАЛИХЕ (од 1018 до 1020) | M55: ЗАЛИХЕ (од 1018 до 1020) | N55: ЗАЛИХЕ (од 1018 до 1020) | O55: ЗАЛИХЕ (од 1018 до 1020) | P55: ЗАЛИХЕ (од 1018 до 1020) | Q55: ЗАЛИХЕ (од 1018 до 1020) | R55: ЗАЛИХЕ (од 1018 до 1020) | S55: ЗАЛИХЕ (од 1018 до 1020) | T55: ЗАЛИХЕ (од 1018 до 1020) | U55: ЗАЛИХЕ (од 1018 до 1020) | V55: ЗАЛИХЕ (од 1018 до 1020) | W55: ЗАЛИХЕ (од 1018 до 1020) | X55: ЗАЛИХЕ (од 1018 до 1020) | Y55: =UnObr1!D25 -> 0 | AD55: =UnObr1!E25 -> 0 | AI55: =UnObr1!F25 -> 0 | AN55: =UnObr1!G25 -> 0
A56: 1021 | D56: 021000 | E56: 21000 | F56: 21000 | G56: 21000 | H56: ЗАЛИХЕ (од 1022 до 1024) | I56: ЗАЛИХЕ (од 1018 до 1020) | J56: ЗАЛИХЕ (од 1018 до 1020) | K56: ЗАЛИХЕ (од 1018 до 1020) | L56: ЗАЛИХЕ (од 1018 до 1020) | M56: ЗАЛИХЕ (од 1018 до 1020) | N56: ЗАЛИХЕ (од 1018 до 1020) | O56: ЗАЛИХЕ (од 1018 до 1020) | P56: ЗАЛИХЕ (од 1018 до 1020) | Q56: ЗАЛИХЕ (од 1018 до 1020) | R56: ЗАЛИХЕ (од 1018 до 1020) | S56: ЗАЛИХЕ (од 1018 до 1020) | T56: ЗАЛИХЕ (од 1018 до 1020) | U56: ЗАЛИХЕ (од 1018 до 1020) | V56: ЗАЛИХЕ (од 1018 до 1020) | W56: ЗАЛИХЕ (од 1018 до 1020) | X56: ЗАЛИХЕ (од 1018 до 1020) | Y56: =UnObr1!D26 -> 0 | AD56: =UnObr1!E26 -> 0 | AI56: =UnObr1!F26 -> 0 | AN56: =UnObr1!G26 -> 0
A57: 1022 | D57: 021100 | E57: 21000 | F57: 21000 | G57: 21000 | H57: Робне резерве | I57: ЗАЛИХЕ (од 1018 до 1020) | J57: ЗАЛИХЕ (од 1018 до 1020) | K57: ЗАЛИХЕ (од 1018 до 1020) | L57: ЗАЛИХЕ (од 1018 до 1020) | M57: ЗАЛИХЕ (од 1018 до 1020) | N57: ЗАЛИХЕ (од 1018 до 1020) | O57: ЗАЛИХЕ (од 1018 до 1020) | P57: ЗАЛИХЕ (од 1018 до 1020) | Q57: ЗАЛИХЕ (од 1018 до 1020) | R57: ЗАЛИХЕ (од 1018 до 1020) | S57: ЗАЛИХЕ (од 1018 до 1020) | T57: ЗАЛИХЕ (од 1018 до 1020) | U57: ЗАЛИХЕ (од 1018 до 1020) | V57: ЗАЛИХЕ (од 1018 до 1020) | W57: ЗАЛИХЕ (од 1018 до 1020) | X57: ЗАЛИХЕ (од 1018 до 1020) | Y57: =UnObr1!D27 -> 0 | AD57: =UnObr1!E27 -> 0 | AI57: =UnObr1!F27 -> 0 | AN57: =UnObr1!G27 -> 0
A58: 1023 | D58: 021200 | E58: 21000 | F58: 21000 | G58: 21000 | H58: Залихе производње | I58: ЗАЛИХЕ (од 1018 до 1020) | J58: ЗАЛИХЕ (од 1018 до 1020) | K58: ЗАЛИХЕ (од 1018 до 1020) | L58: ЗАЛИХЕ (од 1018 до 1020) | M58: ЗАЛИХЕ (од 1018 до 1020) | N58: ЗАЛИХЕ (од 1018 до 1020) | O58: ЗАЛИХЕ (од 1018 до 1020) | P58: ЗАЛИХЕ (од 1018 до 1020) | Q58: ЗАЛИХЕ (од 1018 до 1020) | R58: ЗАЛИХЕ (од 1018 до 1020) | S58: ЗАЛИХЕ (од 1018 до 1020) | T58: ЗАЛИХЕ (од 1018 до 1020) | U58: ЗАЛИХЕ (од 1018 до 1020) | V58: ЗАЛИХЕ (од 1018 до 1020) | W58: ЗАЛИХЕ (од 1018 до 1020) | X58: ЗАЛИХЕ (од 1018 до 1020) | Y58: =UnObr1!D28 -> 0 | AD58: =UnObr1!E28 -> 0 | AI58: =UnObr1!F28 -> 0 | AN58: =UnObr1!G28 -> 0
A59: 1024 | D59: 021300 | E59: 21000 | F59: 21000 | G59: 21000 | H59: Роба за даљу продају | I59: ЗАЛИХЕ (од 1018 до 1020) | J59: ЗАЛИХЕ (од 1018 до 1020) | K59: ЗАЛИХЕ (од 1018 до 1020) | L59: ЗАЛИХЕ (од 1018 до 1020) | M59: ЗАЛИХЕ (од 1018 до 1020) | N59: ЗАЛИХЕ (од 1018 до 1020) | O59: ЗАЛИХЕ (од 1018 до 1020) | P59: ЗАЛИХЕ (од 1018 до 1020) | Q59: ЗАЛИХЕ (од 1018 до 1020) | R59: ЗАЛИХЕ (од 1018 до 1020) | S59: ЗАЛИХЕ (од 1018 до 1020) | T59: ЗАЛИХЕ (од 1018 до 1020) | U59: ЗАЛИХЕ (од 1018 до 1020) | V59: ЗАЛИХЕ (од 1018 до 1020) | W59: ЗАЛИХЕ (од 1018 до 1020) | X59: ЗАЛИХЕ (од 1018 до 1020) | Y59: =UnObr1!D29 -> 0 | AD59: =UnObr1!E29 -> 0 | AI59: =UnObr1!F29 -> 0 | AN59: =UnObr1!G29 -> 0
A60: 1025 | D60: 022000 | E60: 21000 | F60: 21000 | G60: 21000 | H60: ЗАЛИХЕ СИТНОГ ИНВЕНТАРА И ПОТРОШНОГ МАТЕРИЈАЛА (1026 + 1027) | I60: ЗАЛИХЕ (од 1018 до 1020) | J60: ЗАЛИХЕ (од 1018 до 1020) | K60: ЗАЛИХЕ (од 1018 до 1020) | L60: ЗАЛИХЕ (од 1018 до 1020) | M60: ЗАЛИХЕ (од 1018 до 1020) | N60: ЗАЛИХЕ (од 1018 до 1020) | O60: ЗАЛИХЕ (од 1018 до 1020) | P60: ЗАЛИХЕ (од 1018 до 1020) | Q60: ЗАЛИХЕ (од 1018 до 1020) | R60: ЗАЛИХЕ (од 1018 до 1020) | S60: ЗАЛИХЕ (од 1018 до 1020) | T60: ЗАЛИХЕ (од 1018 до 1020) | U60: ЗАЛИХЕ (од 1018 до 1020) | V60: ЗАЛИХЕ (од 1018 до 1020) | W60: ЗАЛИХЕ (од 1018 до 1020) | X60: ЗАЛИХЕ (од 1018 до 1020) | Y60: =UnObr1!D30 -> 0 | AD60: =UnObr1!E30 -> 0 | AI60: =UnObr1!F30 -> 0 | AN60: =UnObr1!G30 -> 0
A61: 1026 | D61: 022100 | E61: 21000 | F61: 21000 | G61: 21000 | H61: Залихе ситног инвентара | I61: ЗАЛИХЕ (од 1018 до 1020) | J61: ЗАЛИХЕ (од 1018 до 1020) | K61: ЗАЛИХЕ (од 1018 до 1020) | L61: ЗАЛИХЕ (од 1018 до 1020) | M61: ЗАЛИХЕ (од 1018 до 1020) | N61: ЗАЛИХЕ (од 1018 до 1020) | O61: ЗАЛИХЕ (од 1018 до 1020) | P61: ЗАЛИХЕ (од 1018 до 1020) | Q61: ЗАЛИХЕ (од 1018 до 1020) | R61: ЗАЛИХЕ (од 1018 до 1020) | S61: ЗАЛИХЕ (од 1018 до 1020) | T61: ЗАЛИХЕ (од 1018 до 1020) | U61: ЗАЛИХЕ (од 1018 до 1020) | V61: ЗАЛИХЕ (од 1018 до 1020) | W61: ЗАЛИХЕ (од 1018 до 1020) | X61: ЗАЛИХЕ (од 1018 до 1020) | Y61: =UnObr1!D31 -> 0 | AD61: =UnObr1!E31 -> 0 | AI61: =UnObr1!F31 -> 0 | AN61: =UnObr1!G31 -> 0
A62: 1027 | D62: 022200 | E62: 21000 | F62: 21000 | G62: 21000 | H62: Залихе потрошног материјала | I62: ЗАЛИХЕ (од 1018 до 1020) | J62: ЗАЛИХЕ (од 1018 до 1020) | K62: ЗАЛИХЕ (од 1018 до 1020) | L62: ЗАЛИХЕ (од 1018 до 1020) | M62: ЗАЛИХЕ (од 1018 до 1020) | N62: ЗАЛИХЕ (од 1018 до 1020) | O62: ЗАЛИХЕ (од 1018 до 1020) | P62: ЗАЛИХЕ (од 1018 до 1020) | Q62: ЗАЛИХЕ (од 1018 до 1020) | R62: ЗАЛИХЕ (од 1018 до 1020) | S62: ЗАЛИХЕ (од 1018 до 1020) | T62: ЗАЛИХЕ (од 1018 до 1020) | U62: ЗАЛИХЕ (од 1018 до 1020) | V62: ЗАЛИХЕ (од 1018 до 1020) | W62: ЗАЛИХЕ (од 1018 до 1020) | X62: ЗАЛИХЕ (од 1018 до 1020) | Y62: =UnObr1!D32 -> 0 | AD62: =UnObr1!E32 -> 0 | AI62: =UnObr1!F32 -> 0 | AN62: =UnObr1!G32 -> 0
A63: 1028 | D63: 100000 | E63: 21000 | F63: 21000 | G63: 21000 | H63: ФИНАНСИЈСКА ИМОВИНА (1029 + 1049 + 1067) | I63: ЗАЛИХЕ (од 1018 до 1020) | J63: ЗАЛИХЕ (од 1018 до 1020) | K63: ЗАЛИХЕ (од 1018 до 1020) | L63: ЗАЛИХЕ (од 1018 до 1020) | M63: ЗАЛИХЕ (од 1018 до 1020) | N63: ЗАЛИХЕ (од 1018 до 1020) | O63: ЗАЛИХЕ (од 1018 до 1020) | P63: ЗАЛИХЕ (од 1018 до 1020) | Q63: ЗАЛИХЕ (од 1018 до 1020) | R63: ЗАЛИХЕ (од 1018 до 1020) | S63: ЗАЛИХЕ (од 1018 до 1020) | T63: ЗАЛИХЕ (од 1018 до 1020) | U63: ЗАЛИХЕ (од 1018 до 1020) | V63: ЗАЛИХЕ (од 1018 до 1020) | W63: ЗАЛИХЕ (од 1018 до 1020) | X63: ЗАЛИХЕ (од 1018 до 1020) | Y63: =UnObr1!D33 -> 3409 | AD63: =UnObr1!E33 -> 6804 | AI63: =UnObr1!F33 -> 0 | AN63: =UnObr1!G33 -> 6804
A64: 1029 | D64: 110000 | E64: 21000 | F64: 21000 | G64: 21000 | H64: ДУГОРОЧНА ФИНАНСИЈСКА ИМОВИНА (1030 + 1040) | I64: ЗАЛИХЕ (од 1018 до 1020) | J64: ЗАЛИХЕ (од 1018 до 1020) | K64: ЗАЛИХЕ (од 1018 до 1020) | L64: ЗАЛИХЕ (од 1018 до 1020) | M64: ЗАЛИХЕ (од 1018 до 1020) | N64: ЗАЛИХЕ (од 1018 до 1020) | O64: ЗАЛИХЕ (од 1018 до 1020) | P64: ЗАЛИХЕ (од 1018 до 1020) | Q64: ЗАЛИХЕ (од 1018 до 1020) | R64: ЗАЛИХЕ (од 1018 до 1020) | S64: ЗАЛИХЕ (од 1018 до 1020) | T64: ЗАЛИХЕ (од 1018 до 1020) | U64: ЗАЛИХЕ (од 1018 до 1020) | V64: ЗАЛИХЕ (од 1018 до 1020) | W64: ЗАЛИХЕ (од 1018 до 1020) | X64: ЗАЛИХЕ (од 1018 до 1020) | Y64: =UnObr1!D34 -> 0 | AD64: =UnObr1!E34 -> 0 | AI64: =UnObr1!F34 -> 0 | AN64: =UnObr1!G34 -> 0
A65: 1030 | D65: 111000 | E65: 21000 | F65: 21000 | G65: 21000 | H65: ДУГОРОЧНА ДОМАЋА ФИНАНСИЈСКА ИМОВИНА (од 1031 до 1039) | I65: ЗАЛИХЕ (од 1018 до 1020) | J65: ЗАЛИХЕ (од 1018 до 1020) | K65: ЗАЛИХЕ (од 1018 до 1020) | L65: ЗАЛИХЕ (од 1018 до 1020) | M65: ЗАЛИХЕ (од 1018 до 1020) | N65: ЗАЛИХЕ (од 1018 до 1020) | O65: ЗАЛИХЕ (од 1018 до 1020) | P65: ЗАЛИХЕ (од 1018 до 1020) | Q65: ЗАЛИХЕ (од 1018 до 1020) | R65: ЗАЛИХЕ (од 1018 до 1020) | S65: ЗАЛИХЕ (од 1018 до 1020) | T65: ЗАЛИХЕ (од 1018 до 1020) | U65: ЗАЛИХЕ (од 1018 до 1020) | V65: ЗАЛИХЕ (од 1018 до 1020) | W65: ЗАЛИХЕ (од 1018 до 1020) | X65: ЗАЛИХЕ (од 1018 до 1020) | Y65: =UnObr1!D35 -> 0 | AD65: =UnObr1!E35 -> 0 | AI65: =UnObr1!F35 -> 0 | AN65: =UnObr1!G35 -> 0
A66: 1031 | D66: 111100 | E66: 21000 | F66: 21000 | G66: 21000 | H66: Дугорочне домаће хартије од вредности, изузев акција | I66: ЗАЛИХЕ (од 1018 до 1020) | J66: ЗАЛИХЕ (од 1018 до 1020) | K66: ЗАЛИХЕ (од 1018 до 1020) | L66: ЗАЛИХЕ (од 1018 до 1020) | M66: ЗАЛИХЕ (од 1018 до 1020) | N66: ЗАЛИХЕ (од 1018 до 1020) | O66: ЗАЛИХЕ (од 1018 до 1020) | P66: ЗАЛИХЕ (од 1018 до 1020) | Q66: ЗАЛИХЕ (од 1018 до 1020) | R66: ЗАЛИХЕ (од 1018 до 1020) | S66: ЗАЛИХЕ (од 1018 до 1020) | T66: ЗАЛИХЕ (од 1018 до 1020) | U66: ЗАЛИХЕ (од 1018 до 1020) | V66: ЗАЛИХЕ (од 1018 до 1020) | W66: ЗАЛИХЕ (од 1018 до 1020) | X66: ЗАЛИХЕ (од 1018 до 1020) | Y66: =UnObr1!D36 -> 0 | AD66: =UnObr1!E36 -> 0 | AI66: =UnObr1!F36 -> 0 | AN66: =UnObr1!G36 -> 0
A67: 1032 | D67: 111200 | E67: 21000 | F67: 21000 | G67: 21000 | H67: Кредити осталим нивоима власти | I67: ЗАЛИХЕ (од 1018 до 1020) | J67: ЗАЛИХЕ (од 1018 до 1020) | K67: ЗАЛИХЕ (од 1018 до 1020) | L67: ЗАЛИХЕ (од 1018 до 1020) | M67: ЗАЛИХЕ (од 1018 до 1020) | N67: ЗАЛИХЕ (од 1018 до 1020) | O67: ЗАЛИХЕ (од 1018 до 1020) | P67: ЗАЛИХЕ (од 1018 до 1020) | Q67: ЗАЛИХЕ (од 1018 до 1020) | R67: ЗАЛИХЕ (од 1018 до 1020) | S67: ЗАЛИХЕ (од 1018 до 1020) | T67: ЗАЛИХЕ (од 1018 до 1020) | U67: ЗАЛИХЕ (од 1018 до 1020) | V67: ЗАЛИХЕ (од 1018 до 1020) | W67: ЗАЛИХЕ (од 1018 до 1020) | X67: ЗАЛИХЕ (од 1018 до 1020) | Y67: =UnObr1!D37 -> 0 | AD67: =UnObr1!E37 -> 0 | AI67: =UnObr1!F37 -> 0 | AN67: =UnObr1!G37 -> 0
A68: 1033 | D68: 111300 | E68: 21000 | F68: 21000 | G68: 21000 | H68: Кредити домаћим јавним финансијским институцијама | I68: ЗАЛИХЕ (од 1018 до 1020) | J68: ЗАЛИХЕ (од 1018 до 1020) | K68: ЗАЛИХЕ (од 1018 до 1020) | L68: ЗАЛИХЕ (од 1018 до 1020) | M68: ЗАЛИХЕ (од 1018 до 1020) | N68: ЗАЛИХЕ (од 1018 до 1020) | O68: ЗАЛИХЕ (од 1018 до 1020) | P68: ЗАЛИХЕ (од 1018 до 1020) | Q68: ЗАЛИХЕ (од 1018 до 1020) | R68: ЗАЛИХЕ (од 1018 до 1020) | S68: ЗАЛИХЕ (од 1018 до 1020) | T68: ЗАЛИХЕ (од 1018 до 1020) | U68: ЗАЛИХЕ (од 1018 до 1020) | V68: ЗАЛИХЕ (од 1018 до 1020) | W68: ЗАЛИХЕ (од 1018 до 1020) | X68: ЗАЛИХЕ (од 1018 до 1020) | Y68: =UnObr1!D38 -> 0 | AD68: =UnObr1!E38 -> 0 | AI68: =UnObr1!F38 -> 0 | AN68: =UnObr1!G38 -> 0
A69: 1034 | D69: 111400 | E69: 21000 | F69: 21000 | G69: 21000 | H69: Кредити домаћим пословним банкама | I69: ЗАЛИХЕ (од 1018 до 1020) | J69: ЗАЛИХЕ (од 1018 до 1020) | K69: ЗАЛИХЕ (од 1018 до 1020) | L69: ЗАЛИХЕ (од 1018 до 1020) | M69: ЗАЛИХЕ (од 1018 до 1020) | N69: ЗАЛИХЕ (од 1018 до 1020) | O69: ЗАЛИХЕ (од 1018 до 1020) | P69: ЗАЛИХЕ (од 1018 до 1020) | Q69: ЗАЛИХЕ (од 1018 до 1020) | R69: ЗАЛИХЕ (од 1018 до 1020) | S69: ЗАЛИХЕ (од 1018 до 1020) | T69: ЗАЛИХЕ (од 1018 до 1020) | U69: ЗАЛИХЕ (од 1018 до 1020) | V69: ЗАЛИХЕ (од 1018 до 1020) | W69: ЗАЛИХЕ (од 1018 до 1020) | X69: ЗАЛИХЕ (од 1018 до 1020) | Y69: =UnObr1!D39 -> 0 | AD69: =UnObr1!E39 -> 0 | AI69: =UnObr1!F39 -> 0 | AN69: =UnObr1!G39 -> 0
A70: 1035 | D70: 111500 | E70: 21000 | F70: 21000 | G70: 21000 | H70: Кредити домаћим јавним нефинансијским институцијама | I70: ЗАЛИХЕ (од 1018 до 1020) | J70: ЗАЛИХЕ (од 1018 до 1020) | K70: ЗАЛИХЕ (од 1018 до 1020) | L70: ЗАЛИХЕ (од 1018 до 1020) | M70: ЗАЛИХЕ (од 1018 до 1020) | N70: ЗАЛИХЕ (од 1018 до 1020) | O70: ЗАЛИХЕ (од 1018 до 1020) | P70: ЗАЛИХЕ (од 1018 до 1020) | Q70: ЗАЛИХЕ (од 1018 до 1020) | R70: ЗАЛИХЕ (од 1018 до 1020) | S70: ЗАЛИХЕ (од 1018 до 1020) | T70: ЗАЛИХЕ (од 1018 до 1020) | U70: ЗАЛИХЕ (од 1018 до 1020) | V70: ЗАЛИХЕ (од 1018 до 1020) | W70: ЗАЛИХЕ (од 1018 до 1020) | X70: ЗАЛИХЕ (од 1018 до 1020) | Y70: =UnObr1!D40 -> 0 | AD70: =UnObr1!E40 -> 0 | AI70: =UnObr1!F40 -> 0 | AN70: =UnObr1!G40 -> 0
A71: 1036 | D71: 111600 | E71: 21000 | F71: 21000 | G71: 21000 | H71: Кредити физичким лицима и домаћинствима у земљи | I71: ЗАЛИХЕ (од 1018 до 1020) | J71: ЗАЛИХЕ (од 1018 до 1020) | K71: ЗАЛИХЕ (од 1018 до 1020) | L71: ЗАЛИХЕ (од 1018 до 1020) | M71: ЗАЛИХЕ (од 1018 до 1020) | N71: ЗАЛИХЕ (од 1018 до 1020) | O71: ЗАЛИХЕ (од 1018 до 1020) | P71: ЗАЛИХЕ (од 1018 до 1020) | Q71: ЗАЛИХЕ (од 1018 до 1020) | R71: ЗАЛИХЕ (од 1018 до 1020) | S71: ЗАЛИХЕ (од 1018 до 1020) | T71: ЗАЛИХЕ (од 1018 до 1020) | U71: ЗАЛИХЕ (од 1018 до 1020) | V71: ЗАЛИХЕ (од 1018 до 1020) | W71: ЗАЛИХЕ (од 1018 до 1020) | X71: ЗАЛИХЕ (од 1018 до 1020) | Y71: =UnObr1!D41 -> 0 | AD71: =UnObr1!E41 -> 0 | AI71: =UnObr1!F41 -> 0 | AN71: =UnObr1!G41 -> 0
A72: 1037 | D72: 111700 | E72: 21000 | F72: 21000 | G72: 21000 | H72: Кредити домаћим невладиним организацијама | I72: ЗАЛИХЕ (од 1018 до 1020) | J72: ЗАЛИХЕ (од 1018 до 1020) | K72: ЗАЛИХЕ (од 1018 до 1020) | L72: ЗАЛИХЕ (од 1018 до 1020) | M72: ЗАЛИХЕ (од 1018 до 1020) | N72: ЗАЛИХЕ (од 1018 до 1020) | O72: ЗАЛИХЕ (од 1018 до 1020) | P72: ЗАЛИХЕ (од 1018 до 1020) | Q72: ЗАЛИХЕ (од 1018 до 1020) | R72: ЗАЛИХЕ (од 1018 до 1020) | S72: ЗАЛИХЕ (од 1018 до 1020) | T72: ЗАЛИХЕ (од 1018 до 1020) | U72: ЗАЛИХЕ (од 1018 до 1020) | V72: ЗАЛИХЕ (од 1018 до 1020) | W72: ЗАЛИХЕ (од 1018 до 1020) | X72: ЗАЛИХЕ (од 1018 до 1020) | Y72: =UnObr1!D42 -> 0 | AD72: =UnObr1!E42 -> 0 | AI72: =UnObr1!F42 -> 0 | AN72: =UnObr1!G42 -> 0
A73: 1038 | D73: 111800 | E73: 21000 | F73: 21000 | G73: 21000 | H73: Кредити домаћим нефинансијским приватним предузећима | I73: ЗАЛИХЕ (од 1018 до 1020) | J73: ЗАЛИХЕ (од 1018 до 1020) | K73: ЗАЛИХЕ (од 1018 до 1020) | L73: ЗАЛИХЕ (од 1018 до 1020) | M73: ЗАЛИХЕ (од 1018 до 1020) | N73: ЗАЛИХЕ (од 1018 до 1020) | O73: ЗАЛИХЕ (од 1018 до 1020) | P73: ЗАЛИХЕ (од 1018 до 1020) | Q73: ЗАЛИХЕ (од 1018 до 1020) | R73: ЗАЛИХЕ (од 1018 до 1020) | S73: ЗАЛИХЕ (од 1018 до 1020) | T73: ЗАЛИХЕ (од 1018 до 1020) | U73: ЗАЛИХЕ (од 1018 до 1020) | V73: ЗАЛИХЕ (од 1018 до 1020) | W73: ЗАЛИХЕ (од 1018 до 1020) | X73: ЗАЛИХЕ (од 1018 до 1020) | Y73: =UnObr1!D43 -> 0 | AD73: =UnObr1!E43 -> 0 | AI73: =UnObr1!F43 -> 0 | AN73: =UnObr1!G43 -> 0
A74: 1039 | D74: 111900 | E74: 21000 | F74: 21000 | G74: 21000 | H74: Домаће акције и остали капитал | I74: ЗАЛИХЕ (од 1018 до 1020) | J74: ЗАЛИХЕ (од 1018 до 1020) | K74: ЗАЛИХЕ (од 1018 до 1020) | L74: ЗАЛИХЕ (од 1018 до 1020) | M74: ЗАЛИХЕ (од 1018 до 1020) | N74: ЗАЛИХЕ (од 1018 до 1020) | O74: ЗАЛИХЕ (од 1018 до 1020) | P74: ЗАЛИХЕ (од 1018 до 1020) | Q74: ЗАЛИХЕ (од 1018 до 1020) | R74: ЗАЛИХЕ (од 1018 до 1020) | S74: ЗАЛИХЕ (од 1018 до 1020) | T74: ЗАЛИХЕ (од 1018 до 1020) | U74: ЗАЛИХЕ (од 1018 до 1020) | V74: ЗАЛИХЕ (од 1018 до 1020) | W74: ЗАЛИХЕ (од 1018 до 1020) | X74: ЗАЛИХЕ (од 1018 до 1020) | Y74: =UnObr1!D44 -> 0 | AD74: =UnObr1!E44 -> 0 | AI74: =UnObr1!F44 -> 0 | AN74: =UnObr1!G44 -> 0
A75: 1040 | D75: 112000 | E75: 21000 | F75: 21000 | G75: 21000 | H75: ДУГОРОЧНA СТРАНА ФИНАНСИЈСКА ИМОВИНА (од 1041 до 1048) | I75: ЗАЛИХЕ (од 1018 до 1020) | J75: ЗАЛИХЕ (од 1018 до 1020) | K75: ЗАЛИХЕ (од 1018 до 1020) | L75: ЗАЛИХЕ (од 1018 до 1020) | M75: ЗАЛИХЕ (од 1018 до 1020) | N75: ЗАЛИХЕ (од 1018 до 1020) | O75: ЗАЛИХЕ (од 1018 до 1020) | P75: ЗАЛИХЕ (од 1018 до 1020) | Q75: ЗАЛИХЕ (од 1018 до 1020) | R75: ЗАЛИХЕ (од 1018 до 1020) | S75: ЗАЛИХЕ (од 1018 до 1020) | T75: ЗАЛИХЕ (од 1018 до 1020) | U75: ЗАЛИХЕ (од 1018 до 1020) | V75: ЗАЛИХЕ (од 1018 до 1020) | W75: ЗАЛИХЕ (од 1018 до 1020) | X75: ЗАЛИХЕ (од 1018 до 1020) | Y75: =UnObr1!D45 -> 0 | AD75: =UnObr1!E45 -> 0 | AI75: =UnObr1!F45 -> 0 | AN75: =UnObr1!G45 -> 0
A76: 1041 | D76: 112100 | E76: 21000 | F76: 21000 | G76: 21000 | H76: Дугорочне стране хартије од вредности, изузев акција | I76: ЗАЛИХЕ (од 1018 до 1020) | J76: ЗАЛИХЕ (од 1018 до 1020) | K76: ЗАЛИХЕ (од 1018 до 1020) | L76: ЗАЛИХЕ (од 1018 до 1020) | M76: ЗАЛИХЕ (од 1018 до 1020) | N76: ЗАЛИХЕ (од 1018 до 1020) | O76: ЗАЛИХЕ (од 1018 до 1020) | P76: ЗАЛИХЕ (од 1018 до 1020) | Q76: ЗАЛИХЕ (од 1018 до 1020) | R76: ЗАЛИХЕ (од 1018 до 1020) | S76: ЗАЛИХЕ (од 1018 до 1020) | T76: ЗАЛИХЕ (од 1018 до 1020) | U76: ЗАЛИХЕ (од 1018 до 1020) | V76: ЗАЛИХЕ (од 1018 до 1020) | W76: ЗАЛИХЕ (од 1018 до 1020) | X76: ЗАЛИХЕ (од 1018 до 1020) | Y76: =UnObr1!D46 -> 0 | AD76: =UnObr1!E46 -> 0 | AI76: =UnObr1!F46 -> 0 | AN76: =UnObr1!G46 -> 0
A77: 1042 | D77: 112200 | E77: 21000 | F77: 21000 | G77: 21000 | H77: Кредити страним владама | I77: ЗАЛИХЕ (од 1018 до 1020) | J77: ЗАЛИХЕ (од 1018 до 1020) | K77: ЗАЛИХЕ (од 1018 до 1020) | L77: ЗАЛИХЕ (од 1018 до 1020) | M77: ЗАЛИХЕ (од 1018 до 1020) | N77: ЗАЛИХЕ (од 1018 до 1020) | O77: ЗАЛИХЕ (од 1018 до 1020) | P77: ЗАЛИХЕ (од 1018 до 1020) | Q77: ЗАЛИХЕ (од 1018 до 1020) | R77: ЗАЛИХЕ (од 1018 до 1020) | S77: ЗАЛИХЕ (од 1018 до 1020) | T77: ЗАЛИХЕ (од 1018 до 1020) | U77: ЗАЛИХЕ (од 1018 до 1020) | V77: ЗАЛИХЕ (од 1018 до 1020) | W77: ЗАЛИХЕ (од 1018 до 1020) | X77: ЗАЛИХЕ (од 1018 до 1020) | Y77: =UnObr1!D47 -> 0 | AD77: =UnObr1!E47 -> 0 | AI77: =UnObr1!F47 -> 0 | AN77: =UnObr1!G47 -> 0
A78: 1043 | D78: 112300 | E78: 21000 | F78: 21000 | G78: 21000 | H78: Кредити међународним организацијама | I78: ЗАЛИХЕ (од 1018 до 1020) | J78: ЗАЛИХЕ (од 1018 до 1020) | K78: ЗАЛИХЕ (од 1018 до 1020) | L78: ЗАЛИХЕ (од 1018 до 1020) | M78: ЗАЛИХЕ (од 1018 до 1020) | N78: ЗАЛИХЕ (од 1018 до 1020) | O78: ЗАЛИХЕ (од 1018 до 1020) | P78: ЗАЛИХЕ (од 1018 до 1020) | Q78: ЗАЛИХЕ (од 1018 до 1020) | R78: ЗАЛИХЕ (од 1018 до 1020) | S78: ЗАЛИХЕ (од 1018 до 1020) | T78: ЗАЛИХЕ (од 1018 до 1020) | U78: ЗАЛИХЕ (од 1018 до 1020) | V78: ЗАЛИХЕ (од 1018 до 1020) | W78: ЗАЛИХЕ (од 1018 до 1020) | X78: ЗАЛИХЕ (од 1018 до 1020) | Y78: =UnObr1!D48 -> 0 | AD78: =UnObr1!E48 -> 0 | AI78: =UnObr1!F48 -> 0 | AN78: =UnObr1!G48 -> 0
A79: 1044 | D79: 112400 | E79: 21000 | F79: 21000 | G79: 21000 | H79: Кредити страним пословним банкама | I79: ЗАЛИХЕ (од 1018 до 1020) | J79: ЗАЛИХЕ (од 1018 до 1020) | K79: ЗАЛИХЕ (од 1018 до 1020) | L79: ЗАЛИХЕ (од 1018 до 1020) | M79: ЗАЛИХЕ (од 1018 до 1020) | N79: ЗАЛИХЕ (од 1018 до 1020) | O79: ЗАЛИХЕ (од 1018 до 1020) | P79: ЗАЛИХЕ (од 1018 до 1020) | Q79: ЗАЛИХЕ (од 1018 до 1020) | R79: ЗАЛИХЕ (од 1018 до 1020) | S79: ЗАЛИХЕ (од 1018 до 1020) | T79: ЗАЛИХЕ (од 1018 до 1020) | U79: ЗАЛИХЕ (од 1018 до 1020) | V79: ЗАЛИХЕ (од 1018 до 1020) | W79: ЗАЛИХЕ (од 1018 до 1020) | X79: ЗАЛИХЕ (од 1018 до 1020) | Y79: =UnObr1!D49 -> 0 | AD79: =UnObr1!E49 -> 0 | AI79: =UnObr1!F49 -> 0 | AN79: =UnObr1!G49 -> 0
A80: 1045 | D80: 112500 | E80: 21000 | F80: 21000 | G80: 21000 | H80: Кредити страним нефинансијским институцијама | I80: ЗАЛИХЕ (од 1018 до 1020) | J80: ЗАЛИХЕ (од 1018 до 1020) | K80: ЗАЛИХЕ (од 1018 до 1020) | L80: ЗАЛИХЕ (од 1018 до 1020) | M80: ЗАЛИХЕ (од 1018 до 1020) | N80: ЗАЛИХЕ (од 1018 до 1020) | O80: ЗАЛИХЕ (од 1018 до 1020) | P80: ЗАЛИХЕ (од 1018 до 1020) | Q80: ЗАЛИХЕ (од 1018 до 1020) | R80: ЗАЛИХЕ (од 1018 до 1020) | S80: ЗАЛИХЕ (од 1018 до 1020) | T80: ЗАЛИХЕ (од 1018 до 1020) | U80: ЗАЛИХЕ (од 1018 до 1020) | V80: ЗАЛИХЕ (од 1018 до 1020) | W80: ЗАЛИХЕ (од 1018 до 1020) | X80: ЗАЛИХЕ (од 1018 до 1020) | Y80: =UnObr1!D50 -> 0 | AD80: =UnObr1!E50 -> 0 | AI80: =UnObr1!F50 -> 0 | AN80: =UnObr1!G50 -> 0
A81: 1046 | D81: 112600 | E81: 21000 | F81: 21000 | G81: 21000 | H81: Кредити страним невладиним организацијама | I81: ЗАЛИХЕ (од 1018 до 1020) | J81: ЗАЛИХЕ (од 1018 до 1020) | K81: ЗАЛИХЕ (од 1018 до 1020) | L81: ЗАЛИХЕ (од 1018 до 1020) | M81: ЗАЛИХЕ (од 1018 до 1020) | N81: ЗАЛИХЕ (од 1018 до 1020) | O81: ЗАЛИХЕ (од 1018 до 1020) | P81: ЗАЛИХЕ (од 1018 до 1020) | Q81: ЗАЛИХЕ (од 1018 до 1020) | R81: ЗАЛИХЕ (од 1018 до 1020) | S81: ЗАЛИХЕ (од 1018 до 1020) | T81: ЗАЛИХЕ (од 1018 до 1020) | U81: ЗАЛИХЕ (од 1018 до 1020) | V81: ЗАЛИХЕ (од 1018 до 1020) | W81: ЗАЛИХЕ (од 1018 до 1020) | X81: ЗАЛИХЕ (од 1018 до 1020) | Y81: =UnObr1!D51 -> 0 | AD81: =UnObr1!E51 -> 0 | AI81: =UnObr1!F51 -> 0 | AN81: =UnObr1!G51 -> 0
A82: 1047 | D82: 112700 | E82: 21000 | F82: 21000 | G82: 21000 | H82: Стране акције и остали капитал | I82: ЗАЛИХЕ (од 1018 до 1020) | J82: ЗАЛИХЕ (од 1018 до 1020) | K82: ЗАЛИХЕ (од 1018 до 1020) | L82: ЗАЛИХЕ (од 1018 до 1020) | M82: ЗАЛИХЕ (од 1018 до 1020) | N82: ЗАЛИХЕ (од 1018 до 1020) | O82: ЗАЛИХЕ (од 1018 до 1020) | P82: ЗАЛИХЕ (од 1018 до 1020) | Q82: ЗАЛИХЕ (од 1018 до 1020) | R82: ЗАЛИХЕ (од 1018 до 1020) | S82: ЗАЛИХЕ (од 1018 до 1020) | T82: ЗАЛИХЕ (од 1018 до 1020) | U82: ЗАЛИХЕ (од 1018 до 1020) | V82: ЗАЛИХЕ (од 1018 до 1020) | W82: ЗАЛИХЕ (од 1018 до 1020) | X82: ЗАЛИХЕ (од 1018 до 1020) | Y82: =UnObr1!D52 -> 0 | AD82: =UnObr1!E52 -> 0 | AI82: =UnObr1!F52 -> 0 | AN82: =UnObr1!G52 -> 0
A83: 1048 | D83: 112800 | E83: 21000 | F83: 21000 | G83: 21000 | H83: Страни финансијски деривати | I83: ЗАЛИХЕ (од 1018 до 1020) | J83: ЗАЛИХЕ (од 1018 до 1020) | K83: ЗАЛИХЕ (од 1018 до 1020) | L83: ЗАЛИХЕ (од 1018 до 1020) | M83: ЗАЛИХЕ (од 1018 до 1020) | N83: ЗАЛИХЕ (од 1018 до 1020) | O83: ЗАЛИХЕ (од 1018 до 1020) | P83: ЗАЛИХЕ (од 1018 до 1020) | Q83: ЗАЛИХЕ (од 1018 до 1020) | R83: ЗАЛИХЕ (од 1018 до 1020) | S83: ЗАЛИХЕ (од 1018 до 1020) | T83: ЗАЛИХЕ (од 1018 до 1020) | U83: ЗАЛИХЕ (од 1018 до 1020) | V83: ЗАЛИХЕ (од 1018 до 1020) | W83: ЗАЛИХЕ (од 1018 до 1020) | X83: ЗАЛИХЕ (од 1018 до 1020) | Y83: =UnObr1!D53 -> 0 | AD83: =UnObr1!E53 -> 0 | AI83: =UnObr1!F53 -> 0 | AN83: =UnObr1!G53 -> 0
A84: Ознака ОП | D84: Број конта | H84: Опис | Y84: Износ из претходне године (почетно стање) | AD84: Износ текуће године
AD87: Бруто | AI87: Исправка вредности | AN87: Нето (5 - 6)
A88: 1 | D88: 2 | H88: 3 | Y88: 4 | AD88: 5 | AI88: 6 | AN88: 7
A89: 1049 | D89: 120000 | E89: 121400 | F89: 121400 | G89: 121400 | H89: НОВЧАНА СРЕДСТВА, ПЛЕМЕНИТИ МЕТАЛИ, ХАРТИЈЕ ОД ВРЕДНОСТИ, ПОТРАЖИВАЊА И КРАТКОРОЧНИ ПЛАСМАНИ (1050 + 1060 + 1062) | I89: Девизни рачун | J89: Девизни рачун | K89: Девизни рачун | L89: Девизни рачун | M89: Девизни рачун | N89: Девизни рачун | O89: Девизни рачун | P89: Девизни рачун | Q89: Девизни рачун | R89: Девизни рачун | S89: Девизни рачун | T89: Девизни рачун | U89: Девизни рачун | V89: Девизни рачун | W89: Девизни рачун | X89: Девизни рачун | Y89: =UnObr1!D54 -> 711 | AD89: =UnObr1!E54 -> 807 | AI89: =UnObr1!F54 -> 0 | AN89: =UnObr1!G54 -> 807
A90: 1050 | D90: 121000 | E90: 121400 | F90: 121400 | G90: 121400 | H90: НОВЧАНА СРЕДСТВА, ПЛЕМЕНИТИ МЕТАЛИ, ХАРТИЈЕ ОД ВРЕДНОСТИ (од 1051 до 1059) | I90: Девизни рачун | J90: Девизни рачун | K90: Девизни рачун | L90: Девизни рачун | M90: Девизни рачун | N90: Девизни рачун | O90: Девизни рачун | P90: Девизни рачун | Q90: Девизни рачун | R90: Девизни рачун | S90: Девизни рачун | T90: Девизни рачун | U90: Девизни рачун | V90: Девизни рачун | W90: Девизни рачун | X90: Девизни рачун | Y90: =UnObr1!D55 -> 1 | AD90: =UnObr1!E55 -> 6 | AI90: =UnObr1!F55 -> 0 | AN90: =UnObr1!G55 -> 6
A91: 1051 | D91: 121100 | E91: 121400 | F91: 121400 | G91: 121400 | H91: Жиро и текући рачуни | I91: Девизни рачун | J91: Девизни рачун | K91: Девизни рачун | L91: Девизни рачун | M91: Девизни рачун | N91: Девизни рачун | O91: Девизни рачун | P91: Девизни рачун | Q91: Девизни рачун | R91: Девизни рачун | S91: Девизни рачун | T91: Девизни рачун | U91: Девизни рачун | V91: Девизни рачун | W91: Девизни рачун | X91: Девизни рачун | Y91: =UnObr1!D56 -> 1 | AD91: =UnObr1!E56 -> 6 | AI91: =UnObr1!F56 -> 0 | AN91: =UnObr1!G56 -> 6
A92: 1052 | D92: 121200 | E92: 121400 | F92: 121400 | G92: 121400 | H92: Издвојена новчана средства и акредитиви | I92: Девизни рачун | J92: Девизни рачун | K92: Девизни рачун | L92: Девизни рачун | M92: Девизни рачун | N92: Девизни рачун | O92: Девизни рачун | P92: Девизни рачун | Q92: Девизни рачун | R92: Девизни рачун | S92: Девизни рачун | T92: Девизни рачун | U92: Девизни рачун | V92: Девизни рачун | W92: Девизни рачун | X92: Девизни рачун | Y92: =UnObr1!D57 -> 0 | AD92: =UnObr1!E57 -> 0 | AI92: =UnObr1!F57 -> 0 | AN92: =UnObr1!G57 -> 0
A93: 1053 | D93: 121300 | E93: 121400 | F93: 121400 | G93: 121400 | H93: Благајна | I93: Девизни рачун | J93: Девизни рачун | K93: Девизни рачун | L93: Девизни рачун | M93: Девизни рачун | N93: Девизни рачун | O93: Девизни рачун | P93: Девизни рачун | Q93: Девизни рачун | R93: Девизни рачун | S93: Девизни рачун | T93: Девизни рачун | U93: Девизни рачун | V93: Девизни рачун | W93: Девизни рачун | X93: Девизни рачун | Y93: =UnObr1!D58 -> 0 | AD93: =UnObr1!E58 -> 0 | AI93: =UnObr1!F58 -> 0 | AN93: =UnObr1!G58 -> 0
A94: 1054 | D94: 121400 | E94: 121400 | F94: 121400 | G94: 121400 | H94: Девизни рачун | I94: Девизни рачун | J94: Девизни рачун | K94: Девизни рачун | L94: Девизни рачун | M94: Девизни рачун | N94: Девизни рачун | O94: Девизни рачун | P94: Девизни рачун | Q94: Девизни рачун | R94: Девизни рачун | S94: Девизни рачун | T94: Девизни рачун | U94: Девизни рачун | V94: Девизни рачун | W94: Девизни рачун | X94: Девизни рачун | Y94: =UnObr1!D59 -> 0 | AD94: =UnObr1!E59 -> 0 | AI94: =UnObr1!F59 -> 0 | AN94: =UnObr1!G59 -> 0
A95: 1055 | D95: 121500 | E95: 121400 | F95: 121400 | G95: 121400 | H95: Девизни акредитиви | I95: Девизни рачун | J95: Девизни рачун | K95: Девизни рачун | L95: Девизни рачун | M95: Девизни рачун | N95: Девизни рачун | O95: Девизни рачун | P95: Девизни рачун | Q95: Девизни рачун | R95: Девизни рачун | S95: Девизни рачун | T95: Девизни рачун | U95: Девизни рачун | V95: Девизни рачун | W95: Девизни рачун | X95: Девизни рачун | Y95: =UnObr1!D60 -> 0 | AD95: =UnObr1!E60 -> 0 | AI95: =UnObr1!F60 -> 0 | AN95: =UnObr1!G60 -> 0
A96: 1056 | D96: 121600 | E96: 121400 | F96: 121400 | G96: 121400 | H96: Девизна благајна | I96: Девизни рачун | J96: Девизни рачун | K96: Девизни рачун | L96: Девизни рачун | M96: Девизни рачун | N96: Девизни рачун | O96: Девизни рачун | P96: Девизни рачун | Q96: Девизни рачун | R96: Девизни рачун | S96: Девизни рачун | T96: Девизни рачун | U96: Девизни рачун | V96: Девизни рачун | W96: Девизни рачун | X96: Девизни рачун | Y96: =UnObr1!D61 -> 0 | AD96: =UnObr1!E61 -> 0 | AI96: =UnObr1!F61 -> 0 | AN96: =UnObr1!G61 -> 0
A97: 1057 | D97: 121700 | E97: 121400 | F97: 121400 | G97: 121400 | H97: Остала новчана средства | I97: Девизни рачун | J97: Девизни рачун | K97: Девизни рачун | L97: Девизни рачун | M97: Девизни рачун | N97: Девизни рачун | O97: Девизни рачун | P97: Девизни рачун | Q97: Девизни рачун | R97: Девизни рачун | S97: Девизни рачун | T97: Девизни рачун | U97: Девизни рачун | V97: Девизни рачун | W97: Девизни рачун | X97: Девизни рачун | Y97: =UnObr1!D62 -> 0 | AD97: =UnObr1!E62 -> 0 | AI97: =UnObr1!F62 -> 0 | AN97: =UnObr1!G62 -> 0
A98: 1058 | D98: 121800 | E98: 121400 | F98: 121400 | G98: 121400 | H98: Племенити метали | I98: Девизни рачун | J98: Девизни рачун | K98: Девизни рачун | L98: Девизни рачун | M98: Девизни рачун | N98: Девизни рачун | O98: Девизни рачун | P98: Девизни рачун | Q98: Девизни рачун | R98: Девизни рачун | S98: Девизни рачун | T98: Девизни рачун | U98: Девизни рачун | V98: Девизни рачун | W98: Девизни рачун | X98: Девизни рачун | Y98: =UnObr1!D63 -> 0 | AD98: =UnObr1!E63 -> 0 | AI98: =UnObr1!F63 -> 0 | AN98: =UnObr1!G63 -> 0
A99: 1059 | D99: 121900 | E99: 121400 | F99: 121400 | G99: 121400 | H99: Хартије од вредности | I99: Девизни рачун | J99: Девизни рачун | K99: Девизни рачун | L99: Девизни рачун | M99: Девизни рачун | N99: Девизни рачун | O99: Девизни рачун | P99: Девизни рачун | Q99: Девизни рачун | R99: Девизни рачун | S99: Девизни рачун | T99: Девизни рачун | U99: Девизни рачун | V99: Девизни рачун | W99: Девизни рачун | X99: Девизни рачун | Y99: =UnObr1!D64 -> 0 | AD99: =UnObr1!E64 -> 0 | AI99: =UnObr1!F64 -> 0 | AN99: =UnObr1!G64 -> 0
A100: 1060 | D100: 122000 | E100: 121400 | F100: 121400 | G100: 121400 | H100: КРАТКОРОЧНА ПОТРАЖИВАЊА (1061) | I100: Девизни рачун | J100: Девизни рачун | K100: Девизни рачун | L100: Девизни рачун | M100: Девизни рачун | N100: Девизни рачун | O100: Девизни рачун | P100: Девизни рачун | Q100: Девизни рачун | R100: Девизни рачун | S100: Девизни рачун | T100: Девизни рачун | U100: Девизни рачун | V100: Девизни рачун | W100: Девизни рачун | X100: Девизни рачун | Y100: =UnObr1!D65 -> 710 | AD100: =UnObr1!E65 -> 801 | AI100: =UnObr1!F65 -> 0 | AN100: =UnObr1!G65 -> 801
A101: 1061 | D101: 122100 | E101: 121400 | F101: 121400 | G101: 121400 | H101: Потраживања по основу продаје и друга потраживања | I101: Девизни рачун | J101: Девизни рачун | K101: Девизни рачун | L101: Девизни рачун | M101: Девизни рачун | N101: Девизни рачун | O101: Девизни рачун | P101: Девизни рачун | Q101: Девизни рачун | R101: Девизни рачун | S101: Девизни рачун | T101: Девизни рачун | U101: Девизни рачун | V101: Девизни рачун | W101: Девизни рачун | X101: Девизни рачун | Y101: =UnObr1!D66 -> 710 | AD101: =UnObr1!E66 -> 801 | AI101: =UnObr1!F66 -> 0 | AN101: =UnObr1!G66 -> 801
A102: 1062 | D102: 123000 | E102: 121400 | F102: 121400 | G102: 121400 | H102: КРАТКОРОЧНИ ПЛАСМАНИ (од 1063 до 1066) | I102: Девизни рачун | J102: Девизни рачун | K102: Девизни рачун | L102: Девизни рачун | M102: Девизни рачун | N102: Девизни рачун | O102: Девизни рачун | P102: Девизни рачун | Q102: Девизни рачун | R102: Девизни рачун | S102: Девизни рачун | T102: Девизни рачун | U102: Девизни рачун | V102: Девизни рачун | W102: Девизни рачун | X102: Девизни рачун | Y102: =UnObr1!D67 -> 0 | AD102: =UnObr1!E67 -> 0 | AI102: =UnObr1!F67 -> 0 | AN102: =UnObr1!G67 -> 0
A103: 1063 | D103: 123100 | E103: 121400 | F103: 121400 | G103: 121400 | H103: Краткорочни кредити | I103: Девизни рачун | J103: Девизни рачун | K103: Девизни рачун | L103: Девизни рачун | M103: Девизни рачун | N103: Девизни рачун | O103: Девизни рачун | P103: Девизни рачун | Q103: Девизни рачун | R103: Девизни рачун | S103: Девизни рачун | T103: Девизни рачун | U103: Девизни рачун | V103: Девизни рачун | W103: Девизни рачун | X103: Девизни рачун | Y103: =UnObr1!D68 -> 0 | AD103: =UnObr1!E68 -> 0 | AI103: =UnObr1!F68 -> 0 | AN103: =UnObr1!G68 -> 0
A104: 1064 | D104: 123200 | E104: 121400 | F104: 121400 | G104: 121400 | H104: Дати аванси, депозити и кауције | I104: Девизни рачун | J104: Девизни рачун | K104: Девизни рачун | L104: Девизни рачун | M104: Девизни рачун | N104: Девизни рачун | O104: Девизни рачун | P104: Девизни рачун | Q104: Девизни рачун | R104: Девизни рачун | S104: Девизни рачун | T104: Девизни рачун | U104: Девизни рачун | V104: Девизни рачун | W104: Девизни рачун | X104: Девизни рачун | Y104: =UnObr1!D69 -> 0 | AD104: =UnObr1!E69 -> 0 | AI104: =UnObr1!F69 -> 0 | AN104: =UnObr1!G69 -> 0
A105: 1065 | D105: 123300 | E105: 121400 | F105: 121400 | G105: 121400 | H105: Хартије од вредности намењене продаји | I105: Девизни рачун | J105: Девизни рачун | K105: Девизни рачун | L105: Девизни рачун | M105: Девизни рачун | N105: Девизни рачун | O105: Девизни рачун | P105: Девизни рачун | Q105: Девизни рачун | R105: Девизни рачун | S105: Девизни рачун | T105: Девизни рачун | U105: Девизни рачун | V105: Девизни рачун | W105: Девизни рачун | X105: Девизни рачун | Y105: =UnObr1!D70 -> 0 | AD105: =UnObr1!E70 -> 0 | AI105: =UnObr1!F70 -> 0 | AN105: =UnObr1!G70 -> 0
A106: 1066 | D106: 123900 | E106: 121400 | F106: 121400 | G106: 121400 | H106: Остали краткорочни пласмани | I106: Девизни рачун | J106: Девизни рачун | K106: Девизни рачун | L106: Девизни рачун | M106: Девизни рачун | N106: Девизни рачун | O106: Девизни рачун | P106: Девизни рачун | Q106: Девизни рачун | R106: Девизни рачун | S106: Девизни рачун | T106: Девизни рачун | U106: Девизни рачун | V106: Девизни рачун | W106: Девизни рачун | X106: Девизни рачун | Y106: =UnObr1!D71 -> 0 | AD106: =UnObr1!E71 -> 0 | AI106: =UnObr1!F71 -> 0 | AN106: =UnObr1!G71 -> 0
A107: 1067 | D107: 130000 | E107: 121400 | F107: 121400 | G107: 121400 | H107: АКТИВНА ВРЕМЕНСКА РАЗГРАНИЧЕЊА (1068) | I107: Девизни рачун | J107: Девизни рачун | K107: Девизни рачун | L107: Девизни рачун | M107: Девизни рачун | N107: Девизни рачун | O107: Девизни рачун | P107: Девизни рачун | Q107: Девизни рачун | R107: Девизни рачун | S107: Девизни рачун | T107: Девизни рачун | U107: Девизни рачун | V107: Девизни рачун | W107: Девизни рачун | X107: Девизни рачун | Y107: =UnObr1!D72 -> 2698 | AD107: =UnObr1!E72 -> 5997 | AI107: =UnObr1!F72 -> 0 | AN107: =UnObr1!G72 -> 5997
A108: 1068 | D108: 131000 | E108: 121400 | F108: 121400 | G108: 121400 | H108: АКТИВНА ВРЕМЕНСКА РАЗГРАНИЧЕЊА (од 1069 до 1071) | I108: Девизни рачун | J108: Девизни рачун | K108: Девизни рачун | L108: Девизни рачун | M108: Девизни рачун | N108: Девизни рачун | O108: Девизни рачун | P108: Девизни рачун | Q108: Девизни рачун | R108: Девизни рачун | S108: Девизни рачун | T108: Девизни рачун | U108: Девизни рачун | V108: Девизни рачун | W108: Девизни рачун | X108: Девизни рачун | Y108: =UnObr1!D73 -> 2698 | AD108: =UnObr1!E73 -> 5997 | AI108: =UnObr1!F73 -> 0 | AN108: =UnObr1!G73 -> 5997
A109: 1069 | D109: 131100 | E109: 121400 | F109: 121400 | G109: 121400 | H109: Разграничени расходи до једне године | I109: Девизни рачун | J109: Девизни рачун | K109: Девизни рачун | L109: Девизни рачун | M109: Девизни рачун | N109: Девизни рачун | O109: Девизни рачун | P109: Девизни рачун | Q109: Девизни рачун | R109: Девизни рачун | S109: Девизни рачун | T109: Девизни рачун | U109: Девизни рачун | V109: Девизни рачун | W109: Девизни рачун | X109: Девизни рачун | Y109: =UnObr1!D74 -> 0 | AD109: =UnObr1!E74 -> 0 | AI109: =UnObr1!F74 -> 0 | AN109: =UnObr1!G74 -> 0
A110: 1070 | D110: 131200 | E110: 121400 | F110: 121400 | G110: 121400 | H110: Обрачунати неплаћени расходи и издаци | I110: Девизни рачун | J110: Девизни рачун | K110: Девизни рачун | L110: Девизни рачун | M110: Девизни рачун | N110: Девизни рачун | O110: Девизни рачун | P110: Девизни рачун | Q110: Девизни рачун | R110: Девизни рачун | S110: Девизни рачун | T110: Девизни рачун | U110: Девизни рачун | V110: Девизни рачун | W110: Девизни рачун | X110: Девизни рачун | Y110: =UnObr1!D75 -> 2698 | AD110: =UnObr1!E75 -> 5997 | AI110: =UnObr1!F75 -> 0 | AN110: =UnObr1!G75 -> 5997
A111: 1071 | D111: 131300 | E111: 121400 | F111: 121400 | G111: 121400 | H111: Остала активна временска разграничења | I111: Девизни рачун | J111: Девизни рачун | K111: Девизни рачун | L111: Девизни рачун | M111: Девизни рачун | N111: Девизни рачун | O111: Девизни рачун | P111: Девизни рачун | Q111: Девизни рачун | R111: Девизни рачун | S111: Девизни рачун | T111: Девизни рачун | U111: Девизни рачун | V111: Девизни рачун | W111: Девизни рачун | X111: Девизни рачун | Y111: =UnObr1!D76 -> 0 | AD111: =UnObr1!E76 -> 0 | AI111: =UnObr1!F76 -> 0 | AN111: =UnObr1!G76 -> 0
A112: 1072 | H112: УКУПНА АКТИВА (1001 + 1028) | I112: Девизни рачун | J112: Девизни рачун | K112: Девизни рачун | L112: Девизни рачун | M112: Девизни рачун | N112: Девизни рачун | O112: Девизни рачун | P112: Девизни рачун | Q112: Девизни рачун | R112: Девизни рачун | S112: Девизни рачун | T112: Девизни рачун | U112: Девизни рачун | V112: Девизни рачун | W112: Девизни рачун | X112: Девизни рачун | Y112: =UnObr1!D77 -> 84339 | AD112: =UnObr1!E77 -> 138799 | AI112: =UnObr1!F77 -> 53120 | AN112: =UnObr1!G77 -> 85679
A113: 1073 | D113: 351000 | E113: 121400 | F113: 121400 | G113: 121400 | H113: ВАНБИЛАНСНА АКТИВА | I113: Девизни рачун | J113: Девизни рачун | K113: Девизни рачун | L113: Девизни рачун | M113: Девизни рачун | N113: Девизни рачун | O113: Девизни рачун | P113: Девизни рачун | Q113: Девизни рачун | R113: Девизни рачун | S113: Девизни рачун | T113: Девизни рачун | U113: Девизни рачун | V113: Девизни рачун | W113: Девизни рачун | X113: Девизни рачун | Y113: =UnObr1!D78 -> 0 | AD113: =UnObr1!E78 -> 1964 | AI113: =UnObr1!F78 -> 0 | AN113: =UnObr1!G78 -> 1964
A114: Ознака ОП | D114: Број конта | H114: Опис | Y114: Износ
Y116: Претходна година | AI116: Текућа година
A118: 1 | D118: 2 | H118: 3 | Y118: 4 | AH118: 5 | AI118: 5
H119: ПАСИВА
A120: 1074 | D120: 200000 | E120: 200000 | F120: 200000 | G120: 200000 | H120: ОБАВЕЗЕ (1075 + 1099 + 1118 + 1173 + 1198 + 1212) | I120: ОБАВЕЗЕ (1070 + 1089 + 1108 + 1159 + 1184 + 1197) | J120: ОБАВЕЗЕ (1070 + 1089 + 1108 + 1159 + 1184 + 1197) | K120: ОБАВЕЗЕ (1070 + 1089 + 1108 + 1159 + 1184 + 1197) | L120: ОБАВЕЗЕ (1070 + 1089 + 1108 + 1159 + 1184 + 1197) | M120: ОБАВЕЗЕ (1070 + 1089 + 1108 + 1159 + 1184 + 1197) | N120: ОБАВЕЗЕ (1070 + 1089 + 1108 + 1159 + 1184 + 1197) | O120: ОБАВЕЗЕ (1070 + 1089 + 1108 + 1159 + 1184 + 1197) | P120: ОБАВЕЗЕ (1070 + 1089 + 1108 + 1159 + 1184 + 1197) | Q120: ОБАВЕЗЕ (1070 + 1089 + 1108 + 1159 + 1184 + 1197) | R120: ОБАВЕЗЕ (1070 + 1089 + 1108 + 1159 + 1184 + 1197) | S120: ОБАВЕЗЕ (1070 + 1089 + 1108 + 1159 + 1184 + 1197) | T120: ОБАВЕЗЕ (1070 + 1089 + 1108 + 1159 + 1184 + 1197) | U120: ОБАВЕЗЕ (1070 + 1089 + 1108 + 1159 + 1184 + 1197) | V120: ОБАВЕЗЕ (1070 + 1089 + 1108 + 1159 + 1184 + 1197) | W120: ОБАВЕЗЕ (1070 + 1089 + 1108 + 1159 + 1184 + 1197) | X120: ОБАВЕЗЕ (1070 + 1089 + 1108 + 1159 + 1184 + 1197) | Y120: =UnObr1!F83 -> 3408 | AI120: =UnObr1!G83 -> 6798
A121: 1075 | D121: 210000 | E121: 200000 | F121: 200000 | G121: 200000 | H121: ДУГОРОЧНЕ ОБАВЕЗЕ (1076 + 1086 + 1093 + 1095 + 1097) | I121: ОБАВЕЗЕ (1070 + 1089 + 1108 + 1159 + 1184 + 1197) | J121: ОБАВЕЗЕ (1070 + 1089 + 1108 + 1159 + 1184 + 1197) | K121: ОБАВЕЗЕ (1070 + 1089 + 1108 + 1159 + 1184 + 1197) | L121: ОБАВЕЗЕ (1070 + 1089 + 1108 + 1159 + 1184 + 1197) | M121: ОБАВЕЗЕ (1070 + 1089 + 1108 + 1159 + 1184 + 1197) | N121: ОБАВЕЗЕ (1070 + 1089 + 1108 + 1159 + 1184 + 1197) | O121: ОБАВЕЗЕ (1070 + 1089 + 1108 + 1159 + 1184 + 1197) | P121: ОБАВЕЗЕ (1070 + 1089 + 1108 + 1159 + 1184 + 1197) | Q121: ОБАВЕЗЕ (1070 + 1089 + 1108 + 1159 + 1184 + 1197) | R121: ОБАВЕЗЕ (1070 + 1089 + 1108 + 1159 + 1184 + 1197) | S121: ОБАВЕЗЕ (1070 + 1089 + 1108 + 1159 + 1184 + 1197) | T121: ОБАВЕЗЕ (1070 + 1089 + 1108 + 1159 + 1184 + 1197) | U121: ОБАВЕЗЕ (1070 + 1089 + 1108 + 1159 + 1184 + 1197) | V121: ОБАВЕЗЕ (1070 + 1089 + 1108 + 1159 + 1184 + 1197) | W121: ОБАВЕЗЕ (1070 + 1089 + 1108 + 1159 + 1184 + 1197) | X121: ОБАВЕЗЕ (1070 + 1089 + 1108 + 1159 + 1184 + 1197) | Y121: =UnObr1!F84 -> 0 | AI121: =UnObr1!G84 -> 0
A122: 1076 | D122: 211000 | E122: 200000 | F122: 200000 | G122: 200000 | H122: ДОМАЋЕ ДУГОРОЧНЕ ОБАВЕЗЕ (од 1077 до 1085) | I122: ОБАВЕЗЕ (1070 + 1089 + 1108 + 1159 + 1184 + 1197) | J122: ОБАВЕЗЕ (1070 + 1089 + 1108 + 1159 + 1184 + 1197) | K122: ОБАВЕЗЕ (1070 + 1089 + 1108 + 1159 + 1184 + 1197) | L122: ОБАВЕЗЕ (1070 + 1089 + 1108 + 1159 + 1184 + 1197) | M122: ОБАВЕЗЕ (1070 + 1089 + 1108 + 1159 + 1184 + 1197) | N122: ОБАВЕЗЕ (1070 + 1089 + 1108 + 1159 + 1184 + 1197) | O122: ОБАВЕЗЕ (1070 + 1089 + 1108 + 1159 + 1184 + 1197) | P122: ОБАВЕЗЕ (1070 + 1089 + 1108 + 1159 + 1184 + 1197) | Q122: ОБАВЕЗЕ (1070 + 1089 + 1108 + 1159 + 1184 + 1197) | R122: ОБАВЕЗЕ (1070 + 1089 + 1108 + 1159 + 1184 + 1197) | S122: ОБАВЕЗЕ (1070 + 1089 + 1108 + 1159 + 1184 + 1197) | T122: ОБАВЕЗЕ (1070 + 1089 + 1108 + 1159 + 1184 + 1197) | U122: ОБАВЕЗЕ (1070 + 1089 + 1108 + 1159 + 1184 + 1197) | V122: ОБАВЕЗЕ (1070 + 1089 + 1108 + 1159 + 1184 + 1197) | W122: ОБАВЕЗЕ (1070 + 1089 + 1108 + 1159 + 1184 + 1197) | X122: ОБАВЕЗЕ (1070 + 1089 + 1108 + 1159 + 1184 + 1197) | Y122: =UnObr1!F85 -> 0 | AI122: =UnObr1!G85 -> 0
A123: 1077 | D123: 211100 | E123: 200000 | F123: 200000 | G123: 200000 | H123: Обавезе по основу емитованих хартија од вредности, изузев акција | I123: ОБАВЕЗЕ (1070 + 1089 + 1108 + 1159 + 1184 + 1197) | J123: ОБАВЕЗЕ (1070 + 1089 + 1108 + 1159 + 1184 + 1197) | K123: ОБАВЕЗЕ (1070 + 1089 + 1108 + 1159 + 1184 + 1197) | L123: ОБАВЕЗЕ (1070 + 1089 + 1108 + 1159 + 1184 + 1197) | M123: ОБАВЕЗЕ (1070 + 1089 + 1108 + 1159 + 1184 + 1197) | N123: ОБАВЕЗЕ (1070 + 1089 + 1108 + 1159 + 1184 + 1197) | O123: ОБАВЕЗЕ (1070 + 1089 + 1108 + 1159 + 1184 + 1197) | P123: ОБАВЕЗЕ (1070 + 1089 + 1108 + 1159 + 1184 + 1197) | Q123: ОБАВЕЗЕ (1070 + 1089 + 1108 + 1159 + 1184 + 1197) | R123: ОБАВЕЗЕ (1070 + 1089 + 1108 + 1159 + 1184 + 1197) | S123: ОБАВЕЗЕ (1070 + 1089 + 1108 + 1159 + 1184 + 1197) | T123: ОБАВЕЗЕ (1070 + 1089 + 1108 + 1159 + 1184 + 1197) | U123: ОБАВЕЗЕ (1070 + 1089 + 1108 + 1159 + 1184 + 1197) | V123: ОБАВЕЗЕ (1070 + 1089 + 1108 + 1159 + 1184 + 1197) | W123: ОБАВЕЗЕ (1070 + 1089 + 1108 + 1159 + 1184 + 1197) | X123: ОБАВЕЗЕ (1070 + 1089 + 1108 + 1159 + 1184 + 1197) | Y123: =UnObr1!F86 -> 0 | AI123: =UnObr1!G86 -> 0
A124: 1078 | D124: 211200 | E124: 200000 | F124: 200000 | G124: 200000 | H124: Обавезе по основу дугорочних кредита од осталих нивоа власти | I124: ОБАВЕЗЕ (1070 + 1089 + 1108 + 1159 + 1184 + 1197) | J124: ОБАВЕЗЕ (1070 + 1089 + 1108 + 1159 + 1184 + 1197) | K124: ОБАВЕЗЕ (1070 + 1089 + 1108 + 1159 + 1184 + 1197) | L124: ОБАВЕЗЕ (1070 + 1089 + 1108 + 1159 + 1184 + 1197) | M124: ОБАВЕЗЕ (1070 + 1089 + 1108 + 1159 + 1184 + 1197) | N124: ОБАВЕЗЕ (1070 + 1089 + 1108 + 1159 + 1184 + 1197) | O124: ОБАВЕЗЕ (1070 + 1089 + 1108 + 1159 + 1184 + 1197) | P124: ОБАВЕЗЕ (1070 + 1089 + 1108 + 1159 + 1184 + 1197) | Q124: ОБАВЕЗЕ (1070 + 1089 + 1108 + 1159 + 1184 + 1197) | R124: ОБАВЕЗЕ (1070 + 1089 + 1108 + 1159 + 1184 + 1197) | S124: ОБАВЕЗЕ (1070 + 1089 + 1108 + 1159 + 1184 + 1197) | T124: ОБАВЕЗЕ (1070 + 1089 + 1108 + 1159 + 1184 + 1197) | U124: ОБАВЕЗЕ (1070 + 1089 + 1108 + 1159 + 1184 + 1197) | V124: ОБАВЕЗЕ (1070 + 1089 + 1108 + 1159 + 1184 + 1197) | W124: ОБАВЕЗЕ (1070 + 1089 + 1108 + 1159 + 1184 + 1197) | X124: ОБАВЕЗЕ (1070 + 1089 + 1108 + 1159 + 1184 + 1197) | Y124: =UnObr1!F87 -> 0 | AI124: =UnObr1!G87 -> 0
A125: 1079 | D125: 211300 | E125: 200000 | F125: 200000 | G125: 200000 | H125: Обавезе по основу дугорочних кредита од домаћих јавних финансијских институција | I125: ОБАВЕЗЕ (1070 + 1089 + 1108 + 1159 + 1184 + 1197) | J125: ОБАВЕЗЕ (1070 + 1089 + 1108 + 1159 + 1184 + 1197) | K125: ОБАВЕЗЕ (1070 + 1089 + 1108 + 1159 + 1184 + 1197) | L125: ОБАВЕЗЕ (1070 + 1089 + 1108 + 1159 + 1184 + 1197) | M125: ОБАВЕЗЕ (1070 + 1089 + 1108 + 1159 + 1184 + 1197) | N125: ОБАВЕЗЕ (1070 + 1089 + 1108 + 1159 + 1184 + 1197) | O125: ОБАВЕЗЕ (1070 + 1089 + 1108 + 1159 + 1184 + 1197) | P125: ОБАВЕЗЕ (1070 + 1089 + 1108 + 1159 + 1184 + 1197) | Q125: ОБАВЕЗЕ (1070 + 1089 + 1108 + 1159 + 1184 + 1197) | R125: ОБАВЕЗЕ (1070 + 1089 + 1108 + 1159 + 1184 + 1197) | S125: ОБАВЕЗЕ (1070 + 1089 + 1108 + 1159 + 1184 + 1197) | T125: ОБАВЕЗЕ (1070 + 1089 + 1108 + 1159 + 1184 + 1197) | U125: ОБАВЕЗЕ (1070 + 1089 + 1108 + 1159 + 1184 + 1197) | V125: ОБАВЕЗЕ (1070 + 1089 + 1108 + 1159 + 1184 + 1197) | W125: ОБАВЕЗЕ (1070 + 1089 + 1108 + 1159 + 1184 + 1197) | X125: ОБАВЕЗЕ (1070 + 1089 + 1108 + 1159 + 1184 + 1197) | Y125: =UnObr1!F88 -> 0 | AI125: =UnObr1!G88 -> 0
A126: 1080 | D126: 211400 | E126: 200000 | F126: 200000 | G126: 200000 | H126: Обавезе по основу дугорочних кредита од домаћих пословних банака | I126: ОБАВЕЗЕ (1070 + 1089 + 1108 + 1159 + 1184 + 1197) | J126: ОБАВЕЗЕ (1070 + 1089 + 1108 + 1159 + 1184 + 1197) | K126: ОБАВЕЗЕ (1070 + 1089 + 1108 + 1159 + 1184 + 1197) | L126: ОБАВЕЗЕ (1070 + 1089 + 1108 + 1159 + 1184 + 1197) | M126: ОБАВЕЗЕ (1070 + 1089 + 1108 + 1159 + 1184 + 1197) | N126: ОБАВЕЗЕ (1070 + 1089 + 1108 + 1159 + 1184 + 1197) | O126: ОБАВЕЗЕ (1070 + 1089 + 1108 + 1159 + 1184 + 1197) | P126: ОБАВЕЗЕ (1070 + 1089 + 1108 + 1159 + 1184 + 1197) | Q126: ОБАВЕЗЕ (1070 + 1089 + 1108 + 1159 + 1184 + 1197) | R126: ОБАВЕЗЕ (1070 + 1089 + 1108 + 1159 + 1184 + 1197) | S126: ОБАВЕЗЕ (1070 + 1089 + 1108 + 1159 + 1184 + 1197) | T126: ОБАВЕЗЕ (1070 + 1089 + 1108 + 1159 + 1184 + 1197) | U126: ОБАВЕЗЕ (1070 + 1089 + 1108 + 1159 + 1184 + 1197) | V126: ОБАВЕЗЕ (1070 + 1089 + 1108 + 1159 + 1184 + 1197) | W126: ОБАВЕЗЕ (1070 + 1089 + 1108 + 1159 + 1184 + 1197) | X126: ОБАВЕЗЕ (1070 + 1089 + 1108 + 1159 + 1184 + 1197) | Y126: =UnObr1!F89 -> 0 | AI126: =UnObr1!G89 -> 0
A127: 1081 | D127: 211500 | E127: 200000 | F127: 200000 | G127: 200000 | H127: Обавезе по основу дугорочних кредита од осталих домаћих кредитора | I127: ОБАВЕЗЕ (1070 + 1089 + 1108 + 1159 + 1184 + 1197) | J127: ОБАВЕЗЕ (1070 + 1089 + 1108 + 1159 + 1184 + 1197) | K127: ОБАВЕЗЕ (1070 + 1089 + 1108 + 1159 + 1184 + 1197) | L127: ОБАВЕЗЕ (1070 + 1089 + 1108 + 1159 + 1184 + 1197) | M127: ОБАВЕЗЕ (1070 + 1089 + 1108 + 1159 + 1184 + 1197) | N127: ОБАВЕЗЕ (1070 + 1089 + 1108 + 1159 + 1184 + 1197) | O127: ОБАВЕЗЕ (1070 + 1089 + 1108 + 1159 + 1184 + 1197) | P127: ОБАВЕЗЕ (1070 + 1089 + 1108 + 1159 + 1184 + 1197) | Q127: ОБАВЕЗЕ (1070 + 1089 + 1108 + 1159 + 1184 + 1197) | R127: ОБАВЕЗЕ (1070 + 1089 + 1108 + 1159 + 1184 + 1197) | S127: ОБАВЕЗЕ (1070 + 1089 + 1108 + 1159 + 1184 + 1197) | T127: ОБАВЕЗЕ (1070 + 1089 + 1108 + 1159 + 1184 + 1197) | U127: ОБАВЕЗЕ (1070 + 1089 + 1108 + 1159 + 1184 + 1197) | V127: ОБАВЕЗЕ (1070 + 1089 + 1108 + 1159 + 1184 + 1197) | W127: ОБАВЕЗЕ (1070 + 1089 + 1108 + 1159 + 1184 + 1197) | X127: ОБАВЕЗЕ (1070 + 1089 + 1108 + 1159 + 1184 + 1197) | Y127: =UnObr1!F90 -> 0 | AI127: =UnObr1!G90 -> 0
A128: 1082 | D128: 211600 | E128: 200000 | F128: 200000 | G128: 200000 | H128: Обавезе по основу дугорочних кредита од домаћинстава у земљи | I128: ОБАВЕЗЕ (1070 + 1089 + 1108 + 1159 + 1184 + 1197) | J128: ОБАВЕЗЕ (1070 + 1089 + 1108 + 1159 + 1184 + 1197) | K128: ОБАВЕЗЕ (1070 + 1089 + 1108 + 1159 + 1184 + 1197) | L128: ОБАВЕЗЕ (1070 + 1089 + 1108 + 1159 + 1184 + 1197) | M128: ОБАВЕЗЕ (1070 + 1089 + 1108 + 1159 + 1184 + 1197) | N128: ОБАВЕЗЕ (1070 + 1089 + 1108 + 1159 + 1184 + 1197) | O128: ОБАВЕЗЕ (1070 + 1089 + 1108 + 1159 + 1184 + 1197) | P128: ОБАВЕЗЕ (1070 + 1089 + 1108 + 1159 + 1184 + 1197) | Q128: ОБАВЕЗЕ (1070 + 1089 + 1108 + 1159 + 1184 + 1197) | R128: ОБАВЕЗЕ (1070 + 1089 + 1108 + 1159 + 1184 + 1197) | S128: ОБАВЕЗЕ (1070 + 1089 + 1108 + 1159 + 1184 + 1197) | T128: ОБАВЕЗЕ (1070 + 1089 + 1108 + 1159 + 1184 + 1197) | U128: ОБАВЕЗЕ (1070 + 1089 + 1108 + 1159 + 1184 + 1197) | V128: ОБАВЕЗЕ (1070 + 1089 + 1108 + 1159 + 1184 + 1197) | W128: ОБАВЕЗЕ (1070 + 1089 + 1108 + 1159 + 1184 + 1197) | X128: ОБАВЕЗЕ (1070 + 1089 + 1108 + 1159 + 1184 + 1197) | Y128: =UnObr1!F91 -> 0 | AI128: =UnObr1!G91 -> 0
A129: 1083 | D129: 211700 | E129: 200000 | F129: 200000 | G129: 200000 | H129: Дугорочне обавезе по основу домаћих финансијских деривата | I129: ОБАВЕЗЕ (1070 + 1089 + 1108 + 1159 + 1184 + 1197) | J129: ОБАВЕЗЕ (1070 + 1089 + 1108 + 1159 + 1184 + 1197) | K129: ОБАВЕЗЕ (1070 + 1089 + 1108 + 1159 + 1184 + 1197) | L129: ОБАВЕЗЕ (1070 + 1089 + 1108 + 1159 + 1184 + 1197) | M129: ОБАВЕЗЕ (1070 + 1089 + 1108 + 1159 + 1184 + 1197) | N129: ОБАВЕЗЕ (1070 + 1089 + 1108 + 1159 + 1184 + 1197) | O129: ОБАВЕЗЕ (1070 + 1089 + 1108 + 1159 + 1184 + 1197) | P129: ОБАВЕЗЕ (1070 + 1089 + 1108 + 1159 + 1184 + 1197) | Q129: ОБАВЕЗЕ (1070 + 1089 + 1108 + 1159 + 1184 + 1197) | R129: ОБАВЕЗЕ (1070 + 1089 + 1108 + 1159 + 1184 + 1197) | S129: ОБАВЕЗЕ (1070 + 1089 + 1108 + 1159 + 1184 + 1197) | T129: ОБАВЕЗЕ (1070 + 1089 + 1108 + 1159 + 1184 + 1197) | U129: ОБАВЕЗЕ (1070 + 1089 + 1108 + 1159 + 1184 + 1197) | V129: ОБАВЕЗЕ (1070 + 1089 + 1108 + 1159 + 1184 + 1197) | W129: ОБАВЕЗЕ (1070 + 1089 + 1108 + 1159 + 1184 + 1197) | X129: ОБАВЕЗЕ (1070 + 1089 + 1108 + 1159 + 1184 + 1197) | Y129: =UnObr1!F92 -> 0 | AI129: =UnObr1!G92 -> 0
A130: 1084 | D130: 211800 | E130: 200000 | F130: 200000 | G130: 200000 | H130: Дугорочне обавезе по основу домаћих меница | I130: ОБАВЕЗЕ (1070 + 1089 + 1108 + 1159 + 1184 + 1197) | J130: ОБАВЕЗЕ (1070 + 1089 + 1108 + 1159 + 1184 + 1197) | K130: ОБАВЕЗЕ (1070 + 1089 + 1108 + 1159 + 1184 + 1197) | L130: ОБАВЕЗЕ (1070 + 1089 + 1108 + 1159 + 1184 + 1197) | M130: ОБАВЕЗЕ (1070 + 1089 + 1108 + 1159 + 1184 + 1197) | N130: ОБАВЕЗЕ (1070 + 1089 + 1108 + 1159 + 1184 + 1197) | O130: ОБАВЕЗЕ (1070 + 1089 + 1108 + 1159 + 1184 + 1197) | P130: ОБАВЕЗЕ (1070 + 1089 + 1108 + 1159 + 1184 + 1197) | Q130: ОБАВЕЗЕ (1070 + 1089 + 1108 + 1159 + 1184 + 1197) | R130: ОБАВЕЗЕ (1070 + 1089 + 1108 + 1159 + 1184 + 1197) | S130: ОБАВЕЗЕ (1070 + 1089 + 1108 + 1159 + 1184 + 1197) | T130: ОБАВЕЗЕ (1070 + 1089 + 1108 + 1159 + 1184 + 1197) | U130: ОБАВЕЗЕ (1070 + 1089 + 1108 + 1159 + 1184 + 1197) | V130: ОБАВЕЗЕ (1070 + 1089 + 1108 + 1159 + 1184 + 1197) | W130: ОБАВЕЗЕ (1070 + 1089 + 1108 + 1159 + 1184 + 1197) | X130: ОБАВЕЗЕ (1070 + 1089 + 1108 + 1159 + 1184 + 1197) | Y130: =UnObr1!F93 -> 0 | AI130: =UnObr1!G93 -> 0
A131: 1085 | D131: 211900 | E131: 200000 | F131: 200000 | G131: 200000 | H131: Дугорочне обавезе за финансијске лизинге | I131: ОБАВЕЗЕ (1070 + 1089 + 1108 + 1159 + 1184 + 1197) | J131: ОБАВЕЗЕ (1070 + 1089 + 1108 + 1159 + 1184 + 1197) | K131: ОБАВЕЗЕ (1070 + 1089 + 1108 + 1159 + 1184 + 1197) | L131: ОБАВЕЗЕ (1070 + 1089 + 1108 + 1159 + 1184 + 1197) | M131: ОБАВЕЗЕ (1070 + 1089 + 1108 + 1159 + 1184 + 1197) | N131: ОБАВЕЗЕ (1070 + 1089 + 1108 + 1159 + 1184 + 1197) | O131: ОБАВЕЗЕ (1070 + 1089 + 1108 + 1159 + 1184 + 1197) | P131: ОБАВЕЗЕ (1070 + 1089 + 1108 + 1159 + 1184 + 1197) | Q131: ОБАВЕЗЕ (1070 + 1089 + 1108 + 1159 + 1184 + 1197) | R131: ОБАВЕЗЕ (1070 + 1089 + 1108 + 1159 + 1184 + 1197) | S131: ОБАВЕЗЕ (1070 + 1089 + 1108 + 1159 + 1184 + 1197) | T131: ОБАВЕЗЕ (1070 + 1089 + 1108 + 1159 + 1184 + 1197) | U131: ОБАВЕЗЕ (1070 + 1089 + 1108 + 1159 + 1184 + 1197) | V131: ОБАВЕЗЕ (1070 + 1089 + 1108 + 1159 + 1184 + 1197) | W131: ОБАВЕЗЕ (1070 + 1089 + 1108 + 1159 + 1184 + 1197) | X131: ОБАВЕЗЕ (1070 + 1089 + 1108 + 1159 + 1184 + 1197) | Y131: =UnObr1!F94 -> 0 | AI131: =UnObr1!G94 -> 0
A132: 1086 | D132: 212000 | E132: 200000 | F132: 200000 | G132: 200000 | H132: СТРАНЕ ДУГОРОЧНЕ ОБАВЕЗЕ (од 1087 до 1092) | I132: ОБАВЕЗЕ (1070 + 1089 + 1108 + 1159 + 1184 + 1197) | J132: ОБАВЕЗЕ (1070 + 1089 + 1108 + 1159 + 1184 + 1197) | K132: ОБАВЕЗЕ (1070 + 1089 + 1108 + 1159 + 1184 + 1197) | L132: ОБАВЕЗЕ (1070 + 1089 + 1108 + 1159 + 1184 + 1197) | M132: ОБАВЕЗЕ (1070 + 1089 + 1108 + 1159 + 1184 + 1197) | N132: ОБАВЕЗЕ (1070 + 1089 + 1108 + 1159 + 1184 + 1197) | O132: ОБАВЕЗЕ (1070 + 1089 + 1108 + 1159 + 1184 + 1197) | P132: ОБАВЕЗЕ (1070 + 1089 + 1108 + 1159 + 1184 + 1197) | Q132: ОБАВЕЗЕ (1070 + 1089 + 1108 + 1159 + 1184 + 1197) | R132: ОБАВЕЗЕ (1070 + 1089 + 1108 + 1159 + 1184 + 1197) | S132: ОБАВЕЗЕ (1070 + 1089 + 1108 + 1159 + 1184 + 1197) | T132: ОБАВЕЗЕ (1070 + 1089 + 1108 + 1159 + 1184 + 1197) | U132: ОБАВЕЗЕ (1070 + 1089 + 1108 + 1159 + 1184 + 1197) | V132: ОБАВЕЗЕ (1070 + 1089 + 1108 + 1159 + 1184 + 1197) | W132: ОБАВЕЗЕ (1070 + 1089 + 1108 + 1159 + 1184 + 1197) | X132: ОБАВЕЗЕ (1070 + 1089 + 1108 + 1159 + 1184 + 1197) | Y132: =UnObr1!F95 -> 0 | AI132: =UnObr1!G95 -> 0
A133: 1087 | D133: 212100 | E133: 200000 | F133: 200000 | G133: 200000 | H133: Дугорочне стране обавезе по основу емитованих хартија од вредности, изузев акција | I133: ОБАВЕЗЕ (1070 + 1089 + 1108 + 1159 + 1184 + 1197) | J133: ОБАВЕЗЕ (1070 + 1089 + 1108 + 1159 + 1184 + 1197) | K133: ОБАВЕЗЕ (1070 + 1089 + 1108 + 1159 + 1184 + 1197) | L133: ОБАВЕЗЕ (1070 + 1089 + 1108 + 1159 + 1184 + 1197) | M133: ОБАВЕЗЕ (1070 + 1089 + 1108 + 1159 + 1184 + 1197) | N133: ОБАВЕЗЕ (1070 + 1089 + 1108 + 1159 + 1184 + 1197) | O133: ОБАВЕЗЕ (1070 + 1089 + 1108 + 1159 + 1184 + 1197) | P133: ОБАВЕЗЕ (1070 + 1089 + 1108 + 1159 + 1184 + 1197) | Q133: ОБАВЕЗЕ (1070 + 1089 + 1108 + 1159 + 1184 + 1197) | R133: ОБАВЕЗЕ (1070 + 1089 + 1108 + 1159 + 1184 + 1197) | S133: ОБАВЕЗЕ (1070 + 1089 + 1108 + 1159 + 1184 + 1197) | T133: ОБАВЕЗЕ (1070 + 1089 + 1108 + 1159 + 1184 + 1197) | U133: ОБАВЕЗЕ (1070 + 1089 + 1108 + 1159 + 1184 + 1197) | V133: ОБАВЕЗЕ (1070 + 1089 + 1108 + 1159 + 1184 + 1197) | W133: ОБАВЕЗЕ (1070 + 1089 + 1108 + 1159 + 1184 + 1197) | X133: ОБАВЕЗЕ (1070 + 1089 + 1108 + 1159 + 1184 + 1197) | Y133: =UnObr1!F96 -> 0 | AI133: =UnObr1!G96 -> 0
A134: 1088 | D134: 212200 | E134: 200000 | F134: 200000 | G134: 200000 | H134: Обавезе по основу дугорочних кредита од страних влада | I134: ОБАВЕЗЕ (1070 + 1089 + 1108 + 1159 + 1184 + 1197) | J134: ОБАВЕЗЕ (1070 + 1089 + 1108 + 1159 + 1184 + 1197) | K134: ОБАВЕЗЕ (1070 + 1089 + 1108 + 1159 + 1184 + 1197) | L134: ОБАВЕЗЕ (1070 + 1089 + 1108 + 1159 + 1184 + 1197) | M134: ОБАВЕЗЕ (1070 + 1089 + 1108 + 1159 + 1184 + 1197) | N134: ОБАВЕЗЕ (1070 + 1089 + 1108 + 1159 + 1184 + 1197) | O134: ОБАВЕЗЕ (1070 + 1089 + 1108 + 1159 + 1184 + 1197) | P134: ОБАВЕЗЕ (1070 + 1089 + 1108 + 1159 + 1184 + 1197) | Q134: ОБАВЕЗЕ (1070 + 1089 + 1108 + 1159 + 1184 + 1197) | R134: ОБАВЕЗЕ (1070 + 1089 + 1108 + 1159 + 1184 + 1197) | S134: ОБАВЕЗЕ (1070 + 1089 + 1108 + 1159 + 1184 + 1197) | T134: ОБАВЕЗЕ (1070 + 1089 + 1108 + 1159 + 1184 + 1197) | U134: ОБАВЕЗЕ (1070 + 1089 + 1108 + 1159 + 1184 + 1197) | V134: ОБАВЕЗЕ (1070 + 1089 + 1108 + 1159 + 1184 + 1197) | W134: ОБАВЕЗЕ (1070 + 1089 + 1108 + 1159 + 1184 + 1197) | X134: ОБАВЕЗЕ (1070 + 1089 + 1108 + 1159 + 1184 + 1197) | Y134: =UnObr1!F97 -> 0 | AI134: =UnObr1!G97 -> 0
A135: 1089 | D135: 212300 | E135: 200000 | F135: 200000 | G135: 200000 | H135: Обавезе по основу дугорочних кредита од мултилатералних институција | I135: ОБАВЕЗЕ (1070 + 1089 + 1108 + 1159 + 1184 + 1197) | J135: ОБАВЕЗЕ (1070 + 1089 + 1108 + 1159 + 1184 + 1197) | K135: ОБАВЕЗЕ (1070 + 1089 + 1108 + 1159 + 1184 + 1197) | L135: ОБАВЕЗЕ (1070 + 1089 + 1108 + 1159 + 1184 + 1197) | M135: ОБАВЕЗЕ (1070 + 1089 + 1108 + 1159 + 1184 + 1197) | N135: ОБАВЕЗЕ (1070 + 1089 + 1108 + 1159 + 1184 + 1197) | O135: ОБАВЕЗЕ (1070 + 1089 + 1108 + 1159 + 1184 + 1197) | P135: ОБАВЕЗЕ (1070 + 1089 + 1108 + 1159 + 1184 + 1197) | Q135: ОБАВЕЗЕ (1070 + 1089 + 1108 + 1159 + 1184 + 1197) | R135: ОБАВЕЗЕ (1070 + 1089 + 1108 + 1159 + 1184 + 1197) | S135: ОБАВЕЗЕ (1070 + 1089 + 1108 + 1159 + 1184 + 1197) | T135: ОБАВЕЗЕ (1070 + 1089 + 1108 + 1159 + 1184 + 1197) | U135: ОБАВЕЗЕ (1070 + 1089 + 1108 + 1159 + 1184 + 1197) | V135: ОБАВЕЗЕ (1070 + 1089 + 1108 + 1159 + 1184 + 1197) | W135: ОБАВЕЗЕ (1070 + 1089 + 1108 + 1159 + 1184 + 1197) | X135: ОБАВЕЗЕ (1070 + 1089 + 1108 + 1159 + 1184 + 1197) | Y135: =UnObr1!F98 -> 0 | AI135: =UnObr1!G98 -> 0
A136: 1090 | D136: 212400 | E136: 200000 | F136: 200000 | G136: 200000 | H136: Обавезе по основу дугорочних кредита од страних пословних банака | I136: ОБАВЕЗЕ (1070 + 1089 + 1108 + 1159 + 1184 + 1197) | J136: ОБАВЕЗЕ (1070 + 1089 + 1108 + 1159 + 1184 + 1197) | K136: ОБАВЕЗЕ (1070 + 1089 + 1108 + 1159 + 1184 + 1197) | L136: ОБАВЕЗЕ (1070 + 1089 + 1108 + 1159 + 1184 + 1197) | M136: ОБАВЕЗЕ (1070 + 1089 + 1108 + 1159 + 1184 + 1197) | N136: ОБАВЕЗЕ (1070 + 1089 + 1108 + 1159 + 1184 + 1197) | O136: ОБАВЕЗЕ (1070 + 1089 + 1108 + 1159 + 1184 + 1197) | P136: ОБАВЕЗЕ (1070 + 1089 + 1108 + 1159 + 1184 + 1197) | Q136: ОБАВЕЗЕ (1070 + 1089 + 1108 + 1159 + 1184 + 1197) | R136: ОБАВЕЗЕ (1070 + 1089 + 1108 + 1159 + 1184 + 1197) | S136: ОБАВЕЗЕ (1070 + 1089 + 1108 + 1159 + 1184 + 1197) | T136: ОБАВЕЗЕ (1070 + 1089 + 1108 + 1159 + 1184 + 1197) | U136: ОБАВЕЗЕ (1070 + 1089 + 1108 + 1159 + 1184 + 1197) | V136: ОБАВЕЗЕ (1070 + 1089 + 1108 + 1159 + 1184 + 1197) | W136: ОБАВЕЗЕ (1070 + 1089 + 1108 + 1159 + 1184 + 1197) | X136: ОБАВЕЗЕ (1070 + 1089 + 1108 + 1159 + 1184 + 1197) | Y136: =UnObr1!F99 -> 0 | AI136: =UnObr1!G99 -> 0
A137: 1091 | D137: 212500 | E137: 200000 | F137: 200000 | G137: 200000 | H137: Обавезе по основу дугорочних кредита од осталих страних кредитора | I137: ОБАВЕЗЕ (1070 + 1089 + 1108 + 1159 + 1184 + 1197) | J137: ОБАВЕЗЕ (1070 + 1089 + 1108 + 1159 + 1184 + 1197) | K137: ОБАВЕЗЕ (1070 + 1089 + 1108 + 1159 + 1184 + 1197) | L137: ОБАВЕЗЕ (1070 + 1089 + 1108 + 1159 + 1184 + 1197) | M137: ОБАВЕЗЕ (1070 + 1089 + 1108 + 1159 + 1184 + 1197) | N137: ОБАВЕЗЕ (1070 + 1089 + 1108 + 1159 + 1184 + 1197) | O137: ОБАВЕЗЕ (1070 + 1089 + 1108 + 1159 + 1184 + 1197) | P137: ОБАВЕЗЕ (1070 + 1089 + 1108 + 1159 + 1184 + 1197) | Q137: ОБАВЕЗЕ (1070 + 1089 + 1108 + 1159 + 1184 + 1197) | R137: ОБАВЕЗЕ (1070 + 1089 + 1108 + 1159 + 1184 + 1197) | S137: ОБАВЕЗЕ (1070 + 1089 + 1108 + 1159 + 1184 + 1197) | T137: ОБАВЕЗЕ (1070 + 1089 + 1108 + 1159 + 1184 + 1197) | U137: ОБАВЕЗЕ (1070 + 1089 + 1108 + 1159 + 1184 + 1197) | V137: ОБАВЕЗЕ (1070 + 1089 + 1108 + 1159 + 1184 + 1197) | W137: ОБАВЕЗЕ (1070 + 1089 + 1108 + 1159 + 1184 + 1197) | X137: ОБАВЕЗЕ (1070 + 1089 + 1108 + 1159 + 1184 + 1197) | Y137: =UnObr1!F100 -> 0 | AI137: =UnObr1!G100 -> 0
A138: 1092 | D138: 212600 | E138: 200000 | F138: 200000 | G138: 200000 | H138: Дугорочне обавезе по основу страних финансијских деривата | I138: ОБАВЕЗЕ (1070 + 1089 + 1108 + 1159 + 1184 + 1197) | J138: ОБАВЕЗЕ (1070 + 1089 + 1108 + 1159 + 1184 + 1197) | K138: ОБАВЕЗЕ (1070 + 1089 + 1108 + 1159 + 1184 + 1197) | L138: ОБАВЕЗЕ (1070 + 1089 + 1108 + 1159 + 1184 + 1197) | M138: ОБАВЕЗЕ (1070 + 1089 + 1108 + 1159 + 1184 + 1197) | N138: ОБАВЕЗЕ (1070 + 1089 + 1108 + 1159 + 1184 + 1197) | O138: ОБАВЕЗЕ (1070 + 1089 + 1108 + 1159 + 1184 + 1197) | P138: ОБАВЕЗЕ (1070 + 1089 + 1108 + 1159 + 1184 + 1197) | Q138: ОБАВЕЗЕ (1070 + 1089 + 1108 + 1159 + 1184 + 1197) | R138: ОБАВЕЗЕ (1070 + 1089 + 1108 + 1159 + 1184 + 1197) | S138: ОБАВЕЗЕ (1070 + 1089 + 1108 + 1159 + 1184 + 1197) | T138: ОБАВЕЗЕ (1070 + 1089 + 1108 + 1159 + 1184 + 1197) | U138: ОБАВЕЗЕ (1070 + 1089 + 1108 + 1159 + 1184 + 1197) | V138: ОБАВЕЗЕ (1070 + 1089 + 1108 + 1159 + 1184 + 1197) | W138: ОБАВЕЗЕ (1070 + 1089 + 1108 + 1159 + 1184 + 1197) | X138: ОБАВЕЗЕ (1070 + 1089 + 1108 + 1159 + 1184 + 1197) | Y138: =UnObr1!F101 -> 0 | AI138: =UnObr1!G101 -> 0
A139: 1093 | D139: 213000 | E139: 200000 | F139: 200000 | G139: 200000 | H139: ДУГОРОЧНЕ ОБАВЕЗЕ ПО ОСНОВУ ГАРАНЦИЈА (1094) | I139: ОБАВЕЗЕ (1070 + 1089 + 1108 + 1159 + 1184 + 1197) | J139: ОБАВЕЗЕ (1070 + 1089 + 1108 + 1159 + 1184 + 1197) | K139: ОБАВЕЗЕ (1070 + 1089 + 1108 + 1159 + 1184 + 1197) | L139: ОБАВЕЗЕ (1070 + 1089 + 1108 + 1159 + 1184 + 1197) | M139: ОБАВЕЗЕ (1070 + 1089 + 1108 + 1159 + 1184 + 1197) | N139: ОБАВЕЗЕ (1070 + 1089 + 1108 + 1159 + 1184 + 1197) | O139: ОБАВЕЗЕ (1070 + 1089 + 1108 + 1159 + 1184 + 1197) | P139: ОБАВЕЗЕ (1070 + 1089 + 1108 + 1159 + 1184 + 1197) | Q139: ОБАВЕЗЕ (1070 + 1089 + 1108 + 1159 + 1184 + 1197) | R139: ОБАВЕЗЕ (1070 + 1089 + 1108 + 1159 + 1184 + 1197) | S139: ОБАВЕЗЕ (1070 + 1089 + 1108 + 1159 + 1184 + 1197) | T139: ОБАВЕЗЕ (1070 + 1089 + 1108 + 1159 + 1184 + 1197) | U139: ОБАВЕЗЕ (1070 + 1089 + 1108 + 1159 + 1184 + 1197) | V139: ОБАВЕЗЕ (1070 + 1089 + 1108 + 1159 + 1184 + 1197) | W139: ОБАВЕЗЕ (1070 + 1089 + 1108 + 1159 + 1184 + 1197) | X139: ОБАВЕЗЕ (1070 + 1089 + 1108 + 1159 + 1184 + 1197) | Y139: =UnObr1!F102 -> 0 | AI139: =UnObr1!G102 -> 0
A140: 1094 | D140: 213100 | E140: 200000 | F140: 200000 | G140: 200000 | H140: Дугорочне обавезе по основу гаранција | I140: ОБАВЕЗЕ (1070 + 1089 + 1108 + 1159 + 1184 + 1197) | J140: ОБАВЕЗЕ (1070 + 1089 + 1108 + 1159 + 1184 + 1197) | K140: ОБАВЕЗЕ (1070 + 1089 + 1108 + 1159 + 1184 + 1197) | L140: ОБАВЕЗЕ (1070 + 1089 + 1108 + 1159 + 1184 + 1197) | M140: ОБАВЕЗЕ (1070 + 1089 + 1108 + 1159 + 1184 + 1197) | N140: ОБАВЕЗЕ (1070 + 1089 + 1108 + 1159 + 1184 + 1197) | O140: ОБАВЕЗЕ (1070 + 1089 + 1108 + 1159 + 1184 + 1197) | P140: ОБАВЕЗЕ (1070 + 1089 + 1108 + 1159 + 1184 + 1197) | Q140: ОБАВЕЗЕ (1070 + 1089 + 1108 + 1159 + 1184 + 1197) | R140: ОБАВЕЗЕ (1070 + 1089 + 1108 + 1159 + 1184 + 1197) | S140: ОБАВЕЗЕ (1070 + 1089 + 1108 + 1159 + 1184 + 1197) | T140: ОБАВЕЗЕ (1070 + 1089 + 1108 + 1159 + 1184 + 1197) | U140: ОБАВЕЗЕ (1070 + 1089 + 1108 + 1159 + 1184 + 1197) | V140: ОБАВЕЗЕ (1070 + 1089 + 1108 + 1159 + 1184 + 1197) | W140: ОБАВЕЗЕ (1070 + 1089 + 1108 + 1159 + 1184 + 1197) | X140: ОБАВЕЗЕ (1070 + 1089 + 1108 + 1159 + 1184 + 1197) | Y140: =UnObr1!F103 -> 0 | AI140: =UnObr1!G103 -> 0
A141: 1095 | D141: 214000 | H141: ОБАВЕЗЕ ПО ОСНОВУ ОТПЛАТЕ ГЛАВНИЦЕ ЗА ФИНАНСИЈСКИ ЛИЗИНГ (1096) | Y141: =UnObr1!F104 -> 0 | AI141: =UnObr1!G104 -> 0
A142: 1096 | D142: 214100 | H142: Обавезе по основу отплате главнице зa финансијски лизинг | Y142: =UnObr1!F105 -> 0 | AI142: =UnObr1!G105 -> 0
A143: 1097 | D143: 215000 | H143: ОБАВЕЗЕ ПО ОСНОВУ ОТПЛАТА ГАРАНЦИЈА ПО КОМЕРЦИЈАЛНИМ ТРАНСАКЦИЈАМА (1098) | Y143: =UnObr1!F106 -> 0 | AI143: =UnObr1!G106 -> 0
A144: 1098 | D144: 215100 | H144: Обавезе по основу отплата гаранција по комерцијалним трансакцијама | Y144: =UnObr1!F107 -> 0 | AI144: =UnObr1!G107 -> 0
A145: 1099 | D145: 220000 | E145: 200000 | F145: 200000 | G145: 200000 | H145: КРАТКОРОЧНЕ ОБАВЕЗЕ (1100 + 1109 + 1116) | I145: ОБАВЕЗЕ (1070 + 1089 + 1108 + 1159 + 1184 + 1197) | J145: ОБАВЕЗЕ (1070 + 1089 + 1108 + 1159 + 1184 + 1197) | K145: ОБАВЕЗЕ (1070 + 1089 + 1108 + 1159 + 1184 + 1197) | L145: ОБАВЕЗЕ (1070 + 1089 + 1108 + 1159 + 1184 + 1197) | M145: ОБАВЕЗЕ (1070 + 1089 + 1108 + 1159 + 1184 + 1197) | N145: ОБАВЕЗЕ (1070 + 1089 + 1108 + 1159 + 1184 + 1197) | O145: ОБАВЕЗЕ (1070 + 1089 + 1108 + 1159 + 1184 + 1197) | P145: ОБАВЕЗЕ (1070 + 1089 + 1108 + 1159 + 1184 + 1197) | Q145: ОБАВЕЗЕ (1070 + 1089 + 1108 + 1159 + 1184 + 1197) | R145: ОБАВЕЗЕ (1070 + 1089 + 1108 + 1159 + 1184 + 1197) | S145: ОБАВЕЗЕ (1070 + 1089 + 1108 + 1159 + 1184 + 1197) | T145: ОБАВЕЗЕ (1070 + 1089 + 1108 + 1159 + 1184 + 1197) | U145: ОБАВЕЗЕ (1070 + 1089 + 1108 + 1159 + 1184 + 1197) | V145: ОБАВЕЗЕ (1070 + 1089 + 1108 + 1159 + 1184 + 1197) | W145: ОБАВЕЗЕ (1070 + 1089 + 1108 + 1159 + 1184 + 1197) | X145: ОБАВЕЗЕ (1070 + 1089 + 1108 + 1159 + 1184 + 1197) | Y145: =UnObr1!F108 -> 0 | AI145: =UnObr1!G108 -> 0
A146: 1100 | D146: 221000 | E146: 200000 | F146: 200000 | G146: 200000 | H146: КРАТКОРОЧНЕ ДОМАЋЕ ОБАВЕЗЕ (од 1101 до 1108) | I146: ОБАВЕЗЕ (1070 + 1089 + 1108 + 1159 + 1184 + 1197) | J146: ОБАВЕЗЕ (1070 + 1089 + 1108 + 1159 + 1184 + 1197) | K146: ОБАВЕЗЕ (1070 + 1089 + 1108 + 1159 + 1184 + 1197) | L146: ОБАВЕЗЕ (1070 + 1089 + 1108 + 1159 + 1184 + 1197) | M146: ОБАВЕЗЕ (1070 + 1089 + 1108 + 1159 + 1184 + 1197) | N146: ОБАВЕЗЕ (1070 + 1089 + 1108 + 1159 + 1184 + 1197) | O146: ОБАВЕЗЕ (1070 + 1089 + 1108 + 1159 + 1184 + 1197) | P146: ОБАВЕЗЕ (1070 + 1089 + 1108 + 1159 + 1184 + 1197) | Q146: ОБАВЕЗЕ (1070 + 1089 + 1108 + 1159 + 1184 + 1197) | R146: ОБАВЕЗЕ (1070 + 1089 + 1108 + 1159 + 1184 + 1197) | S146: ОБАВЕЗЕ (1070 + 1089 + 1108 + 1159 + 1184 + 1197) | T146: ОБАВЕЗЕ (1070 + 1089 + 1108 + 1159 + 1184 + 1197) | U146: ОБАВЕЗЕ (1070 + 1089 + 1108 + 1159 + 1184 + 1197) | V146: ОБАВЕЗЕ (1070 + 1089 + 1108 + 1159 + 1184 + 1197) | W146: ОБАВЕЗЕ (1070 + 1089 + 1108 + 1159 + 1184 + 1197) | X146: ОБАВЕЗЕ (1070 + 1089 + 1108 + 1159 + 1184 + 1197) | Y146: =UnObr1!F109 -> 0 | AI146: =UnObr1!G109 -> 0
A147: 1101 | D147: 221100 | E147: 200000 | F147: 200000 | G147: 200000 | H147: Краткорочне домаће обавезе по основу емитованих хартија од вредности, изузев акција | I147: ОБАВЕЗЕ (1070 + 1089 + 1108 + 1159 + 1184 + 1197) | J147: ОБАВЕЗЕ (1070 + 1089 + 1108 + 1159 + 1184 + 1197) | K147: ОБАВЕЗЕ (1070 + 1089 + 1108 + 1159 + 1184 + 1197) | L147: ОБАВЕЗЕ (1070 + 1089 + 1108 + 1159 + 1184 + 1197) | M147: ОБАВЕЗЕ (1070 + 1089 + 1108 + 1159 + 1184 + 1197) | N147: ОБАВЕЗЕ (1070 + 1089 + 1108 + 1159 + 1184 + 1197) | O147: ОБАВЕЗЕ (1070 + 1089 + 1108 + 1159 + 1184 + 1197) | P147: ОБАВЕЗЕ (1070 + 1089 + 1108 + 1159 + 1184 + 1197) | Q147: ОБАВЕЗЕ (1070 + 1089 + 1108 + 1159 + 1184 + 1197) | R147: ОБАВЕЗЕ (1070 + 1089 + 1108 + 1159 + 1184 + 1197) | S147: ОБАВЕЗЕ (1070 + 1089 + 1108 + 1159 + 1184 + 1197) | T147: ОБАВЕЗЕ (1070 + 1089 + 1108 + 1159 + 1184 + 1197) | U147: ОБАВЕЗЕ (1070 + 1089 + 1108 + 1159 + 1184 + 1197) | V147: ОБАВЕЗЕ (1070 + 1089 + 1108 + 1159 + 1184 + 1197) | W147: ОБАВЕЗЕ (1070 + 1089 + 1108 + 1159 + 1184 + 1197) | X147: ОБАВЕЗЕ (1070 + 1089 + 1108 + 1159 + 1184 + 1197) | Y147: =UnObr1!F110 -> 0 | AI147: =UnObr1!G110 -> 0
A148: 1102 | D148: 221200 | E148: 200000 | F148: 200000 | G148: 200000 | H148: Обавезе по основу краткорочних кредита од осталих нивоа власти | I148: ОБАВЕЗЕ (1070 + 1089 + 1108 + 1159 + 1184 + 1197) | J148: ОБАВЕЗЕ (1070 + 1089 + 1108 + 1159 + 1184 + 1197) | K148: ОБАВЕЗЕ (1070 + 1089 + 1108 + 1159 + 1184 + 1197) | L148: ОБАВЕЗЕ (1070 + 1089 + 1108 + 1159 + 1184 + 1197) | M148: ОБАВЕЗЕ (1070 + 1089 + 1108 + 1159 + 1184 + 1197) | N148: ОБАВЕЗЕ (1070 + 1089 + 1108 + 1159 + 1184 + 1197) | O148: ОБАВЕЗЕ (1070 + 1089 + 1108 + 1159 + 1184 + 1197) | P148: ОБАВЕЗЕ (1070 + 1089 + 1108 + 1159 + 1184 + 1197) | Q148: ОБАВЕЗЕ (1070 + 1089 + 1108 + 1159 + 1184 + 1197) | R148: ОБАВЕЗЕ (1070 + 1089 + 1108 + 1159 + 1184 + 1197) | S148: ОБАВЕЗЕ (1070 + 1089 + 1108 + 1159 + 1184 + 1197) | T148: ОБАВЕЗЕ (1070 + 1089 + 1108 + 1159 + 1184 + 1197) | U148: ОБАВЕЗЕ (1070 + 1089 + 1108 + 1159 + 1184 + 1197) | V148: ОБАВЕЗЕ (1070 + 1089 + 1108 + 1159 + 1184 + 1197) | W148: ОБАВЕЗЕ (1070 + 1089 + 1108 + 1159 + 1184 + 1197) | X148: ОБАВЕЗЕ (1070 + 1089 + 1108 + 1159 + 1184 + 1197) | Y148: =UnObr1!F111 -> 0 | AI148: =UnObr1!G111 -> 0
A149: 1103 | D149: 221300 | E149: 200000 | F149: 200000 | G149: 200000 | H149: Обавезе по основу краткорочних кредита од домаћих јавних финансијских институција | I149: ОБАВЕЗЕ (1070 + 1089 + 1108 + 1159 + 1184 + 1197) | J149: ОБАВЕЗЕ (1070 + 1089 + 1108 + 1159 + 1184 + 1197) | K149: ОБАВЕЗЕ (1070 + 1089 + 1108 + 1159 + 1184 + 1197) | L149: ОБАВЕЗЕ (1070 + 1089 + 1108 + 1159 + 1184 + 1197) | M149: ОБАВЕЗЕ (1070 + 1089 + 1108 + 1159 + 1184 + 1197) | N149: ОБАВЕЗЕ (1070 + 1089 + 1108 + 1159 + 1184 + 1197) | O149: ОБАВЕЗЕ (1070 + 1089 + 1108 + 1159 + 1184 + 1197) | P149: ОБАВЕЗЕ (1070 + 1089 + 1108 + 1159 + 1184 + 1197) | Q149: ОБАВЕЗЕ (1070 + 1089 + 1108 + 1159 + 1184 + 1197) | R149: ОБАВЕЗЕ (1070 + 1089 + 1108 + 1159 + 1184 + 1197) | S149: ОБАВЕЗЕ (1070 + 1089 + 1108 + 1159 + 1184 + 1197) | T149: ОБАВЕЗЕ (1070 + 1089 + 1108 + 1159 + 1184 + 1197) | U149: ОБАВЕЗЕ (1070 + 1089 + 1108 + 1159 + 1184 + 1197) | V149: ОБАВЕЗЕ (1070 + 1089 + 1108 + 1159 + 1184 + 1197) | W149: ОБАВЕЗЕ (1070 + 1089 + 1108 + 1159 + 1184 + 1197) | X149: ОБАВЕЗЕ (1070 + 1089 + 1108 + 1159 + 1184 + 1197) | Y149: =UnObr1!F112 -> 0 | AI149: =UnObr1!G112 -> 0
A150: 1104 | D150: 221400 | E150: 200000 | F150: 200000 | G150: 200000 | H150: Обавезе по основу краткорочних кредита од домаћих пословних банака | I150: ОБАВЕЗЕ (1070 + 1089 + 1108 + 1159 + 1184 + 1197) | J150: ОБАВЕЗЕ (1070 + 1089 + 1108 + 1159 + 1184 + 1197) | K150: ОБАВЕЗЕ (1070 + 1089 + 1108 + 1159 + 1184 + 1197) | L150: ОБАВЕЗЕ (1070 + 1089 + 1108 + 1159 + 1184 + 1197) | M150: ОБАВЕЗЕ (1070 + 1089 + 1108 + 1159 + 1184 + 1197) | N150: ОБАВЕЗЕ (1070 + 1089 + 1108 + 1159 + 1184 + 1197) | O150: ОБАВЕЗЕ (1070 + 1089 + 1108 + 1159 + 1184 + 1197) | P150: ОБАВЕЗЕ (1070 + 1089 + 1108 + 1159 + 1184 + 1197) | Q150: ОБАВЕЗЕ (1070 + 1089 + 1108 + 1159 + 1184 + 1197) | R150: ОБАВЕЗЕ (1070 + 1089 + 1108 + 1159 + 1184 + 1197) | S150: ОБАВЕЗЕ (1070 + 1089 + 1108 + 1159 + 1184 + 1197) | T150: ОБАВЕЗЕ (1070 + 1089 + 1108 + 1159 + 1184 + 1197) | U150: ОБАВЕЗЕ (1070 + 1089 + 1108 + 1159 + 1184 + 1197) | V150: ОБАВЕЗЕ (1070 + 1089 + 1108 + 1159 + 1184 + 1197) | W150: ОБАВЕЗЕ (1070 + 1089 + 1108 + 1159 + 1184 + 1197) | X150: ОБАВЕЗЕ (1070 + 1089 + 1108 + 1159 + 1184 + 1197) | Y150: =UnObr1!F113 -> 0 | AI150: =UnObr1!G113 -> 0
A151: Ознака ОП | D151: Број конта | H151: Опис | Y151: Износ
Y153: Претходна година | AI153: Текућа година
A155: 1 | D155: 2 | H155: 3 | Y155: 4 | AH155: 5 | AI155: 5
A156: 1105 | D156: 221500 | E156: 200000 | F156: 200000 | G156: 200000 | H156: Обавезе по основу краткорочних кредита од осталих домаћих кредитора | I156: ОБАВЕЗЕ (1070 + 1089 + 1108 + 1159 + 1184 + 1197) | J156: ОБАВЕЗЕ (1070 + 1089 + 1108 + 1159 + 1184 + 1197) | K156: ОБАВЕЗЕ (1070 + 1089 + 1108 + 1159 + 1184 + 1197) | L156: ОБАВЕЗЕ (1070 + 1089 + 1108 + 1159 + 1184 + 1197) | M156: ОБАВЕЗЕ (1070 + 1089 + 1108 + 1159 + 1184 + 1197) | N156: ОБАВЕЗЕ (1070 + 1089 + 1108 + 1159 + 1184 + 1197) | O156: ОБАВЕЗЕ (1070 + 1089 + 1108 + 1159 + 1184 + 1197) | P156: ОБАВЕЗЕ (1070 + 1089 + 1108 + 1159 + 1184 + 1197) | Q156: ОБАВЕЗЕ (1070 + 1089 + 1108 + 1159 + 1184 + 1197) | R156: ОБАВЕЗЕ (1070 + 1089 + 1108 + 1159 + 1184 + 1197) | S156: ОБАВЕЗЕ (1070 + 1089 + 1108 + 1159 + 1184 + 1197) | T156: ОБАВЕЗЕ (1070 + 1089 + 1108 + 1159 + 1184 + 1197) | U156: ОБАВЕЗЕ (1070 + 1089 + 1108 + 1159 + 1184 + 1197) | V156: ОБАВЕЗЕ (1070 + 1089 + 1108 + 1159 + 1184 + 1197) | W156: ОБАВЕЗЕ (1070 + 1089 + 1108 + 1159 + 1184 + 1197) | X156: ОБАВЕЗЕ (1070 + 1089 + 1108 + 1159 + 1184 + 1197) | Y156: =UnObr1!F114 -> 0 | AI156: =UnObr1!G114 -> 0
A157: 1106 | D157: 221600 | E157: 200000 | F157: 200000 | G157: 200000 | H157: Обавезе по основу краткорочних кредита од домаћинстава у земљи | I157: ОБАВЕЗЕ (1070 + 1089 + 1108 + 1159 + 1184 + 1197) | J157: ОБАВЕЗЕ (1070 + 1089 + 1108 + 1159 + 1184 + 1197) | K157: ОБАВЕЗЕ (1070 + 1089 + 1108 + 1159 + 1184 + 1197) | L157: ОБАВЕЗЕ (1070 + 1089 + 1108 + 1159 + 1184 + 1197) | M157: ОБАВЕЗЕ (1070 + 1089 + 1108 + 1159 + 1184 + 1197) | N157: ОБАВЕЗЕ (1070 + 1089 + 1108 + 1159 + 1184 + 1197) | O157: ОБАВЕЗЕ (1070 + 1089 + 1108 + 1159 + 1184 + 1197) | P157: ОБАВЕЗЕ (1070 + 1089 + 1108 + 1159 + 1184 + 1197) | Q157: ОБАВЕЗЕ (1070 + 1089 + 1108 + 1159 + 1184 + 1197) | R157: ОБАВЕЗЕ (1070 + 1089 + 1108 + 1159 + 1184 + 1197) | S157: ОБАВЕЗЕ (1070 + 1089 + 1108 + 1159 + 1184 + 1197) | T157: ОБАВЕЗЕ (1070 + 1089 + 1108 + 1159 + 1184 + 1197) | U157: ОБАВЕЗЕ (1070 + 1089 + 1108 + 1159 + 1184 + 1197) | V157: ОБАВЕЗЕ (1070 + 1089 + 1108 + 1159 + 1184 + 1197) | W157: ОБАВЕЗЕ (1070 + 1089 + 1108 + 1159 + 1184 + 1197) | X157: ОБАВЕЗЕ (1070 + 1089 + 1108 + 1159 + 1184 + 1197) | Y157: =UnObr1!F115 -> 0 | AI157: =UnObr1!G115 -> 0
A158: 1107 | D158: 221700 | E158: 200000 | F158: 200000 | G158: 200000 | H158: Краткорочне обавезе по основу домаћих финансијских деривата | I158: ОБАВЕЗЕ (1070 + 1089 + 1108 + 1159 + 1184 + 1197) | J158: ОБАВЕЗЕ (1070 + 1089 + 1108 + 1159 + 1184 + 1197) | K158: ОБАВЕЗЕ (1070 + 1089 + 1108 + 1159 + 1184 + 1197) | L158: ОБАВЕЗЕ (1070 + 1089 + 1108 + 1159 + 1184 + 1197) | M158: ОБАВЕЗЕ (1070 + 1089 + 1108 + 1159 + 1184 + 1197) | N158: ОБАВЕЗЕ (1070 + 1089 + 1108 + 1159 + 1184 + 1197) | O158: ОБАВЕЗЕ (1070 + 1089 + 1108 + 1159 + 1184 + 1197) | P158: ОБАВЕЗЕ (1070 + 1089 + 1108 + 1159 + 1184 + 1197) | Q158: ОБАВЕЗЕ (1070 + 1089 + 1108 + 1159 + 1184 + 1197) | R158: ОБАВЕЗЕ (1070 + 1089 + 1108 + 1159 + 1184 + 1197) | S158: ОБАВЕЗЕ (1070 + 1089 + 1108 + 1159 + 1184 + 1197) | T158: ОБАВЕЗЕ (1070 + 1089 + 1108 + 1159 + 1184 + 1197) | U158: ОБАВЕЗЕ (1070 + 1089 + 1108 + 1159 + 1184 + 1197) | V158: ОБАВЕЗЕ (1070 + 1089 + 1108 + 1159 + 1184 + 1197) | W158: ОБАВЕЗЕ (1070 + 1089 + 1108 + 1159 + 1184 + 1197) | X158: ОБАВЕЗЕ (1070 + 1089 + 1108 + 1159 + 1184 + 1197) | Y158: =UnObr1!F116 -> 0 | AI158: =UnObr1!G116 -> 0
A159: 1108 | D159: 221800 | E159: 200000 | F159: 200000 | G159: 200000 | H159: Краткорочне обавезе по основу домаћих меница | I159: ОБАВЕЗЕ (1070 + 1089 + 1108 + 1159 + 1184 + 1197) | J159: ОБАВЕЗЕ (1070 + 1089 + 1108 + 1159 + 1184 + 1197) | K159: ОБАВЕЗЕ (1070 + 1089 + 1108 + 1159 + 1184 + 1197) | L159: ОБАВЕЗЕ (1070 + 1089 + 1108 + 1159 + 1184 + 1197) | M159: ОБАВЕЗЕ (1070 + 1089 + 1108 + 1159 + 1184 + 1197) | N159: ОБАВЕЗЕ (1070 + 1089 + 1108 + 1159 + 1184 + 1197) | O159: ОБАВЕЗЕ (1070 + 1089 + 1108 + 1159 + 1184 + 1197) | P159: ОБАВЕЗЕ (1070 + 1089 + 1108 + 1159 + 1184 + 1197) | Q159: ОБАВЕЗЕ (1070 + 1089 + 1108 + 1159 + 1184 + 1197) | R159: ОБАВЕЗЕ (1070 + 1089 + 1108 + 1159 + 1184 + 1197) | S159: ОБАВЕЗЕ (1070 + 1089 + 1108 + 1159 + 1184 + 1197) | T159: ОБАВЕЗЕ (1070 + 1089 + 1108 + 1159 + 1184 + 1197) | U159: ОБАВЕЗЕ (1070 + 1089 + 1108 + 1159 + 1184 + 1197) | V159: ОБАВЕЗЕ (1070 + 1089 + 1108 + 1159 + 1184 + 1197) | W159: ОБАВЕЗЕ (1070 + 1089 + 1108 + 1159 + 1184 + 1197) | X159: ОБАВЕЗЕ (1070 + 1089 + 1108 + 1159 + 1184 + 1197) | Y159: =UnObr1!F117 -> 0 | AI159: =UnObr1!G117 -> 0
A160: 1109 | D160: 222000 | E160: 200000 | F160: 200000 | G160: 200000 | H160: КРАТКОРОЧНЕ СТРАНЕ ОБАВЕЗЕ (од 1110 до 1115) | I160: ОБАВЕЗЕ (1070 + 1089 + 1108 + 1159 + 1184 + 1197) | J160: ОБАВЕЗЕ (1070 + 1089 + 1108 + 1159 + 1184 + 1197) | K160: ОБАВЕЗЕ (1070 + 1089 + 1108 + 1159 + 1184 + 1197) | L160: ОБАВЕЗЕ (1070 + 1089 + 1108 + 1159 + 1184 + 1197) | M160: ОБАВЕЗЕ (1070 + 1089 + 1108 + 1159 + 1184 + 1197) | N160: ОБАВЕЗЕ (1070 + 1089 + 1108 + 1159 + 1184 + 1197) | O160: ОБАВЕЗЕ (1070 + 1089 + 1108 + 1159 + 1184 + 1197) | P160: ОБАВЕЗЕ (1070 + 1089 + 1108 + 1159 + 1184 + 1197) | Q160: ОБАВЕЗЕ (1070 + 1089 + 1108 + 1159 + 1184 + 1197) | R160: ОБАВЕЗЕ (1070 + 1089 + 1108 + 1159 + 1184 + 1197) | S160: ОБАВЕЗЕ (1070 + 1089 + 1108 + 1159 + 1184 + 1197) | T160: ОБАВЕЗЕ (1070 + 1089 + 1108 + 1159 + 1184 + 1197) | U160: ОБАВЕЗЕ (1070 + 1089 + 1108 + 1159 + 1184 + 1197) | V160: ОБАВЕЗЕ (1070 + 1089 + 1108 + 1159 + 1184 + 1197) | W160: ОБАВЕЗЕ (1070 + 1089 + 1108 + 1159 + 1184 + 1197) | X160: ОБАВЕЗЕ (1070 + 1089 + 1108 + 1159 + 1184 + 1197) | Y160: =UnObr1!F118 -> 0 | AI160: =UnObr1!G118 -> 0
A161: 1110 | D161: 222100 | E161: 200000 | F161: 200000 | G161: 200000 | H161: Краткорочне стране обавезе по основу емитованих хартија од вредности, изузев акција | I161: ОБАВЕЗЕ (1070 + 1089 + 1108 + 1159 + 1184 + 1197) | J161: ОБАВЕЗЕ (1070 + 1089 + 1108 + 1159 + 1184 + 1197) | K161: ОБАВЕЗЕ (1070 + 1089 + 1108 + 1159 + 1184 + 1197) | L161: ОБАВЕЗЕ (1070 + 1089 + 1108 + 1159 + 1184 + 1197) | M161: ОБАВЕЗЕ (1070 + 1089 + 1108 + 1159 + 1184 + 1197) | N161: ОБАВЕЗЕ (1070 + 1089 + 1108 + 1159 + 1184 + 1197) | O161: ОБАВЕЗЕ (1070 + 1089 + 1108 + 1159 + 1184 + 1197) | P161: ОБАВЕЗЕ (1070 + 1089 + 1108 + 1159 + 1184 + 1197) | Q161: ОБАВЕЗЕ (1070 + 1089 + 1108 + 1159 + 1184 + 1197) | R161: ОБАВЕЗЕ (1070 + 1089 + 1108 + 1159 + 1184 + 1197) | S161: ОБАВЕЗЕ (1070 + 1089 + 1108 + 1159 + 1184 + 1197) | T161: ОБАВЕЗЕ (1070 + 1089 + 1108 + 1159 + 1184 + 1197) | U161: ОБАВЕЗЕ (1070 + 1089 + 1108 + 1159 + 1184 + 1197) | V161: ОБАВЕЗЕ (1070 + 1089 + 1108 + 1159 + 1184 + 1197) | W161: ОБАВЕЗЕ (1070 + 1089 + 1108 + 1159 + 1184 + 1197) | X161: ОБАВЕЗЕ (1070 + 1089 + 1108 + 1159 + 1184 + 1197) | Y161: =UnObr1!F119 -> 0 | AI161: =UnObr1!G119 -> 0
A162: 1111 | D162: 222200 | E162: 222300 | F162: 222300 | G162: 222300 | H162: Обавезе по основу краткорочних кредита од страних влада | I162: Обавезе по основу краткорочних кредита од мултилатералних институција | J162: Обавезе по основу краткорочних кредита од мултилатералних институција | K162: Обавезе по основу краткорочних кредита од мултилатералних институција | L162: Обавезе по основу краткорочних кредита од мултилатералних институција | M162: Обавезе по основу краткорочних кредита од мултилатералних институција | N162: Обавезе по основу краткорочних кредита од мултилатералних институција | O162: Обавезе по основу краткорочних кредита од мултилатералних институција | P162: Обавезе по основу краткорочних кредита од мултилатералних институција | Q162: Обавезе по основу краткорочних кредита од мултилатералних институција | R162: Обавезе по основу краткорочних кредита од мултилатералних институција | S162: Обавезе по основу краткорочних кредита од мултилатералних институција | T162: Обавезе по основу краткорочних кредита од мултилатералних институција | U162: Обавезе по основу краткорочних кредита од мултилатералних институција | V162: Обавезе по основу краткорочних кредита од мултилатералних институција | W162: Обавезе по основу краткорочних кредита од мултилатералних институција | X162: Обавезе по основу краткорочних кредита од мултилатералних институција | Y162: =UnObr1!F120 -> 0 | AI162: =UnObr1!G120 -> 0
A163: 1112 | D163: 222300 | E163: 222300 | F163: 222300 | G163: 222300 | H163: Обавезе по основу краткорочних кредита од мултилатералних институција | I163: Обавезе по основу краткорочних кредита од мултилатералних институција | J163: Обавезе по основу краткорочних кредита од мултилатералних институција | K163: Обавезе по основу краткорочних кредита од мултилатералних институција | L163: Обавезе по основу краткорочних кредита од мултилатералних институција | M163: Обавезе по основу краткорочних кредита од мултилатералних институција | N163: Обавезе по основу краткорочних кредита од мултилатералних институција | O163: Обавезе по основу краткорочних кредита од мултилатералних институција | P163: Обавезе по основу краткорочних кредита од мултилатералних институција | Q163: Обавезе по основу краткорочних кредита од мултилатералних институција | R163: Обавезе по основу краткорочних кредита од мултилатералних институција | S163: Обавезе по основу краткорочних кредита од мултилатералних институција | T163: Обавезе по основу краткорочних кредита од мултилатералних институција | U163: Обавезе по основу краткорочних кредита од мултилатералних институција | V163: Обавезе по основу краткорочних кредита од мултилатералних институција | W163: Обавезе по основу краткорочних кредита од мултилатералних институција | X163: Обавезе по основу краткорочних кредита од мултилатералних институција | Y163: =UnObr1!F121 -> 0 | AI163: =UnObr1!G121 -> 0
A164: 1113 | D164: 222400 | E164: 222300 | F164: 222300 | G164: 222300 | H164: Обавезе по основу краткорочних кредита од страних пословних банака | I164: Обавезе по основу краткорочних кредита од мултилатералних институција | J164: Обавезе по основу краткорочних кредита од мултилатералних институција | K164: Обавезе по основу краткорочних кредита од мултилатералних институција | L164: Обавезе по основу краткорочних кредита од мултилатералних институција | M164: Обавезе по основу краткорочних кредита од мултилатералних институција | N164: Обавезе по основу краткорочних кредита од мултилатералних институција | O164: Обавезе по основу краткорочних кредита од мултилатералних институција | P164: Обавезе по основу краткорочних кредита од мултилатералних институција | Q164: Обавезе по основу краткорочних кредита од мултилатералних институција | R164: Обавезе по основу краткорочних кредита од мултилатералних институција | S164: Обавезе по основу краткорочних кредита од мултилатералних институција | T164: Обавезе по основу краткорочних кредита од мултилатералних институција | U164: Обавезе по основу краткорочних кредита од мултилатералних институција | V164: Обавезе по основу краткорочних кредита од мултилатералних институција | W164: Обавезе по основу краткорочних кредита од мултилатералних институција | X164: Обавезе по основу краткорочних кредита од мултилатералних институција | Y164: =UnObr1!F122 -> 0 | AI164: =UnObr1!G122 -> 0
A165: 1114 | D165: 222500 | E165: 222300 | F165: 222300 | G165: 222300 | H165: Обавезе по основу краткорочних кредита од осталих страних кредитора | I165: Обавезе по основу краткорочних кредита од мултилатералних институција | J165: Обавезе по основу краткорочних кредита од мултилатералних институција | K165: Обавезе по основу краткорочних кредита од мултилатералних институција | L165: Обавезе по основу краткорочних кредита од мултилатералних институција | M165: Обавезе по основу краткорочних кредита од мултилатералних институција | N165: Обавезе по основу краткорочних кредита од мултилатералних институција | O165: Обавезе по основу краткорочних кредита од мултилатералних институција | P165: Обавезе по основу краткорочних кредита од мултилатералних институција | Q165: Обавезе по основу краткорочних кредита од мултилатералних институција | R165: Обавезе по основу краткорочних кредита од мултилатералних институција | S165: Обавезе по основу краткорочних кредита од мултилатералних институција | T165: Обавезе по основу краткорочних кредита од мултилатералних институција | U165: Обавезе по основу краткорочних кредита од мултилатералних институција | V165: Обавезе по основу краткорочних кредита од мултилатералних институција | W165: Обавезе по основу краткорочних кредита од мултилатералних институција | X165: Обавезе по основу краткорочних кредита од мултилатералних институција | Y165: =UnObr1!F123 -> 0 | AI165: =UnObr1!G123 -> 0
A166: 1115 | D166: 222600 | E166: 222300 | F166: 222300 | G166: 222300 | H166: Краткорочне обавезе по основу страних финансијских деривата | I166: Обавезе по основу краткорочних кредита од мултилатералних институција | J166: Обавезе по основу краткорочних кредита од мултилатералних институција | K166: Обавезе по основу краткорочних кредита од мултилатералних институција | L166: Обавезе по основу краткорочних кредита од мултилатералних институција | M166: Обавезе по основу краткорочних кредита од мултилатералних институција | N166: Обавезе по основу краткорочних кредита од мултилатералних институција | O166: Обавезе по основу краткорочних кредита од мултилатералних институција | P166: Обавезе по основу краткорочних кредита од мултилатералних институција | Q166: Обавезе по основу краткорочних кредита од мултилатералних институција | R166: Обавезе по основу краткорочних кредита од мултилатералних институција | S166: Обавезе по основу краткорочних кредита од мултилатералних институција | T166: Обавезе по основу краткорочних кредита од мултилатералних институција | U166: Обавезе по основу краткорочних кредита од мултилатералних институција | V166: Обавезе по основу краткорочних кредита од мултилатералних институција | W166: Обавезе по основу краткорочних кредита од мултилатералних институција | X166: Обавезе по основу краткорочних кредита од мултилатералних институција | Y166: =UnObr1!F124 -> 0 | AI166: =UnObr1!G124 -> 0
A167: 1116 | D167: 223000 | E167: 222300 | F167: 222300 | G167: 222300 | H167: КРАТКОРОЧНЕ ОБАВЕЗЕ ПО ОСНОВУ ГАРАНЦИЈА (1117) | I167: Обавезе по основу краткорочних кредита од мултилатералних институција | J167: Обавезе по основу краткорочних кредита од мултилатералних институција | K167: Обавезе по основу краткорочних кредита од мултилатералних институција | L167: Обавезе по основу краткорочних кредита од мултилатералних институција | M167: Обавезе по основу краткорочних кредита од мултилатералних институција | N167: Обавезе по основу краткорочних кредита од мултилатералних институција | O167: Обавезе по основу краткорочних кредита од мултилатералних институција | P167: Обавезе по основу краткорочних кредита од мултилатералних институција | Q167: Обавезе по основу краткорочних кредита од мултилатералних институција | R167: Обавезе по основу краткорочних кредита од мултилатералних институција | S167: Обавезе по основу краткорочних кредита од мултилатералних институција | T167: Обавезе по основу краткорочних кредита од мултилатералних институција | U167: Обавезе по основу краткорочних кредита од мултилатералних институција | V167: Обавезе по основу краткорочних кредита од мултилатералних институција | W167: Обавезе по основу краткорочних кредита од мултилатералних институција | X167: Обавезе по основу краткорочних кредита од мултилатералних институција | Y167: =UnObr1!F125 -> 0 | AI167: =UnObr1!G125 -> 0
A168: 1117 | D168: 223100 | E168: 222300 | F168: 222300 | G168: 222300 | H168: Краткорочне обавезе по основу гаранција | I168: Обавезе по основу краткорочних кредита од мултилатералних институција | J168: Обавезе по основу краткорочних кредита од мултилатералних институција | K168: Обавезе по основу краткорочних кредита од мултилатералних институција | L168: Обавезе по основу краткорочних кредита од мултилатералних институција | M168: Обавезе по основу краткорочних кредита од мултилатералних институција | N168: Обавезе по основу краткорочних кредита од мултилатералних институција | O168: Обавезе по основу краткорочних кредита од мултилатералних институција | P168: Обавезе по основу краткорочних кредита од мултилатералних институција | Q168: Обавезе по основу краткорочних кредита од мултилатералних институција | R168: Обавезе по основу краткорочних кредита од мултилатералних институција | S168: Обавезе по основу краткорочних кредита од мултилатералних институција | T168: Обавезе по основу краткорочних кредита од мултилатералних институција | U168: Обавезе по основу краткорочних кредита од мултилатералних институција | V168: Обавезе по основу краткорочних кредита од мултилатералних институција | W168: Обавезе по основу краткорочних кредита од мултилатералних институција | X168: Обавезе по основу краткорочних кредита од мултилатералних институција | Y168: =UnObr1!F126 -> 0 | AI168: =UnObr1!G126 -> 0
A169: 1118 | D169: 230000 | E169: 222300 | F169: 222300 | G169: 222300 | H169: ОБАВЕЗЕ ПО ОСНОВУ РАСХОДА ЗА ЗАПОСЛЕНЕ (1119 + 1125 + 1131 + 1137 + 1141+ 1147 + 1153 + 1161 + 1167) | I169: Обавезе по основу краткорочних кредита од мултилатералних институција | J169: Обавезе по основу краткорочних кредита од мултилатералних институција | K169: Обавезе по основу краткорочних кредита од мултилатералних институција | L169: Обавезе по основу краткорочних кредита од мултилатералних институција | M169: Обавезе по основу краткорочних кредита од мултилатералних институција | N169: Обавезе по основу краткорочних кредита од мултилатералних институција | O169: Обавезе по основу краткорочних кредита од мултилатералних институција | P169: Обавезе по основу краткорочних кредита од мултилатералних институција | Q169: Обавезе по основу краткорочних кредита од мултилатералних институција | R169: Обавезе по основу краткорочних кредита од мултилатералних институција | S169: Обавезе по основу краткорочних кредита од мултилатералних институција | T169: Обавезе по основу краткорочних кредита од мултилатералних институција | U169: Обавезе по основу краткорочних кредита од мултилатералних институција | V169: Обавезе по основу краткорочних кредита од мултилатералних институција | W169: Обавезе по основу краткорочних кредита од мултилатералних институција | X169: Обавезе по основу краткорочних кредита од мултилатералних институција | Y169: =UnObr1!F127 -> 1371 | AI169: =UnObr1!G127 -> 3918
A170: 1119 | D170: 231000 | E170: 222300 | F170: 222300 | G170: 222300 | H170: ОБАВЕЗЕ ЗА ПЛАТЕ И ДОДАТКЕ (од 1120 до 1124) | I170: Обавезе по основу краткорочних кредита од мултилатералних институција | J170: Обавезе по основу краткорочних кредита од мултилатералних институција | K170: Обавезе по основу краткорочних кредита од мултилатералних институција | L170: Обавезе по основу краткорочних кредита од мултилатералних институција | M170: Обавезе по основу краткорочних кредита од мултилатералних институција | N170: Обавезе по основу краткорочних кредита од мултилатералних институција | O170: Обавезе по основу краткорочних кредита од мултилатералних институција | P170: Обавезе по основу краткорочних кредита од мултилатералних институција | Q170: Обавезе по основу краткорочних кредита од мултилатералних институција | R170: Обавезе по основу краткорочних кредита од мултилатералних институција | S170: Обавезе по основу краткорочних кредита од мултилатералних институција | T170: Обавезе по основу краткорочних кредита од мултилатералних институција | U170: Обавезе по основу краткорочних кредита од мултилатералних институција | V170: Обавезе по основу краткорочних кредита од мултилатералних институција | W170: Обавезе по основу краткорочних кредита од мултилатералних институција | X170: Обавезе по основу краткорочних кредита од мултилатералних институција | Y170: =UnObr1!F128 -> 0 | AI170: =UnObr1!G128 -> 2324
A171: 1120 | D171: 231100 | E171: 222300 | F171: 222300 | G171: 222300 | H171: Обавезе за нето плате и додатке | I171: Обавезе по основу краткорочних кредита од мултилатералних институција | J171: Обавезе по основу краткорочних кредита од мултилатералних институција | K171: Обавезе по основу краткорочних кредита од мултилатералних институција | L171: Обавезе по основу краткорочних кредита од мултилатералних институција | M171: Обавезе по основу краткорочних кредита од мултилатералних институција | N171: Обавезе по основу краткорочних кредита од мултилатералних институција | O171: Обавезе по основу краткорочних кредита од мултилатералних институција | P171: Обавезе по основу краткорочних кредита од мултилатералних институција | Q171: Обавезе по основу краткорочних кредита од мултилатералних институција | R171: Обавезе по основу краткорочних кредита од мултилатералних институција | S171: Обавезе по основу краткорочних кредита од мултилатералних институција | T171: Обавезе по основу краткорочних кредита од мултилатералних институција | U171: Обавезе по основу краткорочних кредита од мултилатералних институција | V171: Обавезе по основу краткорочних кредита од мултилатералних институција | W171: Обавезе по основу краткорочних кредита од мултилатералних институција | X171: Обавезе по основу краткорочних кредита од мултилатералних институција | Y171: =UnObr1!F129 -> 0 | AI171: =UnObr1!G129 -> 1629
A172: 1121 | D172: 231200 | E172: 222300 | F172: 222300 | G172: 222300 | H172: Обавезе по основу пореза на плате и додатке | I172: Обавезе по основу краткорочних кредита од мултилатералних институција | J172: Обавезе по основу краткорочних кредита од мултилатералних институција | K172: Обавезе по основу краткорочних кредита од мултилатералних институција | L172: Обавезе по основу краткорочних кредита од мултилатералних институција | M172: Обавезе по основу краткорочних кредита од мултилатералних институција | N172: Обавезе по основу краткорочних кредита од мултилатералних институција | O172: Обавезе по основу краткорочних кредита од мултилатералних институција | P172: Обавезе по основу краткорочних кредита од мултилатералних институција | Q172: Обавезе по основу краткорочних кредита од мултилатералних институција | R172: Обавезе по основу краткорочних кредита од мултилатералних институција | S172: Обавезе по основу краткорочних кредита од мултилатералних институција | T172: Обавезе по основу краткорочних кредита од мултилатералних институција | U172: Обавезе по основу краткорочних кредита од мултилатералних институција | V172: Обавезе по основу краткорочних кредита од мултилатералних институција | W172: Обавезе по основу краткорочних кредита од мултилатералних институција | X172: Обавезе по основу краткорочних кредита од мултилатералних институција | Y172: =UnObr1!F130 -> 0 | AI172: =UnObr1!G130 -> 233
A173: 1122 | D173: 231300 | E173: 222300 | F173: 222300 | G173: 222300 | H173: Обавезе по основу доприноса за пензијско и инвалидско осигурање на плате и додатке | I173: Обавезе по основу краткорочних кредита од мултилатералних институција | J173: Обавезе по основу краткорочних кредита од мултилатералних институција | K173: Обавезе по основу краткорочних кредита од мултилатералних институција | L173: Обавезе по основу краткорочних кредита од мултилатералних институција | M173: Обавезе по основу краткорочних кредита од мултилатералних институција | N173: Обавезе по основу краткорочних кредита од мултилатералних институција | O173: Обавезе по основу краткорочних кредита од мултилатералних институција | P173: Обавезе по основу краткорочних кредита од мултилатералних институција | Q173: Обавезе по основу краткорочних кредита од мултилатералних институција | R173: Обавезе по основу краткорочних кредита од мултилатералних институција | S173: Обавезе по основу краткорочних кредита од мултилатералних институција | T173: Обавезе по основу краткорочних кредита од мултилатералних институција | U173: Обавезе по основу краткорочних кредита од мултилатералних институција | V173: Обавезе по основу краткорочних кредита од мултилатералних институција | W173: Обавезе по основу краткорочних кредита од мултилатералних институција | X173: Обавезе по основу краткорочних кредита од мултилатералних институција | Y173: =UnObr1!F131 -> 0 | AI173: =UnObr1!G131 -> 325
A174: 1123 | D174: 231400 | E174: 222300 | F174: 222300 | G174: 222300 | H174: Обавезе по основу доприноса за здравствено осигурање на плате и додатке | I174: Обавезе по основу краткорочних кредита од мултилатералних институција | J174: Обавезе по основу краткорочних кредита од мултилатералних институција | K174: Обавезе по основу краткорочних кредита од мултилатералних институција | L174: Обавезе по основу краткорочних кредита од мултилатералних институција | M174: Обавезе по основу краткорочних кредита од мултилатералних институција | N174: Обавезе по основу краткорочних кредита од мултилатералних институција | O174: Обавезе по основу краткорочних кредита од мултилатералних институција | P174: Обавезе по основу краткорочних кредита од мултилатералних институција | Q174: Обавезе по основу краткорочних кредита од мултилатералних институција | R174: Обавезе по основу краткорочних кредита од мултилатералних институција | S174: Обавезе по основу краткорочних кредита од мултилатералних институција | T174: Обавезе по основу краткорочних кредита од мултилатералних институција | U174: Обавезе по основу краткорочних кредита од мултилатералних институција | V174: Обавезе по основу краткорочних кредита од мултилатералних институција | W174: Обавезе по основу краткорочних кредита од мултилатералних институција | X174: Обавезе по основу краткорочних кредита од мултилатералних институција | Y174: =UnObr1!F132 -> 0 | AI174: =UnObr1!G132 -> 120
A175: 1124 | D175: 231500 | E175: 222300 | F175: 222300 | G175: 222300 | H175: Обавезе по основу доприноса за незапосленост на плате и додатке | I175: Обавезе по основу краткорочних кредита од мултилатералних институција | J175: Обавезе по основу краткорочних кредита од мултилатералних институција | K175: Обавезе по основу краткорочних кредита од мултилатералних институција | L175: Обавезе по основу краткорочних кредита од мултилатералних институција | M175: Обавезе по основу краткорочних кредита од мултилатералних институција | N175: Обавезе по основу краткорочних кредита од мултилатералних институција | O175: Обавезе по основу краткорочних кредита од мултилатералних институција | P175: Обавезе по основу краткорочних кредита од мултилатералних институција | Q175: Обавезе по основу краткорочних кредита од мултилатералних институција | R175: Обавезе по основу краткорочних кредита од мултилатералних институција | S175: Обавезе по основу краткорочних кредита од мултилатералних институција | T175: Обавезе по основу краткорочних кредита од мултилатералних институција | U175: Обавезе по основу краткорочних кредита од мултилатералних институција | V175: Обавезе по основу краткорочних кредита од мултилатералних институција | W175: Обавезе по основу краткорочних кредита од мултилатералних институција | X175: Обавезе по основу краткорочних кредита од мултилатералних институција | Y175: =UnObr1!F133 -> 0 | AI175: =UnObr1!G133 -> 17
A176: 1125 | D176: 232000 | E176: 222300 | F176: 222300 | G176: 222300 | H176: ОБАВЕЗЕ ПО ОСНОВУ НАКНАДА ЗАПОСЛЕНИМА (од 1126 до 1130) | I176: Обавезе по основу краткорочних кредита од мултилатералних институција | J176: Обавезе по основу краткорочних кредита од мултилатералних институција | K176: Обавезе по основу краткорочних кредита од мултилатералних институција | L176: Обавезе по основу краткорочних кредита од мултилатералних институција | M176: Обавезе по основу краткорочних кредита од мултилатералних институција | N176: Обавезе по основу краткорочних кредита од мултилатералних институција | O176: Обавезе по основу краткорочних кредита од мултилатералних институција | P176: Обавезе по основу краткорочних кредита од мултилатералних институција | Q176: Обавезе по основу краткорочних кредита од мултилатералних институција | R176: Обавезе по основу краткорочних кредита од мултилатералних институција | S176: Обавезе по основу краткорочних кредита од мултилатералних институција | T176: Обавезе по основу краткорочних кредита од мултилатералних институција | U176: Обавезе по основу краткорочних кредита од мултилатералних институција | V176: Обавезе по основу краткорочних кредита од мултилатералних институција | W176: Обавезе по основу краткорочних кредита од мултилатералних институција | X176: Обавезе по основу краткорочних кредита од мултилатералних институција | Y176: =UnObr1!F134 -> 1371 | AI176: =UnObr1!G134 -> 1178
A177: 1126 | D177: 232100 | E177: 222300 | F177: 222300 | G177: 222300 | H177: Обавезе по основу нето накнада запосленима | I177: Обавезе по основу краткорочних кредита од мултилатералних институција | J177: Обавезе по основу краткорочних кредита од мултилатералних институција | K177: Обавезе по основу краткорочних кредита од мултилатералних институција | L177: Обавезе по основу краткорочних кредита од мултилатералних институција | M177: Обавезе по основу краткорочних кредита од мултилатералних институција | N177: Обавезе по основу краткорочних кредита од мултилатералних институција | O177: Обавезе по основу краткорочних кредита од мултилатералних институција | P177: Обавезе по основу краткорочних кредита од мултилатералних институција | Q177: Обавезе по основу краткорочних кредита од мултилатералних институција | R177: Обавезе по основу краткорочних кредита од мултилатералних институција | S177: Обавезе по основу краткорочних кредита од мултилатералних институција | T177: Обавезе по основу краткорочних кредита од мултилатералних институција | U177: Обавезе по основу краткорочних кредита од мултилатералних институција | V177: Обавезе по основу краткорочних кредита од мултилатералних институција | W177: Обавезе по основу краткорочних кредита од мултилатералних институција | X177: Обавезе по основу краткорочних кредита од мултилатералних институција | Y177: =UnObr1!F135 -> 840 | AI177: =UnObr1!G135 -> 767
A178: 1127 | D178: 232200 | E178: 222300 | F178: 222300 | G178: 222300 | H178: Обавезе по основу пореза на плате за накнаде запосленима | I178: Обавезе по основу краткорочних кредита од мултилатералних институција | J178: Обавезе по основу краткорочних кредита од мултилатералних институција | K178: Обавезе по основу краткорочних кредита од мултилатералних институција | L178: Обавезе по основу краткорочних кредита од мултилатералних институција | M178: Обавезе по основу краткорочних кредита од мултилатералних институција | N178: Обавезе по основу краткорочних кредита од мултилатералних институција | O178: Обавезе по основу краткорочних кредита од мултилатералних институција | P178: Обавезе по основу краткорочних кредита од мултилатералних институција | Q178: Обавезе по основу краткорочних кредита од мултилатералних институција | R178: Обавезе по основу краткорочних кредита од мултилатералних институција | S178: Обавезе по основу краткорочних кредита од мултилатералних институција | T178: Обавезе по основу краткорочних кредита од мултилатералних институција | U178: Обавезе по основу краткорочних кредита од мултилатералних институција | V178: Обавезе по основу краткорочних кредита од мултилатералних институција | W178: Обавезе по основу краткорочних кредита од мултилатералних институција | X178: Обавезе по основу краткорочних кредита од мултилатералних институција | Y178: =UnObr1!F136 -> 91 | AI178: =UnObr1!G136 -> 76
A179: 1128 | D179: 232300 | E179: 222300 | F179: 222300 | G179: 222300 | H179: Обавезе по основу доприноса за пензијско и инвалидско осигурање за накнаде запосленима | I179: Обавезе по основу краткорочних кредита од мултилатералних институција | J179: Обавезе по основу краткорочних кредита од мултилатералних институција | K179: Обавезе по основу краткорочних кредита од мултилатералних институција | L179: Обавезе по основу краткорочних кредита од мултилатералних институција | M179: Обавезе по основу краткорочних кредита од мултилатералних институција | N179: Обавезе по основу краткорочних кредита од мултилатералних институција | O179: Обавезе по основу краткорочних кредита од мултилатералних институција | P179: Обавезе по основу краткорочних кредита од мултилатералних институција | Q179: Обавезе по основу краткорочних кредита од мултилатералних институција | R179: Обавезе по основу краткорочних кредита од мултилатералних институција | S179: Обавезе по основу краткорочних кредита од мултилатералних институција | T179: Обавезе по основу краткорочних кредита од мултилатералних институција | U179: Обавезе по основу краткорочних кредита од мултилатералних институција | V179: Обавезе по основу краткорочних кредита од мултилатералних институција | W179: Обавезе по основу краткорочних кредита од мултилатералних институција | X179: Обавезе по основу краткорочних кредита од мултилатералних институција | Y179: =UnObr1!F137 -> 316 | AI179: =UnObr1!G137 -> 231
A180: 1129 | D180: 232400 | E180: 222300 | F180: 222300 | G180: 222300 | H180: Обавезе по основу доприноса за здравствено осигурање за накнаде запосленима | I180: Обавезе по основу краткорочних кредита од мултилатералних институција | J180: Обавезе по основу краткорочних кредита од мултилатералних институција | K180: Обавезе по основу краткорочних кредита од мултилатералних институција | L180: Обавезе по основу краткорочних кредита од мултилатералних институција | M180: Обавезе по основу краткорочних кредита од мултилатералних институција | N180: Обавезе по основу краткорочних кредита од мултилатералних институција | O180: Обавезе по основу краткорочних кредита од мултилатералних институција | P180: Обавезе по основу краткорочних кредита од мултилатералних институција | Q180: Обавезе по основу краткорочних кредита од мултилатералних институција | R180: Обавезе по основу краткорочних кредита од мултилатералних институција | S180: Обавезе по основу краткорочних кредита од мултилатералних институција | T180: Обавезе по основу краткорочних кредита од мултилатералних институција | U180: Обавезе по основу краткорочних кредита од мултилатералних институција | V180: Обавезе по основу краткорочних кредита од мултилатералних институција | W180: Обавезе по основу краткорочних кредита од мултилатералних институција | X180: Обавезе по основу краткорочних кредита од мултилатералних институција | Y180: =UnObr1!F138 -> 108 | AI180: =UnObr1!G138 -> 91
A181: 1130 | D181: 232500 | E181: 222300 | F181: 222300 | G181: 222300 | H181: Обавезе по основу доприноса за незапосленост за накнаде запосленима | I181: Обавезе по основу краткорочних кредита од мултилатералних институција | J181: Обавезе по основу краткорочних кредита од мултилатералних институција | K181: Обавезе по основу краткорочних кредита од мултилатералних институција | L181: Обавезе по основу краткорочних кредита од мултилатералних институција | M181: Обавезе по основу краткорочних кредита од мултилатералних институција | N181: Обавезе по основу краткорочних кредита од мултилатералних институција | O181: Обавезе по основу краткорочних кредита од мултилатералних институција | P181: Обавезе по основу краткорочних кредита од мултилатералних институција | Q181: Обавезе по основу краткорочних кредита од мултилатералних институција | R181: Обавезе по основу краткорочних кредита од мултилатералних институција | S181: Обавезе по основу краткорочних кредита од мултилатералних институција | T181: Обавезе по основу краткорочних кредита од мултилатералних институција | U181: Обавезе по основу краткорочних кредита од мултилатералних институција | V181: Обавезе по основу краткорочних кредита од мултилатералних институција | W181: Обавезе по основу краткорочних кредита од мултилатералних институција | X181: Обавезе по основу краткорочних кредита од мултилатералних институција | Y181: =UnObr1!F139 -> 16 | AI181: =UnObr1!G139 -> 13
A182: 1131 | D182: 233000 | E182: 222300 | F182: 222300 | G182: 222300 | H182: ОБАВЕЗЕ ЗА НАГРАДЕ И ОСТАЛЕ ПОСЕБНЕ РАСХОДЕ (од 1132 до 1136) | I182: Обавезе по основу краткорочних кредита од мултилатералних институција | J182: Обавезе по основу краткорочних кредита од мултилатералних институција | K182: Обавезе по основу краткорочних кредита од мултилатералних институција | L182: Обавезе по основу краткорочних кредита од мултилатералних институција | M182: Обавезе по основу краткорочних кредита од мултилатералних институција | N182: Обавезе по основу краткорочних кредита од мултилатералних институција | O182: Обавезе по основу краткорочних кредита од мултилатералних институција | P182: Обавезе по основу краткорочних кредита од мултилатералних институција | Q182: Обавезе по основу краткорочних кредита од мултилатералних институција | R182: Обавезе по основу краткорочних кредита од мултилатералних институција | S182: Обавезе по основу краткорочних кредита од мултилатералних институција | T182: Обавезе по основу краткорочних кредита од мултилатералних институција | U182: Обавезе по основу краткорочних кредита од мултилатералних институција | V182: Обавезе по основу краткорочних кредита од мултилатералних институција | W182: Обавезе по основу краткорочних кредита од мултилатералних институција | X182: Обавезе по основу краткорочних кредита од мултилатералних институција | Y182: =UnObr1!F140 -> 0 | AI182: =UnObr1!G140 -> 0
A183: 1132 | D183: 233100 | E183: 222300 | F183: 222300 | G183: 222300 | H183: Обавезе по основу нето исплата награда и осталих посебних расхода | I183: Обавезе по основу краткорочних кредита од мултилатералних институција | J183: Обавезе по основу краткорочних кредита од мултилатералних институција | K183: Обавезе по основу краткорочних кредита од мултилатералних институција | L183: Обавезе по основу краткорочних кредита од мултилатералних институција | M183: Обавезе по основу краткорочних кредита од мултилатералних институција | N183: Обавезе по основу краткорочних кредита од мултилатералних институција | O183: Обавезе по основу краткорочних кредита од мултилатералних институција | P183: Обавезе по основу краткорочних кредита од мултилатералних институција | Q183: Обавезе по основу краткорочних кредита од мултилатералних институција | R183: Обавезе по основу краткорочних кредита од мултилатералних институција | S183: Обавезе по основу краткорочних кредита од мултилатералних институција | T183: Обавезе по основу краткорочних кредита од мултилатералних институција | U183: Обавезе по основу краткорочних кредита од мултилатералних институција | V183: Обавезе по основу краткорочних кредита од мултилатералних институција | W183: Обавезе по основу краткорочних кредита од мултилатералних институција | X183: Обавезе по основу краткорочних кредита од мултилатералних институција | Y183: =UnObr1!F141 -> 0 | AI183: =UnObr1!G141 -> 0
A184: 1133 | D184: 233200 | E184: 222300 | F184: 222300 | G184: 222300 | H184: Обавезе по основу пореза на награде и остале посебне расходе | I184: Обавезе по основу краткорочних кредита од мултилатералних институција | J184: Обавезе по основу краткорочних кредита од мултилатералних институција | K184: Обавезе по основу краткорочних кредита од мултилатералних институција | L184: Обавезе по основу краткорочних кредита од мултилатералних институција | M184: Обавезе по основу краткорочних кредита од мултилатералних институција | N184: Обавезе по основу краткорочних кредита од мултилатералних институција | O184: Обавезе по основу краткорочних кредита од мултилатералних институција | P184: Обавезе по основу краткорочних кредита од мултилатералних институција | Q184: Обавезе по основу краткорочних кредита од мултилатералних институција | R184: Обавезе по основу краткорочних кредита од мултилатералних институција | S184: Обавезе по основу краткорочних кредита од мултилатералних институција | T184: Обавезе по основу краткорочних кредита од мултилатералних институција | U184: Обавезе по основу краткорочних кредита од мултилатералних институција | V184: Обавезе по основу краткорочних кредита од мултилатералних институција | W184: Обавезе по основу краткорочних кредита од мултилатералних институција | X184: Обавезе по основу краткорочних кредита од мултилатералних институција | Y184: =UnObr1!F142 -> 0 | AI184: =UnObr1!G142 -> 0
A185: Ознака ОП | D185: Број конта | H185: Опис | Y185: Износ
Y187: Претходна година | AI187: Текућа година
A189: 1 | D189: 2 | H189: 3 | Y189: 4 | AH189: 5 | AI189: 5
A190: 1134 | D190: 233300 | E190: 222300 | F190: 222300 | G190: 222300 | H190: Обавезе по основу доприноса за пензијско и инвалидско осигурање за награде и остале посебне расходе | I190: Обавезе по основу краткорочних кредита од мултилатералних институција | J190: Обавезе по основу краткорочних кредита од мултилатералних институција | K190: Обавезе по основу краткорочних кредита од мултилатералних институција | L190: Обавезе по основу краткорочних кредита од мултилатералних институција | M190: Обавезе по основу краткорочних кредита од мултилатералних институција | N190: Обавезе по основу краткорочних кредита од мултилатералних институција | O190: Обавезе по основу краткорочних кредита од мултилатералних институција | P190: Обавезе по основу краткорочних кредита од мултилатералних институција | Q190: Обавезе по основу краткорочних кредита од мултилатералних институција | R190: Обавезе по основу краткорочних кредита од мултилатералних институција | S190: Обавезе по основу краткорочних кредита од мултилатералних институција | T190: Обавезе по основу краткорочних кредита од мултилатералних институција | U190: Обавезе по основу краткорочних кредита од мултилатералних институција | V190: Обавезе по основу краткорочних кредита од мултилатералних институција | W190: Обавезе по основу краткорочних кредита од мултилатералних институција | X190: Обавезе по основу краткорочних кредита од мултилатералних институција | Y190: =UnObr1!F143 -> 0 | AI190: =UnObr1!G143 -> 0
A191: 1135 | D191: 233400 | E191: 222300 | F191: 222300 | G191: 222300 | H191: Обавезе по основу доприноса за здравствено осигурање за награде и остале посебне расходе | I191: Обавезе по основу краткорочних кредита од мултилатералних институција | J191: Обавезе по основу краткорочних кредита од мултилатералних институција | K191: Обавезе по основу краткорочних кредита од мултилатералних институција | L191: Обавезе по основу краткорочних кредита од мултилатералних институција | M191: Обавезе по основу краткорочних кредита од мултилатералних институција | N191: Обавезе по основу краткорочних кредита од мултилатералних институција | O191: Обавезе по основу краткорочних кредита од мултилатералних институција | P191: Обавезе по основу краткорочних кредита од мултилатералних институција | Q191: Обавезе по основу краткорочних кредита од мултилатералних институција | R191: Обавезе по основу краткорочних кредита од мултилатералних институција | S191: Обавезе по основу краткорочних кредита од мултилатералних институција | T191: Обавезе по основу краткорочних кредита од мултилатералних институција | U191: Обавезе по основу краткорочних кредита од мултилатералних институција | V191: Обавезе по основу краткорочних кредита од мултилатералних институција | W191: Обавезе по основу краткорочних кредита од мултилатералних институција | X191: Обавезе по основу краткорочних кредита од мултилатералних институција | Y191: =UnObr1!F144 -> 0 | AI191: =UnObr1!G144 -> 0
A192: 1136 | D192: 233500 | E192: 222300 | F192: 222300 | G192: 222300 | H192: Обавезе по основу доприноса за случај незапослености за награде и остале посебне расходе | I192: Обавезе по основу краткорочних кредита од мултилатералних институција | J192: Обавезе по основу краткорочних кредита од мултилатералних институција | K192: Обавезе по основу краткорочних кредита од мултилатералних институција | L192: Обавезе по основу краткорочних кредита од мултилатералних институција | M192: Обавезе по основу краткорочних кредита од мултилатералних институција | N192: Обавезе по основу краткорочних кредита од мултилатералних институција | O192: Обавезе по основу краткорочних кредита од мултилатералних институција | P192: Обавезе по основу краткорочних кредита од мултилатералних институција | Q192: Обавезе по основу краткорочних кредита од мултилатералних институција | R192: Обавезе по основу краткорочних кредита од мултилатералних институција | S192: Обавезе по основу краткорочних кредита од мултилатералних институција | T192: Обавезе по основу краткорочних кредита од мултилатералних институција | U192: Обавезе по основу краткорочних кредита од мултилатералних институција | V192: Обавезе по основу краткорочних кредита од мултилатералних институција | W192: Обавезе по основу краткорочних кредита од мултилатералних институција | X192: Обавезе по основу краткорочних кредита од мултилатералних институција | Y192: =UnObr1!F145 -> 0 | AI192: =UnObr1!G145 -> 0
A193: 1137 | D193: 234000 | E193: 222300 | F193: 222300 | G193: 222300 | H193: ОБАВЕЗЕ ПО ОСНОВУ СОЦИЈАЛНИХ ДОПРИНОСА НА ТЕРЕТ ПОСЛОДАВЦА (од 1138 до 1140) | I193: Обавезе по основу краткорочних кредита од мултилатералних институција | J193: Обавезе по основу краткорочних кредита од мултилатералних институција | K193: Обавезе по основу краткорочних кредита од мултилатералних институција | L193: Обавезе по основу краткорочних кредита од мултилатералних институција | M193: Обавезе по основу краткорочних кредита од мултилатералних институција | N193: Обавезе по основу краткорочних кредита од мултилатералних институција | O193: Обавезе по основу краткорочних кредита од мултилатералних институција | P193: Обавезе по основу краткорочних кредита од мултилатералних институција | Q193: Обавезе по основу краткорочних кредита од мултилатералних институција | R193: Обавезе по основу краткорочних кредита од мултилатералних институција | S193: Обавезе по основу краткорочних кредита од мултилатералних институција | T193: Обавезе по основу краткорочних кредита од мултилатералних институција | U193: Обавезе по основу краткорочних кредита од мултилатералних институција | V193: Обавезе по основу краткорочних кредита од мултилатералних институција | W193: Обавезе по основу краткорочних кредита од мултилатералних институција | X193: Обавезе по основу краткорочних кредита од мултилатералних институција | Y193: =UnObr1!F146 -> 0 | AI193: =UnObr1!G146 -> 416
A194: 1138 | D194: 234100 | E194: 222300 | F194: 222300 | G194: 222300 | H194: Обавезе по основу доприноса за пензијско и инвалидско осигурање на терет послодавца | I194: Обавезе по основу краткорочних кредита од мултилатералних институција | J194: Обавезе по основу краткорочних кредита од мултилатералних институција | K194: Обавезе по основу краткорочних кредита од мултилатералних институција | L194: Обавезе по основу краткорочних кредита од мултилатералних институција | M194: Обавезе по основу краткорочних кредита од мултилатералних институција | N194: Обавезе по основу краткорочних кредита од мултилатералних институција | O194: Обавезе по основу краткорочних кредита од мултилатералних институција | P194: Обавезе по основу краткорочних кредита од мултилатералних институција | Q194: Обавезе по основу краткорочних кредита од мултилатералних институција | R194: Обавезе по основу краткорочних кредита од мултилатералних институција | S194: Обавезе по основу краткорочних кредита од мултилатералних институција | T194: Обавезе по основу краткорочних кредита од мултилатералних институција | U194: Обавезе по основу краткорочних кредита од мултилатералних институција | V194: Обавезе по основу краткорочних кредита од мултилатералних институција | W194: Обавезе по основу краткорочних кредита од мултилатералних институција | X194: Обавезе по основу краткорочних кредита од мултилатералних институција | Y194: =UnObr1!F147 -> 0 | AI194: =UnObr1!G147 -> 279
A195: 1139 | D195: 234200 | E195: 222300 | F195: 222300 | G195: 222300 | H195: Обавезе по основу доприноса за здравствено осигурање на терет послодавца | I195: Обавезе по основу краткорочних кредита од мултилатералних институција | J195: Обавезе по основу краткорочних кредита од мултилатералних институција | K195: Обавезе по основу краткорочних кредита од мултилатералних институција | L195: Обавезе по основу краткорочних кредита од мултилатералних институција | M195: Обавезе по основу краткорочних кредита од мултилатералних институција | N195: Обавезе по основу краткорочних кредита од мултилатералних институција | O195: Обавезе по основу краткорочних кредита од мултилатералних институција | P195: Обавезе по основу краткорочних кредита од мултилатералних институција | Q195: Обавезе по основу краткорочних кредита од мултилатералних институција | R195: Обавезе по основу краткорочних кредита од мултилатералних институција | S195: Обавезе по основу краткорочних кредита од мултилатералних институција | T195: Обавезе по основу краткорочних кредита од мултилатералних институција | U195: Обавезе по основу краткорочних кредита од мултилатералних институција | V195: Обавезе по основу краткорочних кредита од мултилатералних институција | W195: Обавезе по основу краткорочних кредита од мултилатералних институција | X195: Обавезе по основу краткорочних кредита од мултилатералних институција | Y195: =UnObr1!F148 -> 0 | AI195: =UnObr1!G148 -> 120
A196: 1140 | D196: 234300 | E196: 222300 | F196: 222300 | G196: 222300 | H196: Обавезе по основу доприноса за случај незапослености на терет послодавца | I196: Обавезе по основу краткорочних кредита од мултилатералних институција | J196: Обавезе по основу краткорочних кредита од мултилатералних институција | K196: Обавезе по основу краткорочних кредита од мултилатералних институција | L196: Обавезе по основу краткорочних кредита од мултилатералних институција | M196: Обавезе по основу краткорочних кредита од мултилатералних институција | N196: Обавезе по основу краткорочних кредита од мултилатералних институција | O196: Обавезе по основу краткорочних кредита од мултилатералних институција | P196: Обавезе по основу краткорочних кредита од мултилатералних институција | Q196: Обавезе по основу краткорочних кредита од мултилатералних институција | R196: Обавезе по основу краткорочних кредита од мултилатералних институција | S196: Обавезе по основу краткорочних кредита од мултилатералних институција | T196: Обавезе по основу краткорочних кредита од мултилатералних институција | U196: Обавезе по основу краткорочних кредита од мултилатералних институција | V196: Обавезе по основу краткорочних кредита од мултилатералних институција | W196: Обавезе по основу краткорочних кредита од мултилатералних институција | X196: Обавезе по основу краткорочних кредита од мултилатералних институција | Y196: =UnObr1!F149 -> 0 | AI196: =UnObr1!G149 -> 17
A197: 1141 | D197: 235000 | E197: 222300 | F197: 222300 | G197: 222300 | H197: ОБАВЕЗЕ ПО ОСНОВУ НАКНАДА У НАТУРИ (од 1142 до 1146) | I197: Обавезе по основу краткорочних кредита од мултилатералних институција | J197: Обавезе по основу краткорочних кредита од мултилатералних институција | K197: Обавезе по основу краткорочних кредита од мултилатералних институција | L197: Обавезе по основу краткорочних кредита од мултилатералних институција | M197: Обавезе по основу краткорочних кредита од мултилатералних институција | N197: Обавезе по основу краткорочних кредита од мултилатералних институција | O197: Обавезе по основу краткорочних кредита од мултилатералних институција | P197: Обавезе по основу краткорочних кредита од мултилатералних институција | Q197: Обавезе по основу краткорочних кредита од мултилатералних институција | R197: Обавезе по основу краткорочних кредита од мултилатералних институција | S197: Обавезе по основу краткорочних кредита од мултилатералних институција | T197: Обавезе по основу краткорочних кредита од мултилатералних институција | U197: Обавезе по основу краткорочних кредита од мултилатералних институција | V197: Обавезе по основу краткорочних кредита од мултилатералних институција | W197: Обавезе по основу краткорочних кредита од мултилатералних институција | X197: Обавезе по основу краткорочних кредита од мултилатералних институција | Y197: =UnObr1!F150 -> 0 | AI197: =UnObr1!G150 -> 0
A198: 1142 | D198: 235100 | E198: 222300 | F198: 222300 | G198: 222300 | H198: Обавезе по основу нето накнада у натури | I198: Обавезе по основу краткорочних кредита од мултилатералних институција | J198: Обавезе по основу краткорочних кредита од мултилатералних институција | K198: Обавезе по основу краткорочних кредита од мултилатералних институција | L198: Обавезе по основу краткорочних кредита од мултилатералних институција | M198: Обавезе по основу краткорочних кредита од мултилатералних институција | N198: Обавезе по основу краткорочних кредита од мултилатералних институција | O198: Обавезе по основу краткорочних кредита од мултилатералних институција | P198: Обавезе по основу краткорочних кредита од мултилатералних институција | Q198: Обавезе по основу краткорочних кредита од мултилатералних институција | R198: Обавезе по основу краткорочних кредита од мултилатералних институција | S198: Обавезе по основу краткорочних кредита од мултилатералних институција | T198: Обавезе по основу краткорочних кредита од мултилатералних институција | U198: Обавезе по основу краткорочних кредита од мултилатералних институција | V198: Обавезе по основу краткорочних кредита од мултилатералних институција | W198: Обавезе по основу краткорочних кредита од мултилатералних институција | X198: Обавезе по основу краткорочних кредита од мултилатералних институција | Y198: =UnObr1!F151 -> 0 | AI198: =UnObr1!G151 -> 0
A199: 1143 | D199: 235200 | E199: 235300 | F199: 235300 | G199: 235300 | H199: Обавезе по основу пореза на накнаде у натури | I199: Обавезе по основу доприноса за пензијско и инвалидско осигурање за накнаде у натури | J199: Обавезе по основу доприноса за пензијско и инвалидско осигурање за накнаде у натури | K199: Обавезе по основу доприноса за пензијско и инвалидско осигурање за накнаде у натури | L199: Обавезе по основу доприноса за пензијско и инвалидско осигурање за накнаде у натури | M199: Обавезе по основу доприноса за пензијско и инвалидско осигурање за накнаде у натури | N199: Обавезе по основу доприноса за пензијско и инвалидско осигурање за накнаде у натури | O199: Обавезе по основу доприноса за пензијско и инвалидско осигурање за накнаде у натури | P199: Обавезе по основу доприноса за пензијско и инвалидско осигурање за накнаде у натури | Q199: Обавезе по основу доприноса за пензијско и инвалидско осигурање за накнаде у натури | R199: Обавезе по основу доприноса за пензијско и инвалидско осигурање за накнаде у натури | S199: Обавезе по основу доприноса за пензијско и инвалидско осигурање за накнаде у натури | T199: Обавезе по основу доприноса за пензијско и инвалидско осигурање за накнаде у натури | U199: Обавезе по основу доприноса за пензијско и инвалидско осигурање за накнаде у натури | V199: Обавезе по основу доприноса за пензијско и инвалидско осигурање за накнаде у натури | W199: Обавезе по основу доприноса за пензијско и инвалидско осигурање за накнаде у натури | X199: Обавезе по основу доприноса за пензијско и инвалидско осигурање за накнаде у натури | Y199: =UnObr1!F152 -> 0 | AI199: =UnObr1!G152 -> 0
A200: 1144 | D200: 235300 | E200: 235300 | F200: 235300 | G200: 235300 | H200: Обавезе по основу доприноса за пензијско и инвалидско осигурање за накнаде у натури | I200: Обавезе по основу доприноса за пензијско и инвалидско осигурање за накнаде у натури | J200: Обавезе по основу доприноса за пензијско и инвалидско осигурање за накнаде у натури | K200: Обавезе по основу доприноса за пензијско и инвалидско осигурање за накнаде у натури | L200: Обавезе по основу доприноса за пензијско и инвалидско осигурање за накнаде у натури | M200: Обавезе по основу доприноса за пензијско и инвалидско осигурање за накнаде у натури | N200: Обавезе по основу доприноса за пензијско и инвалидско осигурање за накнаде у натури | O200: Обавезе по основу доприноса за пензијско и инвалидско осигурање за накнаде у натури | P200: Обавезе по основу доприноса за пензијско и инвалидско осигурање за накнаде у натури | Q200: Обавезе по основу доприноса за пензијско и инвалидско осигурање за накнаде у натури | R200: Обавезе по основу доприноса за пензијско и инвалидско осигурање за накнаде у натури | S200: Обавезе по основу доприноса за пензијско и инвалидско осигурање за накнаде у натури | T200: Обавезе по основу доприноса за пензијско и инвалидско осигурање за накнаде у натури | U200: Обавезе по основу доприноса за пензијско и инвалидско осигурање за накнаде у натури | V200: Обавезе по основу доприноса за пензијско и инвалидско осигурање за накнаде у натури | W200: Обавезе по основу доприноса за пензијско и инвалидско осигурање за накнаде у натури | X200: Обавезе по основу доприноса за пензијско и инвалидско осигурање за накнаде у натури | Y200: =UnObr1!F153 -> 0 | AI200: =UnObr1!G153 -> 0
A201: 1145 | D201: 235400 | E201: 235300 | F201: 235300 | G201: 235300 | H201: Обавезе по основу доприноса за здравствено осигурање за накнаде у натури | I201: Обавезе по основу доприноса за пензијско и инвалидско осигурање за накнаде у натури | J201: Обавезе по основу доприноса за пензијско и инвалидско осигурање за накнаде у натури | K201: Обавезе по основу доприноса за пензијско и инвалидско осигурање за накнаде у натури | L201: Обавезе по основу доприноса за пензијско и инвалидско осигурање за накнаде у натури | M201: Обавезе по основу доприноса за пензијско и инвалидско осигурање за накнаде у натури | N201: Обавезе по основу доприноса за пензијско и инвалидско осигурање за накнаде у натури | O201: Обавезе по основу доприноса за пензијско и инвалидско осигурање за накнаде у натури | P201: Обавезе по основу доприноса за пензијско и инвалидско осигурање за накнаде у натури | Q201: Обавезе по основу доприноса за пензијско и инвалидско осигурање за накнаде у натури | R201: Обавезе по основу доприноса за пензијско и инвалидско осигурање за накнаде у натури | S201: Обавезе по основу доприноса за пензијско и инвалидско осигурање за накнаде у натури | T201: Обавезе по основу доприноса за пензијско и инвалидско осигурање за накнаде у натури | U201: Обавезе по основу доприноса за пензијско и инвалидско осигурање за накнаде у натури | V201: Обавезе по основу доприноса за пензијско и инвалидско осигурање за накнаде у натури | W201: Обавезе по основу доприноса за пензијско и инвалидско осигурање за накнаде у натури | X201: Обавезе по основу доприноса за пензијско и инвалидско осигурање за накнаде у натури | Y201: =UnObr1!F154 -> 0 | AI201: =UnObr1!G154 -> 0
A202: 1146 | D202: 235500 | E202: 235300 | F202: 235300 | G202: 235300 | H202: Обавезе по основу доприноса за случај незапослености за накнаде у натури | I202: Обавезе по основу доприноса за пензијско и инвалидско осигурање за накнаде у натури | J202: Обавезе по основу доприноса за пензијско и инвалидско осигурање за накнаде у натури | K202: Обавезе по основу доприноса за пензијско и инвалидско осигурање за накнаде у натури | L202: Обавезе по основу доприноса за пензијско и инвалидско осигурање за накнаде у натури | M202: Обавезе по основу доприноса за пензијско и инвалидско осигурање за накнаде у натури | N202: Обавезе по основу доприноса за пензијско и инвалидско осигурање за накнаде у натури | O202: Обавезе по основу доприноса за пензијско и инвалидско осигурање за накнаде у натури | P202: Обавезе по основу доприноса за пензијско и инвалидско осигурање за накнаде у натури | Q202: Обавезе по основу доприноса за пензијско и инвалидско осигурање за накнаде у натури | R202: Обавезе по основу доприноса за пензијско и инвалидско осигурање за накнаде у натури | S202: Обавезе по основу доприноса за пензијско и инвалидско осигурање за накнаде у натури | T202: Обавезе по основу доприноса за пензијско и инвалидско осигурање за накнаде у натури | U202: Обавезе по основу доприноса за пензијско и инвалидско осигурање за накнаде у натури | V202: Обавезе по основу доприноса за пензијско и инвалидско осигурање за накнаде у натури | W202: Обавезе по основу доприноса за пензијско и инвалидско осигурање за накнаде у натури | X202: Обавезе по основу доприноса за пензијско и инвалидско осигурање за накнаде у натури | Y202: =UnObr1!F155 -> 0 | AI202: =UnObr1!G155 -> 0
A203: 1147 | D203: 236000 | E203: 235300 | F203: 235300 | G203: 235300 | H203: ОБАВЕЗЕ ПО ОСНОВУ СОЦИЈАЛНЕ ПОМОЋИ ЗАПОСЛЕНИМА (од 1148 до 1152) | I203: Обавезе по основу доприноса за пензијско и инвалидско осигурање за накнаде у натури | J203: Обавезе по основу доприноса за пензијско и инвалидско осигурање за накнаде у натури | K203: Обавезе по основу доприноса за пензијско и инвалидско осигурање за накнаде у натури | L203: Обавезе по основу доприноса за пензијско и инвалидско осигурање за накнаде у натури | M203: Обавезе по основу доприноса за пензијско и инвалидско осигурање за накнаде у натури | N203: Обавезе по основу доприноса за пензијско и инвалидско осигурање за накнаде у натури | O203: Обавезе по основу доприноса за пензијско и инвалидско осигурање за накнаде у натури | P203: Обавезе по основу доприноса за пензијско и инвалидско осигурање за накнаде у натури | Q203: Обавезе по основу доприноса за пензијско и инвалидско осигурање за накнаде у натури | R203: Обавезе по основу доприноса за пензијско и инвалидско осигурање за накнаде у натури | S203: Обавезе по основу доприноса за пензијско и инвалидско осигурање за накнаде у натури | T203: Обавезе по основу доприноса за пензијско и инвалидско осигурање за накнаде у натури | U203: Обавезе по основу доприноса за пензијско и инвалидско осигурање за накнаде у натури | V203: Обавезе по основу доприноса за пензијско и инвалидско осигурање за накнаде у натури | W203: Обавезе по основу доприноса за пензијско и инвалидско осигурање за накнаде у натури | X203: Обавезе по основу доприноса за пензијско и инвалидско осигурање за накнаде у натури | Y203: =UnObr1!F156 -> 0 | AI203: =UnObr1!G156 -> 0
A204: 1148 | D204: 236100 | E204: 235300 | F204: 235300 | G204: 235300 | H204: Обавезе по основу нето исплата социјалне помоћи запосленима | I204: Обавезе по основу доприноса за пензијско и инвалидско осигурање за накнаде у натури | J204: Обавезе по основу доприноса за пензијско и инвалидско осигурање за накнаде у натури | K204: Обавезе по основу доприноса за пензијско и инвалидско осигурање за накнаде у натури | L204: Обавезе по основу доприноса за пензијско и инвалидско осигурање за накнаде у натури | M204: Обавезе по основу доприноса за пензијско и инвалидско осигурање за накнаде у натури | N204: Обавезе по основу доприноса за пензијско и инвалидско осигурање за накнаде у натури | O204: Обавезе по основу доприноса за пензијско и инвалидско осигурање за накнаде у натури | P204: Обавезе по основу доприноса за пензијско и инвалидско осигурање за накнаде у натури | Q204: Обавезе по основу доприноса за пензијско и инвалидско осигурање за накнаде у натури | R204: Обавезе по основу доприноса за пензијско и инвалидско осигурање за накнаде у натури | S204: Обавезе по основу доприноса за пензијско и инвалидско осигурање за накнаде у натури | T204: Обавезе по основу доприноса за пензијско и инвалидско осигурање за накнаде у натури | U204: Обавезе по основу доприноса за пензијско и инвалидско осигурање за накнаде у натури | V204: Обавезе по основу доприноса за пензијско и инвалидско осигурање за накнаде у натури | W204: Обавезе по основу доприноса за пензијско и инвалидско осигурање за накнаде у натури | X204: Обавезе по основу доприноса за пензијско и инвалидско осигурање за накнаде у натури | Y204: =UnObr1!F157 -> 0 | AI204: =UnObr1!G157 -> 0
A205: 1149 | D205: 236200 | E205: 235300 | F205: 235300 | G205: 235300 | H205: Обавезе по основу пореза на социјалну помоћ запосленима | I205: Обавезе по основу доприноса за пензијско и инвалидско осигурање за накнаде у натури | J205: Обавезе по основу доприноса за пензијско и инвалидско осигурање за накнаде у натури | K205: Обавезе по основу доприноса за пензијско и инвалидско осигурање за накнаде у натури | L205: Обавезе по основу доприноса за пензијско и инвалидско осигурање за накнаде у натури | M205: Обавезе по основу доприноса за пензијско и инвалидско осигурање за накнаде у натури | N205: Обавезе по основу доприноса за пензијско и инвалидско осигурање за накнаде у натури | O205: Обавезе по основу доприноса за пензијско и инвалидско осигурање за накнаде у натури | P205: Обавезе по основу доприноса за пензијско и инвалидско осигурање за накнаде у натури | Q205: Обавезе по основу доприноса за пензијско и инвалидско осигурање за накнаде у натури | R205: Обавезе по основу доприноса за пензијско и инвалидско осигурање за накнаде у натури | S205: Обавезе по основу доприноса за пензијско и инвалидско осигурање за накнаде у натури | T205: Обавезе по основу доприноса за пензијско и инвалидско осигурање за накнаде у натури | U205: Обавезе по основу доприноса за пензијско и инвалидско осигурање за накнаде у натури | V205: Обавезе по основу доприноса за пензијско и инвалидско осигурање за накнаде у натури | W205: Обавезе по основу доприноса за пензијско и инвалидско осигурање за накнаде у натури | X205: Обавезе по основу доприноса за пензијско и инвалидско осигурање за накнаде у натури | Y205: =UnObr1!F158 -> 0 | AI205: =UnObr1!G158 -> 0
A206: 1150 | D206: 236300 | E206: 235300 | F206: 235300 | G206: 235300 | H206: Обавезе по основу доприноса за пензијско и инвалидско осигурање за социјалну помоћ запосленима | I206: Обавезе по основу доприноса за пензијско и инвалидско осигурање за накнаде у натури | J206: Обавезе по основу доприноса за пензијско и инвалидско осигурање за накнаде у натури | K206: Обавезе по основу доприноса за пензијско и инвалидско осигурање за накнаде у натури | L206: Обавезе по основу доприноса за пензијско и инвалидско осигурање за накнаде у натури | M206: Обавезе по основу доприноса за пензијско и инвалидско осигурање за накнаде у натури | N206: Обавезе по основу доприноса за пензијско и инвалидско осигурање за накнаде у натури | O206: Обавезе по основу доприноса за пензијско и инвалидско осигурање за накнаде у натури | P206: Обавезе по основу доприноса за пензијско и инвалидско осигурање за накнаде у натури | Q206: Обавезе по основу доприноса за пензијско и инвалидско осигурање за накнаде у натури | R206: Обавезе по основу доприноса за пензијско и инвалидско осигурање за накнаде у натури | S206: Обавезе по основу доприноса за пензијско и инвалидско осигурање за накнаде у натури | T206: Обавезе по основу доприноса за пензијско и инвалидско осигурање за накнаде у натури | U206: Обавезе по основу доприноса за пензијско и инвалидско осигурање за накнаде у натури | V206: Обавезе по основу доприноса за пензијско и инвалидско осигурање за накнаде у натури | W206: Обавезе по основу доприноса за пензијско и инвалидско осигурање за накнаде у натури | X206: Обавезе по основу доприноса за пензијско и инвалидско осигурање за накнаде у натури | Y206: =UnObr1!F159 -> 0 | AI206: =UnObr1!G159 -> 0
A207: 1151 | D207: 236400 | E207: 235300 | F207: 235300 | G207: 235300 | H207: Обавезе по основу доприноса за здравствено осигурање за социјалну помоћ запосленима | I207: Обавезе по основу доприноса за пензијско и инвалидско осигурање за накнаде у натури | J207: Обавезе по основу доприноса за пензијско и инвалидско осигурање за накнаде у натури | K207: Обавезе по основу доприноса за пензијско и инвалидско осигурање за накнаде у натури | L207: Обавезе по основу доприноса за пензијско и инвалидско осигурање за накнаде у натури | M207: Обавезе по основу доприноса за пензијско и инвалидско осигурање за накнаде у натури | N207: Обавезе по основу доприноса за пензијско и инвалидско осигурање за накнаде у натури | O207: Обавезе по основу доприноса за пензијско и инвалидско осигурање за накнаде у натури | P207: Обавезе по основу доприноса за пензијско и инвалидско осигурање за накнаде у натури | Q207: Обавезе по основу доприноса за пензијско и инвалидско осигурање за накнаде у натури | R207: Обавезе по основу доприноса за пензијско и инвалидско осигурање за накнаде у натури | S207: Обавезе по основу доприноса за пензијско и инвалидско осигурање за накнаде у натури | T207: Обавезе по основу доприноса за пензијско и инвалидско осигурање за накнаде у натури | U207: Обавезе по основу доприноса за пензијско и инвалидско осигурање за накнаде у натури | V207: Обавезе по основу доприноса за пензијско и инвалидско осигурање за накнаде у натури | W207: Обавезе по основу доприноса за пензијско и инвалидско осигурање за накнаде у натури | X207: Обавезе по основу доприноса за пензијско и инвалидско осигурање за накнаде у натури | Y207: =UnObr1!F160 -> 0 | AI207: =UnObr1!G160 -> 0
A208: 1152 | D208: 236500 | E208: 235300 | F208: 235300 | G208: 235300 | H208: Обавезе по основу доприноса за случај незапослености за социјалну помоћ запосленима | I208: Обавезе по основу доприноса за пензијско и инвалидско осигурање за накнаде у натури | J208: Обавезе по основу доприноса за пензијско и инвалидско осигурање за накнаде у натури | K208: Обавезе по основу доприноса за пензијско и инвалидско осигурање за накнаде у натури | L208: Обавезе по основу доприноса за пензијско и инвалидско осигурање за накнаде у натури | M208: Обавезе по основу доприноса за пензијско и инвалидско осигурање за накнаде у натури | N208: Обавезе по основу доприноса за пензијско и инвалидско осигурање за накнаде у натури | O208: Обавезе по основу доприноса за пензијско и инвалидско осигурање за накнаде у натури | P208: Обавезе по основу доприноса за пензијско и инвалидско осигурање за накнаде у натури | Q208: Обавезе по основу доприноса за пензијско и инвалидско осигурање за накнаде у натури | R208: Обавезе по основу доприноса за пензијско и инвалидско осигурање за накнаде у натури | S208: Обавезе по основу доприноса за пензијско и инвалидско осигурање за накнаде у натури | T208: Обавезе по основу доприноса за пензијско и инвалидско осигурање за накнаде у натури | U208: Обавезе по основу доприноса за пензијско и инвалидско осигурање за накнаде у натури | V208: Обавезе по основу доприноса за пензијско и инвалидско осигурање за накнаде у натури | W208: Обавезе по основу доприноса за пензијско и инвалидско осигурање за накнаде у натури | X208: Обавезе по основу доприноса за пензијско и инвалидско осигурање за накнаде у натури | Y208: =UnObr1!F161 -> 0 | AI208: =UnObr1!G161 -> 0
A209: 1153 | D209: 237000 | E209: 235300 | F209: 235300 | G209: 235300 | H209: СЛУЖБЕНА ПУТОВАЊА И УСЛУГЕ ПО УГОВОРУ (од 1154 до 1160) | I209: Обавезе по основу доприноса за пензијско и инвалидско осигурање за накнаде у натури | J209: Обавезе по основу доприноса за пензијско и инвалидско осигурање за накнаде у натури | K209: Обавезе по основу доприноса за пензијско и инвалидско осигурање за накнаде у натури | L209: Обавезе по основу доприноса за пензијско и инвалидско осигурање за накнаде у натури | M209: Обавезе по основу доприноса за пензијско и инвалидско осигурање за накнаде у натури | N209: Обавезе по основу доприноса за пензијско и инвалидско осигурање за накнаде у натури | O209: Обавезе по основу доприноса за пензијско и инвалидско осигурање за накнаде у натури | P209: Обавезе по основу доприноса за пензијско и инвалидско осигурање за накнаде у натури | Q209: Обавезе по основу доприноса за пензијско и инвалидско осигурање за накнаде у натури | R209: Обавезе по основу доприноса за пензијско и инвалидско осигурање за накнаде у натури | S209: Обавезе по основу доприноса за пензијско и инвалидско осигурање за накнаде у натури | T209: Обавезе по основу доприноса за пензијско и инвалидско осигурање за накнаде у натури | U209: Обавезе по основу доприноса за пензијско и инвалидско осигурање за накнаде у натури | V209: Обавезе по основу доприноса за пензијско и инвалидско осигурање за накнаде у натури | W209: Обавезе по основу доприноса за пензијско и инвалидско осигурање за накнаде у натури | X209: Обавезе по основу доприноса за пензијско и инвалидско осигурање за накнаде у натури | Y209: =UnObr1!F162 -> 0 | AI209: =UnObr1!G162 -> 0
A210: 1154 | D210: 237100 | E210: 235300 | F210: 235300 | G210: 235300 | H210: Обавезе по основу нето исплата за службена путовања | I210: Обавезе по основу доприноса за пензијско и инвалидско осигурање за накнаде у натури | J210: Обавезе по основу доприноса за пензијско и инвалидско осигурање за накнаде у натури | K210: Обавезе по основу доприноса за пензијско и инвалидско осигурање за накнаде у натури | L210: Обавезе по основу доприноса за пензијско и инвалидско осигурање за накнаде у натури | M210: Обавезе по основу доприноса за пензијско и инвалидско осигурање за накнаде у натури | N210: Обавезе по основу доприноса за пензијско и инвалидско осигурање за накнаде у натури | O210: Обавезе по основу доприноса за пензијско и инвалидско осигурање за накнаде у натури | P210: Обавезе по основу доприноса за пензијско и инвалидско осигурање за накнаде у натури | Q210: Обавезе по основу доприноса за пензијско и инвалидско осигурање за накнаде у натури | R210: Обавезе по основу доприноса за пензијско и инвалидско осигурање за накнаде у натури | S210: Обавезе по основу доприноса за пензијско и инвалидско осигурање за накнаде у натури | T210: Обавезе по основу доприноса за пензијско и инвалидско осигурање за накнаде у натури | U210: Обавезе по основу доприноса за пензијско и инвалидско осигурање за накнаде у натури | V210: Обавезе по основу доприноса за пензијско и инвалидско осигурање за накнаде у натури | W210: Обавезе по основу доприноса за пензијско и инвалидско осигурање за накнаде у натури | X210: Обавезе по основу доприноса за пензијско и инвалидско осигурање за накнаде у натури | Y210: =UnObr1!F163 -> 0 | AI210: =UnObr1!G163 -> 0
A211: 1155 | D211: 237200 | E211: 235300 | F211: 235300 | G211: 235300 | H211: Обавезе по основу пореза на исплате за службена путовања | I211: Обавезе по основу доприноса за пензијско и инвалидско осигурање за накнаде у натури | J211: Обавезе по основу доприноса за пензијско и инвалидско осигурање за накнаде у натури | K211: Обавезе по основу доприноса за пензијско и инвалидско осигурање за накнаде у натури | L211: Обавезе по основу доприноса за пензијско и инвалидско осигурање за накнаде у натури | M211: Обавезе по основу доприноса за пензијско и инвалидско осигурање за накнаде у натури | N211: Обавезе по основу доприноса за пензијско и инвалидско осигурање за накнаде у натури | O211: Обавезе по основу доприноса за пензијско и инвалидско осигурање за накнаде у натури | P211: Обавезе по основу доприноса за пензијско и инвалидско осигурање за накнаде у натури | Q211: Обавезе по основу доприноса за пензијско и инвалидско осигурање за накнаде у натури | R211: Обавезе по основу доприноса за пензијско и инвалидско осигурање за накнаде у натури | S211: Обавезе по основу доприноса за пензијско и инвалидско осигурање за накнаде у натури | T211: Обавезе по основу доприноса за пензијско и инвалидско осигурање за накнаде у натури | U211: Обавезе по основу доприноса за пензијско и инвалидско осигурање за накнаде у натури | V211: Обавезе по основу доприноса за пензијско и инвалидско осигурање за накнаде у натури | W211: Обавезе по основу доприноса за пензијско и инвалидско осигурање за накнаде у натури | X211: Обавезе по основу доприноса за пензијско и инвалидско осигурање за накнаде у натури | Y211: =UnObr1!F164 -> 0 | AI211: =UnObr1!G164 -> 0
A212: 1156 | D212: 237300 | E212: 235300 | F212: 235300 | G212: 235300 | H212: Обавезе по основу нето исплата за услуге по уговору | I212: Обавезе по основу доприноса за пензијско и инвалидско осигурање за накнаде у натури | J212: Обавезе по основу доприноса за пензијско и инвалидско осигурање за накнаде у натури | K212: Обавезе по основу доприноса за пензијско и инвалидско осигурање за накнаде у натури | L212: Обавезе по основу доприноса за пензијско и инвалидско осигурање за накнаде у натури | M212: Обавезе по основу доприноса за пензијско и инвалидско осигурање за накнаде у натури | N212: Обавезе по основу доприноса за пензијско и инвалидско осигурање за накнаде у натури | O212: Обавезе по основу доприноса за пензијско и инвалидско осигурање за накнаде у натури | P212: Обавезе по основу доприноса за пензијско и инвалидско осигурање за накнаде у натури | Q212: Обавезе по основу доприноса за пензијско и инвалидско осигурање за накнаде у натури | R212: Обавезе по основу доприноса за пензијско и инвалидско осигурање за накнаде у натури | S212: Обавезе по основу доприноса за пензијско и инвалидско осигурање за накнаде у натури | T212: Обавезе по основу доприноса за пензијско и инвалидско осигурање за накнаде у натури | U212: Обавезе по основу доприноса за пензијско и инвалидско осигурање за накнаде у натури | V212: Обавезе по основу доприноса за пензијско и инвалидско осигурање за накнаде у натури | W212: Обавезе по основу доприноса за пензијско и инвалидско осигурање за накнаде у натури | X212: Обавезе по основу доприноса за пензијско и инвалидско осигурање за накнаде у натури | Y212: =UnObr1!F165 -> 0 | AI212: =UnObr1!G165 -> 0
A213: 1157 | D213: 237400 | E213: 235300 | F213: 235300 | G213: 235300 | H213: Обавезе по основу пореза на исплате за услуге по уговору | I213: Обавезе по основу доприноса за пензијско и инвалидско осигурање за накнаде у натури | J213: Обавезе по основу доприноса за пензијско и инвалидско осигурање за накнаде у натури | K213: Обавезе по основу доприноса за пензијско и инвалидско осигурање за накнаде у натури | L213: Обавезе по основу доприноса за пензијско и инвалидско осигурање за накнаде у натури | M213: Обавезе по основу доприноса за пензијско и инвалидско осигурање за накнаде у натури | N213: Обавезе по основу доприноса за пензијско и инвалидско осигурање за накнаде у натури | O213: Обавезе по основу доприноса за пензијско и инвалидско осигурање за накнаде у натури | P213: Обавезе по основу доприноса за пензијско и инвалидско осигурање за накнаде у натури | Q213: Обавезе по основу доприноса за пензијско и инвалидско осигурање за накнаде у натури | R213: Обавезе по основу доприноса за пензијско и инвалидско осигурање за накнаде у натури | S213: Обавезе по основу доприноса за пензијско и инвалидско осигурање за накнаде у натури | T213: Обавезе по основу доприноса за пензијско и инвалидско осигурање за накнаде у натури | U213: Обавезе по основу доприноса за пензијско и инвалидско осигурање за накнаде у натури | V213: Обавезе по основу доприноса за пензијско и инвалидско осигурање за накнаде у натури | W213: Обавезе по основу доприноса за пензијско и инвалидско осигурање за накнаде у натури | X213: Обавезе по основу доприноса за пензијско и инвалидско осигурање за накнаде у натури | Y213: =UnObr1!F166 -> 0 | AI213: =UnObr1!G166 -> 0
A214: 1158 | D214: 237500 | E214: 235300 | F214: 235300 | G214: 235300 | H214: Обавезе по основу доприноса за пензијско и инвалидско осигурање за услуге по уговору | I214: Обавезе по основу доприноса за пензијско и инвалидско осигурање за накнаде у натури | J214: Обавезе по основу доприноса за пензијско и инвалидско осигурање за накнаде у натури | K214: Обавезе по основу доприноса за пензијско и инвалидско осигурање за накнаде у натури | L214: Обавезе по основу доприноса за пензијско и инвалидско осигурање за накнаде у натури | M214: Обавезе по основу доприноса за пензијско и инвалидско осигурање за накнаде у натури | N214: Обавезе по основу доприноса за пензијско и инвалидско осигурање за накнаде у натури | O214: Обавезе по основу доприноса за пензијско и инвалидско осигурање за накнаде у натури | P214: Обавезе по основу доприноса за пензијско и инвалидско осигурање за накнаде у натури | Q214: Обавезе по основу доприноса за пензијско и инвалидско осигурање за накнаде у натури | R214: Обавезе по основу доприноса за пензијско и инвалидско осигурање за накнаде у натури | S214: Обавезе по основу доприноса за пензијско и инвалидско осигурање за накнаде у натури | T214: Обавезе по основу доприноса за пензијско и инвалидско осигурање за накнаде у натури | U214: Обавезе по основу доприноса за пензијско и инвалидско осигурање за накнаде у натури | V214: Обавезе по основу доприноса за пензијско и инвалидско осигурање за накнаде у натури | W214: Обавезе по основу доприноса за пензијско и инвалидско осигурање за накнаде у натури | X214: Обавезе по основу доприноса за пензијско и инвалидско осигурање за накнаде у натури | Y214: =UnObr1!F167 -> 0 | AI214: =UnObr1!G167 -> 0
A215: 1159 | D215: 237600 | E215: 235300 | F215: 235300 | G215: 235300 | H215: Обавезе по основу доприноса за здравствено осигурање за услуге по уговору | I215: Обавезе по основу доприноса за пензијско и инвалидско осигурање за накнаде у натури | J215: Обавезе по основу доприноса за пензијско и инвалидско осигурање за накнаде у натури | K215: Обавезе по основу доприноса за пензијско и инвалидско осигурање за накнаде у натури | L215: Обавезе по основу доприноса за пензијско и инвалидско осигурање за накнаде у натури | M215: Обавезе по основу доприноса за пензијско и инвалидско осигурање за накнаде у натури | N215: Обавезе по основу доприноса за пензијско и инвалидско осигурање за накнаде у натури | O215: Обавезе по основу доприноса за пензијско и инвалидско осигурање за накнаде у натури | P215: Обавезе по основу доприноса за пензијско и инвалидско осигурање за накнаде у натури | Q215: Обавезе по основу доприноса за пензијско и инвалидско осигурање за накнаде у натури | R215: Обавезе по основу доприноса за пензијско и инвалидско осигурање за накнаде у натури | S215: Обавезе по основу доприноса за пензијско и инвалидско осигурање за накнаде у натури | T215: Обавезе по основу доприноса за пензијско и инвалидско осигурање за накнаде у натури | U215: Обавезе по основу доприноса за пензијско и инвалидско осигурање за накнаде у натури | V215: Обавезе по основу доприноса за пензијско и инвалидско осигурање за накнаде у натури | W215: Обавезе по основу доприноса за пензијско и инвалидско осигурање за накнаде у натури | X215: Обавезе по основу доприноса за пензијско и инвалидско осигурање за накнаде у натури | Y215: =UnObr1!F168 -> 0 | AI215: =UnObr1!G168 -> 0
A216: 1160 | D216: 237700 | E216: 235300 | F216: 235300 | G216: 235300 | H216: Обавезе по основу доприноса за случај незапослености за услуге по уговору | I216: Обавезе по основу доприноса за пензијско и инвалидско осигурање за накнаде у натури | J216: Обавезе по основу доприноса за пензијско и инвалидско осигурање за накнаде у натури | K216: Обавезе по основу доприноса за пензијско и инвалидско осигурање за накнаде у натури | L216: Обавезе по основу доприноса за пензијско и инвалидско осигурање за накнаде у натури | M216: Обавезе по основу доприноса за пензијско и инвалидско осигурање за накнаде у натури | N216: Обавезе по основу доприноса за пензијско и инвалидско осигурање за накнаде у натури | O216: Обавезе по основу доприноса за пензијско и инвалидско осигурање за накнаде у натури | P216: Обавезе по основу доприноса за пензијско и инвалидско осигурање за накнаде у натури | Q216: Обавезе по основу доприноса за пензијско и инвалидско осигурање за накнаде у натури | R216: Обавезе по основу доприноса за пензијско и инвалидско осигурање за накнаде у натури | S216: Обавезе по основу доприноса за пензијско и инвалидско осигурање за накнаде у натури | T216: Обавезе по основу доприноса за пензијско и инвалидско осигурање за накнаде у натури | U216: Обавезе по основу доприноса за пензијско и инвалидско осигурање за накнаде у натури | V216: Обавезе по основу доприноса за пензијско и инвалидско осигурање за накнаде у натури | W216: Обавезе по основу доприноса за пензијско и инвалидско осигурање за накнаде у натури | X216: Обавезе по основу доприноса за пензијско и инвалидско осигурање за накнаде у натури | Y216: =UnObr1!F169 -> 0 | AI216: =UnObr1!G169 -> 0
A217: Ознака ОП | D217: Број конта | H217: Опис | Y217: Износ
Y219: Претходна година | AI219: Текућа година
A221: 1 | D221: 2 | H221: 3 | Y221: 4 | AH221: 5 | AI221: 5
A222: 1161 | D222: 238000 | E222: 235300 | F222: 235300 | G222: 235300 | H222: ОБАВЕЗЕ ПО ОСНОВУ ПОСЛАНИЧКИХ ДОДАТАКА (од 1162 до 1166) | I222: Обавезе по основу доприноса за пензијско и инвалидско осигурање за накнаде у натури | J222: Обавезе по основу доприноса за пензијско и инвалидско осигурање за накнаде у натури | K222: Обавезе по основу доприноса за пензијско и инвалидско осигурање за накнаде у натури | L222: Обавезе по основу доприноса за пензијско и инвалидско осигурање за накнаде у натури | M222: Обавезе по основу доприноса за пензијско и инвалидско осигурање за накнаде у натури | N222: Обавезе по основу доприноса за пензијско и инвалидско осигурање за накнаде у натури | O222: Обавезе по основу доприноса за пензијско и инвалидско осигурање за накнаде у натури | P222: Обавезе по основу доприноса за пензијско и инвалидско осигурање за накнаде у натури | Q222: Обавезе по основу доприноса за пензијско и инвалидско осигурање за накнаде у натури | R222: Обавезе по основу доприноса за пензијско и инвалидско осигурање за накнаде у натури | S222: Обавезе по основу доприноса за пензијско и инвалидско осигурање за накнаде у натури | T222: Обавезе по основу доприноса за пензијско и инвалидско осигурање за накнаде у натури | U222: Обавезе по основу доприноса за пензијско и инвалидско осигурање за накнаде у натури | V222: Обавезе по основу доприноса за пензијско и инвалидско осигурање за накнаде у натури | W222: Обавезе по основу доприноса за пензијско и инвалидско осигурање за накнаде у натури | X222: Обавезе по основу доприноса за пензијско и инвалидско осигурање за накнаде у натури | Y222: =UnObr1!F170 -> 0 | AI222: =UnObr1!G170 -> 0
A223: 1162 | D223: 238100 | E223: 235300 | F223: 235300 | G223: 235300 | H223: Обавезе за нето исплаћени посланички додатак | I223: Обавезе по основу доприноса за пензијско и инвалидско осигурање за накнаде у натури | J223: Обавезе по основу доприноса за пензијско и инвалидско осигурање за накнаде у натури | K223: Обавезе по основу доприноса за пензијско и инвалидско осигурање за накнаде у натури | L223: Обавезе по основу доприноса за пензијско и инвалидско осигурање за накнаде у натури | M223: Обавезе по основу доприноса за пензијско и инвалидско осигурање за накнаде у натури | N223: Обавезе по основу доприноса за пензијско и инвалидско осигурање за накнаде у натури | O223: Обавезе по основу доприноса за пензијско и инвалидско осигурање за накнаде у натури | P223: Обавезе по основу доприноса за пензијско и инвалидско осигурање за накнаде у натури | Q223: Обавезе по основу доприноса за пензијско и инвалидско осигурање за накнаде у натури | R223: Обавезе по основу доприноса за пензијско и инвалидско осигурање за накнаде у натури | S223: Обавезе по основу доприноса за пензијско и инвалидско осигурање за накнаде у натури | T223: Обавезе по основу доприноса за пензијско и инвалидско осигурање за накнаде у натури | U223: Обавезе по основу доприноса за пензијско и инвалидско осигурање за накнаде у натури | V223: Обавезе по основу доприноса за пензијско и инвалидско осигурање за накнаде у натури | W223: Обавезе по основу доприноса за пензијско и инвалидско осигурање за накнаде у натури | X223: Обавезе по основу доприноса за пензијско и инвалидско осигурање за накнаде у натури | Y223: =UnObr1!F171 -> 0 | AI223: =UnObr1!G171 -> 0
... 87 more rows

Sheet UnObr2
A1: Ознака ОП | B1: Конто | C1: Опис | D1: Износ | G1: Штампа
D2: Претходна година | E2: Текућа година
A3: 2001 | C3: ТЕКУЋИ ПРИХОДИ И ПРИМАЊА ОД ПРОДАЈЕ НЕФИНАНСИЈСКЕ ИМОВИНЕ (2002 + 2106) | D3: =D4+D108 -> 139159 | E3: =E4+E108 -> 156452
A4: 2002 | B4: 700000 | C4: ТЕКУЋИ ПРИХОДИ (2003 + 2047 + 2057 + 2069 + 2094 + 2099 + 2103) | D4: =D5+D49+D59+D71+D96+D101+D105 -> 139159 | E4: =E5+E49+E59+E71+E96+E101+E105 -> 156452
A5: 2003 | B5: 710000 | C5: ПОРЕЗИ (2004 + 2008 + 2010 + 2017 + 2023 + 2030 + 2033 + 2040) | D5: =D6+D10+D12+D19+D25+D32+D35+D42 -> 0 | E5: =E6+E10+E12+E19+E25+E32+E35+E42 -> 0
A6: 2004 | B6: 711000 | C6: ПОРЕЗ НА ДОХОДАК, ДОБИТ И КАПИТАЛНЕ ДОБИТКЕ (од 2005 до 2007) | D6: =SUM(D7:D9) -> 0 | E6: =SUM(E7:E9) -> 0
A7: 2005 | B7: 711100 | C7: Порези на доходак и капиталне добитке које плаћају физичка лица
A8: 2006 | B8: 711200 | C8: Порези на добит и капиталне добитке које плаћају предузећа и друга правна лица
A9: 2007 | B9: 711300 | C9: Порези на доходак, добит и капиталне добитке који се не могу разврстати између физичких и правних лица
A10: 2008 | B10: 712000 | C10: ПОРЕЗ НА ФОНД ЗАРАДА (2009) | D10: =D11 -> 0 | E10: =E11 -> 0
A11: 2009 | B11: 712100 | C11: Порез на фонд зарада
A12: 2010 | B12: 713000 | C12: ПОРЕЗ НА ИМОВИНУ (од 2011 до 2016) | D12: =SUM(D13:D18) -> 0 | E12: =SUM(E13:E18) -> 0
A13: 2011 | B13: 713100 | C13: Периодични порези на непокретности
A14: 2012 | B14: 713200 | C14: Периодични порези на нето имовину
A15: 2013 | B15: 713300 | C15: Порези на заоставштину, наслеђе и поклон
A16: 2014 | B16: 713400 | C16: Порези на финансијске и капиталне трансакције
A17: 2015 | B17: 713500 | C17: Други једнократни порези на имовину
A18: 2016 | B18: 713600 | C18: Други периодични порези на имовину
A19: 2017 | B19: 714000 | C19: ПОРЕЗ НА ДОБРА И УСЛУГЕ (од 2018 до 2022) | D19: =SUM(D20:D24) -> 0 | E19: =SUM(E20:E24) -> 0
A20: 2018 | B20: 714100 | C20: Општи порези на добра и услуге
A21: 2019 | B21: 714300 | C21: Добит фискалних монопола
A22: 2020 | B22: 714400 | C22: Порези на појединачне услуге
A23: 2021 | B23: 714500 | C23: Порези, таксе и накнаде на употребу добара, на дозволу да се добра употребљавају или делатности обављају
A24: 2022 | B24: 714600 | C24: Други порези на добра и услуге
A25: 2023 | B25: 715000 | C25: ПОРЕЗ НА МЕЂУНАРОДНУ ТРГОВИНУ И ТРАНСАКЦИЈЕ (од 2024 до 2029) | D25: =SUM(D26:D31) -> 0 | E25: =SUM(E26:E31) -> 0
A26: 2024 | B26: 715100 | C26: Царине и друге увозне дажбине
A27: 2025 | B27: 715200 | C27: Порези на извоз
A28: 2026 | B28: 715300 | C28: Добит извозних или увозних монопола
A29: 2027 | B29: 715400 | C29: Добит по основу разлике између куповног и продајног девизног курса
A30: 2028 | B30: 715500 | C30: Порези на продају или куповину девиза
A31: 2029 | B31: 715600 | C31: Други порези на међународну трговину и трансакције
A32: 2030 | B32: 716000 | C32: ДРУГИ ПОРЕЗИ (2031 + 2032) | D32: =D33+D34 -> 0 | E32: =E33+E34 -> 0
A33: 2031 | B33: 716100 | C33: Други порези које искључиво плаћају предузећа, односно предузетници
A34: 2032 | B34: 716200 | C34: Други порези које плаћају остала лица или који се не могу идентификовати
A35: 2033 | B35: 717000 | C35: АКЦИЗЕ (од 2034 до 2039) | D35: =SUM(D36:D41) -> 0 | E35: =SUM(E36:E41) -> 0
A36: 2034 | B36: 717100 | C36: Акцизе на деривате нафте
A37: 2035 | B37: 717200 | C37: Акцизе на дуванске прерађевине
A38: 2036 | B38: 717300 | C38: Акцизе на алкохолна пића
A39: 2037 | B39: 717400 | C39: Акцизе на освежавајућа безалкохолна пића
A40: 2038 | B40: 717500 | C40: Акциза на кафу
A41: 2039 | B41: 717600 | C41: Друге акцизе
A42: 2040 | B42: 719000 | C42: ЈЕДНОКРАТНИ ПОРЕЗ НА ЕКСТРА ПРОФИТ И ЕКСТРА ИМОВИНУ СТЕЧЕНУ КОРИШЋЕЊЕМ ПОСЕБНИХ ПОГОДНОСТИ (од 2041 до 2046) | D42: =SUM(D43:D48) -> 0 | E42: =SUM(E43:E48) -> 0
A43: 2041 | B43: 719100 | C43: Порез на доходак, добит и капиталну добит на терет физичких лица
A44: 2042 | B44: 719200 | C44: Порез на доходак, добит и капиталну добит на терет предузећа и осталих правних лица
A45: 2043 | B45: 719300 | C45: Порез на доходак, добит и капиталну добит нераспоредив између физичких и правних лица
A46: 2044 | B46: 719400 | C46: Остали једнократни порези на имовину
A47: 2045 | B47: 719500 | C47: Остали порези које плаћају искључиво предузећа и предузетници
A48: 2046 | B48: 719600 | C48: Остали порези које плаћају друга или неидентификована лица
A49: 2047 | B49: 720000 | C49: СОЦИЈАЛНИ ДОПРИНОСИ (2048 + 2053) | D49: =D50+D55 -> 0 | E49: =E50+E55 -> 0
A50: 2048 | B50: 721000 | C50: ДОПРИНОСИ ЗА СОЦИЈАЛНО ОСИГУРАЊЕ (од 2049 до 2052) | D50: =SUM(D51:D54) -> 0 | E50: =SUM(E51:E54) -> 0
A51: 2049 | B51: 721100 | C51: Доприноси за социјално осигурање на терет запослених
A52: 2050 | B52: 721200 | C52: Доприноси за социјално осигурање на терет послодаваца
A53: 2051 | B53: 721300 | C53: Доприноси за социјално осигурање лица која обављају самосталну делатност и незапослених лица
A54: 2052 | B54: 721400 | C54: Доприноси за социјално осигурање који се не могу разврстати
A55: 2053 | B55: 722000 | C55: ОСТАЛИ СОЦИЈАЛНИ ДОПРИНОСИ (од 2054 до 2056) | D55: =SUM(D56:D58) -> 0 | E55: =SUM(E56:E58) -> 0
A56: 2054 | B56: 722100 | C56: Социјални доприноси на терет осигураника
A57: 2055 | B57: 722200 | C57: Социјални доприноси послодаваца
A58: 2056 | B58: 722300 | C58: Импутирани социјални доприноси
A59: 2057 | B59: 730000 | C59: ДОНАЦИЈЕ, ПОМОЋИ И ТРАНСФЕРИ (2058 + 2061 + 2066) | D59: =D60+D63+D68 -> 13510 | E59: =E60+E63+E68 -> 11436
A60: 2058 | B60: 731000 | C60: ДОНАЦИЈЕ ОД ИНОСТРАНИХ ДРЖАВА (2059 + 2060) | D60: =D61+D62 -> 0 | E60: =E61+E62 -> 0
A61: 2059 | B61: 731100 | C61: Текуће донације од иностраних држава
A62: 2060 | B62: 731200 | C62: Капиталне донације од иностраних држава
A63: 2061 | B63: 732000 | C63: ДОНАЦИЈЕ И ПОМОЋИ ОД МЕЂУНАРОДНИХ ОРГАНИЗАЦИЈА (од 2062 до 2065) | D63: =D64+D65+D66+D67 -> 0 | E63: =E64+E65+E66+E67 -> 0
A64: 2062 | B64: 732100 | C64: Текуће донације од међународних организација
A65: 2063 | B65: 732200 | C65: Капиталне донације од међународних организација
A66: 2064 | B66: 732300 | C66: Текуће помоћи од ЕУ
A67: 2065 | B67: 732400 | C67: Капиталне помоћи од ЕУ
A68: 2066 | B68: 733000 | C68: ТРАНСФЕРИ ОД ДРУГИХ НИВОА ВЛАСТИ (2067 + 2068) | D68: =D69+D70 -> 13510 | E68: =E69+E70 -> 11436
A69: 2067 | B69: 733100 | C69: Текући трансфери од других нивоа власти | D69: 13510 | E69: 11436
A70: 2068 | B70: 733200 | C70: Капитални трансфери од других нивоа власти
A71: 2069 | B71: 740000 | C71: ДРУГИ ПРИХОДИ (2070 + 2077 + 2082 + 2089 + 2092) | D71: =D72+D79+D84+D91+D94 -> 15732 | E71: =E72+E79+E84+E91+E94 -> 351
A72: 2070 | B72: 741000 | C72: ПРИХОДИ ОД ИМОВИНЕ (од 2071 до 2076) | D72: =SUM(D73:D78) -> 0 | E72: =SUM(E73:E78) -> 0
A73: 2071 | B73: 741100 | C73: Камате
A74: 2072 | B74: 741200 | C74: Дивиденде
A75: 2073 | B75: 741300 | C75: Повлачење прихода од квази корпорација
A76: 2074 | B76: 741400 | C76: Приход од имовине који припада имаоцима полиса осигурања
A77: 2075 | B77: 741500 | C77: Закуп непроизведене имовине
A78: 2076 | B78: 741600 | C78: Финансијске промене на финансијским лизинзима
A79: 2077 | B79: 742000 | C79: ПРИХОДИ ОД ПРОДАЈЕ ДОБАРА И УСЛУГА (од 2078 до 2081) | D79: =SUM(D80:D83) -> 15551 | E79: =SUM(E80:E83) -> 351
A80: 2078 | B80: 742100 | C80: Приходи од продаје добара и услуга или закупа од стране тржишних организација | D80: 14531 | E80: 28
A81: 2079 | B81: 742200 | C81: Таксе и накнаде
A82: 2080 | B82: 742300 | C82: Споредне продаје добара и услуга које врше државне нетржишне јединице | D82: 1020 | E82: 323
A83: 2081 | B83: 742400 | C83: Импутиране продаје добара и услуга
A84: 2082 | B84: 743000 | C84: НОВЧАНЕ КАЗНЕ И ОДУЗЕТА ИМОВИНСКА КОРИСТ (од 2083 до 2088) | D84: =SUM(D85:D90) -> 0 | E84: =SUM(E85:E90) -> 0
A85: 2083 | B85: 743100 | C85: Приходи од новчаних казни за кривична дела
A86: 2084 | B86: 743200 | C86: Приходи од новчаних казни за привредне преступе
A87: 2085 | B87: 743300 | C87: Приходи од новчаних казни за прекршаје
A88: 2086 | B88: 743400 | C88: Приходи од пенала
A89: 2087 | B89: 743500 | C89: Приходи од одузете имовинске користи
A90: 2088 | B90: 743900 | C90: Остале новчане казне, пенали и приходи од одузете имовинске користи
A91: 2089 | B91: 744000 | C91: ДОБРОВОЉНИ ТРАНСФЕРИ ОД ФИЗИЧКИХ И ПРАВНИХ ЛИЦА (2090 + 2091) | D91: =D92+D93 -> 96 | E91: =E92+E93 -> 0
A92: 2090 | B92: 744100 | C92: Текући добровољни трансфери од физичких и правних лица | D92: 96
A93: 2091 | B93: 744200 | C93: Капитални добровољни трансфери од физичких и правних лица
A94: 2092 | B94: 745000 | C94: МЕШОВИТИ И НЕОДРЕЂЕНИ ПРИХОДИ (2093) | D94: =D95 -> 85 | E94: =E95 -> 0
A95: 2093 | B95: 745100 | C95: Мешовити и неодређени приходи | D95: 85
A96: 2094 | B96: 770000 | C96: МЕМОРАНДУМСКЕ СТАВКЕ ЗА РЕФУНДАЦИЈУ РАСХОДА (2095 + 2097) | D96: =D97+D99 -> 406 | E96: =E97+E99 -> 648
A97: 2095 | B97: 771000 | C97: МЕМОРАНДУМСКЕ СТАВКЕ ЗА РЕФУНДАЦИЈУ РАСХОДА (2096) | D97: =D98 -> 0 | E97: =E98 -> 0
A98: 2096 | B98: 771100 | C98: Меморандумске ставке за рефундацију расхода
A99: 2097 | B99: 772000 | C99: МЕМОРАНДУМСКЕ СТАВКЕ ЗА РЕФУНДАЦИЈУ РАСХОДА ИЗ ПРЕТХОДНЕ ГОДИНЕ (2098) | D99: =D100 -> 406 | E99: =E100 -> 648
A100: 2098 | B100: 772100 | C100: Меморандумске ставке за рефундацију расхода из претходне године | D100: 406 | E100: 648
A101: 2099 | B101: 780000 | C101: ТРАНСФЕРИ ИЗМЕЂУ БУЏЕТСКИХ КОРИСНИКА НА ИСТОМ НИВОУ (2100) | D101: =D102 -> 0 | E101: =E102 -> 0
A102: 2100 | B102: 781000 | C102: ТРАНСФЕРИ ИЗМЕЂУ БУЏЕТСКИХ КОРИСНИКА НА ИСТОМ НИВОУ (2101 + 2102) | D102: =D103+D104 -> 0 | E102: =E103+E104 -> 0
A103: 2101 | B103: 781100 | C103: Трансфери између буџетских корисника на истом нивоу
A104: 2102 | B104: 781300 | C104: Трансфери између организација обавезног социјалног осигурања
A105: 2103 | B105: 790000 | C105: ПРИХОДИ ИЗ БУЏЕТА (2104) | D105: =D106 -> 109511 | E105: =E106 -> 144017
A106: 2104 | B106: 791000 | C106: ПРИХОДИ ИЗ БУЏЕТА (2105) | D106: =D107 -> 109511 | E106: =E107 -> 144017
A107: 2105 | B107: 791100 | C107: Приходи из буџета | D107: 109511 | E107: 144017
A108: 2106 | B108: 800000 | C108: ПРИМАЊА ОД ПРОДАЈЕ НЕФИНАНСИЈСКЕ ИМОВИНЕ (2107 + 2114 + 2121 + 2124) | D108: =D109+D116+D123+D126 -> 0 | E108: =E109+E116+E123+E126 -> 0
A109: 2107 | B109: 810000 | C109: ПРИМАЊА ОД ПРОДАЈЕ ОСНОВНИХ СРЕДСТАВА (2108 + 2110 + 2112) | D109: =D110+D112+D114 -> 0 | E109: =E110+E112+E114 -> 0
A110: 2108 | B110: 811000 | C110: ПРИМАЊА ОД ПРОДАЈЕ НЕПОКРЕТНОСТИ (2109) | D110: =D111 -> 0 | E110: =E111 -> 0
A111: 2109 | B111: 811100 | C111: Примања од продаје непокретности
A112: 2110 | B112: 812000 | C112: ПРИМАЊА ОД ПРОДАЈЕ ПОКРЕТНЕ ИМОВИНЕ (2111) | D112: =D113 -> 0 | E112: =E113 -> 0
A113: 2111 | B113: 812100 | C113: Примања од продаје покретне имовине
A114: 2112 | B114: 813000 | C114: ПРИМАЊА ОД ПРОДАЈЕ ОСТАЛИХ ОСНОВНИХ СРЕДСТАВА (2113) | D114: =D115 -> 0 | E114: =E115 -> 0
A115: 2113 | B115: 813100 | C115: Примања од продаје осталих основних средстава
A116: 2114 | B116: 820000 | C116: ПРИМАЊА ОД ПРОДАЈЕ ЗАЛИХА (2115 + 2117 + 2119) | D116: =D117+D119+D121 -> 0 | E116: =E117+E119+E121 -> 0
A117: 2115 | B117: 821000 | C117: ПРИМАЊА ОД ПРОДАЈЕ РОБНИХ РЕЗЕРВИ (2116) | D117: =D118 -> 0 | E117: =E118 -> 0
A118: 2116 | B118: 821100 | C118: Примања од продаје робних резерви
A119: 2117 | B119: 822000 | C119: ПРИМАЊА ОД ПРОДАЈЕ ЗАЛИХА ПРОИЗВОДЊЕ (2118) | D119: =D120 -> 0 | E119: =E120 -> 0
A120: 2118 | B120: 822100 | C120: Примања од продаје залиха производње
A121: 2119 | B121: 823000 | C121: ПРИМАЊА ОД ПРОДАЈЕ РОБЕ ЗА ДАЉУ ПРОДАЈУ (2120) | D121: =D122 -> 0 | E121: =E122 -> 0
A122: 2120 | B122: 823100 | C122: Примања од продаје робе за даљу продају
A123: 2121 | B123: 830000 | C123: ПРИМАЊА ОД ПРОДАЈЕ ДРАГОЦЕНОСТИ (2122) | D123: =D124 -> 0 | E123: =E124 -> 0
A124: 2122 | B124: 831000 | C124: ПРИМАЊА ОД ПРОДАЈЕ ДРАГОЦЕНОСТИ (2123) | D124: =D125 -> 0 | E124: =E125 -> 0
A125: 2123 | B125: 831100 | C125: Примања од продаје драгоцености
A126: 2124 | B126: 840000 | C126: ПРИМАЊА ОД ПРОДАЈЕ ПРИРОДНЕ ИМОВИНЕ (2125 + 2127 + 2129) | D126: =D127+D129+D131 -> 0 | E126: =E127+E129+E131 -> 0
A127: 2125 | B127: 841000 | C127: ПРИМАЊА ОД ПРОДАЈЕ ЗЕМЉИШТА (2126) | D127: =D128 -> 0 | E127: =E128 -> 0
A128: 2126 | B128: 841100 | C128: Примања од продаје земљишта
A129: 2127 | B129: 842000 | C129: ПРИМАЊА ОД ПРОДАЈЕ ПОДЗЕМНИХ БЛАГА (2128) | D129: =D130 -> 0 | E129: =E130 -> 0
A130: 2128 | B130: 842100 | C130: Примања од продаје подземних блага
A131: 2129 | B131: 843000 | C131: ПРИМАЊА ОД ПРОДАЈЕ ШУМА И ВОДА (2130) | D131: =D132 -> 0 | E131: =E132 -> 0
A132: 2130 | B132: 843100 | C132: Примања од продаје шума и вода
A133: 2131 | C133: ТЕКУЋИ РАСХОДИ И ИЗДАЦИ ЗА НЕФИНАНСИЈСКУ ИМОВИНУ (2132 + 2300) | D133: =D134+D302 -> 141332 | E133: =E134+E302 -> 156447
A134: 2132 | B134: 400000 | C134: ТЕКУЋИ РАСХОДИ (2133 + 2155 + 2200 + 2215 + 2239 + 2252 + 2268 + 2283) | D134: =D135+D157+D202+D217+D241+D254+D270+D285 -> 138756 | E134: =E135+E157+E202+E217+E241+E254+E270+E285 -> 155146
A135: 2133 | B135: 410000 | C135: РАСХОДИ ЗА ЗАПОСЛЕНЕ (2134 + 2136 + 2140 + 2142 + 2147 + 2149 + 2151 + 2153) | D135: =D136+D138+D142+D144+D149+D151+D153+D155 -> 97480 | E135: =E136+E138+E142+E144+E149+E151+E153+E155 -> 103699
A136: 2134 | B136: 411000 | C136: ПЛАТЕ, ДОДАЦИ И НАКНАДЕ ЗАПОСЛЕНИХ (ЗАРАДЕ) (2135) | D136: =D137 -> 79028 | E136: =E137 -> 84879
A137: 2135 | B137: 411100 | C137: Плате, додаци и накнаде запослених | D137: 79028 | E137: 84879
A138: 2136 | B138: 412000 | C138: СОЦИЈАЛНИ ДОПРИНОСИ НА ТЕРЕТ ПОСЛОДАВЦА (од 2137 до 2139) | D138: =SUM(D139:D141) -> 14146 | E138: =SUM(E139:E141) -> 15200
A139: 2137 | B139: 412100 | C139: Допринос за пензијско и инвалидско осигурање | D139: 9483 | E139: 10190
A140: 2138 | B140: 412200 | C140: Допринос за здравствено осигурање | D140: 4070 | E140: 4373
A141: 2139 | B141: 412300 | C141: Допринос за незапосленост | D141: 593 | E141: 637
A142: 2140 | B142: 413000 | C142: НАКНАДЕ У НАТУРИ (2141) | D142: =D143 -> 345 | E142: =E143 -> 243
A143: 2141 | B143: 413100 | C143: Накнаде у натури | D143: 345 | E143: 243
A144: 2142 | B144: 414000 | C144: СОЦИЈАЛНА ДАВАЊА ЗАПОСЛЕНИМА (од 2143 до 2146) | D144: =SUM(D145:D148) -> 2053 | E144: =SUM(E145:E148) -> 969
A145: 2143 | B145: 414100 | C145: Исплата накнада за време одсуствовања с посла на терет фондова | D145: 648 | E145: 763
A146: 2144 | B146: 414200 | C146: Расходи за образовање деце запослених
A147: 2145 | B147: 414300 | C147: Отпремнине и помоћи | D147: 1405 | E147: 206
A148: 2146 | B148: 414400 | C148: Помоћ у медицинском лечењу запосленог или чланова уже породице и друге помоћи запосленом
A149: 2147 | B149: 415000 | C149: НАКНАДЕ ТРОШКОВА ЗА ЗАПОСЛЕНЕ (2148) | D149: =D150 -> 1230 | E149: =E150 -> 1120
A150: 2148 | B150: 415100 | C150: Накнаде трошкова за запослене | D150: 1230 | E150: 1120
A151: 2149 | B151: 416000 | C151: НАГРАДЕ ЗАПОСЛЕНИМА И ОСТАЛИ ПОСЕБНИ РАСХОДИ (2150) | D151: =D152 -> 678 | E151: =E152 -> 1288
A152: 2150 | B152: 416100 | C152: Награде запосленима и остали посебни расходи | D152: 678 | E152: 1288
A153: 2151 | B153: 417000 | C153: ПОСЛАНИЧКИ ДОДАТАК (2152) | D153: =D154 -> 0 | E153: =E154 -> 0
A154: 2152 | B154: 417100 | C154: Посланички додатак
A155: 2153 | B155: 418000 | C155: СУДИЈСКИ ДОДАТАК (2154) | D155: =D156 -> 0 | E155: =E156 -> 0
A156: 2154 | B156: 418100 | C156: Судијски додатак
A157: 2155 | B157: 420000 | C157: КОРИШЋЕЊЕ УСЛУГА И РОБА (2156 + 2164 + 2170 + 2179 + 2187 + 2190) | D157: =D158+D166+D172+D181+D189+D192 -> 35106 | E157: =E158+E166+E172+E181+E189+E192 -> 37468
A158: 2156 | B158: 421000 | C158: СТАЛНИ ТРОШКОВИ (од 2157 до 2163) | D158: =SUM(D159:D165) -> 9361 | E158: =SUM(E159:E165) -> 10626
A159: 2157 | B159: 421100 | C159: Трошкови платног промета и банкарских услуга | D159: 179 | E159: 210
A160: 2158 | B160: 421200 | C160: Енергетске услуге | D160: 6678 | E160: 8273
A161: 2159 | B161: 421300 | C161: Комуналне услуге | D161: 1430 | E161: 1559
A162: 2160 | B162: 421400 | C162: Услуге комуникација | D162: 498 | E162: 471
A163: 2161 | B163: 421500 | C163: Трошкови осигурања | D163: 576 | E163: 113
A164: 2162 | B164: 421600 | C164: Закуп имовине и опреме
A165: 2163 | B165: 421900 | C165: Остали трошкови
A166: 2164 | B166: 422000 | C166: ТРОШКОВИ ПУТОВАЊА (од 2165 до 2169) | D166: =SUM(D167:D171) -> 853 | E166: =SUM(E167:E171) -> 780
A167: 2165 | B167: 422100 | C167: Трошкови службених путовања у земљи | D167: 717 | E167: 630
A168: 2166 | B168: 422200 | C168: Трошкови службених путовања у иностранство
A169: 2167 | B169: 422300 | C169: Трошкови путовања у оквиру редовног рада | D169: 136 | E169: 150
A170: 2168 | B170: 422400 | C170: Трошкови путовања ученика
A171: 2169 | B171: 422900 | C171: Остали трошкови транспорта
A172: 2170 | B172: 423000 | C172: УСЛУГЕ ПО УГОВОРУ (од 2171 до 2178) | D172: =SUM(D173:D180) -> 4075 | E172: =SUM(E173:E180) -> 3401
A173: 2171 | B173: 423100 | C173: Административне услуге
A174: 2172 | B174: 423200 | C174: Компјутерске услуге | D174: 97 | E174: 101
A175: 2173 | B175: 423300 | C175: Услуге образовања и усавршавања запослених | D175: 276 | E175: 187
A176: 2174 | B176: 423400 | C176: Услуге информисања | D176: 170 | E176: 87
A177: 2175 | B177: 423500 | C177: Стручне услуге
A178: 2176 | B178: 423600 | C178: Услуге за домаћинство и угоститељство | D178: 116 | E178: 106
A179: 2177 | B179: 423700 | C179: Репрезентација
A180: 2178 | B180: 423900 | C180: Остале опште услуге | D180: 3416 | E180: 2920
A181: 2179 | B181: 424000 | C181: СПЕЦИЈАЛИЗОВАНЕ УСЛУГЕ (од 2180 до 2186) | D181: =SUM(D182:D188) -> 1719 | E181: =SUM(E182:E188) -> 2165
A182: 2180 | B182: 424100 | C182: Пољопривредне услуге
A183: 2181 | B183: 424200 | C183: Услуге образовања, културе и спорта | D183: 230 | E183: 181
A184: 2182 | B184: 424300 | C184: Медицинске услуге
A185: 2183 | B185: 424400 | C185: Услуге одржавања аутопутева
A186: 2184 | B186: 424500 | C186: Услуге одржавања националних паркова и природних површина
A187: 2185 | B187: 424600 | C187: Услуге очувања животне средине, науке и геодетске услуге
A188: 2186 | B188: 424900 | C188: Остале специјализоване услуге | D188: 1489 | E188: 1984
A189: 2187 | B189: 425000 | C189: ТЕКУЋЕ ПОПРАВКЕ И ОДРЖАВАЊЕ (УСЛУГЕ И МАТЕРИЈАЛИ) (2188 + 2189) | D189: =D190+D191 -> 1860 | E189: =E190+E191 -> 2034
A190: 2188 | B190: 425100 | C190: Текуће поправке и одржавање зграда и објеката | D190: 1439 | E190: 1451
A191: 2189 | B191: 425200 | C191: Текуће поправке и одржавање опреме | D191: 421 | E191: 583
A192: 2190 | B192: 426000 | C192: МАТЕРИЈАЛ (од 2191 до 2199) | D192: =SUM(D193:D201) -> 17238 | E192: =SUM(E193:E201) -> 18462
A193: 2191 | B193: 426100 | C193: Административни материјал | D193: 706 | E193: 665
A194: 2192 | B194: 426200 | C194: Материјали за пољопривреду
A195: 2193 | B195: 426300 | C195: Материјали за образовање и усавршавање запослених | D195: 361 | E195: 250
A196: 2194 | B196: 426400 | C196: Материјали за саобраћај | D196: 554 | E196: 598
A197: 2195 | B197: 426500 | C197: Материјали за очување животне средине и науку
A198: 2196 | B198: 426600 | C198: Материјали за образовање, културу и спорт | D198: 457 | E198: 1033
A199: 2197 | B199: 426700 | C199: Медицински и лабораторијски материјали
A200: 2198 | B200: 426800 | C200: Материјали за одржавање хигијене и угоститељство | D200: 12897 | E200: 13816
... 164 more rows

Sheet StObr2
AL1: Образац 2
A2: ПОПУЊАВА УПРАВА ЗА ТРЕЗОР - ФИЛИЈАЛА
A3: 7 | B3: 5 | C3: 2 | E3: 0 | F3: =IF(LEN(Podaci!M2) > 4, MID(RIGHT(Podaci!$M$2,5),1,1),0) -> 0 | G3: =IF(LEN(Podaci!M2) > 3, MID(RIGHT(Podaci!$M$2,4),1,1),0) -> 8 | H3: =IF(LEN(Podaci!M2) > 2, MID(RIGHT(Podaci!$M$2,3),1,1),0) -> 5 | I3: =MID(RIGHT(Podaci!$M$2,2),1,1) -> 9 | J3: =MID(RIGHT(Podaci!$M$2,1),1,1) -> 0 | L3: =IF(LEN(Podaci!Z7) > 7, MID(RIGHT(Podaci!$Z$7,8),1,1),0) -> 0 | M3: =IF(LEN(Podaci!Z7) > 6, MID(RIGHT(Podaci!$Z$7,7),1,1),0) -> 8 | N3: =MID(RIGHT(Podaci!$Z$7,6),1,1) -> 0 | O3: =MID(RIGHT(Podaci!$Z$7,5),1,1) -> 0 | P3: =MID(RIGHT(Podaci!$Z$7,4),1,1) -> 4 | Q3: =MID(RIGHT(Podaci!$Z$7,3),1,1) -> 9 | R3: =MID(RIGHT(Podaci!$Z$7,2),1,1) -> 3 | S3: =MID(RIGHT(Podaci!$Z$7,1),1,1) -> 5
A4: 1 | B4: 2 | C4: 3 | E4: 4 | F4: 5 | G4: 6 | H4: 7 | I4: 8 | J4: 9 | L4: 10 | M4: 11 | N4: 12 | O4: 13 | P4: 14 | Q4: 15 | R4: 16 | S4: 17 | U4: 18 | V4: 19 | W4: 20 | X4: 21 | Y4: 22 | AA4: 23 | AB4: 24 | AC4: 25 | AD4: 26 | AE4: 27 | AG4: 28 | AI4: 29 | AJ4: 30 | AK4: 31 | AL4: 32 | AM4: 33 | AN4: 34 | AO4: 35 | AP4: 36 | AQ4: 37 | AR4: 38
A5: Врста посла | E5: Јединствени број КБС | U5: Седиште УТ | AA5: Надлежни директни КБС
B8: НАЗИВ КОРИСНИКА БУЏЕТСКИХ СРЕДСТАВА
B9: =Podaci!B5 -> ПРЕДШКОЛСКА УСТАНОВА "БАМБИ"
B11: СЕДИШТЕ | H11: =Podaci!H7 -> КУЛА | R11: МАТИЧНИ БРОЈ | Z11: =Podaci!Z7 -> 08004935
B13: ПИБ | E13: =Podaci!E9 -> 100261597 | R13: БРОЈ ПОДРАЧУНА | Z13: =Podaci!AA9 -> 840-49661-40
B15: НАЗИВ НАДЛЕЖНОГ ДИРЕКТНОГ КОРИСНИКА БУЏЕТСКИХ СРЕДСТАВА
B17: =Podaci!B12 -> ОПШТИНА КУЛА
B18: (Попуњава само индиректни корисник буџетских средстава)
M21: БИЛАНС ПРИХОДА И РАСХОДА
L22: у периоду од | R22: =Podaci!D17 -> 01.01.2017. | X22: до | Y22: =Podaci!D18 -> 31.12.2017. | AD22: године
AK23: (У хиљадама динара)
A24: Ознака ОП | D24: Број конта | H24: Опис | AA24: Износ
AA26: Претходна година | AJ26: Текућа година
A28: 1 | D28: 2 | H28: 3 | AA28: 4 | AJ28: 5
A29: 2001 | H29: ТЕКУЋИ ПРИХОДИ И ПРИМАЊА ОД ПРОДАЈЕ НЕФИНАНСИЈСКЕ ИМОВИНЕ (2002 + 2106) | AA29: =UnObr2!D3 -> 139159 | AJ29: =UnObr2!E3 -> 156452
A30: 2002 | D30: 700000 | H30: ТЕКУЋИ ПРИХОДИ (2003 + 2047 + 2057 + 2069 + 2094 + 2099 + 2103) | AA30: =UnObr2!D4 -> 139159 | AJ30: =UnObr2!E4 -> 156452
A31: 2003 | D31: 710000 | H31: ПОРЕЗИ (2004 + 2008 + 2010 + 2017 + 2023 + 2030 + 2033 + 2040) | AA31: =UnObr2!D5 -> 0 | AJ31: =UnObr2!E5 -> 0
A32: 2004 | D32: 711000 | H32: ПОРЕЗ НА ДОХОДАК, ДОБИТ И КАПИТАЛНЕ ДОБИТКЕ (од 2005 до 2007) | AA32: =UnObr2!D6 -> 0 | AJ32: =UnObr2!E6 -> 0
A33: 2005 | D33: 711100 | H33: Порези на доходак и капиталне добитке које плаћају физичка лица | AA33: =UnObr2!D7 -> 0 | AJ33: =UnObr2!E7 -> 0
A34: 2006 | D34: 711200 | H34: Порези на добит и капиталне добитке које плаћају предузећа и друга правна лица | AA34: =UnObr2!D8 -> 0 | AJ34: =UnObr2!E8 -> 0
A35: 2007 | D35: 711300 | H35: Порези на доходак, добит и капиталне добитке који се не могу разврстати између физичких и правних лица | AA35: =UnObr2!D9 -> 0 | AJ35: =UnObr2!E9 -> 0
A36: 2008 | D36: 712000 | H36: ПОРЕЗ НА ФОНД ЗАРАДА (2009) | AA36: =UnObr2!D10 -> 0 | AJ36: =UnObr2!E10 -> 0
A37: 2009 | D37: 712100 | H37: Порез на фонд зарада | AA37: =UnObr2!D11 -> 0 | AJ37: =UnObr2!E11 -> 0
A38: 2010 | D38: 713000 | H38: ПОРЕЗ НА ИМОВИНУ (од 2011 до 2016) | AA38: =UnObr2!D12 -> 0 | AJ38: =UnObr2!E12 -> 0
A39: 2011 | D39: 713100 | H39: Периодични порези на непокретности | AA39: =UnObr2!D13 -> 0 | AJ39: =UnObr2!E13 -> 0
A40: 2012 | D40: 713200 | H40: Периодични порези на нето имовину | AA40: =UnObr2!D14 -> 0 | AJ40: =UnObr2!E14 -> 0
A41: 2013 | D41: 713300 | H41: Порези на заоставштину, наслеђе и поклон | AA41: =UnObr2!D15 -> 0 | AJ41: =UnObr2!E15 -> 0
A42: 2014 | D42: 713400 | H42: Порези на финансијске и капиталне трансакције | AA42: =UnObr2!D16 -> 0 | AJ42: =UnObr2!E16 -> 0
A43: 2015 | D43: 713500 | H43: Други једнократни порези на имовину | AA43: =UnObr2!D17 -> 0 | AJ43: =UnObr2!E17 -> 0
A44: 2016 | D44: 713600 | H44: Други периодични порези на имовину | AA44: =UnObr2!D18 -> 0 | AJ44: =UnObr2!E18 -> 0
A45: 2017 | D45: 714000 | H45: ПОРЕЗ НА ДОБРА И УСЛУГЕ (од 2018 до 2022) | AA45: =UnObr2!D19 -> 0 | AJ45: =UnObr2!E19 -> 0
A46: 2018 | D46: 714100 | H46: Општи порези на добра и услуге | AA46: =UnObr2!D20 -> 0 | AJ46: =UnObr2!E20 -> 0
A47: 2019 | D47: 714300 | H47: Добит фискалних монопола | AA47: =UnObr2!D21 -> 0 | AJ47: =UnObr2!E21 -> 0
A48: 2020 | D48: 714400 | H48: Порези на појединачне услуге | AA48: =UnObr2!D22 -> 0 | AJ48: =UnObr2!E22 -> 0
A49: 2021 | D49: 714500 | H49: Порези, таксе и накнаде на употребу добара, на дозволу да се добра употребљавају или делатности обављају | AA49: =UnObr2!D23 -> 0 | AJ49: =UnObr2!E23 -> 0
A50: 2022 | D50: 714600 | H50: Други порези на добра и услуге | AA50: =UnObr2!D24 -> 0 | AJ50: =UnObr2!E24 -> 0
A51: 2023 | D51: 715000 | H51: ПОРЕЗ НА МЕЂУНАРОДНУ ТРГОВИНУ И ТРАНСАКЦИЈЕ (од 2024 до 2029) | AA51: =UnObr2!D25 -> 0 | AJ51: =UnObr2!E25 -> 0
A52: 2024 | D52: 715100 | H52: Царине и друге увозне дажбине | AA52: =UnObr2!D26 -> 0 | AJ52: =UnObr2!E26 -> 0
A53: 2025 | D53: 715200 | H53: Порези на извоз | AA53: =UnObr2!D27 -> 0 | AJ53: =UnObr2!E27 -> 0
A54: 2026 | D54: 715300 | H54: Добит извозних или увозних монопола | AA54: =UnObr2!D28 -> 0 | AJ54: =UnObr2!E28 -> 0
A55: 2027 | D55: 715400 | H55: Добит по основу разлике између куповног и продајног девизног курса | AA55: =UnObr2!D29 -> 0 | AJ55: =UnObr2!E29 -> 0
A56: 2028 | D56: 715500 | H56: Порези на продају или куповину девиза | AA56: =UnObr2!D30 -> 0 | AJ56: =UnObr2!E30 -> 0
A57: 2029 | D57: 715600 | H57: Други порези на међународну трговину и трансакције | AA57: =UnObr2!D31 -> 0 | AJ57: =UnObr2!E31 -> 0
A58: 2030 | D58: 716000 | H58: ДРУГИ ПОРЕЗИ (2031 + 2032) | AA58: =UnObr2!D32 -> 0 | AJ58: =UnObr2!E32 -> 0
A59: 2031 | D59: 716100 | H59: Други порези које искључиво плаћају предузећа, односно предузетници | AA59: =UnObr2!D33 -> 0 | AJ59: =UnObr2!E33 -> 0
A60: 2032 | D60: 716200 | H60: Други порези које плаћају остала лица или који се не могу идентификовати | AA60: =UnObr2!D34 -> 0 | AJ60: =UnObr2!E34 -> 0
A61: 2033 | D61: 717000 | H61: АКЦИЗЕ (од 2034 до 2039) | AA61: =UnObr2!D35 -> 0 | AJ61: =UnObr2!E35 -> 0
A62: 2034 | D62: 717100 | H62: Акцизе на деривате нафте | AA62: =UnObr2!D36 -> 0 | AJ62: =UnObr2!E36 -> 0
A63: 2035 | D63: 717200 | H63: Акцизе на дуванске прерађевине | AA63: =UnObr2!D37 -> 0 | AJ63: =UnObr2!E37 -> 0
A64: 2036 | D64: 717300 | H64: Акцизе на алкохолна пића | AA64: =UnObr2!D38 -> 0 | AJ64: =UnObr2!E38 -> 0
A65: 2037 | D65: 717400 | H65: Акцизе на освежавајућа безалкохолна пића | AA65: =UnObr2!D39 -> 0 | AJ65: =UnObr2!E39 -> 0
A66: 2038 | D66: 717500 | H66: Акциза на кафу | AA66: =UnObr2!D40 -> 0 | AJ66: =UnObr2!E40 -> 0
A67: 2039 | D67: 717600 | H67: Друге акцизе | AA67: =UnObr2!D41 -> 0 | AJ67: =UnObr2!E41 -> 0
A68: 2040 | D68: 719000 | H68: ЈЕДНОКРАТНИ ПОРЕЗ НА ЕКСТРА ПРОФИТ И ЕКСТРА ИМОВИНУ СТЕЧЕНУ КОРИШЋЕЊЕМ ПОСЕБНИХ ПОГОДНОСТИ (од 2041 до 2046) | AA68: =UnObr2!D42 -> 0 | AJ68: =UnObr2!E42 -> 0
A69: 2041 | D69: 719100 | H69: Порез на доходак, добит и капиталну добит на терет физичких лица | AA69: =UnObr2!D43 -> 0 | AJ69: =UnObr2!E43 -> 0
A70: 2042 | D70: 719200 | H70: Порез на доходак, добит и капиталну добит на терет предузећа и осталих правних лица | AA70: =UnObr2!D44 -> 0 | AJ70: =UnObr2!E44 -> 0
A71: 2043 | D71: 719300 | H71: Порез на доходак, добит и капиталну добит нераспоредив између физичких и правних лица | AA71: =UnObr2!D45 -> 0 | AJ71: =UnObr2!E45 -> 0
A72: 2044 | D72: 719400 | H72: Остали једнократни порези на имовину | AA72: =UnObr2!D46 -> 0 | AJ72: =UnObr2!E46 -> 0
A73: 2045 | D73: 719500 | H73: Остали порези које плаћају искључиво предузећа и предузетници | AA73: =UnObr2!D47 -> 0 | AJ73: =UnObr2!E47 -> 0
A74: 2046 | D74: 719600 | H74: Остали порези које плаћају друга или неидентификована лица | AA74: =UnObr2!D48 -> 0 | AJ74: =UnObr2!E48 -> 0
A75: 2047 | D75: 720000 | H75: СОЦИЈАЛНИ ДОПРИНОСИ (2048 + 2053) | AA75: =UnObr2!D49 -> 0 | AJ75: =UnObr2!E49 -> 0
A76: 2048 | D76: 721000 | H76: ДОПРИНОСИ ЗА СОЦИЈАЛНО ОСИГУРАЊЕ (од 2049 до 2052) | AA76: =UnObr2!D50 -> 0 | AJ76: =UnObr2!E50 -> 0
A77: 2049 | D77: 721100 | H77: Доприноси за социјално осигурање на терет запослених | AA77: =UnObr2!D51 -> 0 | AJ77: =UnObr2!E51 -> 0
A78: 2050 | D78: 721200 | H78: Доприноси за социјално осигурање на терет послодаваца | AA78: =UnObr2!D52 -> 0 | AJ78: =UnObr2!E52 -> 0
A79: 2051 | D79: 721300 | H79: Доприноси за социјално осигурање лица која обављају самосталну делатност и незапослених лица | AA79: =UnObr2!D53 -> 0 | AJ79: =UnObr2!E53 -> 0
A80: 2052 | D80: 721400 | H80: Доприноси за социјално осигурање који се не могу разврстати | AA80: =UnObr2!D54 -> 0 | AJ80: =UnObr2!E54 -> 0
A81: 2053 | D81: 722000 | H81: ОСТАЛИ СОЦИЈАЛНИ ДОПРИНОСИ (од 2054 до 2056) | AA81: =UnObr2!D55 -> 0 | AJ81: =UnObr2!E55 -> 0
A82: 2054 | D82: 722100 | H82: Социјални доприноси на терет осигураника | AA82: =UnObr2!D56 -> 0 | AJ82: =UnObr2!E56 -> 0
A83: 2055 | D83: 722200 | H83: Социјални доприноси послодаваца | AA83: =UnObr2!D57 -> 0 | AJ83: =UnObr2!E57 -> 0
A84: 2056 | D84: 722300 | H84: Импутирани социјални доприноси | AA84: =UnObr2!D58 -> 0 | AJ84: =UnObr2!E58 -> 0
A85: 2057 | D85: 730000 | H85: ДОНАЦИЈЕ, ПОМОЋИ И ТРАНСФЕРИ (2058 + 2061 + 2066) | AA85: =UnObr2!D59 -> 13510 | AJ85: =UnObr2!E59 -> 11436
A86: 2058 | D86: 731000 | H86: ДОНАЦИЈЕ ОД ИНОСТРАНИХ ДРЖАВА (2059 + 2060) | AA86: =UnObr2!D60 -> 0 | AJ86: =UnObr2!E60 -> 0
A87: 2059 | D87: 731100 | H87: Текуће донације од иностраних држава | AA87: =UnObr2!D61 -> 0 | AJ87: =UnObr2!E61 -> 0
A88: 2060 | D88: 731200 | H88: Капиталне донације од иностраних држава | AA88: =UnObr2!D62 -> 0 | AJ88: =UnObr2!E62 -> 0
A89: 2061 | D89: 732000 | H89: ДОНАЦИЈЕ И ПОМОЋИ ОД МЕЂУНАРОДНИХ ОРГАНИЗАЦИЈА (од 2062 до 2065) | AA89: =UnObr2!D63 -> 0 | AJ89: =UnObr2!E63 -> 0
A90: 2062 | D90: 732100 | H90: Текуће донације од међународних организација | AA90: =UnObr2!D64 -> 0 | AJ90: =UnObr2!E64 -> 0
A91: 2063 | D91: 732200 | H91: Капиталне донације од међународних организација | AA91: =UnObr2!D65 -> 0 | AJ91: =UnObr2!E65 -> 0
A92: 2064 | D92: 732300 | H92: Текуће помоћи од ЕУ | AA92: =UnObr2!D66 -> 0 | AJ92: =UnObr2!E66 -> 0
A93: 2065 | D93: 732400 | H93: Капиталне помоћи од ЕУ | AA93: =UnObr2!D67 -> 0 | AJ93: =UnObr2!E67 -> 0
A94: 2066 | D94: 733000 | H94: ТРАНСФЕРИ ОД ДРУГИХ НИВОА ВЛАСТИ (2067 + 2068) | AA94: =UnObr2!D68 -> 13510 | AJ94: =UnObr2!E68 -> 11436
A95: 2067 | D95: 733100 | H95: Текући трансфери од других нивоа власти | AA95: =UnObr2!D69 -> 13510 | AJ95: =UnObr2!E69 -> 11436
A96: 2068 | D96: 733200 | H96: Капитални трансфери од других нивоа власти | AA96: =UnObr2!D70 -> 0 | AJ96: =UnObr2!E70 -> 0
A97: 2069 | D97: 740000 | H97: ДРУГИ ПРИХОДИ (2070 + 2077 + 2082 + 2089 + 2092) | AA97: =UnObr2!D71 -> 15732 | AJ97: =UnObr2!E71 -> 351
A98: 2070 | D98: 741000 | H98: ПРИХОДИ ОД ИМОВИНЕ (од 2071 до 2076) | AA98: =UnObr2!D72 -> 0 | AJ98: =UnObr2!E72 -> 0
A99: 2071 | D99: 741100 | H99: Камате | AA99: =UnObr2!D73 -> 0 | AJ99: =UnObr2!E73 -> 0
A100: 2072 | D100: 741200 | H100: Дивиденде | AA100: =UnObr2!D74 -> 0 | AJ100: =UnObr2!E74 -> 0
A101: 2073 | D101: 741300 | H101: Повлачење прихода од квази корпорација | AA101: =UnObr2!D75 -> 0 | AJ101: =UnObr2!E75 -> 0
A102: 2074 | D102: 741400 | H102: Приход од имовине који припада имаоцима полиса осигурања | AA102: =UnObr2!D76 -> 0 | AJ102: =UnObr2!E76 -> 0
A103: 2075 | D103: 741500 | H103: Закуп непроизведене имовине | AA103: =UnObr2!D77 -> 0 | AJ103: =UnObr2!E77 -> 0
A104: 2076 | D104: 741600 | H104: Финансијске промене на финансијским лизинзима | AA104: =UnObr2!D78 -> 0 | AJ104: =UnObr2!E78 -> 0
A105: 2077 | D105: 742000 | H105: ПРИХОДИ ОД ПРОДАЈЕ ДОБАРА И УСЛУГА (од 2078 до 2081) | AA105: =UnObr2!D79 -> 15551 | AJ105: =UnObr2!E79 -> 351
A106: 2078 | D106: 742100 | H106: Приходи од продаје добара и услуга или закупа од стране тржишних организација | AA106: =UnObr2!D80 -> 14531 | AJ106: =UnObr2!E80 -> 28
A107: 2079 | D107: 742200 | H107: Таксе и накнаде | AA107: =UnObr2!D81 -> 0 | AJ107: =UnObr2!E81 -> 0
A108: 2080 | D108: 742300 | H108: Споредне продаје добара и услуга које врше државне нетржишне јединице | AA108: =UnObr2!D82 -> 1020 | AJ108: =UnObr2!E82 -> 323
A109: 2081 | D109: 742400 | H109: Импутиране продаје добара и услуга | AA109: =UnObr2!D83 -> 0 | AJ109: =UnObr2!E83 -> 0
A110: 2082 | D110: 743000 | H110: НОВЧАНЕ КАЗНЕ И ОДУЗЕТА ИМОВИНСКА КОРИСТ (од 2083 до 2088) | AA110: =UnObr2!D84 -> 0 | AJ110: =UnObr2!E84 -> 0
A111: 2083 | D111: 743100 | H111: Приходи од новчаних казни за кривична дела | AA111: =UnObr2!D85 -> 0 | AJ111: =UnObr2!E85 -> 0
A112: 2084 | D112: 743200 | H112: Приходи од новчаних казни за привредне преступе | AA112: =UnObr2!D86 -> 0 | AJ112: =UnObr2!E86 -> 0
A113: 2085 | D113: 743300 | H113: Приходи од новчаних казни за прекршаје | AA113: =UnObr2!D87 -> 0 | AJ113: =UnObr2!E87 -> 0
A114: 2086 | D114: 743400 | H114: Приходи од пенала | AA114: =UnObr2!D88 -> 0 | AJ114: =UnObr2!E88 -> 0
A115: 2087 | D115: 743500 | H115: Приходи од одузете имовинске користи | AA115: =UnObr2!D89 -> 0 | AJ115: =UnObr2!E89 -> 0
A116: 2088 | D116: 743900 | H116: Остале новчане казне, пенали и приходи од одузете имовинске користи | AA116: =UnObr2!D90 -> 0 | AJ116: =UnObr2!E90 -> 0
A117: 2089 | D117: 744000 | H117: ДОБРОВОЉНИ ТРАНСФЕРИ ОД ФИЗИЧКИХ И ПРАВНИХ ЛИЦА (2090 + 2091) | AA117: =UnObr2!D91 -> 96 | AJ117: =UnObr2!E91 -> 0
A118: 2090 | D118: 744100 | H118: Текући добровољни трансфери од физичких и правних лица | AA118: =UnObr2!D92 -> 96 | AJ118: =UnObr2!E92 -> 0
A119: 2091 | D119: 744200 | H119: Капитални добровољни трансфери од физичких и правних лица | AA119: =UnObr2!D93 -> 0 | AJ119: =UnObr2!E93 -> 0
A120: 2092 | D120: 745000 | H120: МЕШОВИТИ И НЕОДРЕЂЕНИ ПРИХОДИ (2093) | AA120: =UnObr2!D94 -> 85 | AJ120: =UnObr2!E94 -> 0
A121: 2093 | D121: 745100 | H121: Мешовити и неодређени приходи | AA121: =UnObr2!D95 -> 85 | AJ121: =UnObr2!E95 -> 0
A122: 2094 | D122: 770000 | H122: МЕМОРАНДУМСКЕ СТАВКЕ ЗА РЕФУНДАЦИЈУ РАСХОДА (2095 + 2097) | AA122: =UnObr2!D96 -> 406 | AJ122: =UnObr2!E96 -> 648
A123: 2095 | D123: 771000 | H123: МЕМОРАНДУМСКЕ СТАВКЕ ЗА РЕФУНДАЦИЈУ РАСХОДА (2096) | AA123: =UnObr2!D97 -> 0 | AJ123: =UnObr2!E97 -> 0
A124: 2096 | D124: 771100 | H124: Меморандумске ставке за рефундацију расхода | AA124: =UnObr2!D98 -> 0 | AJ124: =UnObr2!E98 -> 0
A125: 2097 | D125: 772000 | H125: МЕМОРАНДУМСКЕ СТАВКЕ ЗА РЕФУНДАЦИЈУ РАСХОДА ИЗ ПРЕТХОДНЕ ГОДИНЕ (2098) | AA125: =UnObr2!D99 -> 406 | AJ125: =UnObr2!E99 -> 648
A126: 2098 | D126: 772100 | H126: Меморандумске ставке за рефундацију расхода из претходне године | AA126: =UnObr2!D100 -> 406 | AJ126: =UnObr2!E100 -> 648
A127: 2099 | D127: 780000 | H127: ТРАНСФЕРИ ИЗМЕЂУ БУЏЕТСКИХ КОРИСНИКА НА ИСТОМ НИВОУ (2100) | AA127: =UnObr2!D101 -> 0 | AJ127: =UnObr2!E101 -> 0
A128: 2100 | D128: 781000 | H128: ТРАНСФЕРИ ИЗМЕЂУ БУЏЕТСКИХ КОРИСНИКА НА ИСТОМ НИВОУ (2101 + 2102) | AA128: =UnObr2!D102 -> 0 | AJ128: =UnObr2!E102 -> 0
A129: 2101 | D129: 781100 | H129: Трансфери између буџетских корисника на истом нивоу | AA129: =UnObr2!D103 -> 0 | AJ129: =UnObr2!E103 -> 0
A130: 2102 | D130: 781300 | H130: Трансфери између организација обавезног социјалног осигурања | AA130: =UnObr2!D104 -> 0 | AJ130: =UnObr2!E104 -> 0
A131: 2103 | D131: 790000 | H131: ПРИХОДИ ИЗ БУЏЕТА (2104) | AA131: =UnObr2!D105 -> 109511 | AJ131: =UnObr2!E105 -> 144017
A132: 2104 | D132: 791000 | H132: ПРИХОДИ ИЗ БУЏЕТА (2105) | AA132: =UnObr2!D106 -> 109511 | AJ132: =UnObr2!E106 -> 144017
A133: 2105 | D133: 791100 | H133: Приходи из буџета | AA133: =UnObr2!D107 -> 109511 | AJ133: =UnObr2!E107 -> 144017
A134: 2106 | D134: 800000 | H134: ПРИМАЊА ОД ПРОДАЈЕ НЕФИНАНСИЈСКЕ ИМОВИНЕ (2107 + 2114 + 2121 + 2124) | AA134: =UnObr2!D108 -> 0 | AJ134: =UnObr2!E108 -> 0
A135: 2107 | D135: 810000 | H135: ПРИМАЊА ОД ПРОДАЈЕ ОСНОВНИХ СРЕДСТАВА (2108 + 2110 + 2112) | AA135: =UnObr2!D109 -> 0 | AJ135: =UnObr2!E109 -> 0
A136: 2108 | D136: 811000 | H136: ПРИМАЊА ОД ПРОДАЈЕ НЕПОКРЕТНОСТИ (2109) | AA136: =UnObr2!D110 -> 0 | AJ136: =UnObr2!E110 -> 0
A137: 2109 | D137: 811100 | H137: Примања од продаје непокретности | AA137: =UnObr2!D111 -> 0 | AJ137: =UnObr2!E111 -> 0
A138: 2110 | D138: 812000 | H138: ПРИМАЊА ОД ПРОДАЈЕ ПОКРЕТНЕ ИМОВИНЕ (2111) | AA138: =UnObr2!D112 -> 0 | AJ138: =UnObr2!E112 -> 0
A139: 2111 | D139: 812100 | H139: Примања од продаје покретне имовине | AA139: =UnObr2!D113 -> 0 | AJ139: =UnObr2!E113 -> 0
A140: 2112 | D140: 813000 | H140: ПРИМАЊА ОД ПРОДАЈЕ ОСТАЛИХ ОСНОВНИХ СРЕДСТАВА (2113) | AA140: =UnObr2!D114 -> 0 | AJ140: =UnObr2!E114 -> 0
A141: 2113 | D141: 813100 | H141: Примања од продаје осталих основних средстава | AA141: =UnObr2!D115 -> 0 | AJ141: =UnObr2!E115 -> 0
A142: 2114 | D142: 820000 | H142: ПРИМАЊА ОД ПРОДАЈЕ ЗАЛИХА (2115 + 2117 + 2119) | AA142: =UnObr2!D116 -> 0 | AJ142: =UnObr2!E116 -> 0
A143: 2115 | D143: 821000 | H143: ПРИМАЊА ОД ПРОДАЈЕ РОБНИХ РЕЗЕРВИ (2116) | AA143: =UnObr2!D117 -> 0 | AJ143: =UnObr2!E117 -> 0
A144: 2116 | D144: 821100 | H144: Примања од продаје робних резерви | AA144: =UnObr2!D118 -> 0 | AJ144: =UnObr2!E118 -> 0
A145: 2117 | D145: 822000 | H145: ПРИМАЊА ОД ПРОДАЈЕ ЗАЛИХА ПРОИЗВОДЊЕ (2118) | AA145: =UnObr2!D119 -> 0 | AJ145: =UnObr2!E119 -> 0
A146: 2118 | D146: 822100 | H146: Примања од продаје залиха производње | AA146: =UnObr2!D120 -> 0 | AJ146: =UnObr2!E120 -> 0
A147: 2119 | D147: 823000 | H147: ПРИМАЊА ОД ПРОДАЈЕ РОБЕ ЗА ДАЉУ ПРОДАЈУ (2120) | AA147: =UnObr2!D121 -> 0 | AJ147: =UnObr2!E121 -> 0
A148: 2120 | D148: 823100 | H148: Примања од продаје робе за даљу продају | AA148: =UnObr2!D122 -> 0 | AJ148: =UnObr2!E122 -> 0
A149: 2121 | D149: 830000 | H149: ПРИМАЊА ОД ПРОДАЈЕ ДРАГОЦЕНОСТИ (2122) | AA149: =UnObr2!D123 -> 0 | AJ149: =UnObr2!E123 -> 0
A150: 2122 | D150: 831000 | H150: ПРИМАЊА ОД ПРОДАЈЕ ДРАГОЦЕНОСТИ (2123) | AA150: =UnObr2!D124 -> 0 | AJ150: =UnObr2!E124 -> 0
A151: 2123 | D151: 831100 | H151: Примања од продаје драгоцености | AA151: =UnObr2!D125 -> 0 | AJ151: =UnObr2!E125 -> 0
A152: 2124 | D152: 840000 | H152: ПРИМАЊА ОД ПРОДАЈЕ ПРИРОДНЕ ИМОВИНЕ (2125 + 2127 + 2129) | AA152: =UnObr2!D126 -> 0 | AJ152: =UnObr2!E126 -> 0
A153: 2125 | D153: 841000 | H153: ПРИМАЊА ОД ПРОДАЈЕ ЗЕМЉИШТА (2126) | AA153: =UnObr2!D127 -> 0 | AJ153: =UnObr2!E127 -> 0
A154: 2126 | D154: 841100 | H154: Примања од продаје земљишта | AA154: =UnObr2!D128 -> 0 | AJ154: =UnObr2!E128 -> 0
A155: 2127 | D155: 842000 | H155: ПРИМАЊА ОД ПРОДАЈЕ ПОДЗЕМНИХ БЛАГА (2128) | AA155: =UnObr2!D129 -> 0 | AJ155: =UnObr2!E129 -> 0
A156: 2128 | D156: 842100 | H156: Примања од продаје подземних блага | AA156: =UnObr2!D130 -> 0 | AJ156: =UnObr2!E130 -> 0
A157: 2129 | D157: 843000 | H157: ПРИМАЊА ОД ПРОДАЈЕ ШУМА И ВОДА (2130) | AA157: =UnObr2!D131 -> 0 | AJ157: =UnObr2!E131 -> 0
A158: 2130 | D158: 843100 | H158: Примања од продаје шума и вода | AA158: =UnObr2!D132 -> 0 | AJ158: =UnObr2!E132 -> 0
A159: 2131 | H159: ТЕКУЋИ РАСХОДИ И ИЗДАЦИ ЗА НЕФИНАНСИЈСКУ ИМОВИНУ (2132 + 2300) | AA159: =UnObr2!D133 -> 141332 | AJ159: =UnObr2!E133 -> 156447
A160: 2132 | D160: 400000 | H160: ТЕКУЋИ РАСХОДИ (2133 + 2155 + 2200 + 2215 + 2239 + 2252 + 2268 + 2283) | AA160: =UnObr2!D134 -> 138756 | AJ160: =UnObr2!E134 -> 155146
A161: 2133 | D161: 410000 | H161: РАСХОДИ ЗА ЗАПОСЛЕНЕ (2134 + 2136 + 2140 + 2142 + 2147 + 2149 + 2151 + 2153) | AA161: =UnObr2!D135 -> 97480 | AJ161: =UnObr2!E135 -> 103699
A162: 2134 | D162: 411000 | H162: ПЛАТЕ, ДОДАЦИ И НАКНАДЕ ЗАПОСЛЕНИХ (ЗАРАДЕ) (2135) | AA162: =UnObr2!D136 -> 79028 | AJ162: =UnObr2!E136 -> 84879
A163: 2135 | D163: 411100 | H163: Плате, додаци и накнаде запослених | AA163: =UnObr2!D137 -> 79028 | AJ163: =UnObr2!E137 -> 84879
A164: 2136 | D164: 412000 | H164: СОЦИЈАЛНИ ДОПРИНОСИ НА ТЕРЕТ ПОСЛОДАВЦА (од 2137 до 2139) | AA164: =UnObr2!D138 -> 14146 | AJ164: =UnObr2!E138 -> 15200
A165: 2137 | D165: 412100 | H165: Допринос за пензијско и инвалидско осигурање | AA165: =UnObr2!D139 -> 9483 | AJ165: =UnObr2!E139 -> 10190
A166: 2138 | D166: 412200 | H166: Допринос за здравствено осигурање | AA166: =UnObr2!D140 -> 4070 | AJ166: =UnObr2!E140 -> 4373
A167: 2139 | D167: 412300 | H167: Допринос за незапосленост | AA167: =UnObr2!D141 -> 593 | AJ167: =UnObr2!E141 -> 637
A168: 2140 | D168: 413000 | H168: НАКНАДЕ У НАТУРИ (2141) | AA168: =UnObr2!D142 -> 345 | AJ168: =UnObr2!E142 -> 243
A169: 2141 | D169: 413100 | H169: Накнаде у натури | AA169: =UnObr2!D143 -> 345 | AJ169: =UnObr2!E143 -> 243
A170: 2142 | D170: 414000 | H170: СОЦИЈАЛНА ДАВАЊА ЗАПОСЛЕНИМА (од 2143 до 2146) | AA170: =UnObr2!D144 -> 2053 | AJ170: =UnObr2!E144 -> 969
A171: 2143 | D171: 414100 | H171: Исплата накнада за време одсуствовања с посла на терет фондова | AA171: =UnObr2!D145 -> 648 | AJ171: =UnObr2!E145 -> 763
A172: 2144 | D172: 414200 | H172: Расходи за образовање деце запослених | AA172: =UnObr2!D146 -> 0 | AJ172: =UnObr2!E146 -> 0
A173: 2145 | D173: 414300 | H173: Отпремнине и помоћи | AA173: =UnObr2!D147 -> 1405 | AJ173: =UnObr2!E147 -> 206
A174: 2146 | D174: 414400 | H174: Помоћ у медицинском лечењу запосленог или чланова уже породице и друге помоћи запосленом | AA174: =UnObr2!D148 -> 0 | AJ174: =UnObr2!E148 -> 0
A175: 2147 | D175: 415000 | H175: НАКНАДЕ ТРОШКОВА ЗА ЗАПОСЛЕНЕ (2148) | AA175: =UnObr2!D149 -> 1230 | AJ175: =UnObr2!E149 -> 1120
A176: 2148 | D176: 415100 | H176: Накнаде трошкова за запослене | AA176: =UnObr2!D150 -> 1230 | AJ176: =UnObr2!E150 -> 1120
A177: 2149 | D177: 416000 | H177: НАГРАДЕ ЗАПОСЛЕНИМА И ОСТАЛИ ПОСЕБНИ РАСХОДИ (2150) | AA177: =UnObr2!D151 -> 678 | AJ177: =UnObr2!E151 -> 1288
A178: 2150 | D178: 416100 | H178: Награде запосленима и остали посебни расходи | AA178: =UnObr2!D152 -> 678 | AJ178: =UnObr2!E152 -> 1288
A179: 2151 | D179: 417000 | H179: ПОСЛАНИЧКИ ДОДАТАК (2152) | AA179: =UnObr2!D153 -> 0 | AJ179: =UnObr2!E153 -> 0
A180: 2152 | D180: 417100 | H180: Посланички додатак | AA180: =UnObr2!D154 -> 0 | AJ180: =UnObr2!E154 -> 0
A181: 2153 | D181: 418000 | H181: СУДИЈСКИ ДОДАТАК (2154) | AA181: =UnObr2!D155 -> 0 | AJ181: =UnObr2!E155 -> 0
A182: 2154 | D182: 418100 | H182: Судијски додатак | AA182: =UnObr2!D156 -> 0 | AJ182: =UnObr2!E156 -> 0
A183: 2155 | D183: 420000 | H183: КОРИШЋЕЊЕ УСЛУГА И РОБА (2156 + 2164 + 2170 + 2179 + 2187 + 2190) | AA183: =UnObr2!D157 -> 35106 | AJ183: =UnObr2!E157 -> 37468
A184: 2156 | D184: 421000 | H184: СТАЛНИ ТРОШКОВИ (од 2157 до 2163) | AA184: =UnObr2!D158 -> 9361 | AJ184: =UnObr2!E158 -> 10626
A185: 2157 | D185: 421100 | H185: Трошкови платног промета и банкарских услуга | AA185: =UnObr2!D159 -> 179 | AJ185: =UnObr2!E159 -> 210
A186: 2158 | D186: 421200 | H186: Енергетске услуге | AA186: =UnObr2!D160 -> 6678 | AJ186: =UnObr2!E160 -> 8273
A187: 2159 | D187: 421300 | H187: Комуналне услуге | AA187: =UnObr2!D161 -> 1430 | AJ187: =UnObr2!E161 -> 1559
A188: 2160 | D188: 421400 | H188: Услуге комуникација | AA188: =UnObr2!D162 -> 498 | AJ188: =UnObr2!E162 -> 471
A189: 2161 | D189: 421500 | H189: Трошкови осигурања | AA189: =UnObr2!D163 -> 576 | AJ189: =UnObr2!E163 -> 113
A190: 2162 | D190: 421600 | H190: Закуп имовине и опреме | AA190: =UnObr2!D164 -> 0 | AJ190: =UnObr2!E164 -> 0
A191: 2163 | D191: 421900 | H191: Остали трошкови | AA191: =UnObr2!D165 -> 0 | AJ191: =UnObr2!E165 -> 0
A192: 2164 | D192: 422000 | H192: ТРОШКОВИ ПУТОВАЊА (од 2165 до 2169) | AA192: =UnObr2!D166 -> 853 | AJ192: =UnObr2!E166 -> 780
A193: 2165 | D193: 422100 | H193: Трошкови службених путовања у земљи | AA193: =UnObr2!D167 -> 717 | AJ193: =UnObr2!E167 -> 630
A194: 2166 | D194: 422200 | H194: Трошкови службених путовања у иностранство | AA194: =UnObr2!D168 -> 0 | AJ194: =UnObr2!E168 -> 0
A195: 2167 | D195: 422300 | H195: Трошкови путовања у оквиру редовног рада | AA195: =UnObr2!D169 -> 136 | AJ195: =UnObr2!E169 -> 150
A196: 2168 | D196: 422400 | H196: Трошкови путовања ученика | AA196: =UnObr2!D170 -> 0 | AJ196: =UnObr2!E170 -> 0
A197: 2169 | D197: 422900 | H197: Остали трошкови транспорта | AA197: =UnObr2!D171 -> 0 | AJ197: =UnObr2!E171 -> 0
A198: 2170 | D198: 423000 | H198: УСЛУГЕ ПО УГОВОРУ (од 2171 до 2178) | AA198: =UnObr2!D172 -> 4075 | AJ198: =UnObr2!E172 -> 3401
A199: 2171 | D199: 423100 | H199: Административне услуге | AA199: =UnObr2!D173 -> 0 | AJ199: =UnObr2!E173 -> 0
A200: 2172 | D200: 423200 | H200: Компјутерске услуге | AA200: =UnObr2!D174 -> 97 | AJ200: =UnObr2!E174 -> 101
A201: 2173 | D201: 423300 | H201: Услуге образовања и усавршавања запослених | AA201: =UnObr2!D175 -> 276 | AJ201: =UnObr2!E175 -> 187
A202: 2174 | D202: 423400 | H202: Услуге информисања | AA202: =UnObr2!D176 -> 170 | AJ202: =UnObr2!E176 -> 87
A203: 2175 | D203: 423500 | H203: Стручне услуге | AA203: =UnObr2!D177 -> 0 | AJ203: =UnObr2!E177 -> 0
A204: 2176 | D204: 423600 | H204: Услуге за домаћинство и угоститељство | AA204: =UnObr2!D178 -> 116 | AJ204: =UnObr2!E178 -> 106
A205: 2177 | D205: 423700 | H205: Репрезентација | AA205: =UnObr2!D179 -> 0 | AJ205: =UnObr2!E179 -> 0
A206: 2178 | D206: 423900 | H206: Остале опште услуге | AA206: =UnObr2!D180 -> 3416 | AJ206: =UnObr2!E180 -> 2920
A207: 2179 | D207: 424000 | H207: СПЕЦИЈАЛИЗОВАНЕ УСЛУГЕ (од 2180 до 2186) | AA207: =UnObr2!D181 -> 1719 | AJ207: =UnObr2!E181 -> 2165
A208: 2180 | D208: 424100 | H208: Пољопривредне услуге | AA208: =UnObr2!D182 -> 0 | AJ208: =UnObr2!E182 -> 0
A209: 2181 | D209: 424200 | H209: Услуге образовања, културе и спорта | AA209: =UnObr2!D183 -> 230 | AJ209: =UnObr2!E183 -> 181
A210: 2182 | D210: 424300 | H210: Медицинске услуге | AA210: =UnObr2!D184 -> 0 | AJ210: =UnObr2!E184 -> 0
... 182 more rows

Sheet UnObr3
A1: Ознака ОП | B1: Конто | C1: Опис | D1: Износ | G1: Штампа
D2: Претходна година | E2: Текућа година
A3: 3001 | C3: ПРИМАЊА (3002 + 3027) | D3: =D4+D29 -> 0 | E3: =E4+E29 -> 0
A4: 3002 | B4: 800000 | C4: ПРИМАЊА ОД ПРОДАЈЕ НЕФИНАНСИЈСКЕ ИМОВИНЕ (3003 + 3010 + 3017 + 3020) | D4: =D5+D12+D19+D22 -> 0 | E4: =E5+E12+E19+E22 -> 0
A5: 3003 | B5: 810000 | C5: ПРИМАЊА ОД ПРОДАЈЕ ОСНОВНИХ СРЕДСТАВА (3004 + 3006 + 3008) | D5: =D6+D8+D10 -> 0 | E5: =E6+E8+E10 -> 0
A6: 3004 | B6: 811000 | C6: ПРИМАЊА ОД ПРОДАЈЕ НЕПОКРЕТНОСТИ (3005) | D6: =D7 -> 0 | E6: =E7 -> 0
A7: 3005 | B7: 811100 | C7: Примања од продаје непокретности
A8: 3006 | B8: 812000 | C8: ПРИМАЊА ОД ПРОДАЈЕ ПОКРЕТНЕ ИМОВИНЕ (3007) | D8: =D9 -> 0 | E8: =E9 -> 0
A9: 3007 | B9: 812100 | C9: Примања од продаје покретне имовине
A10: 3008 | B10: 813000 | C10: ПРИМАЊА ОД ПРОДАЈЕ ОСТАЛИХ ОСНОВНИХ СРЕДСТАВА (3009) | D10: =D11 -> 0 | E10: =E11 -> 0
A11: 3009 | B11: 813100 | C11: Примања од продаје осталих основних средстава
A12: 3010 | B12: 820000 | C12: ПРИМАЊА ОД ПРОДАЈЕ ЗАЛИХА (3011 + 3013 + 3015) | D12: =D13+D15+D17 -> 0 | E12: =E13+E15+E17 -> 0
A13: 3011 | B13: 821000 | C13: ПРИМАЊА ОД ПРОДАЈЕ РОБНИХ РЕЗЕРВИ (3012) | D13: =D14 -> 0 | E13: =E14 -> 0
A14: 3012 | B14: 821100 | C14: Примања од продаје робних резерви
A15: 3013 | B15: 822000 | C15: ПРИМАЊА ОД ПРОДАЈЕ ЗАЛИХА ПРОИЗВОДЊЕ (3014) | D15: =D16 -> 0 | E15: =E16 -> 0
A16: 3014 | B16: 822100 | C16: Примања од продаје залиха производње
A17: 3015 | B17: 823000 | C17: ПРИМАЊА ОД ПРОДАЈЕ РОБЕ ЗА ДАЉУ ПРОДАЈУ (3016) | D17: =D18 -> 0 | E17: =E18 -> 0
A18: 3016 | B18: 823100 | C18: Примања од продаје робе за даљу продају
A19: 3017 | B19: 830000 | C19: ПРИМАЊА ОД ПРОДАЈЕ ДРАГОЦЕНОСТИ (3018) | D19: =D20 -> 0 | E19: =E20 -> 0
A20: 3018 | B20: 831000 | C20: ПРИМАЊА ОД ПРОДАЈЕ ДРАГОЦЕНОСТИ (3019) | D20: =D21 -> 0 | E20: =E21 -> 0
A21: 3019 | B21: 831100 | C21: Примања од продаје драгоцености
A22: 3020 | B22: 840000 | C22: ПРИМАЊА ОД ПРОДАЈЕ ПРИРОДНЕ ИМОВИНЕ (3021 + 3023 + 3025) | D22: =D23+D25+D27 -> 0 | E22: =E23+E25+E27 -> 0
A23: 3021 | B23: 841000 | C23: ПРИМАЊА ОД ПРОДАЈЕ ЗЕМЉИШТА (3022) | D23: =D24 -> 0 | E23: =E24 -> 0
A24: 3022 | B24: 841100 | C24: Примања од продаје земљишта
A25: 3023 | B25: 842000 | C25: ПРИМАЊА ОД ПРОДАЈЕ ПОДЗЕМНИХ БЛАГА (3024) | D25: =D26 -> 0 | E25: =E26 -> 0
A26: 3024 | B26: 842100 | C26: Примања од продаје подземних блага
A27: 3025 | B27: 843000 | C27: ПРИМАЊА ОД ПРОДАЈЕ ШУМА И ВОДА (3026) | D27: =D28 -> 0 | E27: =E28 -> 0
A28: 3026 | B28: 843100 | C28: Примања од продаје шума и вода
A29: 3027 | B29: 900000 | C29: ПРИМАЊА ОД ЗАДУЖИВАЊА И ПРОДАЈЕ ФИНАНСИЈСКЕ ИМОВИНЕ (3028 + 3047) | D29: =D30+D49 -> 0 | E29: =E30+E49 -> 0
A30: 3028 | B30: 910000 | C30: ПРИМАЊА ОД ЗАДУЖИВАЊА (3029 + 3039) | D30: =D31+D41 -> 0 | E30: =E31+E41 -> 0
A31: 3029 | B31: 911000 | C31: ПРИМАЊА ОД ДОМАЋИХ ЗАДУЖИВАЊА (од 3030 до 3038) | D31: =SUM(D32:D40) -> 0 | E31: =SUM(E32:E40) -> 0
A32: 3030 | B32: 911100 | C32: Примања од емитовања домаћих хартија од вредности, изузев акција
A33: 3031 | B33: 911200 | C33: Примања од задуживања од осталих нивоа власти
A34: 3032 | B34: 911300 | C34: Примања од задуживања од јавних финансијских институција у земљи
A35: 3033 | B35: 911400 | C35: Примања од задуживања од пословних банака у земљи
A36: 3034 | B36: 911500 | C36: Примања од задуживања од осталих поверилаца у земљи
A37: 3035 | B37: 911600 | C37: Примања од задуживања од домаћинстава у земљи
A38: 3036 | B38: 911700 | C38: Примања од домаћих финансијских деривата
A39: 3037 | B39: 911800 | C39: Примања од домаћих меница
A40: 3038 | B40: 911900 | C40: Исправка унутрашњег дуга
A41: 3039 | B41: 912000 | C41: ПРИМАЊА ОД ИНОСТРАНОГ ЗАДУЖИВАЊА (од 3040 до 3046) | D41: =SUM(D42:D48) -> 0 | E41: =SUM(E42:E48) -> 0
A42: 3040 | B42: 912100 | C42: Примања од емитовања хартија од вредности, изузев акција, на иностраном финансијском тржишту
A43: 3041 | B43: 912200 | C43: Примања од задуживања од иностраних држава
A44: 3042 | B44: 912300 | C44: Примања од задуживања од мултилатералних институција
A45: 3043 | B45: 912400 | C45: Примања од задуживања од иностраних пословних банака
A46: 3044 | B46: 912500 | C46: Примања од задуживања од осталих иностраних поверилаца
A47: 3045 | B47: 912600 | C47: Примања од иностраних финансијских деривата
A48: 3046 | B48: 912900 | C48: Исправка спољног дуга
A49: 3047 | B49: 920000 | C49: ПРИМАЊА ОД ПРОДАЈЕ ФИНАНСИЈСКЕ ИМОВИНЕ (3048 + 3058) | D49: =D50+D60 -> 0 | E49: =E50+E60 -> 0
A50: 3048 | B50: 921000 | C50: ПРИМАЊА ОД ПРОДАЈЕ ДОМАЋЕ ФИНАНСИЈСКЕ ИМОВИНЕ (од 3049 до 3057) | D50: =SUM(D51:D59) -> 0 | E50: =SUM(E51:E59) -> 0
A51: 3049 | B51: 921100 | C51: Примања од продаје домаћих хартија од вредности, изузев акција
A52: 3050 | B52: 921200 | C52: Примања од отплате кредита датих осталим нивоима власти
A53: 3051 | B53: 921300 | C53: Примања од отплате кредита датих домаћим јавним финансијским институцијама
A54: 3052 | B54: 921400 | C54: Примања од отплате кредита датих домаћим пословним банкама
A55: 3053 | B55: 921500 | C55: Примања од отплате кредита датих домаћим јавним нефинансијским институцијама
A56: 3054 | B56: 921600 | C56: Примања од отплате кредита датих физичким лицима и домаћинствима у земљи
A57: 3055 | B57: 921700 | C57: Примања од отплате кредита датих удружењима грађана у земљи
A58: 3056 | B58: 921800 | C58: Примања од отплате кредита датих нефинансијским приватним предузећима у земљи
A59: 3057 | B59: 921900 | C59: Примања од продаје домаћих акција и осталог капитала
A60: 3058 | B60: 922000 | C60: ПРИМАЊА ОД ПРОДАЈЕ СТРАНЕ ФИНАНСИЈСКЕ ИМОВИНЕ (од 3059 до 3066) | D60: =SUM(D61:D68) -> 0 | E60: =SUM(E61:E68) -> 0
A61: 3059 | B61: 922100 | C61: Примања од продаје страних хартија од вредности, изузев акција
A62: 3060 | B62: 922200 | C62: Примања од отплате кредита датих страним владама
A63: 3061 | B63: 922300 | C63: Примања од отплате кредита датих међународним организацијама
A64: 3062 | B64: 922400 | C64: Примања од отплате кредита датих страним пословним банкама
A65: 3063 | B65: 922500 | C65: Примања од отплате кредита датих страним нефинансијским институцијама
A66: 3064 | B66: 922600 | C66: Примања од отплате кредита датих страним невладиним организацијама
A67: 3065 | B67: 922700 | C67: Примања од продаје страних акција и осталог капитала
A68: 3066 | B68: 922800 | C68: Примања од продаје стране валуте
A69: 3067 | C69: ИЗДАЦИ (3068 + 3114) | D69: =D70+D116 -> 2576 | E69: =E70+E116 -> 1301
A70: 3068 | B70: 500000 | C70: ИЗДАЦИ ЗА НЕФИНАНСИЈСКУ ИМОВИНУ (3069 + 3091 + 3100 + 3103 + 3111) | D70: =D71+D93+D102+D105+D113 -> 2576 | E70: =E71+E93+E102+E105+E113 -> 1301
A71: 3069 | B71: 510000 | C71: ОСНОВНА СРЕДСТВА (3070 + 3075 + 3085 + 3087 + 3089) | D71: =D72+D77+D87+D89+D91 -> 2576 | E71: =E72+E77+E87+E89+E91 -> 1301
A72: 3070 | B72: 511000 | C72: ЗГРАДЕ И ГРАЂЕВИНСКИ ОБЈЕКТИ (од 3071 до 3074) | D72: =SUM(D73:D76) -> 0 | E72: =SUM(E73:E76) -> 0
A73: 3071 | B73: 511100 | C73: Куповина зграда и објеката
A74: 3072 | B74: 511200 | C74: Изградња зграда и објеката
A75: 3073 | B75: 511300 | C75: Капитално одржавање зграда и објеката
A76: 3074 | B76: 511400 | C76: Пројектно планирање
A77: 3075 | B77: 512000 | C77: МАШИНЕ И ОПРЕМА (од 3076 до 3084) | D77: =SUM(D78:D86) -> 2576 | E77: =SUM(E78:E86) -> 1301
A78: 3076 | B78: 512100 | C78: Опрема за саобраћај
A79: 3077 | B79: 512200 | C79: Административна опрема | D79: 2204 | E79: 896
A80: 3078 | B80: 512300 | C80: Опрема за пољопривреду
A81: 3079 | B81: 512400 | C81: Опрема за заштиту животне средине
A82: 3080 | B82: 512500 | C82: Медицинска и лабораторијска опрема
A83: 3081 | B83: 512600 | C83: Опрема за образовање, културу и спорт | D83: 333 | E83: 405
A84: 3082 | B84: 512700 | C84: Опрема за војску
A85: 3083 | B85: 512800 | C85: Опрема за јавну безбедност | D85: 39
A86: 3084 | B86: 512900 | C86: Опрема за производњу, моторна, непокретна и немоторна опрема
A87: 3085 | B87: 513000 | C87: ОСТАЛЕ НЕКРЕТНИНЕ И ОПРЕМА (3086) | D87: =D88 -> 0 | E87: =E88 -> 0
A88: 3086 | B88: 513100 | C88: Остале некретнине и опрема
A89: 3087 | B89: 514000 | C89: КУЛТИВИСАНА ИМОВИНА (3088) | D89: =D90 -> 0 | E89: =E90 -> 0
A90: 3088 | B90: 514100 | C90: Култивисана имовина
A91: 3089 | B91: 515000 | C91: НЕМАТЕРИЈАЛНА ИМОВИНА (3090) | D91: =D92 -> 0 | E91: =E92 -> 0
A92: 3090 | B92: 515100 | C92: Нематеријална имовина
A93: 3091 | B93: 520000 | C93: ЗАЛИХЕ (3092 + 3094 + 3098) | D93: =D94+D96+D100 -> 0 | E93: =E94+E96+E100 -> 0
A94: 3092 | B94: 521000 | C94: РОБНЕ РЕЗЕРВЕ (3093) | D94: =D95 -> 0 | E94: =E95 -> 0
A95: 3093 | B95: 521100 | C95: Робне резерве
A96: 3094 | B96: 522000 | C96: ЗАЛИХЕ ПРОИЗВОДЊЕ (од 3095 до 3097) | D96: =SUM(D97:D99) -> 0 | E96: =SUM(E97:E99) -> 0
A97: 3095 | B97: 522100 | C97: Залихе материјала
A98: 3096 | B98: 522200 | C98: Залихе недовршене производње
A99: 3097 | B99: 522300 | C99: Залихе готових производа
A100: 3098 | B100: 523000 | C100: ЗАЛИХЕ РОБЕ ЗА ДАЉУ ПРОДАЈУ (3099) | D100: =D101 -> 0 | E100: =E101 -> 0
A101: 3099 | B101: 523100 | C101: Залихе робе за даљу продају
A102: 3100 | B102: 530000 | C102: ДРАГОЦЕНОСТИ (3101) | D102: =D103 -> 0 | E102: =E103 -> 0
A103: 3101 | B103: 531000 | C103: ДРАГОЦЕНОСТИ (3102) | D103: =D104 -> 0 | E103: =E104 -> 0
A104: 3102 | B104: 531100 | C104: Драгоцености
A105: 3103 | B105: 540000 | C105: ПРИРОДНА ИМОВИНА (3104 + 3106 + 3108) | D105: =D106+D108+D110 -> 0 | E105: =E106+E108+E110 -> 0
A106: 3104 | B106: 541000 | C106: ЗЕМЉИШТЕ (3105) | D106: =D107 -> 0 | E106: =E107 -> 0
A107: 3105 | B107: 541100 | C107: Земљиште
A108: 3106 | B108: 542000 | C108: РУДНА БОГАТСТВА (3107) | D108: =D109 -> 0 | E108: =E109 -> 0
A109: 3107 | B109: 542100 | C109: Копови
A110: 3108 | B110: 543000 | C110: ШУМЕ И ВОДЕ (3109 + 3110) | D110: =D111+D112 -> 0 | E110: =E111+E112 -> 0
A111: 3109 | B111: 543100 | C111: Шуме
A112: 3110 | B112: 543200 | C112: Воде
A113: 3111 | B113: 550000 | C113: НЕФИНАНСИЈСКА ИМОВИНА КОЈА СЕ ФИНАНСИРА ИЗ СРЕДСТАВА ЗА РЕАЛИЗАЦИЈУ НАЦИОНАЛНОГ ИНВЕСТИЦИОНОГ ПЛАНА (3112) | D113: =D114 -> 0 | E113: =E114 -> 0
A114: 3112 | B114: 551000 | C114: НЕФИНАНСИЈСКА ИМОВИНА КОЈА СЕ ФИНАНСИРА ИЗ СРЕДСТАВА ЗА РЕАЛИЗАЦИЈУ НАЦИОНАЛНОГ ИНВЕСТИЦИОНОГ ПЛАНА (3113) | D114: =D115 -> 0 | E114: =E115 -> 0
A115: 3113 | B115: 551100 | C115: Нефинансијска имовина која се финансира из средстава за реализацију националног инвестиционог плана
A116: 3114 | B116: 600000 | C116: ИЗДАЦИ ЗА ОТПЛАТУ ГЛАВНИЦЕ И НАБАВКУ ФИНАНСИЈСКЕ ИМОВИНЕ (3115 + 3140) | D116: =D117+D142 -> 0 | E116: =E117+E142 -> 0
A117: 3115 | B117: 610000 | C117: ОТПЛАТА ГЛАВНИЦЕ (3116 + 3126 + 3134 + 3136 + 3138) | D117: =D118+D128+D136+D138+D140 -> 0 | E117: =E118+E128+E136+E138+E140 -> 0
A118: 3116 | B118: 611000 | C118: ОТПЛАТА ГЛАВНИЦЕ ДОМАЋИМ КРЕДИТОРИМА (од 3117 до 3125) | D118: =SUM(D119:D127) -> 0 | E118: =SUM(E119:E127) -> 0
A119: 3117 | B119: 611100 | C119: Отплата главнице на домаће хартије од вредности, изузев акција
A120: 3118 | B120: 611200 | C120: Отплата главнице осталим нивоима власти
A121: 3119 | B121: 611300 | C121: Отплата главнице домаћим јавним финансијским институцијама
A122: 3120 | B122: 611400 | C122: Отплата главнице домаћим пословним банкама
A123: 3121 | B123: 611500 | C123: Отплата главнице осталим домаћим кредиторима
A124: 3122 | B124: 611600 | C124: Отплата главнице домаћинствима у земљи
A125: 3123 | B125: 611700 | C125: Отплата главнице на домаће финансијске деривате
A126: 3124 | B126: 611800 | C126: Отплата домаћих меница
A127: 3125 | B127: 611900 | C127: Исправка унутрашњег дуга
A128: 3126 | B128: 612000 | C128: ОТПЛАТА ГЛАВНИЦЕ СТРАНИМ КРЕДИТОРИМА (од 3127 до 3133) | D128: =SUM(D129:D135) -> 0 | E128: =SUM(E129:E135) -> 0
A129: 3127 | B129: 612100 | C129: Отплата главнице на хартије од вредности, изузев акција, емитоване на иностраном финансијском тржишту
A130: 3128 | B130: 612200 | C130: Отплата главнице страним владама
A131: 3129 | B131: 612300 | C131: Отплата главнице мултилатералним институцијама
A132: 3130 | B132: 612400 | C132: Отплата главнице страним пословним банкама
A133: 3131 | B133: 612500 | C133: Отплата главнице осталим страним кредиторима
A134: 3132 | B134: 612600 | C134: Отплата главнице на стране финансијске деривате
A135: 3133 | B135: 612900 | C135: Исправка спољног дуга
A136: 3134 | B136: 613000 | C136: ОТПЛАТА ГЛАВНИЦЕ ПО ГАРАНЦИЈАМА (3135) | D136: =D137 -> 0 | E136: =E137 -> 0
A137: 3135 | B137: 613100 | C137: Отплата главнице по гаранцијама
A138: 3136 | B138: 614000 | C138: ОТПЛАТА ГЛАВНИЦЕ ЗА ФИНАНСИЈСКИ ЛИЗИНГ (3137) | D138: =D139 -> 0 | E138: =E139 -> 0
A139: 3137 | B139: 614100 | C139: Отплата главнице за финансијски лизинг
A140: 3138 | B140: 615000 | C140: ОТПЛАТА ГАРАНЦИЈА ПО КОМЕРЦИЈАЛНИМ ТРАНСАКЦИЈАМА (3139) | D140: =D141 -> 0 | E140: =E141 -> 0
A141: 3139 | B141: 615100 | C141: Отплата гаранција по комерцијалним трансакцијама
A142: 3140 | B142: 620000 | C142: НАБАВКА ФИНАНСИЈСКЕ ИМОВИНЕ (3141 + 3151 + 3160) | D142: =D143+D153+D162 -> 0 | E142: =E143+E153+E162 -> 0
A143: 3141 | B143: 621000 | C143: НАБАВКА ДОМАЋЕ ФИНАНСИЈСКЕ ИМОВИНЕ (од 3142 до 3150) | D143: =SUM(D144:D152) -> 0 | E143: =SUM(E144:E152) -> 0
A144: 3142 | B144: 621100 | C144: Набавка домаћих хартија од вредности, изузев акција
A145: 3143 | B145: 621200 | C145: Кредити осталим нивоима власти
A146: 3144 | B146: 621300 | C146: Кредити домаћим јавним финансијским институцијама
A147: 3145 | B147: 621400 | C147: Кредити домаћим пословним банкама
A148: 3146 | B148: 621500 | C148: Кредити домаћим нефинансијским јавним институцијама
A149: 3147 | B149: 621600 | C149: Кредити физичким лицима и домаћинствима у земљи
A150: 3148 | B150: 621700 | C150: Кредити невладиним организацијама у земљи
A151: 3149 | B151: 621800 | C151: Кредити домаћим нефинансијским приватним предузећима
A152: 3150 | B152: 621900 | C152: Набавка домаћих акција и осталог капитала
A153: 3151 | B153: 622000 | C153: НАБАВКА СТРАНЕ ФИНАНСИЈСКЕ ИМОВИНЕ (од 3152 до 3159) | D153: =SUM(D154:D161) -> 0 | E153: =SUM(E154:E161) -> 0
A154: 3152 | B154: 622100 | C154: Набавка страних хартија од вредности, изузев акција
A155: 3153 | B155: 622200 | C155: Кредити страним владама
A156: 3154 | B156: 622300 | C156: Кредити међународним организацијама
A157: 3155 | B157: 622400 | C157: Кредити страним пословним банкама
A158: 3156 | B158: 622500 | C158: Кредити страним нефинансијским институцијама
A159: 3157 | B159: 622600 | C159: Кредити страним невладиним организацијама
A160: 3158 | B160: 622700 | C160: Набавка страних акција и осталог капитала
A161: 3159 | B161: 622800 | C161: Куповина стране валуте
A162: 3160 | B162: 623000 | C162: НАБАВКА ФИНАНСИЈСКЕ ИМОВИНЕ КОЈА СЕ ФИНАНСИРА ИЗ СРЕДСТАВА ЗА РЕАЛИЗАЦИЈУ НАЦИОНАЛНОГ ИНВЕСТИЦИОНОГ ПЛАНА (3161) | D162: =D163 -> 0 | E162: =E163 -> 0
A163: 3161 | B163: 623100 | C163: Набавка финансијске имовине која се финансира из средстава за реализацију националног инвестиционог плана
A164: 3162 | C164: ВИШАК ПРИМАЊА (3001 – 3067) > 0 | D164: =IF(D3>D69,D3-D69,0) -> 0 | E164: =IF(E3>E69,E3-E69,0) -> 0
A165: 3163 | C165: МАЊАК ПРИМАЊА (3067 – 3001) > 0 | D165: =IF(D69>D3,D69-D3,0) -> 2576 | E165: =IF(E69>E3,E69-E3,0) -> 1301

Sheet StObr3
AL1: Образац 3
A2: ПОПУЊАВА УПРАВА ЗА ТРЕЗОР - ФИЛИЈАЛА
A3: 7 | B3: 5 | C3: 3 | E3: 0 | F3: =IF(LEN(Podaci!M2) > 4, MID(RIGHT(Podaci!$M$2,5),1,1),0) -> 0 | G3: =IF(LEN(Podaci!M2) > 3, MID(RIGHT(Podaci!$M$2,4),1,1),0) -> 8 | H3: =IF(LEN(Podaci!M2) > 2, MID(RIGHT(Podaci!$M$2,3),1,1),0) -> 5 | I3: =MID(RIGHT(Podaci!$M$2,2),1,1) -> 9 | J3: =MID(RIGHT(Podaci!$M$2,1),1,1) -> 0 | L3: =IF(LEN(Podaci!Z7) > 7, MID(RIGHT(Podaci!$Z$7,8),1,1),0) -> 0 | M3: =IF(LEN(Podaci!Z7) > 6, MID(RIGHT(Podaci!$Z$7,7),1,1),0) -> 8 | N3: =MID(RIGHT(Podaci!$Z$7,6),1,1) -> 0 | O3: =MID(RIGHT(Podaci!$Z$7,5),1,1) -> 0 | P3: =MID(RIGHT(Podaci!$Z$7,4),1,1) -> 4 | Q3: =MID(RIGHT(Podaci!$Z$7,3),1,1) -> 9 | R3: =MID(RIGHT(Podaci!$Z$7,2),1,1) -> 3 | S3: =MID(RIGHT(Podaci!$Z$7,1),1,1) -> 5
A4: 1 | B4: 2 | C4: 3 | E4: 4 | F4: 5 | G4: 6 | H4: 7 | I4: 8 | J4: 9 | L4: 10 | M4: 11 | N4: 12 | O4: 13 | P4: 14 | Q4: 15 | R4: 16 | S4: 17 | U4: 18 | V4: 19 | W4: 20 | X4: 21 | Y4: 22 | AA4: 23 | AB4: 24 | AC4: 25 | AD4: 26 | AE4: 27 | AG4: 28 | AI4: 29 | AJ4: 30 | AK4: 31 | AL4: 32 | AM4: 33 | AN4: 34 | AO4: 35 | AP4: 36 | AQ4: 37 | AR4: 38
A5: Врста посла | E5: Јединствени број КБС | U5: Седиште УТ | AA5: Надлежни директни КБС
B8: НАЗИВ КОРИСНИКА БУЏЕТСКИХ СРЕДСТАВА
B9: =Podaci!B5 -> ПРЕДШКОЛСКА УСТАНОВА "БАМБИ"
B11: СЕДИШТЕ | H11: =Podaci!H7 -> КУЛА | R11: МАТИЧНИ БРОЈ | Z11: =Podaci!Z7 -> 08004935
B13: ПИБ | E13: =Podaci!E9 -> 100261597 | R13: БРОЈ ПОДРАЧУНА | Z13: =Podaci!AA9 -> 840-49661-40
B15: НАЗИВ НАДЛЕЖНОГ ДИРЕКТНОГ КОРИСНИКА БУЏЕТСКИХ СРЕДСТАВА
B16: =Podaci!B12 -> ОПШТИНА КУЛА
B17: (Попуњава само индиректни корисник буџетских средстава)
F20: ИЗВЕШТАЈ О КАПИТАЛНИМ ИЗДАЦИМА И ПРИМАЊИМА
K21: у периоду од | Q21: =Podaci!D17 -> 01.01.2017. | V21: до | X21: =Podaci!D18 -> 31.12.2017. | AC21: године
AK22: (У хиљадама динара)
A23: Ознака ОП | D23: Број конта | H23: Опис | AA23: Износ
AA25: Претходна година | AJ25: Текућа година
A27: 1 | D27: 2 | H27: 3 | AA27: 4 | AJ27: 5
A28: 3001 | H28: ПРИМАЊА (3002 + 3027) | AA28: =UnObr3!D3 -> 0 | AJ28: =UnObr3!E3 -> 0
A29: 3002 | D29: 800000 | H29: ПРИМАЊА ОД ПРОДАЈЕ НЕФИНАНСИЈСКЕ ИМОВИНЕ (3003 + 3010 + 3017 + 3020) | AA29: =UnObr3!D4 -> 0 | AJ29: =UnObr3!E4 -> 0
A30: 3003 | D30: 810000 | H30: ПРИМАЊА ОД ПРОДАЈЕ ОСНОВНИХ СРЕДСТАВА (3004 + 3006 + 3008) | AA30: =UnObr3!D5 -> 0 | AJ30: =UnObr3!E5 -> 0
A31: 3004 | D31: 811000 | H31: ПРИМАЊА ОД ПРОДАЈЕ НЕПОКРЕТНОСТИ (3005) | AA31: =UnObr3!D6 -> 0 | AJ31: =UnObr3!E6 -> 0
A32: 3005 | D32: 811100 | H32: Примања од продаје непокретности | AA32: =UnObr3!D7 -> 0 | AJ32: =UnObr3!E7 -> 0
A33: 3006 | D33: 812000 | H33: ПРИМАЊА ОД ПРОДАЈЕ ПОКРЕТНЕ ИМОВИНЕ (3007) | AA33: =UnObr3!D8 -> 0 | AJ33: =UnObr3!E8 -> 0
A34: 3007 | D34: 812100 | H34: Примања од продаје покретне имовине | AA34: =UnObr3!D9 -> 0 | AJ34: =UnObr3!E9 -> 0
A35: 3008 | D35: 813000 | H35: ПРИМАЊА ОД ПРОДАЈЕ ОСТАЛИХ ОСНОВНИХ СРЕДСТАВА (3009) | AA35: =UnObr3!D10 -> 0 | AJ35: =UnObr3!E10 -> 0
A36: 3009 | D36: 813100 | H36: Примања од продаје осталих основних средстава | AA36: =UnObr3!D11 -> 0 | AJ36: =UnObr3!E11 -> 0
A37: 3010 | D37: 820000 | H37: ПРИМАЊА ОД ПРОДАЈЕ ЗАЛИХА (3011 + 3013 + 3015) | AA37: =UnObr3!D12 -> 0 | AJ37: =UnObr3!E12 -> 0
A38: 3011 | D38: 821000 | H38: ПРИМАЊА ОД ПРОДАЈЕ РОБНИХ РЕЗЕРВИ (3012) | AA38: =UnObr3!D13 -> 0 | AJ38: =UnObr3!E13 -> 0
A39: 3012 | D39: 821100 | H39: Примања од продаје робних резерви | AA39: =UnObr3!D14 -> 0 | AJ39: =UnObr3!E14 -> 0
A40: 3013 | D40: 822000 | H40: ПРИМАЊА ОД ПРОДАЈЕ ЗАЛИХА ПРОИЗВОДЊЕ (3014) | AA40: =UnObr3!D15 -> 0 | AJ40: =UnObr3!E15 -> 0
A41: 3014 | D41: 822100 | H41: Примања од продаје залиха производње | AA41: =UnObr3!D16 -> 0 | AJ41: =UnObr3!E16 -> 0
A42: 3015 | D42: 823000 | H42: ПРИМАЊА ОД ПРОДАЈЕ РОБЕ ЗА ДАЉУ ПРОДАЈУ (3016) | AA42: =UnObr3!D17 -> 0 | AJ42: =UnObr3!E17 -> 0
A43: 3016 | D43: 823100 | H43: Примања од продаје робе за даљу продају | AA43: =UnObr3!D18 -> 0 | AJ43: =UnObr3!E18 -> 0
A44: 3017 | D44: 830000 | H44: ПРИМАЊА ОД ПРОДАЈЕ ДРАГОЦЕНОСТИ (3018) | AA44: =UnObr3!D19 -> 0 | AJ44: =UnObr3!E19 -> 0
A45: 3018 | D45: 831000 | H45: ПРИМАЊА ОД ПРОДАЈЕ ДРАГОЦЕНОСТИ (3019) | AA45: =UnObr3!D20 -> 0 | AJ45: =UnObr3!E20 -> 0
A46: 3019 | D46: 831100 | H46: Примања од продаје драгоцености | AA46: =UnObr3!D21 -> 0 | AJ46: =UnObr3!E21 -> 0
A47: 3020 | D47: 840000 | H47: ПРИМАЊА ОД ПРОДАЈЕ ПРИРОДНЕ ИМОВИНЕ (3021 + 3023 + 3025) | AA47: =UnObr3!D22 -> 0 | AJ47: =UnObr3!E22 -> 0
A48: 3021 | D48: 841000 | H48: ПРИМАЊА ОД ПРОДАЈЕ ЗЕМЉИШТА (3022) | AA48: =UnObr3!D23 -> 0 | AJ48: =UnObr3!E23 -> 0
A49: 3022 | D49: 841100 | H49: Примања од продаје земљишта | AA49: =UnObr3!D24 -> 0 | AJ49: =UnObr3!E24 -> 0
A50: 3023 | D50: 842000 | H50: ПРИМАЊА ОД ПРОДАЈЕ ПОДЗЕМНИХ БЛАГА (3024) | AA50: =UnObr3!D25 -> 0 | AJ50: =UnObr3!E25 -> 0
A51: 3024 | D51: 842100 | H51: Примања од продаје подземних блага | AA51: =UnObr3!D26 -> 0 | AJ51: =UnObr3!E26 -> 0
A52: 3025 | D52: 843000 | H52: ПРИМАЊА ОД ПРОДАЈЕ ШУМА И ВОДА (3026) | AA52: =UnObr3!D27 -> 0 | AJ52: =UnObr3!E27 -> 0
A53: 3026 | D53: 843100 | H53: Примања од продаје шума и вода | AA53: =UnObr3!D28 -> 0 | AJ53: =UnObr3!E28 -> 0
A54: 3027 | D54: 900000 | H54: ПРИМАЊА ОД ЗАДУЖИВАЊА И ПРОДАЈЕ ФИНАНСИЈСКЕ ИМОВИНЕ (3028 + 3047) | AA54: =UnObr3!D29 -> 0 | AJ54: =UnObr3!E29 -> 0
A55: 3028 | D55: 910000 | H55: ПРИМАЊА ОД ЗАДУЖИВАЊА (3029 + 3039) | AA55: =UnObr3!D30 -> 0 | AJ55: =UnObr3!E30 -> 0
A56: 3029 | D56: 911000 | H56: ПРИМАЊА ОД ДОМАЋИХ ЗАДУЖИВАЊА (од 3030 до 3038) | AA56: =UnObr3!D31 -> 0 | AJ56: =UnObr3!E31 -> 0
A57: 3030 | D57: 911100 | H57: Примања од емитовања домаћих хартија од вредности, изузев акција | AA57: =UnObr3!D32 -> 0 | AJ57: =UnObr3!E32 -> 0
A58: 3031 | D58: 911200 | H58: Примања од задуживања од осталих нивоа власти | AA58: =UnObr3!D33 -> 0 | AJ58: =UnObr3!E33 -> 0
A59: 3032 | D59: 911300 | H59: Примања од задуживања од јавних финансијских институција у земљи | AA59: =UnObr3!D34 -> 0 | AJ59: =UnObr3!E34 -> 0
A60: 3033 | D60: 911400 | H60: Примања од задуживања од пословних банака у земљи | AA60: =UnObr3!D35 -> 0 | AJ60: =UnObr3!E35 -> 0
A61: 3034 | D61: 911500 | H61: Примања од задуживања од осталих поверилаца у земљи | AA61: =UnObr3!D36 -> 0 | AJ61: =UnObr3!E36 -> 0
A62: 3035 | D62: 911600 | H62: Примања од задуживања од домаћинстава у земљи | AA62: =UnObr3!D37 -> 0 | AJ62: =UnObr3!E37 -> 0
A63: 3036 | D63: 911700 | H63: Примања од домаћих финансијских деривата | AA63: =UnObr3!D38 -> 0 | AJ63: =UnObr3!E38 -> 0
A64: 3037 | D64: 911800 | H64: Примања од домаћих меница | AA64: =UnObr3!D39 -> 0 | AJ64: =UnObr3!E39 -> 0
A65: 3038 | D65: 911900 | H65: Исправка унутрашњег дуга | AA65: =UnObr3!D40 -> 0 | AJ65: =UnObr3!E40 -> 0
A66: 3039 | D66: 912000 | H66: ПРИМАЊА ОД ИНОСТРАНОГ ЗАДУЖИВАЊА (од 3040 до 3046) | AA66: =UnObr3!D41 -> 0 | AJ66: =UnObr3!E41 -> 0
A67: 3040 | D67: 912100 | H67: Примања од емитовања хартија од вредности, изузев акција, на иностраном финансијском тржишту | AA67: =UnObr3!D42 -> 0 | AJ67: =UnObr3!E42 -> 0
A68: 3041 | D68: 912200 | H68: Примања од задуживања од иностраних држава | AA68: =UnObr3!D43 -> 0 | AJ68: =UnObr3!E43 -> 0
A69: 3042 | D69: 912300 | H69: Примања од задуживања од мултилатералних институција | AA69: =UnObr3!D44 -> 0 | AJ69: =UnObr3!E44 -> 0
A70: 3043 | D70: 912400 | H70: Примања од задуживања од иностраних пословних банака | AA70: =UnObr3!D45 -> 0 | AJ70: =UnObr3!E45 -> 0
A71: 3044 | D71: 912500 | H71: Примања од задуживања од осталих иностраних поверилаца | AA71: =UnObr3!D46 -> 0 | AJ71: =UnObr3!E46 -> 0
A72: 3045 | D72: 912600 | H72: Примања од иностраних финансијских деривата | AA72: =UnObr3!D47 -> 0 | AJ72: =UnObr3!E47 -> 0
A73: 3046 | D73: 912900 | H73: Исправка спољног дуга | AA73: =UnObr3!D48 -> 0 | AJ73: =UnObr3!E48 -> 0
A74: 3047 | D74: 920000 | H74: ПРИМАЊА ОД ПРОДАЈЕ ФИНАНСИЈСКЕ ИМОВИНЕ (3048 + 3058) | AA74: =UnObr3!D49 -> 0 | AJ74: =UnObr3!E49 -> 0
A75: 3048 | D75: 921000 | H75: ПРИМАЊА ОД ПРОДАЈЕ ДОМАЋЕ ФИНАНСИЈСКЕ ИМОВИНЕ (од 3049 до 3057) | AA75: =UnObr3!D50 -> 0 | AJ75: =UnObr3!E50 -> 0
A76: 3049 | D76: 921100 | H76: Примања од продаје домаћих хартија од вредности, изузев акција | AA76: =UnObr3!D51 -> 0 | AJ76: =UnObr3!E51 -> 0
A77: 3050 | D77: 921200 | H77: Примања од отплате кредита датих осталим нивоима власти | AA77: =UnObr3!D52 -> 0 | AJ77: =UnObr3!E52 -> 0
A78: 3051 | D78: 921300 | H78: Примања од отплате кредита датих домаћим јавним финансијским институцијама | AA78: =UnObr3!D53 -> 0 | AJ78: =UnObr3!E53 -> 0
A79: 3052 | D79: 921400 | H79: Примања од отплате кредита датих домаћим пословним банкама | AA79: =UnObr3!D54 -> 0 | AJ79: =UnObr3!E54 -> 0
A80: 3053 | D80: 921500 | H80: Примања од отплате кредита датих домаћим јавним нефинансијским институцијама | AA80: =UnObr3!D55 -> 0 | AJ80: =UnObr3!E55 -> 0
A81: 3054 | D81: 921600 | H81: Примања од отплате кредита датих физичким лицима и домаћинствима у земљи | AA81: =UnObr3!D56 -> 0 | AJ81: =UnObr3!E56 -> 0
A82: 3055 | D82: 921700 | H82: Примања од отплате кредита датих удружењима грађана у земљи | AA82: =UnObr3!D57 -> 0 | AJ82: =UnObr3!E57 -> 0
A83: 3056 | D83: 921800 | H83: Примања од отплате кредита датих нефинансијским приватним предузећима у земљи | AA83: =UnObr3!D58 -> 0 | AJ83: =UnObr3!E58 -> 0
A84: 3057 | D84: 921900 | H84: Примања од продаје домаћих акција и осталог капитала | AA84: =UnObr3!D59 -> 0 | AJ84: =UnObr3!E59 -> 0
A85: 3058 | D85: 922000 | H85: ПРИМАЊА ОД ПРОДАЈЕ СТРАНЕ ФИНАНСИЈСКЕ ИМОВИНЕ (од 3059 до 3066) | AA85: =UnObr3!D60 -> 0 | AJ85: =UnObr3!E60 -> 0
A86: 3059 | D86: 922100 | H86: Примања од продаје страних хартија од вредности, изузев акција | AA86: =UnObr3!D61 -> 0 | AJ86: =UnObr3!E61 -> 0
A87: 3060 | D87: 922200 | H87: Примања од отплате кредита датих страним владама | AA87: =UnObr3!D62 -> 0 | AJ87: =UnObr3!E62 -> 0
A88: 3061 | D88: 922300 | H88: Примања од отплате кредита датих међународним организацијама | AA88: =UnObr3!D63 -> 0 | AJ88: =UnObr3!E63 -> 0
A89: 3062 | D89: 922400 | H89: Примања од отплате кредита датих страним пословним банкама | AA89: =UnObr3!D64 -> 0 | AJ89: =UnObr3!E64 -> 0
A90: 3063 | D90: 922500 | H90: Примања од отплате кредита датих страним нефинансијским институцијама | AA90: =UnObr3!D65 -> 0 | AJ90: =UnObr3!E65 -> 0
A91: 3064 | D91: 922600 | H91: Примања од отплате кредита датих страним невладиним организацијама | AA91: =UnObr3!D66 -> 0 | AJ91: =UnObr3!E66 -> 0
A92: 3065 | D92: 922700 | H92: Примања од продаје страних акција и осталог капитала | AA92: =UnObr3!D67 -> 0 | AJ92: =UnObr3!E67 -> 0
A93: 3066 | D93: 922800 | H93: Примања од продаје стране валуте | AA93: =UnObr3!D68 -> 0 | AJ93: =UnObr3!E68 -> 0
A94: 3067 | H94: ИЗДАЦИ (3068 + 3114) | AA94: =UnObr3!D69 -> 2576 | AJ94: =UnObr3!E69 -> 1301
A95: 3068 | D95: 500000 | H95: ИЗДАЦИ ЗА НЕФИНАНСИЈСКУ ИМОВИНУ (3069 + 3091 + 3100 + 3103 + 3111) | AA95: =UnObr3!D70 -> 2576 | AJ95: =UnObr3!E70 -> 1301
A96: 3069 | D96: 510000 | H96: ОСНОВНА СРЕДСТВА (3070 + 3075 + 3085 + 3087 + 3089) | AA96: =UnObr3!D71 -> 2576 | AJ96: =UnObr3!E71 -> 1301
A97: 3070 | D97: 511000 | H97: ЗГРАДЕ И ГРАЂЕВИНСКИ ОБЈЕКТИ (од 3071 до 3074) | AA97: =UnObr3!D72 -> 0 | AJ97: =UnObr3!E72 -> 0
A98: 3071 | D98: 511100 | H98: Куповина зграда и објеката | AA98: =UnObr3!D73 -> 0 | AJ98: =UnObr3!E73 -> 0
A99: 3072 | D99: 511200 | H99: Изградња зграда и објеката | AA99: =UnObr3!D74 -> 0 | AJ99: =UnObr3!E74 -> 0
A100: 3073 | D100: 511300 | H100: Капитално одржавање зграда и објеката | AA100: =UnObr3!D75 -> 0 | AJ100: =UnObr3!E75 -> 0
A101: 3074 | D101: 511400 | H101: Пројектно планирање | AA101: =UnObr3!D76 -> 0 | AJ101: =UnObr3!E76 -> 0
A102: 3075 | D102: 512000 | H102: МАШИНЕ И ОПРЕМА (од 3076 до 3084) | AA102: =UnObr3!D77 -> 2576 | AJ102: =UnObr3!E77 -> 1301
A103: 3076 | D103: 512100 | H103: Опрема за саобраћај | AA103: =UnObr3!D78 -> 0 | AJ103: =UnObr3!E78 -> 0
A104: 3077 | D104: 512200 | H104: Административна опрема | AA104: =UnObr3!D79 -> 2204 | AJ104: =UnObr3!E79 -> 896
A105: 3078 | D105: 512300 | H105: Опрема за пољопривреду | AA105: =UnObr3!D80 -> 0 | AJ105: =UnObr3!E80 -> 0
A106: 3079 | D106: 512400 | H106: Опрема за заштиту животне средине | AA106: =UnObr3!D81 -> 0 | AJ106: =UnObr3!E81 -> 0
A107: 3080 | D107: 512500 | H107: Медицинска и лабораторијска опрема | AA107: =UnObr3!D82 -> 0 | AJ107: =UnObr3!E82 -> 0
A108: 3081 | D108: 512600 | H108: Опрема за образовање, културу и спорт | AA108: =UnObr3!D83 -> 333 | AJ108: =UnObr3!E83 -> 405
A109: 3082 | D109: 512700 | H109: Опрема за војску | AA109: =UnObr3!D84 -> 0 | AJ109: =UnObr3!E84 -> 0
A110: 3083 | D110: 512800 | H110: Опрема за јавну безбедност | AA110: =UnObr3!D85 -> 39 | AJ110: =UnObr3!E85 -> 0
A111: 3084 | D111: 512900 | H111: Опрема за производњу, моторна, непокретна и немоторна опрема | AA111: =UnObr3!D86 -> 0 | AJ111: =UnObr3!E86 -> 0
A112: 3085 | D112: 513000 | H112: ОСТАЛЕ НЕКРЕТНИНЕ И ОПРЕМА (3086) | AA112: =UnObr3!D87 -> 0 | AJ112: =UnObr3!E87 -> 0
A113: 3086 | D113: 513100 | H113: Остале некретнине и опрема | AA113: =UnObr3!D88 -> 0 | AJ113: =UnObr3!E88 -> 0
A114: 3087 | D114: 514000 | H114: КУЛТИВИСАНА ИМОВИНА (3088) | AA114: =UnObr3!D89 -> 0 | AJ114: =UnObr3!E89 -> 0
A115: 3088 | D115: 514100 | H115: Култивисана имовина | AA115: =UnObr3!D90 -> 0 | AJ115: =UnObr3!E90 -> 0
A116: 3089 | D116: 515000 | H116: НЕМАТЕРИЈАЛНА ИМОВИНА (3090) | AA116: =UnObr3!D91 -> 0 | AJ116: =UnObr3!E91 -> 0
A117: 3090 | D117: 515100 | H117: Нематеријална имовина | AA117: =UnObr3!D92 -> 0 | AJ117: =UnObr3!E92 -> 0
A118: 3091 | D118: 520000 | H118: ЗАЛИХЕ (3092 + 3094 + 3098) | AA118: =UnObr3!D93 -> 0 | AJ118: =UnObr3!E93 -> 0
A119: 3092 | D119: 521000 | H119: РОБНЕ РЕЗЕРВЕ (3093) | AA119: =UnObr3!D94 -> 0 | AJ119: =UnObr3!E94 -> 0
A120: 3093 | D120: 521100 | H120: Робне резерве | AA120: =UnObr3!D95 -> 0 | AJ120: =UnObr3!E95 -> 0
A121: 3094 | D121: 522000 | H121: ЗАЛИХЕ ПРОИЗВОДЊЕ (од 3095 до 3097) | AA121: =UnObr3!D96 -> 0 | AJ121: =UnObr3!E96 -> 0
A122: 3095 | D122: 522100 | H122: Залихе материјала | AA122: =UnObr3!D97 -> 0 | AJ122: =UnObr3!E97 -> 0
A123: 3096 | D123: 522200 | H123: Залихе недовршене производње | AA123: =UnObr3!D98 -> 0 | AJ123: =UnObr3!E98 -> 0
A124: 3097 | D124: 522300 | H124: Залихе готових производа | AA124: =UnObr3!D99 -> 0 | AJ124: =UnObr3!E99 -> 0
A125: 3098 | D125: 523000 | H125: ЗАЛИХЕ РОБЕ ЗА ДАЉУ ПРОДАЈУ (3099) | AA125: =UnObr3!D100 -> 0 | AJ125: =UnObr3!E100 -> 0
A126: 3099 | D126: 523100 | H126: Залихе робе за даљу продају | AA126: =UnObr3!D101 -> 0 | AJ126: =UnObr3!E101 -> 0
A127: 3100 | D127: 530000 | H127: ДРАГОЦЕНОСТИ (3101) | AA127: =UnObr3!D102 -> 0 | AJ127: =UnObr3!E102 -> 0
A128: 3101 | D128: 531000 | H128: ДРАГОЦЕНОСТИ (3102) | AA128: =UnObr3!D103 -> 0 | AJ128: =UnObr3!E103 -> 0
A129: 3102 | D129: 531100 | H129: Драгоцености | AA129: =UnObr3!D104 -> 0 | AJ129: =UnObr3!E104 -> 0
A130: 3103 | D130: 540000 | H130: ПРИРОДНА ИМОВИНА (3104 + 3106 + 3108) | AA130: =UnObr3!D105 -> 0 | AJ130: =UnObr3!E105 -> 0
A131: 3104 | D131: 541000 | H131: ЗЕМЉИШТЕ (3105) | AA131: =UnObr3!D106 -> 0 | AJ131: =UnObr3!E106 -> 0
A132: 3105 | D132: 541100 | H132: Земљиште | AA132: =UnObr3!D107 -> 0 | AJ132: =UnObr3!E107 -> 0
A133: 3106 | D133: 542000 | H133: РУДНА БОГАТСТВА (3107) | AA133: =UnObr3!D108 -> 0 | AJ133: =UnObr3!E108 -> 0
A134: 3107 | D134: 542100 | H134: Копови | AA134: =UnObr3!D109 -> 0 | AJ134: =UnObr3!E109 -> 0
A135: 3108 | D135: 543000 | H135: ШУМЕ И ВОДЕ (3109 + 3110) | AA135: =UnObr3!D110 -> 0 | AJ135: =UnObr3!E110 -> 0
A136: 3109 | D136: 543100 | H136: Шуме | AA136: =UnObr3!D111 -> 0 | AJ136: =UnObr3!E111 -> 0
A137: 3110 | D137: 543200 | H137: Воде | AA137: =UnObr3!D112 -> 0 | AJ137: =UnObr3!E112 -> 0
A138: 3111 | D138: 550000 | H138: НЕФИНАНСИЈСКА ИМОВИНА КОЈА СЕ ФИНАНСИРА ИЗ СРЕДСТАВА ЗА РЕАЛИЗАЦИЈУ НАЦИОНАЛНОГ ИНВЕСТИЦИОНОГ ПЛАНА (3112) | AA138: =UnObr3!D113 -> 0 | AJ138: =UnObr3!E113 -> 0
A139: 3112 | D139: 551000 | H139: НЕФИНАНСИЈСКА ИМОВИНА КОЈА СЕ ФИНАНСИРА ИЗ СРЕДСТАВА ЗА РЕАЛИЗАЦИЈУ НАЦИОНАЛНОГ ИНВЕСТИЦИОНОГ ПЛАНА (3113) | AA139: =UnObr3!D114 -> 0 | AJ139: =UnObr3!E114 -> 0
A140: 3113 | D140: 551100 | H140: Нефинансијска имовина која се финансира из средстава за реализацију националног инвестиционог плана | AA140: =UnObr3!D115 -> 0 | AJ140: =UnObr3!E115 -> 0
A141: 3114 | D141: 600000 | H141: ИЗДАЦИ ЗА ОТПЛАТУ ГЛАВНИЦЕ И НАБАВКУ ФИНАНСИЈСКЕ ИМОВИНЕ (3115 + 3140) | AA141: =UnObr3!D116 -> 0 | AJ141: =UnObr3!E116 -> 0
A142: 3115 | D142: 610000 | H142: ОТПЛАТА ГЛАВНИЦЕ (3116 + 3126 + 3134 + 3136 + 3138) | AA142: =UnObr3!D117 -> 0 | AJ142: =UnObr3!E117 -> 0
A143: 3116 | D143: 611000 | H143: ОТПЛАТА ГЛАВНИЦЕ ДОМАЋИМ КРЕДИТОРИМА (од 3117 до 3125) | AA143: =UnObr3!D118 -> 0 | AJ143: =UnObr3!E118 -> 0
A144: 3117 | D144: 611100 | H144: Отплата главнице на домаће хартије од вредности, изузев акција | AA144: =UnObr3!D119 -> 0 | AJ144: =UnObr3!E119 -> 0
A145: 3118 | D145: 611200 | H145: Отплата главнице осталим нивоима власти | AA145: =UnObr3!D120 -> 0 | AJ145: =UnObr3!E120 -> 0
A146: 3119 | D146: 611300 | H146: Отплата главнице домаћим јавним финансијским институцијама | AA146: =UnObr3!D121 -> 0 | AJ146: =UnObr3!E121 -> 0
A147: 3120 | D147: 611400 | H147: Отплата главнице домаћим пословним банкама | AA147: =UnObr3!D122 -> 0 | AJ147: =UnObr3!E122 -> 0
A148: 3121 | D148: 611500 | H148: Отплата главнице осталим домаћим кредиторима | AA148: =UnObr3!D123 -> 0 | AJ148: =UnObr3!E123 -> 0
A149: 3122 | D149: 611600 | H149: Отплата главнице домаћинствима у земљи | AA149: =UnObr3!D124 -> 0 | AJ149: =UnObr3!E124 -> 0
A150: 3123 | D150: 611700 | H150: Отплата главнице на домаће финансијске деривате | AA150: =UnObr3!D125 -> 0 | AJ150: =UnObr3!E125 -> 0
A151: 3124 | D151: 611800 | H151: Отплата домаћих меница | AA151: =UnObr3!D126 -> 0 | AJ151: =UnObr3!E126 -> 0
A152: 3125 | D152: 611900 | H152: Исправка унутрашњег дуга | AA152: =UnObr3!D127 -> 0 | AJ152: =UnObr3!E127 -> 0
A153: 3126 | D153: 612000 | H153: ОТПЛАТА ГЛАВНИЦЕ СТРАНИМ КРЕДИТОРИМА (од 3127 до 3133) | AA153: =UnObr3!D128 -> 0 | AJ153: =UnObr3!E128 -> 0
A154: 3127 | D154: 612100 | H154: Отплата главнице на хартије од вредности, изузев акција, емитоване на иностраном финансијском тржишту | AA154: =UnObr3!D129 -> 0 | AJ154: =UnObr3!E129 -> 0
A155: 3128 | D155: 612200 | H155: Отплата главнице страним владама | AA155: =UnObr3!D130 -> 0 | AJ155: =UnObr3!E130 -> 0
A156: 3129 | D156: 612300 | H156: Отплата главнице мултилатералним институцијама | AA156: =UnObr3!D131 -> 0 | AJ156: =UnObr3!E131 -> 0
A157: 3130 | D157: 612400 | H157: Отплата главнице страним пословним банкама | AA157: =UnObr3!D132 -> 0 | AJ157: =UnObr3!E132 -> 0
A158: 3131 | D158: 612500 | H158: Отплата главнице осталим страним кредиторима | AA158: =UnObr3!D133 -> 0 | AJ158: =UnObr3!E133 -> 0
A159: 3132 | D159: 612600 | H159: Отплата главнице на стране финансијске деривате | AA159: =UnObr3!D134 -> 0 | AJ159: =UnObr3!E134 -> 0
A160: 3133 | D160: 612900 | H160: Исправка спољног дуга | AA160: =UnObr3!D135 -> 0 | AJ160: =UnObr3!E135 -> 0
A161: 3134 | D161: 613000 | H161: ОТПЛАТА ГЛАВНИЦЕ ПО ГАРАНЦИЈАМА (3135) | AA161: =UnObr3!D136 -> 0 | AJ161: =UnObr3!E136 -> 0
A162: 3135 | D162: 613100 | H162: Отплата главнице по гаранцијама | AA162: =UnObr3!D137 -> 0 | AJ162: =UnObr3!E137 -> 0
A163: 3136 | D163: 614000 | H163: ОТПЛАТА ГЛАВНИЦЕ ЗА ФИНАНСИЈСКИ ЛИЗИНГ (3137) | AA163: =UnObr3!D138 -> 0 | AJ163: =UnObr3!E138 -> 0
A164: 3137 | D164: 614100 | H164: Отплата главнице за финансијски лизинг | AA164: =UnObr3!D139 -> 0 | AJ164: =UnObr3!E139 -> 0
A165: 3138 | D165: 615000 | H165: ОТПЛАТА ГАРАНЦИЈА ПО КОМЕРЦИЈАЛНИМ ТРАНСАКЦИЈАМА (3139) | AA165: =UnObr3!D140 -> 0 | AJ165: =UnObr3!E140 -> 0
A166: 3139 | D166: 615100 | H166: Отплата гаранција по комерцијалним трансакцијама | AA166: =UnObr3!D141 -> 0 | AJ166: =UnObr3!E141 -> 0
A167: 3140 | D167: 620000 | H167: НАБАВКА ФИНАНСИЈСКЕ ИМОВИНЕ (3141 + 3151 + 3160) | AA167: =UnObr3!D142 -> 0 | AJ167: =UnObr3!E142 -> 0
A168: 3141 | D168: 621000 | H168: НАБАВКА ДОМАЋЕ ФИНАНСИЈСКЕ ИМОВИНЕ (од 3142 до 3150) | AA168: =UnObr3!D143 -> 0 | AJ168: =UnObr3!E143 -> 0
A169: 3142 | D169: 621100 | H169: Набавка домаћих хартија од вредности, изузев акција | AA169: =UnObr3!D144 -> 0 | AJ169: =UnObr3!E144 -> 0
A170: 3143 | D170: 621200 | H170: Кредити осталим нивоима власти | AA170: =UnObr3!D145 -> 0 | AJ170: =UnObr3!E145 -> 0
A171: 3144 | D171: 621300 | H171: Кредити домаћим јавним финансијским институцијама | AA171: =UnObr3!D146 -> 0 | AJ171: =UnObr3!E146 -> 0
A172: 3145 | D172: 621400 | H172: Кредити домаћим пословним банкама | AA172: =UnObr3!D147 -> 0 | AJ172: =UnObr3!E147 -> 0
A173: 3146 | D173: 621500 | H173: Кредити домаћим нефинансијским јавним институцијама | AA173: =UnObr3!D148 -> 0 | AJ173: =UnObr3!E148 -> 0
A174: 3147 | D174: 621600 | H174: Кредити физичким лицима и домаћинствима у земљи | AA174: =UnObr3!D149 -> 0 | AJ174: =UnObr3!E149 -> 0
A175: 3148 | D175: 621700 | H175: Кредити невладиним организацијама у земљи | AA175: =UnObr3!D150 -> 0 | AJ175: =UnObr3!E150 -> 0
A176: 3149 | D176: 621800 | H176: Кредити домаћим нефинансијским приватним предузећима | AA176: =UnObr3!D151 -> 0 | AJ176: =UnObr3!E151 -> 0
A177: 3150 | D177: 621900 | H177: Набавка домаћих акција и осталог капитала | AA177: =UnObr3!D152 -> 0 | AJ177: =UnObr3!E152 -> 0
A178: 3151 | D178: 622000 | H178: НАБАВКА СТРАНЕ ФИНАНСИЈСКЕ ИМОВИНЕ (од 3152 до 3159) | AA178: =UnObr3!D153 -> 0 | AJ178: =UnObr3!E153 -> 0
A179: 3152 | D179: 622100 | H179: Набавка страних хартија од вредности, изузев акција | AA179: =UnObr3!D154 -> 0 | AJ179: =UnObr3!E154 -> 0
A180: 3153 | D180: 622200 | H180: Кредити страним владама | AA180: =UnObr3!D155 -> 0 | AJ180: =UnObr3!E155 -> 0
A181: 3154 | D181: 622300 | H181: Кредити међународним организацијама | AA181: =UnObr3!D156 -> 0 | AJ181: =UnObr3!E156 -> 0
A182: 3155 | D182: 622400 | H182: Кредити страним пословним банкама | AA182: =UnObr3!D157 -> 0 | AJ182: =UnObr3!E157 -> 0
A183: 3156 | D183: 622500 | H183: Кредити страним нефинансијским институцијама | AA183: =UnObr3!D158 -> 0 | AJ183: =UnObr3!E158 -> 0
A184: 3157 | D184: 622600 | H184: Кредити страним невладиним организацијама | AA184: =UnObr3!D159 -> 0 | AJ184: =UnObr3!E159 -> 0
A185: 3158 | D185: 622700 | H185: Набавка страних акција и осталог капитала | AA185: =UnObr3!D160 -> 0 | AJ185: =UnObr3!E160 -> 0
A186: 3159 | D186: 622800 | H186: Куповина стране валуте | AA186: =UnObr3!D161 -> 0 | AJ186: =UnObr3!E161 -> 0
A187: 3160 | D187: 623000 | H187: НАБАВКА ФИНАНСИЈСКЕ ИМОВИНЕ КОЈА СЕ ФИНАНСИРА ИЗ СРЕДСТАВА ЗА РЕАЛИЗАЦИЈУ НАЦИОНАЛНОГ ИНВЕСТИЦИОНОГ ПЛАНА (3161) | AA187: =UnObr3!D162 -> 0 | AJ187: =UnObr3!E162 -> 0
A188: 3161 | D188: 623100 | H188: Набавка финансијске имовине која се финансира из средстава за реализацију националног инвестиционог плана | AA188: =UnObr3!D163 -> 0 | AJ188: =UnObr3!E163 -> 0
A189: 3162 | H189: ВИШАК ПРИМАЊА (3001 – 3067) | AA189: =UnObr3!D164 -> 0 | AJ189: =UnObr3!E164 -> 0
A190: 3163 | H190: МАЊАК ПРИМАЊА (3067 – 3001) | AA190: =UnObr3!D165 -> 2576 | AJ190: =UnObr3!E165 -> 1301
Q192: Лице одговорно за попуњавање обрасца | AI192: Наредбодавац
A193: Датум, | D193: =Podaci!E21 -> 23.02.2018. | I193: . године

Sheet UnObr4
A1: Ознака ОП | B1: Конто | C1: Опис | D1: Износ | G1: Штампа
D2: Претходна година | E2: Текућа година
A3: 4001 | C3: Н О В Ч А Н И П Р И Л И В И (4002 + 4106 + 4131) | D3: =D4+D108+D133 -> 139159 | E3: =E4+E108+E133 -> 156452
A4: 4002 | B4: 700000 | C4: ТЕКУЋИ ПРИХОДИ (4003 + 4047 + 4057 + 4069 + 4094 + 4099 + 4103) | D4: =D5+D49+D59+D71+D96+D101+D105 -> 139159 | E4: =E5+E49+E59+E71+E96+E101+E105 -> 156452
A5: 4003 | B5: 710000 | C5: ПОРЕЗИ (4004 + 4008 + 4010 + 4017 + 4023 + 4030 + 4033 + 4040) | D5: =D6+D10+D12+D19+D25+D32+D35+D42 -> 0 | E5: =E6+E10+E12+E19+E25+E32+E35+E42 -> 0
A6: 4004 | B6: 711000 | C6: ПОРЕЗ НА ДОХОДАК, ДОБИТ И КАПИТАЛНЕ ДОБИТКЕ (од 4005 до 4007) | D6: =SUM(D7:D9) -> 0 | E6: =SUM(E7:E9) -> 0
A7: 4005 | B7: 711100 | C7: Порези на доходак и капиталне добитке које плаћају физичка лица
A8: 4006 | B8: 711200 | C8: Порези на добит и капиталне добитке које плаћају предузећа и друга правна лица
A9: 4007 | B9: 711300 | C9: Порези на доходак, добит и капиталне добитке који се не могу разврстати између физичких и правних лица
A10: 4008 | B10: 712000 | C10: ПОРЕЗ НА ФОНД ЗАРАДА (4009) | D10: =D11 -> 0 | E10: =E11 -> 0
A11: 4009 | B11: 712100 | C11: Порез на фонд зарада
A12: 4010 | B12: 713000 | C12: ПОРЕЗ НА ИМОВИНУ (од 4011 до 4016) | D12: =SUM(D13:D18) -> 0 | E12: =SUM(E13:E18) -> 0
A13: 4011 | B13: 713100 | C13: Периодични порези на непокретности
A14: 4012 | B14: 713200 | C14: Периодични порези на нето имовину
A15: 4013 | B15: 713300 | C15: Порези на заоставштину, наслеђе и поклон
A16: 4014 | B16: 713400 | C16: Порези на финансијске и капиталне трансакције
A17: 4015 | B17: 713500 | C17: Други једнократни порези на имовину
A18: 4016 | B18: 713600 | C18: Други периодични порези на имовину
A19: 4017 | B19: 714000 | C19: ПОРЕЗ НА ДОБРА И УСЛУГЕ (од 4018 до 4022) | D19: =SUM(D20:D24) -> 0 | E19: =SUM(E20:E24) -> 0
A20: 4018 | B20: 714100 | C20: Општи порези на добра и услуге
A21: 4019 | B21: 714300 | C21: Добит фискалних монопола
A22: 4020 | B22: 714400 | C22: Порези на појединачне услуге
A23: 4021 | B23: 714500 | C23: Порези, таксе и накнаде на употребу добара, на дозволу да се добра употребљавају или делатности обављају
A24: 4022 | B24: 714600 | C24: Други порези на добра и услуге
A25: 4023 | B25: 715000 | C25: ПОРЕЗ НА МЕЂУНАРОДНУ ТРГОВИНУ И ТРАНСАКЦИЈЕ (од 4024 до 4029) | D25: =SUM(D26:D31) -> 0 | E25: =SUM(E26:E31) -> 0
A26: 4024 | B26: 715100 | C26: Царине и друге увозне дажбине
A27: 4025 | B27: 715200 | C27: Порези на извоз
A28: 4026 | B28: 715300 | C28: Добит извозних или увозних монопола
A29: 4027 | B29: 715400 | C29: Добит по основу разлике између куповног и продајног девизног курса
A30: 4028 | B30: 715500 | C30: Порези на продају или куповину девиза
A31: 4029 | B31: 715600 | C31: Други порези на међународну трговину и трансакције
A32: 4030 | B32: 716000 | C32: ДРУГИ ПОРЕЗИ (4031 + 4032) | D32: =D33+D34 -> 0 | E32: =E33+E34 -> 0
A33: 4031 | B33: 716100 | C33: Други порези које искључиво плаћају предузећа, односно предузетници
A34: 4032 | B34: 716200 | C34: Други порези које плаћају остала лица или који се не могу идентификовати
A35: 4033 | B35: 717000 | C35: АКЦИЗЕ (од 4034 до 4039) | D35: =SUM(D36:D41) -> 0 | E35: =SUM(E36:E41) -> 0
A36: 4034 | B36: 717100 | C36: Акцизе на деривате нафте
A37: 4035 | B37: 717200 | C37: Акцизе на дуванске прерађевине
A38: 4036 | B38: 717300 | C38: Акцизе на алкохолна пића
A39: 4037 | B39: 717400 | C39: Акцизе на освежавајућа безалкохолна пића
A40: 4038 | B40: 717500 | C40: Акцизе на кафу
A41: 4039 | B41: 717600 | C41: Друге акцизе
A42: 4040 | B42: 719000 | C42: ЈЕДНОКРАТНИ ПОРЕЗ НА ЕКСТРА ПРОФИТ И ЕКСТРА ИМОВИНУ СТЕЧЕНУ КОРИШЋЕЊЕМ ПОСЕБНИХ ПОГОДНОСТИ (од 4041 до 4046) | D42: =SUM(D43:D48) -> 0 | E42: =SUM(E43:E48) -> 0
A43: 4041 | B43: 719100 | C43: Порез на доходак, добит и капиталну добит на терет физичких лица
A44: 4042 | B44: 719200 | C44: Порез на доходак, добит и капиталну добит на терет предузећа и осталих правних лица
A45: 4043 | B45: 719300 | C45: Порез на доходак, добит и капиталну добит нераспоредив између физичких и правних лица
A46: 4044 | B46: 719400 | C46: Остали једнократни порези на имовину
A47: 4045 | B47: 719500 | C47: Остали порези које плаћају искључиво предузећа и предузетници
A48: 4046 | B48: 719600 | C48: Остали порези које плаћају друга или неидентификована лица
A49: 4047 | B49: 720000 | C49: СОЦИЈАЛНИ ДОПРИНОСИ (4048 + 4053) | D49: =D50+D55 -> 0 | E49: =E50+E55 -> 0
A50: 4048 | B50: 721000 | C50: ДОПРИНОСИ ЗА СОЦИЈАЛНО ОСИГУРАЊЕ (од 4049 до 4052) | D50: =SUM(D51:D54) -> 0 | E50: =SUM(E51:E54) -> 0
A51: 4049 | B51: 721100 | C51: Доприноси за социјално осигурање на терет запослених
A52: 4050 | B52: 721200 | C52: Доприноси за социјално осигурање на терет послодавца
A53: 4051 | B53: 721300 | C53: Доприноси за социјално осигурање лица која обављају самосталну делатност и незапослених лица
A54: 4052 | B54: 721400 | C54: Доприноси за социјално осигурање који се не могу разврстати
A55: 4053 | B55: 722000 | C55: ОСТАЛИ СОЦИЈАЛНИ ДОПРИНОСИ (од 4054 до 4056) | D55: =SUM(D56:D58) -> 0 | E55: =SUM(E56:E58) -> 0
A56: 4054 | B56: 722100 | C56: Социјални доприноси на терет осигураника
A57: 4055 | B57: 722200 | C57: Социјални доприноси на терет послодаваца
A58: 4056 | B58: 722300 | C58: Импутирани социјални доприноси
A59: 4057 | B59: 730000 | C59: ДОНАЦИЈЕ, ПОМОЋИ И ТРАНСФЕРИ (4058 + 4061 + 4066) | D59: =D60+D63+D68 -> 13510 | E59: =E60+E63+E68 -> 11436
A60: 4058 | B60: 731000 | C60: ДОНАЦИЈЕ ОД ИНОСТРАНИХ ДРЖАВА (од 4059 + 4060) | D60: =D61+D62 -> 0 | E60: =E61+E62 -> 0
A61: 4059 | B61: 731100 | C61: Текуће донације од иностраних држава
A62: 4060 | B62: 731200 | C62: Капиталне донације од иностраних држава
A63: 4061 | B63: 732000 | C63: ДОНАЦИЈЕ И ПОМОЋИ ОД МЕЂУНАРОДНИХ ОРГАНИЗАЦИЈА (од 4062 до 4065) | D63: =D64+D65+D66+D67 -> 0 | E63: =E64+E65+E66+E67 -> 0
A64: 4062 | B64: 732100 | C64: Текуће донације од међународних организација
A65: 4063 | B65: 732200 | C65: Капиталне донације од међународних организација
A66: 4064 | B66: 732300 | C66: Текуће помоћи од ЕУ
A67: 4065 | B67: 732400 | C67: Капиталне помоћи од ЕУ
A68: 4066 | B68: 733000 | C68: ТРАНСФЕРИ ОД ДРУГИХ НИВОА ВЛАСТИ (4067 + 4068) | D68: =D69+D70 -> 13510 | E68: =E69+E70 -> 11436
A69: 4067 | B69: 733100 | C69: Текући трансфери од других нивоа власти | D69: 13510 | E69: 11436
A70: 4068 | B70: 733200 | C70: Капитални трансфери од других нивоа власти
A71: 4069 | B71: 740000 | C71: ДРУГИ ПРИХОДИ (4070 + 4077 + 4082 + 4089 + 4092) | D71: =D72+D79+D84+D91+D94 -> 15732 | E71: =E72+E79+E84+E91+E94 -> 351
A72: 4070 | B72: 741000 | C72: ПРИХОДИ ОД ИМОВИНЕ (од 4071 до 4076) | D72: =SUM(D73:D78) -> 0 | E72: =SUM(E73:E78) -> 0
A73: 4071 | B73: 741100 | C73: Камате
A74: 4072 | B74: 741200 | C74: Дивиденде
A75: 4073 | B75: 741300 | C75: Повлачење прихода од квази корпорација
A76: 4074 | B76: 741400 | C76: Приход од имовине који припада имаоцима полиса осигурања
A77: 4075 | B77: 741500 | C77: Закуп непроизведене имовине
A78: 4076 | B78: 741600 | C78: Финансијске промене на финансијским лизинзима
A79: 4077 | B79: 742000 | C79: ПРИХОДИ ОД ПРОДАЈЕ ДОБАРА И УСЛУГА (од 4078 до 4081) | D79: =SUM(D80:D83) -> 15551 | E79: =SUM(E80:E83) -> 351
A80: 4078 | B80: 742100 | C80: Приходи од продаје добара и услуга или закупа од стране тржишних организација | D80: 14531 | E80: 28
A81: 4079 | B81: 742200 | C81: Таксе и накнаде
A82: 4080 | B82: 742300 | C82: Споредне продаје добара и услуга које врше државне нетржишне јединице | D82: 1020 | E82: 323
A83: 4081 | B83: 742400 | C83: Импутиране продаје добара и услуга
A84: 4082 | B84: 743000 | C84: НОВЧАНЕ КАЗНЕ И ОДУЗЕТА ИМОВИНСКА КОРИСТ (од 4083 до 4088) | D84: =SUM(D85:D90) -> 0 | E84: =SUM(E85:E90) -> 0
A85: 4083 | B85: 743100 | C85: Приходи од новчаних казни за кривична дела
A86: 4084 | B86: 743200 | C86: Приходи од новчаних казни за привредне преступе
A87: 4085 | B87: 743300 | C87: Приходи од новчаних казни за прекршаје
A88: 4086 | B88: 743400 | C88: Приходи од пенала
A89: 4087 | B89: 743500 | C89: Приходи од одузете имовинске користи
A90: 4088 | B90: 743900 | C90: Остале новчане казне, пенали и приходи од одузете имовинске користи
A91: 4089 | B91: 744000 | C91: ДОБРОВОЉНИ ТРАНСФЕРИ ОД ФИЗИЧКИХ И ПРАВНИХ ЛИЦА (4090 + 4091) | D91: =SUM(D92:D93) -> 96 | E91: =SUM(E92:E93) -> 0
A92: 4090 | B92: 744100 | C92: Текући добровољни трансфери од физичких и правних лица | D92: 96
A93: 4091 | B93: 744200 | C93: Капитални добровољни трансфери од физичких и правних лица
A94: 4092 | B94: 745000 | C94: МЕШОВИТИ И НЕОДРЕЂЕНИ ПРИХОДИ (4093) | D94: =D95 -> 85 | E94: =E95 -> 0
A95: 4093 | B95: 745100 | C95: Мешовити и неодређени приходи | D95: 85
A96: 4094 | B96: 770000 | C96: МЕМОРАНДУМСКЕ СТАВКЕ ЗА РЕФУНДАЦИЈУ РАСХОДА (4095 + 4097) | D96: =D97+D99 -> 406 | E96: =E97+E99 -> 648
A97: 4095 | B97: 771000 | C97: МЕМОРАНДУМСКЕ СТАВКЕ ЗА РЕФУНДАЦИЈУ РАСХОДА (4096) | D97: =D98 -> 0 | E97: =E98 -> 0
A98: 4096 | B98: 771100 | C98: Меморандумске ставке за рефундацију расхода
A99: 4097 | B99: 772000 | C99: МЕМОРАНДУМСКЕ СТАВКЕ ЗА РЕФУНДАЦИЈУ РАСХОДА ИЗ ПРЕТХОДНЕ ГОДИНЕ (4098) | D99: =D100 -> 406 | E99: =E100 -> 648
A100: 4098 | B100: 772100 | C100: Меморандумске ставке за рефундацију расхода из претходне године | D100: 406 | E100: 648
A101: 4099 | B101: 780000 | C101: ТРАНСФЕРИ ИЗМЕЂУ БУЏЕТСКИХ КОРИСНИКА НА ИСТОМ НИВОУ (4100) | D101: =D102 -> 0 | E101: =E102 -> 0
A102: 4100 | B102: 781000 | C102: ТРАНСФЕРИ ИЗМЕЂУ БУЏЕТСКИХ КОРИСНИКА НА ИСТОМ НИВОУ (4101 + 4102) | D102: =D103+D104 -> 0 | E102: =E103+E104 -> 0
A103: 4101 | B103: 781100 | C103: Трансфери између буџетских корисника на истом нивоу
A104: 4102 | B104: 781300 | C104: Трансфери између организација обавезног социјалног осигурања
A105: 4103 | B105: 790000 | C105: ПРИХОДИ ИЗ БУЏЕТА (4104) | D105: =D106 -> 109511 | E105: =E106 -> 144017
A106: 4104 | B106: 791000 | C106: ПРИХОДИ ИЗ БУЏЕТА (4105) | D106: =D107 -> 109511 | E106: =E107 -> 144017
A107: 4105 | B107: 791100 | C107: Приходи из буџета | D107: 109511 | E107: 144017
A108: 4106 | B108: 800000 | C108: ПРИМАЊА ОД ПРОДАЈЕ НЕФИНАНСИЈСКЕ ИМОВИНЕ (4107 + 4114 + 4121 + 4124) | D108: =D109+D116+D123+D126 -> 0 | E108: =E109+E116+E123+E126 -> 0
A109: 4107 | B109: 810000 | C109: ПРИМАЊА ОД ПРОДАЈЕ ОСНОВНИХ СРЕДСТАВА (4108 + 4110 + 4112) | D109: =D110+D112+D114 -> 0 | E109: =E110+E112+E114 -> 0
A110: 4108 | B110: 811000 | C110: ПРИМАЊА ОД ПРОДАЈЕ НЕПОКРЕТНОСТИ (4109) | D110: =D111 -> 0 | E110: =E111 -> 0
A111: 4109 | B111: 811100 | C111: Примања од продаје непокретности
A112: 4110 | B112: 812000 | C112: ПРИМАЊА ОД ПРОДАЈЕ ПОКРЕТНЕ ИМОВИНЕ (4111) | D112: =D113 -> 0 | E112: =E113 -> 0
A113: 4111 | B113: 812100 | C113: Примања од продаје покретне имовине
A114: 4112 | B114: 813000 | C114: ПРИМАЊА ОД ПРОДАЈЕ ОСТАЛИХ ОСНОВНИХ СРЕДСТАВА (4113) | D114: =D115 -> 0 | E114: =E115 -> 0
A115: 4113 | B115: 813100 | C115: Примања од продаје осталих основних средстава
A116: 4114 | B116: 820000 | C116: ПРИМАЊА ОД ПРОДАЈЕ ЗАЛИХА (4115 + 4117 + 4119) | D116: =D117+D119+D121 -> 0 | E116: =E117+E119+E121 -> 0
A117: 4115 | B117: 821000 | C117: ПРИМАЊА ОД ПРОДАЈЕ РОБНИХ РЕЗЕРВИ (4116) | D117: =D118 -> 0 | E117: =E118 -> 0
A118: 4116 | B118: 821100 | C118: Примања од продаје робних резерви
A119: 4117 | B119: 822000 | C119: ПРИМАЊА ОД ПРОДАЈЕ ЗАЛИХА ПРОИЗВОДЊЕ (4118) | D119: =D120 -> 0 | E119: =E120 -> 0
A120: 4118 | B120: 822100 | C120: Примања од продаје залиха производње
A121: 4119 | B121: 823000 | C121: ПРИМАЊА ОД ПРОДАЈЕ РОБЕ ЗА ДАЉУ ПРОДАЈУ (4120) | D121: =D122 -> 0 | E121: =E122 -> 0
A122: 4120 | B122: 823100 | C122: Примања од продаје робе за даљу продају
A123: 4121 | B123: 830000 | C123: ПРИМАЊА ОД ПРОДАЈЕ ДРАГОЦЕНОСТИ (4122) | D123: =D124 -> 0 | E123: =E124 -> 0
A124: 4122 | B124: 831000 | C124: ПРИМАЊА ОД ПРОДАЈЕ ДРАГОЦЕНОСТИ (4123) | D124: =D125 -> 0 | E124: =E125 -> 0
A125: 4123 | B125: 831100 | C125: Примања од продаје драгоцености
A126: 4124 | B126: 840000 | C126: ПРИМАЊА ОД ПРОДАЈЕ ПРИРОДНЕ ИМОВИНЕ (4125 + 4127 + 4129) | D126: =D127+D129+D131 -> 0 | E126: =E127+E129+E131 -> 0
A127: 4125 | B127: 841000 | C127: ПРИМАЊА ОД ПРОДАЈЕ ЗЕМЉИШТА (4126) | D127: =D128 -> 0 | E127: =E128 -> 0
A128: 4126 | B128: 841100 | C128: Примања од продаје земљишта
A129: 4127 | B129: 842000 | C129: ПРИМАЊА ОД ПРОДАЈЕ ПОДЗЕМНИХ БЛАГА (4128) | D129: =D130 -> 0 | E129: =E130 -> 0
A130: 4128 | B130: 842100 | C130: Примања од продаје подземних блага
A131: 4129 | B131: 843000 | C131: ПРИМАЊА ОД ПРОДАЈЕ ШУМА И ВОДА (4130) | D131: =D132 -> 0 | E131: =E132 -> 0
A132: 4130 | B132: 843100 | C132: Примања од продаје шума и вода
A133: 4131 | B133: 900000 | C133: ПРИМАЊА ОД ЗАДУЖИВАЊА И ПРОДАЈЕ ФИНАНСИЈСКЕ ИМОВИНЕ (4132 + 4151) | D133: =D134+D153 -> 0 | E133: =E134+E153 -> 0
A134: 4132 | B134: 910000 | C134: ПРИМАЊА ОД ЗАДУЖИВАЊА (4133 + 4143) | D134: =D135+D145 -> 0 | E134: =E135+E145 -> 0
A135: 4133 | B135: 911000 | C135: ПРИМАЊА ОД ДОМАЋИХ ЗАДУЖИВАЊА (од 4134 до 4142) | D135: =SUM(D136:D144) -> 0 | E135: =SUM(E136:E144) -> 0
A136: 4134 | B136: 911100 | C136: Примања од емитовања домаћих хартија од вредности, изузев акција
A137: 4135 | B137: 911200 | C137: Примања од задуживања од осталих нивоа власти
A138: 4136 | B138: 911300 | C138: Примања од задуживања од јавних финансијских институција у земљи
A139: 4137 | B139: 911400 | C139: Примања од задуживања од пословних банака у земљи
A140: 4138 | B140: 911500 | C140: Примања од задуживања од осталих поверилаца у земљи
A141: 4139 | B141: 911600 | C141: Примања од задуживања од домаћинстава у земљи
A142: 4140 | B142: 911700 | C142: Примања од домаћих финансијских деривата
A143: 4141 | B143: 911800 | C143: Примања од домаћих меница
A144: 4142 | B144: 911900 | C144: Исправка унутрашњег дуга
A145: 4143 | B145: 912000 | C145: ПРИМАЊА ОД ИНОСТРАНОГ ЗАДУЖИВАЊА (од 4144 до 4150) | D145: =SUM(D146:D152) -> 0 | E145: =SUM(E146:E152) -> 0
A146: 4144 | B146: 912100 | C146: Примања од емитовања хартија од вредности, изузев акција, на иностраном финансијском тржишту
A147: 4145 | B147: 912200 | C147: Примања од задуживања од иностраних држава
A148: 4146 | B148: 912300 | C148: Примања од задуживања од мултилатералних институција
A149: 4147 | B149: 912400 | C149: Примања од задуживања од иностраних пословних банака
A150: 4148 | B150: 912500 | C150: Примања од задуживања од осталих иностраних поверилаца
A151: 4149 | B151: 912600 | C151: Примања од иностраних финансијских деривата
A152: 4150 | B152: 912900 | C152: Исправка спољног дуга
A153: 4151 | B153: 920000 | C153: ПРИМАЊА ОД ПРОДАЈЕ ФИНАНСИЈСКЕ ИМОВИНЕ (4152 + 4162) | D153: =D154+D164 -> 0 | E153: =E154+E164 -> 0
A154: 4152 | B154: 921000 | C154: ПРИМАЊА ОД ПРОДАЈЕ ДОМАЋЕ ФИНАНСИЈСКЕ ИМОВИНЕ (од 4153 до 4161) | D154: =SUM(D155:D163) -> 0 | E154: =SUM(E155:E163) -> 0
A155: 4153 | B155: 921100 | C155: Примања од продаје домаћих хартија од вредности, изузев акција
A156: 4154 | B156: 921200 | C156: Примања од отплате кредита датих осталим нивоима власти
A157: 4155 | B157: 921300 | C157: Примања од отплате кредита датих домаћим јавним финансијским институцијама
A158: 4156 | B158: 921400 | C158: Примања од отплате кредита датих домаћим пословним банкама
A159: 4157 | B159: 921500 | C159: Примања од отплате кредита датих домаћим јавним нефинансијским институцијама
A160: 4158 | B160: 921600 | C160: Примања од отплате кредита датих физичким лицима и домаћинствима у земљи
A161: 4159 | B161: 921700 | C161: Примања од отплате кредита датих удружењима грађана у земљи
A162: 4160 | B162: 921800 | C162: Примања од отплате кредита датих нефинансијским приватним предузећима у земљи
A163: 4161 | B163: 921900 | C163: Примања од продаје домаћих акција и осталог капитала
A164: 4162 | B164: 922000 | C164: ПРИМАЊА ОД ПРОДАЈЕ СТРАНЕ ФИНАНСИЈСКЕ ИМОВИНЕ (од 4163 до 4170) | D164: =SUM(D165:D172) -> 0 | E164: =SUM(E165:E172) -> 0
A165: 4163 | B165: 922100 | C165: Примања од продаје страних хартија од вредности, изузев акција
A166: 4164 | B166: 922200 | C166: Примања од отплате кредита датих страним владама
A167: 4165 | B167: 922300 | C167: Примања од отплате кредита датих међународним организацијама
A168: 4166 | B168: 922400 | C168: Примања од отплате кредита датих страним пословним банкама
A169: 4167 | B169: 922500 | C169: Примања од отплате кредита датих страним нефинансијским институцијама
A170: 4168 | B170: 922600 | C170: Примања од отплате кредита датих страним невладиним организацијама
A171: 4169 | B171: 922700 | C171: Примања од продаје страних акција и осталог капитала
A172: 4170 | B172: 922800 | C172: Примања од продаје стране валуте
A173: 4171 | C173: НОВЧАНИ ОДЛИВИ (4172 + 4340 + 4386) | D173: =D174+D342+D388 -> 141332 | E173: =E174+E342+E388 -> 156447
A174: 4172 | B174: 400000 | C174: ТЕКУЋИ РАСХОДИ (4173 + 4195 + 4240 + 4255 + 4279 + 4292 + 4308 + 4323) | D174: =D175+D197+D242+D257+D281+D294+D310+D325 -> 138756 | E174: =E175+E197+E242+E257+E281+E294+E310+E325 -> 155146
A175: 4173 | B175: 410000 | C175: РАСХОДИ ЗА ЗАПОСЛЕНЕ (4174 + 4176 + 4180 + 4182 + 4187 + 4189 + 4191 + 4193) | D175: =D176+D178+D182+D184+D189+D191+D193+D195 -> 97480 | E175: =E176+E178+E182+E184+E189+E191+E193+E195 -> 103699
A176: 4174 | B176: 411000 | C176: ПЛАТЕ, ДОДАЦИ И НАКНАДЕ ЗАПОСЛЕНИХ (ЗАРАДЕ) (4175) | D176: =D177 -> 79028 | E176: =E177 -> 84879
A177: 4175 | B177: 411100 | C177: Плате, додаци и накнаде запослених | D177: 79028 | E177: 84879
A178: 4176 | B178: 412000 | C178: СОЦИЈАЛНИ ДОПРИНОСИ НА ТЕРЕТ ПОСЛОДАВЦА (од 4177 до 4179) | D178: =SUM(D179:D181) -> 14146 | E178: =SUM(E179:E181) -> 15200
A179: 4177 | B179: 412100 | C179: Допринос за пензијско и инвалидско осигурање | D179: 9483 | E179: 10190
A180: 4178 | B180: 412200 | C180: Допринос за здравствено осигурање | D180: 4070 | E180: 4373
A181: 4179 | B181: 412300 | C181: Допринос за незапосленост | D181: 593 | E181: 637
A182: 4180 | B182: 413000 | C182: НАКНАДЕ У НАТУРИ (4181) | D182: =D183 -> 345 | E182: =E183 -> 243
A183: 4181 | B183: 413100 | C183: Накнаде у натури | D183: 345 | E183: 243
A184: 4182 | B184: 414000 | C184: СОЦИЈАЛНА ДАВАЊА ЗАПОСЛЕНИМА (од 4183 до 4186) | D184: =SUM(D185:D188) -> 2053 | E184: =SUM(E185:E188) -> 969
A185: 4183 | B185: 414100 | C185: Исплата накнада за време одсуствовања с посла на терет фондова | D185: 648 | E185: 763
A186: 4184 | B186: 414200 | C186: Расходи за образовање деце запослених
A187: 4185 | B187: 414300 | C187: Отпремнине и помоћи | D187: 1405 | E187: 206
A188: 4186 | B188: 414400 | C188: Помоћ у медицинском лечењу запосленог или чланова уже породице и друге помоћи запосленом
A189: 4187 | B189: 415000 | C189: НАКНАДЕ ТРОШКОВА ЗА ЗАПОСЛЕНЕ (4188) | D189: =D190 -> 1230 | E189: =E190 -> 1120
A190: 4188 | B190: 415100 | C190: Накнаде трошкова за запослене | D190: 1230 | E190: 1120
A191: 4189 | B191: 416000 | C191: НАГРАДЕ ЗАПОСЛЕНИМА И ОСТАЛИ ПОСЕБНИ РАСХОДИ (4190) | D191: =D192 -> 678 | E191: =E192 -> 1288
A192: 4190 | B192: 416100 | C192: Награде запосленима и остали посебни расходи | D192: 678 | E192: 1288
A193: 4191 | B193: 417000 | C193: ПОСЛАНИЧКИ ДОДАТАК (4192) | D193: =D194 -> 0 | E193: =E194 -> 0
A194: 4192 | B194: 417100 | C194: Посланички додатак
A195: 4193 | B195: 418000 | C195: СУДИЈСКИ ДОДАТАК (4194) | D195: =D196 -> 0 | E195: =E196 -> 0
A196: 4194 | B196: 418100 | C196: Судијски додатак
A197: 4195 | B197: 420000 | C197: КОРИШЋЕЊЕ УСЛУГА И РОБА (4196 + 4204 + 4210 + 4219 + 4227 + 4230) | D197: =D198+D206+D212+D221+D229+D232 -> 35106 | E197: =E198+E206+E212+E221+E229+E232 -> 37468
A198: 4196 | B198: 421000 | C198: СТАЛНИ ТРОШКОВИ (од 4197 до 4203) | D198: =SUM(D199:D205) -> 9361 | E198: =SUM(E199:E205) -> 10626
A199: 4197 | B199: 421100 | C199: Трошкови платног промета и банкарских услуга | D199: 179 | E199: 210
A200: 4198 | B200: 421200 | C200: Енергетске услуге | D200: 6678 | E200: 8273
... 244 more rows

Sheet StObr4
AL1: Образац 4
A2: ПОПУЊАВА УПРАВА ЗА ТРЕЗОР - ФИЛИЈАЛА
A3: 7 | B3: 5 | C3: 4 | E3: 0 | F3: =IF(LEN(Podaci!M2) > 4, MID(RIGHT(Podaci!$M$2,5),1,1),0) -> 0 | G3: =IF(LEN(Podaci!M2) > 3, MID(RIGHT(Podaci!$M$2,4),1,1),0) -> 8 | H3: =IF(LEN(Podaci!M2) > 2, MID(RIGHT(Podaci!$M$2,3),1,1),0) -> 5 | I3: =MID(RIGHT(Podaci!$M$2,2),1,1) -> 9 | J3: =MID(RIGHT(Podaci!$M$2,1),1,1) -> 0 | L3: =IF(LEN(Podaci!Z7) > 7, MID(RIGHT(Podaci!$Z$7,8),1,1),0) -> 0 | M3: =IF(LEN(Podaci!Z7) > 6, MID(RIGHT(Podaci!$Z$7,7),1,1),0) -> 8 | N3: =MID(RIGHT(Podaci!$Z$7,6),1,1) -> 0 | O3: =MID(RIGHT(Podaci!$Z$7,5),1,1) -> 0 | P3: =MID(RIGHT(Podaci!$Z$7,4),1,1) -> 4 | Q3: =MID(RIGHT(Podaci!$Z$7,3),1,1) -> 9 | R3: =MID(RIGHT(Podaci!$Z$7,2),1,1) -> 3 | S3: =MID(RIGHT(Podaci!$Z$7,1),1,1) -> 5
A4: 1 | B4: 2 | C4: 3 | E4: 4 | F4: 5 | G4: 6 | H4: 7 | I4: 8 | J4: 9 | L4: 10 | M4: 11 | N4: 12 | O4: 13 | P4: 14 | Q4: 15 | R4: 16 | S4: 17 | U4: 18 | V4: 19 | W4: 20 | X4: 21 | Y4: 22 | AA4: 23 | AB4: 24 | AC4: 25 | AD4: 26 | AE4: 27 | AG4: 28 | AI4: 29 | AJ4: 30 | AK4: 31 | AL4: 32 | AM4: 33 | AN4: 34 | AO4: 35 | AP4: 36 | AQ4: 37 | AR4: 38
A5: Врста посла | E5: Јединствени број КБС | U5: Седиште УТ | AA5: Надлежни директни КБС
B8: НАЗИВ КОРИСНИКА БУЏЕТСКИХ СРЕДСТАВА
B9: =Podaci!B5 -> ПРЕДШКОЛСКА УСТАНОВА "БАМБИ"
B11: СЕДИШТЕ | H11: =Podaci!H7 -> КУЛА | R11: МАТИЧНИ БРОЈ | Z11: =Podaci!Z7 -> 08004935
B13: ПИБ | E13: =Podaci!E9 -> 100261597 | R13: БРОЈ ПОДРАЧУНА | Z13: =Podaci!AA9 -> 840-49661-40
B15: НАЗИВ НАДЛЕЖНОГ ДИРЕКТНОГ КОРИСНИКА БУЏЕТСКИХ СРЕДСТАВА
B16: =Podaci!B12 -> ОПШТИНА КУЛА
B17: (Попуњава само индиректни корисник буџетских средстава)
J20: ИЗВЕШТАЈ О НОВЧАНИМ ТОКОВИМА
L21: у периоду од | R21: =Podaci!D17 -> 01.01.2017. | W21: до | Y21: =Podaci!D18 -> 31.12.2017. | AD21: године
AK22: (У хиљадама динара)
A23: Ознака ОП | D23: Број конта | H23: Опис | AA23: Износ
AA25: Претходна година | AJ25: Текућа година
A27: 1 | D27: 2 | H27: 3 | AA27: 4 | AJ27: 5
A28: 4001 | H28: Н О В Ч А Н И П Р И Л И В И (4002 + 4106 + 4131) | AA28: =UnObr4!D3 -> 139159 | AJ28: =UnObr4!E3 -> 156452
A29: 4002 | D29: 700000 | H29: ТЕКУЋИ ПРИХОДИ (4003 + 4047 + 4057 + 4069 + 4094 + 4099 + 4103) | AA29: =UnObr4!D4 -> 139159 | AJ29: =UnObr4!E4 -> 156452
A30: 4003 | D30: 710000 | H30: ПОРЕЗИ (4004 + 4008 + 4010 + 4017 + 4023 + 4030 + 4033 + 4040) | AA30: =UnObr4!D5 -> 0 | AJ30: =UnObr4!E5 -> 0
A31: 4004 | D31: 711000 | H31: ПОРЕЗ НА ДОХОДАК, ДОБИТ И КАПИТАЛНЕ ДОБИТКЕ (од 4005 до 4007) | AA31: =UnObr4!D6 -> 0 | AJ31: =UnObr4!E6 -> 0
A32: 4005 | D32: 711100 | H32: Порези на доходак и капиталне добитке које плаћају физичка лица | AA32: =UnObr4!D7 -> 0 | AJ32: =UnObr4!E7 -> 0
A33: 4006 | D33: 711200 | H33: Порези на добит и капиталне добитке које плаћају предузећа и друга правна лица | AA33: =UnObr4!D8 -> 0 | AJ33: =UnObr4!E8 -> 0
A34: 4007 | D34: 711300 | H34: Порези на доходак, добит и капиталне добитке који се не могу разврстати између физичких и правних лица | AA34: =UnObr4!D9 -> 0 | AJ34: =UnObr4!E9 -> 0
A35: 4008 | D35: 712000 | H35: ПОРЕЗ НА ФОНД ЗАРАДА (4009) | AA35: =UnObr4!D10 -> 0 | AJ35: =UnObr4!E10 -> 0
A36: 4009 | D36: 712100 | H36: Порез на фонд зарада | AA36: =UnObr4!D11 -> 0 | AJ36: =UnObr4!E11 -> 0
A37: 4010 | D37: 713000 | H37: ПОРЕЗ НА ИМОВИНУ (од 4011 до 4016) | AA37: =UnObr4!D12 -> 0 | AJ37: =UnObr4!E12 -> 0
A38: 4011 | D38: 713100 | H38: Периодични порези на непокретности | AA38: =UnObr4!D13 -> 0 | AJ38: =UnObr4!E13 -> 0
A39: 4012 | D39: 713200 | H39: Периодични порези на нето имовину | AA39: =UnObr4!D14 -> 0 | AJ39: =UnObr4!E14 -> 0
A40: 4013 | D40: 713300 | H40: Порези на заоставштину, наслеђе и поклон | AA40: =UnObr4!D15 -> 0 | AJ40: =UnObr4!E15 -> 0
A41: 4014 | D41: 713400 | H41: Порези на финансијске и капиталне трансакције | AA41: =UnObr4!D16 -> 0 | AJ41: =UnObr4!E16 -> 0
A42: 4015 | D42: 713500 | H42: Други једнократни порези на имовину | AA42: =UnObr4!D17 -> 0 | AJ42: =UnObr4!E17 -> 0
A43: 4016 | D43: 713600 | H43: Други периодични порези на имовину | AA43: =UnObr4!D18 -> 0 | AJ43: =UnObr4!E18 -> 0
A44: 4017 | D44: 714000 | H44: ПОРЕЗ НА ДОБРА И УСЛУГЕ (од 4018 до 4022) | AA44: =UnObr4!D19 -> 0 | AJ44: =UnObr4!E19 -> 0
A45: 4018 | D45: 714100 | H45: Општи порези на добра и услуге | AA45: =UnObr4!D20 -> 0 | AJ45: =UnObr4!E20 -> 0
A46: 4019 | D46: 714300 | H46: Добит фискалних монопола | AA46: =UnObr4!D21 -> 0 | AJ46: =UnObr4!E21 -> 0
A47: 4020 | D47: 714400 | H47: Порези на појединачне услуге | AA47: =UnObr4!D22 -> 0 | AJ47: =UnObr4!E22 -> 0
A48: 4021 | D48: 714500 | H48: Порези, таксе и накнаде на употребу добара, на дозволу да се добра употребљавају или делатности обављају | AA48: =UnObr4!D23 -> 0 | AJ48: =UnObr4!E23 -> 0
A49: 4022 | D49: 714600 | H49: Други порези на добра и услуге | AA49: =UnObr4!D24 -> 0 | AJ49: =UnObr4!E24 -> 0
A50: 4023 | D50: 715000 | H50: ПОРЕЗ НА МЕЂУНАРОДНУ ТРГОВИНУ И ТРАНСАКЦИЈЕ (од 4024 до 4029) | AA50: =UnObr4!D25 -> 0 | AJ50: =UnObr4!E25 -> 0
A51: 4024 | D51: 715100 | H51: Царине и друге увозне дажбине | AA51: =UnObr4!D26 -> 0 | AJ51: =UnObr4!E26 -> 0
A52: 4025 | D52: 715200 | H52: Порези на извоз | AA52: =UnObr4!D27 -> 0 | AJ52: =UnObr4!E27 -> 0
A53: 4026 | D53: 715300 | H53: Добит извозних или увозних монопола | AA53: =UnObr4!D28 -> 0 | AJ53: =UnObr4!E28 -> 0
A54: 4027 | D54: 715400 | H54: Добит по основу разлике између куповног и продајног девизног курса | AA54: =UnObr4!D29 -> 0 | AJ54: =UnObr4!E29 -> 0
A55: 4028 | D55: 715500 | H55: Порези на продају или куповину девиза | AA55: =UnObr4!D30 -> 0 | AJ55: =UnObr4!E30 -> 0
A56: 4029 | D56: 715600 | H56: Други порези на међународну трговину и трансакције | AA56: =UnObr4!D31 -> 0 | AJ56: =UnObr4!E31 -> 0
A57: 4030 | D57: 716000 | H57: ДРУГИ ПОРЕЗИ (4031 + 4032) | AA57: =UnObr4!D32 -> 0 | AJ57: =UnObr4!E32 -> 0
A58: 4031 | D58: 716100 | H58: Други порези које искључиво плаћају предузећа, односно предузетници | AA58: =UnObr4!D33 -> 0 | AJ58: =UnObr4!E33 -> 0
A59: 4032 | D59: 716200 | H59: Други порези које плаћају остала лица или који се не могу идентификовати | AA59: =UnObr4!D34 -> 0 | AJ59: =UnObr4!E34 -> 0
A60: 4033 | D60: 717000 | H60: АКЦИЗЕ (од 4034 до 4039) | AA60: =UnObr4!D35 -> 0 | AJ60: =UnObr4!E35 -> 0
A61: 4034 | D61: 717100 | H61: Акцизе на деривате нафте | AA61: =UnObr4!D36 -> 0 | AJ61: =UnObr4!E36 -> 0
A62: 4035 | D62: 717200 | H62: Акцизе на дуванске прерађевине | AA62: =UnObr4!D37 -> 0 | AJ62: =UnObr4!E37 -> 0
A63: 4036 | D63: 717300 | H63: Акцизе на алкохолна пића | AA63: =UnObr4!D38 -> 0 | AJ63: =UnObr4!E38 -> 0
A64: 4037 | D64: 717400 | H64: Акцизе на освежавајућа безалкохолна пића | AA64: =UnObr4!D39 -> 0 | AJ64: =UnObr4!E39 -> 0
A65: 4038 | D65: 717500 | H65: Акцизе на кафу | AA65: =UnObr4!D40 -> 0 | AJ65: =UnObr4!E40 -> 0
A66: 4039 | D66: 717600 | H66: Друге акцизе | AA66: =UnObr4!D41 -> 0 | AJ66: =UnObr4!E41 -> 0
A67: 4040 | D67: 719000 | H67: ЈЕДНОКРАТНИ ПОРЕЗ НА ЕКСТРА ПРОФИТ И ЕКСТРА ИМОВИНУ СТЕЧЕНУ КОРИШЋЕЊЕМ ПОСЕБНИХ ПОГОДНОСТИ (од 4041 до 4046) | AA67: =UnObr4!D42 -> 0 | AJ67: =UnObr4!E42 -> 0
A68: 4041 | D68: 719100 | H68: Порез на доходак, добит и капиталну добит на терет физичких лица | AA68: =UnObr4!D43 -> 0 | AJ68: =UnObr4!E43 -> 0
A69: 4042 | D69: 719200 | H69: Порез на доходак, добит и капиталну добит на терет предузећа и осталих правних лица | AA69: =UnObr4!D44 -> 0 | AJ69: =UnObr4!E44 -> 0
A70: 4043 | D70: 719300 | H70: Порез на доходак, добит и капиталну добит нераспоредив између физичких и правних лица | AA70: =UnObr4!D45 -> 0 | AJ70: =UnObr4!E45 -> 0
A71: 4044 | D71: 719400 | H71: Остали једнократни порези на имовину | AA71: =UnObr4!D46 -> 0 | AJ71: =UnObr4!E46 -> 0
A72: 4045 | D72: 719500 | H72: Остали порези које плаћају искључиво предузећа и предузетници | AA72: =UnObr4!D47 -> 0 | AJ72: =UnObr4!E47 -> 0
A73: 4046 | D73: 719600 | H73: Остали порези које плаћају друга или неидентификована лица | AA73: =UnObr4!D48 -> 0 | AJ73: =UnObr4!E48 -> 0
A74: 4047 | D74: 720000 | H74: СОЦИЈАЛНИ ДОПРИНОСИ (4048 + 4053) | AA74: =UnObr4!D49 -> 0 | AJ74: =UnObr4!E49 -> 0
A75: 4048 | D75: 721000 | H75: ДОПРИНОСИ ЗА СОЦИЈАЛНО ОСИГУРАЊЕ (од 4049 до 4052) | AA75: =UnObr4!D50 -> 0 | AJ75: =UnObr4!E50 -> 0
A76: 4049 | D76: 721100 | H76: Доприноси за социјално осигурање на терет запослених | AA76: =UnObr4!D51 -> 0 | AJ76: =UnObr4!E51 -> 0
A77: 4050 | D77: 721200 | H77: Доприноси за социјално осигурање на терет послодавца | AA77: =UnObr4!D52 -> 0 | AJ77: =UnObr4!E52 -> 0
A78: 4051 | D78: 721300 | H78: Доприноси за социјално осигурање лица која обављају самосталну делатност и незапослених лица | AA78: =UnObr4!D53 -> 0 | AJ78: =UnObr4!E53 -> 0
A79: 4052 | D79: 721400 | H79: Доприноси за социјално осигурање који се не могу разврстати | AA79: =UnObr4!D54 -> 0 | AJ79: =UnObr4!E54 -> 0
A80: 4053 | D80: 722000 | H80: ОСТАЛИ СОЦИЈАЛНИ ДОПРИНОСИ (од 4054 до 4056) | AA80: =UnObr4!D55 -> 0 | AJ80: =UnObr4!E55 -> 0
A81: 4054 | D81: 722100 | H81: Социјални доприноси на терет осигураника | AA81: =UnObr4!D56 -> 0 | AJ81: =UnObr4!E56 -> 0
A82: 4055 | D82: 722200 | H82: Социјални доприноси на терет послодаваца | AA82: =UnObr4!D57 -> 0 | AJ82: =UnObr4!E57 -> 0
A83: 4056 | D83: 722300 | H83: Импутирани социјални доприноси | AA83: =UnObr4!D58 -> 0 | AJ83: =UnObr4!E58 -> 0
A84: 4057 | D84: 730000 | H84: ДОНАЦИЈЕ, ПОМОЋИ И ТРАНСФЕРИ (4058 + 4061 + 4066) | AA84: =UnObr4!D59 -> 13510 | AJ84: =UnObr4!E59 -> 11436
A85: 4058 | D85: 731000 | H85: ДОНАЦИЈЕ ОД ИНОСТРАНИХ ДРЖАВА (од 4059 + 4060) | AA85: =UnObr4!D60 -> 0 | AJ85: =UnObr4!E60 -> 0
A86: 4059 | D86: 731100 | H86: Текуће донације од иностраних држава | AA86: =UnObr4!D61 -> 0 | AJ86: =UnObr4!E61 -> 0
A87: 4060 | D87: 731200 | H87: Капиталне донације од иностраних држава | AA87: =UnObr4!D62 -> 0 | AJ87: =UnObr4!E62 -> 0
A88: 4061 | D88: 732000 | H88: ДОНАЦИЈЕ И ПОМОЋИ ОД МЕЂУНАРОДНИХ ОРГАНИЗАЦИЈА (од 4062 до 4065) | AA88: =UnObr4!D63 -> 0 | AJ88: =UnObr4!E63 -> 0
A89: 4062 | D89: 732100 | H89: Текуће донације од међународних организација | AA89: =UnObr4!D64 -> 0 | AJ89: =UnObr4!E64 -> 0
A90: 4063 | D90: 732200 | H90: Капиталне донације од међународних организација | AA90: =UnObr4!D65 -> 0 | AJ90: =UnObr4!E65 -> 0
A91: 4064 | D91: 732300 | H91: Текуће помоћи од ЕУ | AA91: =UnObr4!D66 -> 0 | AJ91: =UnObr4!E66 -> 0
A92: 4065 | D92: 732400 | H92: Капиталне помоћи од ЕУ | AA92: =UnObr4!D67 -> 0 | AJ92: =UnObr4!E67 -> 0
A93: 4066 | D93: 733000 | H93: ТРАНСФЕРИ ОД ДРУГИХ НИВОА ВЛАСТИ (4067 + 4068) | AA93: =UnObr4!D68 -> 13510 | AJ93: =UnObr4!E68 -> 11436
A94: 4067 | D94: 733100 | H94: Текући трансфери од других нивоа власти | AA94: =UnObr4!D69 -> 13510 | AJ94: =UnObr4!E69 -> 11436
A95: 4068 | D95: 733200 | H95: Капитални трансфери од других нивоа власти | AA95: =UnObr4!D70 -> 0 | AJ95: =UnObr4!E70 -> 0
A96: 4069 | D96: 740000 | H96: ДРУГИ ПРИХОДИ (4070 + 4077 + 4082 + 4089 + 4092) | AA96: =UnObr4!D71 -> 15732 | AJ96: =UnObr4!E71 -> 351
A97: 4070 | D97: 741000 | H97: ПРИХОДИ ОД ИМОВИНЕ (од 4071 до 4076) | AA97: =UnObr4!D72 -> 0 | AJ97: =UnObr4!E72 -> 0
A98: 4071 | D98: 741100 | H98: Камате | AA98: =UnObr4!D73 -> 0 | AJ98: =UnObr4!E73 -> 0
A99: 4072 | D99: 741200 | H99: Дивиденде | AA99: =UnObr4!D74 -> 0 | AJ99: =UnObr4!E74 -> 0
A100: 4073 | D100: 741300 | H100: Повлачење прихода од квази корпорација | AA100: =UnObr4!D75 -> 0 | AJ100: =UnObr4!E75 -> 0
A101: 4074 | D101: 741400 | H101: Приход од имовине који припада имаоцима полиса осигурања | AA101: =UnObr4!D76 -> 0 | AJ101: =UnObr4!E76 -> 0
A102: 4075 | D102: 741500 | H102: Закуп непроизведене имовине | AA102: =UnObr4!D77 -> 0 | AJ102: =UnObr4!E77 -> 0
A103: 4076 | D103: 741600 | H103: Финансијске промене на финансијским лизинзима | AA103: =UnObr4!D78 -> 0 | AJ103: =UnObr4!E78 -> 0
A104: 4077 | D104: 742000 | H104: ПРИХОДИ ОД ПРОДАЈЕ ДОБАРА И УСЛУГА (од 4078 до 4081) | AA104: =UnObr4!D79 -> 15551 | AJ104: =UnObr4!E79 -> 351
A105: 4078 | D105: 742100 | H105: Приходи од продаје добара и услуга или закупа од стране тржишних организација | AA105: =UnObr4!D80 -> 14531 | AJ105: =UnObr4!E80 -> 28
A106: 4079 | D106: 742200 | H106: Таксе и накнаде | AA106: =UnObr4!D81 -> 0 | AJ106: =UnObr4!E81 -> 0
A107: 4080 | D107: 742300 | H107: Споредне продаје добара и услуга које врше државне нетржишне јединице | AA107: =UnObr4!D82 -> 1020 | AJ107: =UnObr4!E82 -> 323
A108: 4081 | D108: 742400 | H108: Импутиране продаје добара и услуга | AA108: =UnObr4!D83 -> 0 | AJ108: =UnObr4!E83 -> 0
A109: 4082 | D109: 743000 | H109: НОВЧАНЕ КАЗНЕ И ОДУЗЕТА ИМОВИНСКА КОРИСТ (од 4083 до 4088) | AA109: =UnObr4!D84 -> 0 | AJ109: =UnObr4!E84 -> 0
A110: 4083 | D110: 743100 | H110: Приходи од новчаних казни за кривична дела | AA110: =UnObr4!D85 -> 0 | AJ110: =UnObr4!E85 -> 0
A111: 4084 | D111: 743200 | H111: Приходи од новчаних казни за привредне преступе | AA111: =UnObr4!D86 -> 0 | AJ111: =UnObr4!E86 -> 0
A112: 4085 | D112: 743300 | H112: Приходи од новчаних казни за прекршаје | AA112: =UnObr4!D87 -> 0 | AJ112: =UnObr4!E87 -> 0
A113: 4086 | D113: 743400 | H113: Приходи од пенала | AA113: =UnObr4!D88 -> 0 | AJ113: =UnObr4!E88 -> 0
A114: 4087 | D114: 743500 | H114: Приходи од одузете имовинске користи | AA114: =UnObr4!D89 -> 0 | AJ114: =UnObr4!E89 -> 0
A115: 4088 | D115: 743900 | H115: Остале новчане казне, пенали и приходи од одузете имовинске користи | AA115: =UnObr4!D90 -> 0 | AJ115: =UnObr4!E90 -> 0
A116: 4089 | D116: 744000 | H116: ДОБРОВОЉНИ ТРАНСФЕРИ ОД ФИЗИЧКИХ И ПРАВНИХ ЛИЦА (4090 + 4091) | AA116: =UnObr4!D91 -> 96 | AJ116: =UnObr4!E91 -> 0
A117: 4090 | D117: 744100 | H117: Текући добровољни трансфери од физичких и правних лица | AA117: =UnObr4!D92 -> 96 | AJ117: =UnObr4!E92 -> 0
A118: 4091 | D118: 744200 | H118: Капитални добровољни трансфери од физичких и правних лица | AA118: =UnObr4!D93 -> 0 | AJ118: =UnObr4!E93 -> 0
A119: 4092 | D119: 745000 | H119: МЕШОВИТИ И НЕОДРЕЂЕНИ ПРИХОДИ (4093) | AA119: =UnObr4!D94 -> 85 | AJ119: =UnObr4!E94 -> 0
A120: 4093 | D120: 745100 | H120: Мешовити и неодређени приходи | AA120: =UnObr4!D95 -> 85 | AJ120: =UnObr4!E95 -> 0
A121: 4094 | D121: 770000 | H121: МЕМОРАНДУМСКЕ СТАВКЕ ЗА РЕФУНДАЦИЈУ РАСХОДА (4095 + 4097) | AA121: =UnObr4!D96 -> 406 | AJ121: =UnObr4!E96 -> 648
A122: 4095 | D122: 771000 | H122: МЕМОРАНДУМСКЕ СТАВКЕ ЗА РЕФУНДАЦИЈУ РАСХОДА (4096) | AA122: =UnObr4!D97 -> 0 | AJ122: =UnObr4!E97 -> 0
A123: 4096 | D123: 771100 | H123: Меморандумске ставке за рефундацију расхода | AA123: =UnObr4!D98 -> 0 | AJ123: =UnObr4!E98 -> 0
A124: 4097 | D124: 772000 | H124: МЕМОРАНДУМСКЕ СТАВКЕ ЗА РЕФУНДАЦИЈУ РАСХОДА ИЗ ПРЕТХОДНЕ ГОДИНЕ (4098) | AA124: =UnObr4!D99 -> 406 | AJ124: =UnObr4!E99 -> 648
